Workbook

Sheet RESUMO MODULO TOTAL
B1: EXECUÇÃO DE SERVIÇOS DE PAVIMENTAÇÃO COM TRATAMENTO SUPERFICIAL DUPLO EM VIAS DE MUNICÍPIOS DIVERSOS INSERIDOS NA ÁREA DE ATUAÇÃO DA CODEVASF, NO ESTADO DO RIO GRANDE DO NORTE (REGIÃO 1)
M2: SICRO: | N2: ='SINTÉTICO SICRO'!B2 -> Rio Grande do Norte - Abril/2024
M3: SINAPI: | N3: =RIGHT('INSUMOS SINAPI'!A3,7) -> 06/2024
M4: Data base do orçamento: | N4: 2024-08-01
B5: =B1 -> EXECUÇÃO DE SERVIÇOS DE PAVIMENTAÇÃO COM TRATAMENTO SUPERFICIAL DUPLO EM VIAS DE MUNICÍPIOS DIVERSOS INSERIDOS NA ÁREA DE ATUAÇÃO DA CODEVASF, NO ESTADO DO RIO GRANDE DO NORTE (REGIÃO 1)
B6: ITEM | C6: ORIGEM COMPOSIÇÃO | D6: CÓDIGO COMPOSIÇÃO | E6: DISCRIMINAÇÃO DOS SERVIÇOS | I6: BDI % = | J6: =BDI!C17 -> 0.2339 | K6: BDI DIFERENCIADO % = | L6: =BDI!C68 -> 0.15 | M6: R$/m² | N6: =N59/J23 -> 188.512898
I7: Total de m² | J7: Encargos Sociais: | K7: Horista % | L7: Mensalista % | M7: PREÇO UNITÁRIO COM BDI | N7: PREÇO TOTAL COM BDI
I8: ='Memória de Cálculo'!C1*'Memória de Cálculo'!C2*'Memória de Cálculo'!G1 -> 98000 | K8: ='ENC. SOCIAIS'!$E$51 -> 116.21 | L8: ='ENC. SOCIAIS'!$F$51 -> 71.48
I9: UND | J9: QTDE. | K9: BDI | L9: PREÇO UNITÁRIO | AA9: TOTAL
E10: MOBILIZAÇÃO/DESMOBILIZAÇÃO
B11: 1 | C11: Codevasf | D11: Mob | E11: Mobilização | I11: kmxfrente | J11: =Mob!B65*Mob!H6 -> 756 | K11: =(M11/L11-1) -> 0.2339 | L11: =Mob!B62 -> 87.89232667 | M11: =Mob!B64 -> 108.4503419 | N11: =ROUND(ROUND(J11,2)*ROUND(M11,6),2) -> 81988.46 | O11: =N11/$N$59 -> 0.004437982482 | AA11: 57163.47
B12: 2 | C12: Codevasf | D12: Mob | E12: Desmobilização | I12: kmxfrente | J12: =Mob!B65*Mob!H6 -> 756 | K12: =(M12/L12-1) -> 0.2339 | L12: =Mob!B62 -> 87.89232667 | M12: =Mob!B64 -> 108.4503419 | N12: =ROUND(ROUND(J12,2)*ROUND(M12,6),2) -> 81988.46 | O12: =N12/$N$59 -> 0.004437982482 | AA12: 57163.47
E13: INSTALAÇÃO DE CANTEIRO
B14: 3 | C14: Codevasf | D14: Canteiro | E14: Canteiro de Obras e Almoxarifado | I14: frente | J14: ='Memória de Cálculo'!G1 -> 7 | K14: =(M14/L14-1) -> 0.2339 | L14: =' Canteiro'!F11 -> 19147.44 | M14: =' Canteiro'!F13 -> 23626.02622 | N14: =ROUND(ROUND(J14,2)*ROUND(M14,6),2) -> 165382.18 | AA14: 190291.53
B15: 4 | C15: SICRO | D15: 903808 | E15: =VLOOKUP(D15,'SINTÉTICO SICRO'!A:D,2,FALSE) -> Instalação da usina misturadora de solos com capacidade de 300 t/h | I15: frente | J15: 3 | K15: 0.2339 | L15: =VLOOKUP(D15,'SINTÉTICO SICRO'!A:D,4,FALSE) -> 108635.66 | M15: =L15*(1+K15) -> 134045.5409 | N15: =ROUND(ROUND(J15,2)*ROUND(M15,6),2) -> 402136.62
B16: 5 | C16: SINAPI | D16: 103689 | E16: Fornecimento e instalação de placa de obra com chapa galvanizada e estrutura de madeira. af_03/2022_ps | I16: m² | J16: ='Memória de Cálculo'!H25 -> 112 | K16: =(M16/L16-1) -> 0.2339 | L16: =VLOOKUP(D16,'COMP Sint. Sinapi'!G7:K1048576,5,0) -> 319.64 | M16: =L16*(1+$J$6) -> 394.403796 | N16: =ROUND(ROUND(J16,2)*ROUND(M16,6),2) -> 44173.23
E17: ADMINISTRAÇÃO LOCAL DA OBRA
B18: 6 | C18: Codevasf | D18: Adm Local | E18: Administração Local da Obra | I18: und | J18: 1 | K18: =(M18/L18-1) -> 0.2339 | L18: ='Adm Local'!J249 -> 797672.0503 | M18: ='Adm Local'!I251 -> 984247.5429 | N18: =ROUND(ROUND(J18,2)*ROUND(M18,6),2) -> 984247.54 | O18: =N18/N59 -> 0.0532766848
E19: TERRAPLANAGEM
B20: 7 | C20: SICRO | D20: 5502114 | E20: =VLOOKUP(D20,'SINTÉTICO SICRO'!$A$4:$D$1048576,2,0) -> Escavação, carga e transporte de material de 1ª categoria - DMT de 1.000 a 1.200 m - caminho de serviço em leito natural - com escavadeira e caminhão basculante de 14 m³ | I20: m³ | J20: ='Memória de Cálculo'!H37 -> 31850 | K20: =M20/L20-1 -> 0.2339 | L20: =ROUND(IF(C20="CODEVASF",VLOOKUP(D20,'CPU CODEVASF'!E:I,5,FALSE),VLOOKUP(D20,'SINTÉTICO SICRO'!A:D,4,FALSE)),6) -> 7.88 | M20: =ROUND(IF(C20="CODEVASF",VLOOKUP(D20,'CPU CODEVASF'!E:H,4,FALSE),VLOOKUP(D20,'SINTÉTICO SICRO'!A:D,4,FALSE)*(1+$J$6)),6) -> 9.723132 | N20: =ROUND(ROUND(J20,2)*ROUND(M20,6),2) -> 309681.75 | AA20: 366912
B21: 8 | C21: SICRO | D21: 4413942 | E21: =VLOOKUP(D21,'SINTÉTICO SICRO'!$A$4:$D$1048576,2,0) -> Espalhamento de material em bota-fora | I21: m³ | J21: ='Memória de Cálculo'!H44 -> 31850 | K21: 0.2339 | L21: =ROUND(IF(C21="CODEVASF",VLOOKUP(D21,'CPU CODEVASF'!E:I,5,FALSE),VLOOKUP(D21,'SINTÉTICO SICRO'!A:D,4,FALSE)),6) -> 1.97 | M21: =ROUND(IF(C21="CODEVASF",VLOOKUP(D21,'CPU CODEVASF'!E:H,4,FALSE),VLOOKUP(D21,'SINTÉTICO SICRO'!A:D,4,FALSE)*(1+$J$6)),6) -> 2.430783 | N21: 77420.44 | AA21: 84084 | AF21: 1
E22: PAVIMENTAÇÃO
B23: 9 | C23: SICRO | D23: 4915637 | E23: =VLOOKUP(D23,'SINTÉTICO SICRO'!$A$4:$D$1048576,2,0) -> Capa selante - areia comercial | I23: m² | J23: ='Memória de Cálculo'!H51 -> 98000 | K23: =M23/L23-1 -> 0.2339 | L23: =ROUND(IF(C23="CODEVASF",VLOOKUP(D23,'CPU CODEVASF'!E:I,5,FALSE),VLOOKUP(D23,'SINTÉTICO SICRO'!A:D,4,FALSE)),6) -> 0.98 | M23: =ROUND(IF(C23="CODEVASF",VLOOKUP(D23,'CPU CODEVASF'!E:H,4,FALSE),VLOOKUP(D23,'SINTÉTICO SICRO'!A:D,4,FALSE)*(1+$J$6)),6) -> 1.209222 | N23: =ROUND(ROUND(J23,2)*ROUND(M23,6),2) -> 118503.76 | AA23: 13037300.31
B24: 10 | C24: SICRO | D24: 4011370 | E24: =VLOOKUP(D24,'SINTÉTICO SICRO'!$A$4:$D$1048576,2,0) -> Tratamento superficial duplo com emulsão - brita comercial | I24: m² | J24: ='Memória de Cálculo'!H57 -> 98000 | K24: 0.2339 | L24: =ROUND(IF(C24="CODEVASF",VLOOKUP(D24,'CPU CODEVASF'!E:I,5,FALSE),VLOOKUP(D24,'SINTÉTICO SICRO'!A:D,4,FALSE)),6) -> 5.39 | M24: =ROUND(IF(C24="CODEVASF",VLOOKUP(D24,'CPU CODEVASF'!E:H,4,FALSE),VLOOKUP(D24,'SINTÉTICO SICRO'!A:D,4,FALSE)*(1+$J$6)),6) -> 6.650721 | N24: 651770.66 | AA24: 223860
B25: 11 | C25: SICRO | D25: 4011352 | E25: =VLOOKUP(D25,'SINTÉTICO SICRO'!$A$4:$D$1048576,2,0) -> Imprimação com emulsão asfáltica | I25: m² | J25: ='Memória de Cálculo'!H57 -> 98000 | K25: 0.2339 | L25: =ROUND(IF(C25="CODEVASF",VLOOKUP(D25,'CPU CODEVASF'!E:I,5,FALSE),VLOOKUP(D25,'SINTÉTICO SICRO'!A:D,4,FALSE)),6) -> 0.41 | M25: =ROUND(IF(C25="CODEVASF",VLOOKUP(D25,'CPU CODEVASF'!E:H,4,FALSE),VLOOKUP(D25,'SINTÉTICO SICRO'!A:D,4,FALSE)*(1+$J$6)),6) -> 0.505899 | N25: 49578.1 | AA25: 223860
B26: 12 | C26: SICRO | D26: 4011268 | E26: =VLOOKUP(D26,'SINTÉTICO SICRO'!$A$4:$D$1048576,2,0) -> Base estabilizada granulometricamente com mistura solo brita (70% - 30%) em usina com material de jazida e brita comercial | I26: m³ | J26: ='Memória de Cálculo'!H68 -> 14700 | K26: 0.2339 | L26: =ROUND(IF(C26="CODEVASF",VLOOKUP(D26,'CPU CODEVASF'!E:I,5,FALSE),VLOOKUP(D26,'SINTÉTICO SICRO'!A:D,4,FALSE)),6) -> 82.27 | M26: =ROUND(IF(C26="CODEVASF",VLOOKUP(D26,'CPU CODEVASF'!E:H,4,FALSE),VLOOKUP(D26,'SINTÉTICO SICRO'!A:D,4,FALSE)*(1+$J$6)),6) -> 101.512953 | N26: 1492240.41 | AA26: 15919722
B27: 13 | C27: SICRO | D27: 4011235 | E27: =VLOOKUP(D27,'SINTÉTICO SICRO'!$A$4:$D$1048576,2,0) -> Sub-base estabilizada granulometricamente com mistura solo brita (70% - 30%) em usina com material de jazida e brita comercial | I27: m³ | J27: ='Memória de Cálculo'!H74 -> 14700 | K27: 0.2339 | L27: =ROUND(IF(C27="CODEVASF",VLOOKUP(D27,'CPU CODEVASF'!E:I,5,FALSE),VLOOKUP(D27,'SINTÉTICO SICRO'!A:D,4,FALSE)),6) -> 81.9 | M27: =ROUND(IF(C27="CODEVASF",VLOOKUP(D27,'CPU CODEVASF'!E:H,4,FALSE),VLOOKUP(D27,'SINTÉTICO SICRO'!A:D,4,FALSE)*(1+$J$6)),6) -> 101.05641 | N27: 1485529.23 | AA27: 2045862
B28: 14 | C28: SICRO | D28: 4011209 | E28: =VLOOKUP(D28,'SINTÉTICO SICRO'!$A$4:$D$1048576,2,0) -> Regularização do subleito | I28: m² | J28: ='Memória de Cálculo'!H80 -> 98000 | K28: 0.2339 | L28: =ROUND(IF(C28="CODEVASF",VLOOKUP(D28,'CPU CODEVASF'!E:I,5,FALSE),VLOOKUP(D28,'SINTÉTICO SICRO'!A:D,4,FALSE)),6) -> 1.16 | M28: =ROUND(IF(C28="CODEVASF",VLOOKUP(D28,'CPU CODEVASF'!E:H,4,FALSE),VLOOKUP(D28,'SINTÉTICO SICRO'!A:D,4,FALSE)*(1+$J$6)),6) -> 1.431324 | N28: 140269.75 | AA28: 540540
E29: AQUISIÇÃO E TRANSPORTE DO MATERIAL BETUMINOSO
B30: 15 | C30: CODEVASF | D30: CPU-14 | E30: AQUISIÇÃO DE EAI | I30: t | J30: =' CONSUMO DE MAT. B TOTAL'!P9 -> 117.6 | K30: =M30/L30-1 -> 0.1499999997 | L30: =ROUND(IF(C30="CODEVASF",VLOOKUP(D30,'CPU CODEVASF'!E:I,5,FALSE),VLOOKUP(D30,'SINTÉTICO SICRO'!A:D,4,FALSE)),6) -> 2852.762226 | M30: =ROUND(IF(C30="CODEVASF",VLOOKUP(D30,'CPU CODEVASF'!E:H,4,FALSE),VLOOKUP(D30,'SINTÉTICO SICRO'!A:D,4,FALSE)*(1+$J$6)),6) -> 3280.676559 | N30: =ROUND(ROUND(J30,2)*ROUND(M30,6),2) -> 385807.56 | AA30: 3101079.07
B31: 16 | C31: CODEVASF | D31: CPU-18 | E31: TRANSPORTE DE EAI | I31: t | J31: =' CONSUMO DE MAT. B TOTAL'!P9 -> 117.6 | K31: 0.1499999999 | L31: =ROUND(IF(C31="CODEVASF",VLOOKUP(D31,'CPU CODEVASF'!E:I,5,FALSE),VLOOKUP(D31,'SINTÉTICO SICRO'!A:D,4,FALSE)),6) -> 1667.114694 | M31: =ROUND(IF(C31="CODEVASF",VLOOKUP(D31,'CPU CODEVASF'!E:H,4,FALSE),VLOOKUP(D31,'SINTÉTICO SICRO'!A:D,4,FALSE)*(1+$J$6)),6) -> 1917.181898 | N31: 225460.59 | AA31: 1243849.15
B32: 17 | C32: CODEVASF | D32: CPU-15 | E32: AQUISIÇÃO DE EMULSÃO ASFÁLTICA RR-2C | I32: t | J32: =' CONSUMO DE MAT. B TOTAL'!P11+' CONSUMO DE MAT. B TOTAL'!P13+' CONSUMO DE MAT. B TOTAL'!P15 -> 294 | K32: 0.1499999999 | L32: =ROUND(IF(C32="CODEVASF",VLOOKUP(D32,'CPU CODEVASF'!E:I,5,FALSE),VLOOKUP(D32,'SINTÉTICO SICRO'!A:D,4,FALSE)),6) -> 3339.211216 | M32: =ROUND(IF(C32="CODEVASF",VLOOKUP(D32,'CPU CODEVASF'!E:H,4,FALSE),VLOOKUP(D32,'SINTÉTICO SICRO'!A:D,4,FALSE)*(1+$J$6)),6) -> 3840.092898 | N32: 1128987.31 | AA32: 775269.77
B33: 18 | C33: CODEVASF | D33: CPU-19 | E33: TRANSPORTE RR-2C | I33: t | J33: =J32 -> 294 | K33: 0.15 | L33: =ROUND(IF(C33="CODEVASF",VLOOKUP(D33,'CPU CODEVASF'!E:I,5,FALSE),VLOOKUP(D33,'SINTÉTICO SICRO'!A:D,4,FALSE)),6) -> 1409.74 | M33: =ROUND(IF(C33="CODEVASF",VLOOKUP(D33,'CPU CODEVASF'!E:H,4,FALSE),VLOOKUP(D33,'SINTÉTICO SICRO'!A:D,4,FALSE)*(1+$J$6)),6) -> 1621.201 | N33: 476633.09 | AA33: 310962.288
E34: SINALIZAÇÃO
B35: 19 | C35: SICRO | D35: 5213440 | E35: =VLOOKUP(D35,'SINTÉTICO SICRO'!$A$4:$D$1048576,2,0) -> Placa de regulamentação em aço D = 0,60 m - película retrorrefletiva tipo I + SI - fornecimento e implantação | I35: und | J35: ='Memória de Cálculo'!H87 -> 42 | K35: =M35/L35-1 -> 0.2339 | L35: =ROUND(IF(C35="CODEVASF",VLOOKUP(D35,'CPU CODEVASF'!E:I,5,FALSE),VLOOKUP(D35,'SINTÉTICO SICRO'!A:D,4,FALSE)),6) -> 260.02 | M35: =ROUND(IF(C35="CODEVASF",VLOOKUP(D35,'CPU CODEVASF'!E:H,4,FALSE),VLOOKUP(D35,'SINTÉTICO SICRO'!A:D,4,FALSE)*(1+$J$6)),6) -> 320.838678 | N35: =ROUND(ROUND(J35,2)*ROUND(M35,6),2) -> 13475.22 | AA35: 9985.95
B36: 20 | C36: SICRO | D36: 5213464 | E36: =VLOOKUP(D36,'SINTÉTICO SICRO'!$A$4:$D$1048576,2,0) -> Placa de advertência em aço, lado de 0,60 m - película retrorrefletiva tipo I + SI - fornecimento e implantação | I36: und | J36: ='Memória de Cálculo'!H92 -> 42 | K36: 0.2339 | L36: =ROUND(IF(C36="CODEVASF",VLOOKUP(D36,'CPU CODEVASF'!E:I,5,FALSE),VLOOKUP(D36,'SINTÉTICO SICRO'!A:D,4,FALSE)),6) -> 260.05 | M36: =ROUND(IF(C36="CODEVASF",VLOOKUP(D36,'CPU CODEVASF'!E:H,4,FALSE),VLOOKUP(D36,'SINTÉTICO SICRO'!A:D,4,FALSE)*(1+$J$6)),6) -> 320.875695 | N36: 13476.78
B37: 21 | C37: SICRO | D37: 5213863 | E37: =VLOOKUP(D37,'SINTÉTICO SICRO'!$A$4:$D$1048576,2,0) -> Suporte metálico galvanizado para placa de advertência ou regulamentação - lado ou diâmetro de 0,60 m - fornecimento e implantação | I37: und | J37: ='Memória de Cálculo'!H98 -> 84 | K37: 0.2339 | L37: =ROUND(IF(C37="CODEVASF",VLOOKUP(D37,'CPU CODEVASF'!E:I,5,FALSE),VLOOKUP(D37,'SINTÉTICO SICRO'!A:D,4,FALSE)),6) -> 454.56 | M37: =ROUND(IF(C37="CODEVASF",VLOOKUP(D37,'CPU CODEVASF'!E:H,4,FALSE),VLOOKUP(D37,'SINTÉTICO SICRO'!A:D,4,FALSE)*(1+$J$6)),6) -> 560.881584 | N37: 47114.05 | AA37: 13086.06
B38: 22 | C38: SICRO | D38: 5213400 | E38: =VLOOKUP(D38,'SINTÉTICO SICRO'!$A$4:$D$1048576,2,0) -> Pintura de faixa com tinta acrílica - espessura de 0,4 mm | I38: m² | J38: ='Memória de Cálculo'!H103+'Memória de Cálculo'!H108 -> 3360 | K38: 0.2339 | L38: =ROUND(IF(C38="CODEVASF",VLOOKUP(D38,'CPU CODEVASF'!E:I,5,FALSE),VLOOKUP(D38,'SINTÉTICO SICRO'!A:D,4,FALSE)),6) -> 24.82 | M38: =ROUND(IF(C38="CODEVASF",VLOOKUP(D38,'CPU CODEVASF'!E:H,4,FALSE),VLOOKUP(D38,'SINTÉTICO SICRO'!A:D,4,FALSE)*(1+$J$6)),6) -> 30.625398 | N38: 102901.34
E39: DRENAGEM
B40: 23 | C40: SICRO | D40: 2003943 | E40: =VLOOKUP(D40,'SINTÉTICO SICRO'!$A$4:$D$1048576,2,0) -> Meio-fio de concreto - MFC 03 moldado no local com extrusora e concreto usinado - areia e brita comerciais | I40: m | J40: ='Memória de Cálculo'!H132 -> 28000 | K40: =M40/L40-1 -> 0.2339 | L40: =ROUND(IF(C40="CODEVASF",VLOOKUP(D40,'CPU CODEVASF'!E:I,5,FALSE),VLOOKUP(D40,'SINTÉTICO SICRO'!A:D,4,FALSE)),6) -> 29.75 | M40: =ROUND(IF(C40="CODEVASF",VLOOKUP(D40,'CPU CODEVASF'!E:H,4,FALSE),VLOOKUP(D40,'SINTÉTICO SICRO'!A:D,4,FALSE)*(1+$J$6)),6) -> 36.708525 | N40: =ROUND(ROUND(J40,2)*ROUND(M40,6),2) -> 1027838.7 | AA40: 4514640
B41: 24 | C41: SICRO | D41: 4915724 | E41: =VLOOKUP(D41,'SINTÉTICO SICRO'!$A$4:$D$1048576,2,0) -> Caiação mecanizada com fixador de cal | I41: m² | J41: ='Memória de Cálculo'!H137 -> 3360 | K41: =(M41/L41-1) -> 0.2339 | L41: =ROUND(IF(C41="CODEVASF",VLOOKUP(D41,'CPU CODEVASF'!E:I,5,FALSE),VLOOKUP(D41,'SINTÉTICO SICRO'!A:D,4,FALSE)),6) -> 1.94 | M41: =ROUND(IF(C41="CODEVASF",VLOOKUP(D41,'CPU CODEVASF'!E:H,4,FALSE),VLOOKUP(D41,'SINTÉTICO SICRO'!A:D,4,FALSE)*(1+$J$6)),6) -> 2.393766 | N41: =ROUND(ROUND(J41,2)*ROUND(M41,6),2) -> 8043.05 | Y41: 4514640
E42: SERVIÇOS COMPLEMENTARES
B43: 25 | C43: Codevasf | D43: CPU-12 | E43: Conserto de quebra no ramal na rua sem pavimento com fornecimento de material hidráulico | I43: m | J43: ='Memória de Cálculo'!H144 -> 1400 | K43: =M43/L43-1 -> 0.2339000318 | L43: =ROUND(IF(C43="CODEVASF",VLOOKUP(D43,'CPU CODEVASF'!E:I,5,FALSE),VLOOKUP(D43,'SINTÉTICO SICRO'!A:D,4,FALSE)),6) -> 15.06739 | M43: =ROUND(IF(C43="CODEVASF",VLOOKUP(D43,'CPU CODEVASF'!E:H,4,FALSE),VLOOKUP(D43,'SINTÉTICO SICRO'!A:D,4,FALSE)*(1+$J$6)),6) -> 18.591653 | N43: =ROUND(ROUND(J43,2)*ROUND(M43,6),2) -> 26028.31 | AA43: 139854
E44: PROJETO EXECUTIVO
B45: 26 | C45: Codevasf | D45: Composição Própria | E45: Projeto Executivo | I45: m² | J45: ='Memória de Cálculo'!H151 -> 98000 | K45: =M45/L45-1 -> 0.2339000364 | L45: =ROUND(M45/(1+$J$6),6) -> 1.681947 | M45: ='Projeto Executivo'!G29 -> 2.075354464 | N45: =ROUND(ROUND(J45,2)*ROUND(M45,6),2) -> 203384.69 | AA45: 763671.38
E46: MOMENTO DE TRANSPORTE
B47: 27 | C47: SICRO | D47: 5914359 | E47: =VLOOKUP(D47,'SINTÉTICO SICRO'!$A$4:$D$1048576,2,0) -> Transporte com caminhão basculante de 10 m³ - rodovia em leito natural | I47: tkm | J47: =ROUND(SUMIF('MOMENTO DE TRANSPORTE - PRINC'!A:A,'RESUMO MODULO TOTAL'!D47,'MOMENTO DE TRANSPORTE - PRINC'!K:K)+SUMIF('MOMENTO DE TRANSPORTE - AUX'!A:A,'RESUMO MODULO TOTAL'!D47,'MOMENTO DE TRANSPORTE - AUX'!K:K),2) -> 0 | K47: =M47/L47-1 -> 0.2339 | L47: =ROUND(IF(C47="CODEVASF",VLOOKUP(D47,'CPU CODEVASF'!E:I,5,FALSE),VLOOKUP(D47,'SINTÉTICO SICRO'!A:D,4,FALSE)),6) -> 1.23 | M47: =ROUND(IF(C47="CODEVASF",VLOOKUP(D47,'CPU CODEVASF'!E:H,4,FALSE),VLOOKUP(D47,'SINTÉTICO SICRO'!A:D,4,FALSE)*(1+$J$6)),6) -> 1.517697 | N47: =ROUND(ROUND(J47,2)*ROUND(M47,6),2) -> 0
B48: 28 | C48: SICRO | D48: 5914374 | E48: =VLOOKUP(D48,'SINTÉTICO SICRO'!$A$4:$D$1048576,2,0) -> Transporte com caminhão basculante de 10 m³ - rodovia em revestimento primário | I48: tkm | J48: =ROUND(SUMIF('MOMENTO DE TRANSPORTE - PRINC'!A:A,'RESUMO MODULO TOTAL'!D48,'MOMENTO DE TRANSPORTE - PRINC'!K:K)+SUMIF('MOMENTO DE TRANSPORTE - AUX'!A:A,'RESUMO MODULO TOTAL'!D48,'MOMENTO DE TRANSPORTE - AUX'!K:K),2) -> 830157.8 | K48: 0.2339 | L48: =ROUND(IF(C48="CODEVASF",VLOOKUP(D48,'CPU CODEVASF'!E:I,5,FALSE),VLOOKUP(D48,'SINTÉTICO SICRO'!A:D,4,FALSE)),6) -> 0.99 | M48: =ROUND(IF(C48="CODEVASF",VLOOKUP(D48,'CPU CODEVASF'!E:H,4,FALSE),VLOOKUP(D48,'SINTÉTICO SICRO'!A:D,4,FALSE)*(1+$J$6)),6) -> 1.221561 | N48: =ROUND(ROUND(J48,2)*ROUND(M48,6),2) -> 1014088.39
B49: 29 | C49: SICRO | D49: 5914389 | E49: =VLOOKUP(D49,'SINTÉTICO SICRO'!$A$4:$D$1048576,2,0) -> Transporte com caminhão basculante de 10 m³ - rodovia pavimentada | I49: tkm | J49: =ROUND(SUMIF('MOMENTO DE TRANSPORTE - PRINC'!A:A,'RESUMO MODULO TOTAL'!D49,'MOMENTO DE TRANSPORTE - PRINC'!K:K)+SUMIF('MOMENTO DE TRANSPORTE - AUX'!A:A,'RESUMO MODULO TOTAL'!D49,'MOMENTO DE TRANSPORTE - AUX'!K:K),2) -> 7471420.24 | K49: 0.2339 | L49: =ROUND(IF(C49="CODEVASF",VLOOKUP(D49,'CPU CODEVASF'!E:I,5,FALSE),VLOOKUP(D49,'SINTÉTICO SICRO'!A:D,4,FALSE)),6) -> 0.81 | M49: =ROUND(IF(C49="CODEVASF",VLOOKUP(D49,'CPU CODEVASF'!E:H,4,FALSE),VLOOKUP(D49,'SINTÉTICO SICRO'!A:D,4,FALSE)*(1+$J$6)),6) -> 0.999459 | N49: =ROUND(ROUND(J49,2)*ROUND(M49,6),2) -> 7467378.2
B50: 30 | C50: SICRO | D50: 5914314 | E50: =VLOOKUP(D50,'SINTÉTICO SICRO'!$A$4:$D$1048576,2,0) -> Transporte com caminhão basculante de 6 m³ - rodovia em leito natural | I50: tkm | J50: =ROUND(SUMIF('MOMENTO DE TRANSPORTE - PRINC'!A:A,'RESUMO MODULO TOTAL'!D50,'MOMENTO DE TRANSPORTE - PRINC'!K:K)+SUMIF('MOMENTO DE TRANSPORTE - AUX'!A:A,'RESUMO MODULO TOTAL'!D50,'MOMENTO DE TRANSPORTE - AUX'!K:K),2) -> 0 | K50: 0.2339 | L50: =ROUND(IF(C50="CODEVASF",VLOOKUP(D50,'CPU CODEVASF'!E:I,5,FALSE),VLOOKUP(D50,'SINTÉTICO SICRO'!A:D,4,FALSE)),6) -> 1.27 | M50: =ROUND(IF(C50="CODEVASF",VLOOKUP(D50,'CPU CODEVASF'!E:H,4,FALSE),VLOOKUP(D50,'SINTÉTICO SICRO'!A:D,4,FALSE)*(1+$J$6)),6) -> 1.567053 | N50: 0
B51: 31 | C51: SICRO | D51: 5914329 | E51: =VLOOKUP(D51,'SINTÉTICO SICRO'!$A$4:$D$1048576,2,0) -> Transporte com caminhão basculante de 6 m³ - rodovia em revestimento primário | I51: tkm | J51: =ROUND(SUMIF('MOMENTO DE TRANSPORTE - PRINC'!A:A,'RESUMO MODULO TOTAL'!D51,'MOMENTO DE TRANSPORTE - PRINC'!K:K)+SUMIF('MOMENTO DE TRANSPORTE - AUX'!A:A,'RESUMO MODULO TOTAL'!D51,'MOMENTO DE TRANSPORTE - AUX'!K:K),2) -> 3836.7 | K51: 0.2339 | L51: =ROUND(IF(C51="CODEVASF",VLOOKUP(D51,'CPU CODEVASF'!E:I,5,FALSE),VLOOKUP(D51,'SINTÉTICO SICRO'!A:D,4,FALSE)),6) -> 1.02 | M51: =ROUND(IF(C51="CODEVASF",VLOOKUP(D51,'CPU CODEVASF'!E:H,4,FALSE),VLOOKUP(D51,'SINTÉTICO SICRO'!A:D,4,FALSE)*(1+$J$6)),6) -> 1.258578 | N51: 4828.79
B52: 32 | C52: SICRO | D52: 5914344 | E52: =VLOOKUP(D52,'SINTÉTICO SICRO'!$A$4:$D$1048576,2,0) -> Transporte com caminhão basculante de 6 m³ - rodovia pavimentada | I52: tkm | J52: =ROUND(SUMIF('MOMENTO DE TRANSPORTE - PRINC'!A:A,'RESUMO MODULO TOTAL'!D52,'MOMENTO DE TRANSPORTE - PRINC'!K:K)+SUMIF('MOMENTO DE TRANSPORTE - AUX'!A:A,'RESUMO MODULO TOTAL'!D52,'MOMENTO DE TRANSPORTE - AUX'!K:K),2) -> 34530.3 | K52: 0.2339 | L52: =ROUND(IF(C52="CODEVASF",VLOOKUP(D52,'CPU CODEVASF'!E:I,5,FALSE),VLOOKUP(D52,'SINTÉTICO SICRO'!A:D,4,FALSE)),6) -> 0.84 | M52: =ROUND(IF(C52="CODEVASF",VLOOKUP(D52,'CPU CODEVASF'!E:H,4,FALSE),VLOOKUP(D52,'SINTÉTICO SICRO'!A:D,4,FALSE)*(1+$J$6)),6) -> 1.036476 | N52: 35789.83
B53: 33 | C53: SICRO | D53: 5914449 | E53: =VLOOKUP(D53,'SINTÉTICO SICRO'!$A$4:$D$1048576,2,0) -> Transporte com caminhão carroceria de 15 t - rodovia em leito natural | I53: tkm | J53: =ROUND(SUMIF('MOMENTO DE TRANSPORTE - PRINC'!A:A,'RESUMO MODULO TOTAL'!D53,'MOMENTO DE TRANSPORTE - PRINC'!K:K)+SUMIF('MOMENTO DE TRANSPORTE - AUX'!A:A,'RESUMO MODULO TOTAL'!D53,'MOMENTO DE TRANSPORTE - AUX'!K:K),2) -> 0 | K53: 0.2339 | L53: =ROUND(IF(C53="CODEVASF",VLOOKUP(D53,'CPU CODEVASF'!E:I,5,FALSE),VLOOKUP(D53,'SINTÉTICO SICRO'!A:D,4,FALSE)),6) -> 1.1 | M53: =ROUND(IF(C53="CODEVASF",VLOOKUP(D53,'CPU CODEVASF'!E:H,4,FALSE),VLOOKUP(D53,'SINTÉTICO SICRO'!A:D,4,FALSE)*(1+$J$6)),6) -> 1.35729 | N53: 0
B54: 34 | C54: SICRO | D54: 5914464 | E54: =VLOOKUP(D54,'SINTÉTICO SICRO'!$A$4:$D$1048576,2,0) -> Transporte com caminhão carroceria de 15 t - rodovia em revestimento primário | I54: tkm | J54: =ROUND(SUMIF('MOMENTO DE TRANSPORTE - PRINC'!A:A,'RESUMO MODULO TOTAL'!D54,'MOMENTO DE TRANSPORTE - PRINC'!K:K)+SUMIF('MOMENTO DE TRANSPORTE - AUX'!A:A,'RESUMO MODULO TOTAL'!D54,'MOMENTO DE TRANSPORTE - AUX'!K:K),2) -> 0 | K54: 0.2339 | L54: =ROUND(IF(C54="CODEVASF",VLOOKUP(D54,'CPU CODEVASF'!E:I,5,FALSE),VLOOKUP(D54,'SINTÉTICO SICRO'!A:D,4,FALSE)),6) -> 0.88 | M54: =ROUND(IF(C54="CODEVASF",VLOOKUP(D54,'CPU CODEVASF'!E:H,4,FALSE),VLOOKUP(D54,'SINTÉTICO SICRO'!A:D,4,FALSE)*(1+$J$6)),6) -> 1.085832 | N54: 0
B55: 35 | C55: SICRO | D55: 5914479 | E55: =VLOOKUP(D55,'SINTÉTICO SICRO'!$A$4:$D$1048576,2,0) -> Transporte com caminhão carroceria de 15 t - rodovia pavimentada | I55: tkm | J55: =ROUND(SUMIF('MOMENTO DE TRANSPORTE - PRINC'!A:A,'RESUMO MODULO TOTAL'!D55,'MOMENTO DE TRANSPORTE - PRINC'!K:K)+SUMIF('MOMENTO DE TRANSPORTE - AUX'!A:A,'RESUMO MODULO TOTAL'!D55,'MOMENTO DE TRANSPORTE - AUX'!K:K),2) -> 0 | K55: 0.2339 | L55: =ROUND(IF(C55="CODEVASF",VLOOKUP(D55,'CPU CODEVASF'!E:I,5,FALSE),VLOOKUP(D55,'SINTÉTICO SICRO'!A:D,4,FALSE)),6) -> 0.73 | M55: =ROUND(IF(C55="CODEVASF",VLOOKUP(D55,'CPU CODEVASF'!E:H,4,FALSE),VLOOKUP(D55,'SINTÉTICO SICRO'!A:D,4,FALSE)*(1+$J$6)),6) -> 0.900747 | N55: 0
B56: 36 | C56: SICRO | D56: 5914539 | E56: =VLOOKUP(D56,'SINTÉTICO SICRO'!$A$4:$D$1048576,2,0) -> Transporte com caminhão betoneira - rodovia em leito natural | I56: tkm | J56: =ROUND(SUMIF('MOMENTO DE TRANSPORTE - PRINC'!A:A,'RESUMO MODULO TOTAL'!D56,'MOMENTO DE TRANSPORTE - PRINC'!K:K)+SUMIF('MOMENTO DE TRANSPORTE - AUX'!A:A,'RESUMO MODULO TOTAL'!D56,'MOMENTO DE TRANSPORTE - AUX'!K:K),2) -> 0 | K56: =M56/L56-1 -> 0.2339 | L56: =ROUND(IF(C56="CODEVASF",VLOOKUP(D56,'CPU CODEVASF'!E:I,5,FALSE),VLOOKUP(D56,'SINTÉTICO SICRO'!A:D,4,FALSE)),6) -> 0.98 | M56: =ROUND(IF(C56="CODEVASF",VLOOKUP(D56,'CPU CODEVASF'!E:H,4,FALSE),VLOOKUP(D56,'SINTÉTICO SICRO'!A:D,4,FALSE)*(1+$J$6)),6) -> 1.209222 | N56: =ROUND(ROUND(J56,2)*ROUND(M56,6),2) -> 0
B57: 37 | C57: SICRO | D57: 5914554 | E57: =VLOOKUP(D57,'SINTÉTICO SICRO'!$A$4:$D$1048576,2,0) -> Transporte com caminhão betoneira - rodovia em revestimento primário | I57: tkm | J57: =ROUND(SUMIF('MOMENTO DE TRANSPORTE - PRINC'!A:A,'RESUMO MODULO TOTAL'!D57,'MOMENTO DE TRANSPORTE - PRINC'!K:K)+SUMIF('MOMENTO DE TRANSPORTE - AUX'!A:A,'RESUMO MODULO TOTAL'!D57,'MOMENTO DE TRANSPORTE - AUX'!K:K),2) -> 25401.6 | K57: 0.2339 | L57: =ROUND(IF(C57="CODEVASF",VLOOKUP(D57,'CPU CODEVASF'!E:I,5,FALSE),VLOOKUP(D57,'SINTÉTICO SICRO'!A:D,4,FALSE)),6) -> 0.79 | M57: =ROUND(IF(C57="CODEVASF",VLOOKUP(D57,'CPU CODEVASF'!E:H,4,FALSE),VLOOKUP(D57,'SINTÉTICO SICRO'!A:D,4,FALSE)*(1+$J$6)),6) -> 0.974781 | N57: 24761
B58: 38 | C58: SICRO | D58: 5914569 | E58: =VLOOKUP(D58,'SINTÉTICO SICRO'!$A$4:$D$1048576,2,0) -> Transporte com caminhão betoneira - rodovia pavimentada | I58: tkm | J58: =ROUND(SUMIF('MOMENTO DE TRANSPORTE - PRINC'!A:A,'RESUMO MODULO TOTAL'!D58,'MOMENTO DE TRANSPORTE - PRINC'!K:K)+SUMIF('MOMENTO DE TRANSPORTE - AUX'!A:A,'RESUMO MODULO TOTAL'!D58,'MOMENTO DE TRANSPORTE - AUX'!K:K),2) -> 228614.4 | K58: 0.2339 | L58: =ROUND(IF(C58="CODEVASF",VLOOKUP(D58,'CPU CODEVASF'!E:I,5,FALSE),VLOOKUP(D58,'SINTÉTICO SICRO'!A:D,4,FALSE)),6) -> 0.65 | M58: =ROUND(IF(C58="CODEVASF",VLOOKUP(D58,'CPU CODEVASF'!E:H,4,FALSE),VLOOKUP(D58,'SINTÉTICO SICRO'!A:D,4,FALSE)*(1+$J$6)),6) -> 0.802035 | N58: 183356.75
B59: VALOR TOTAL DO SRP | N59: =INT(SUM(N10:N58)) -> 18474264 | AA59: =SUM(AA19:AA45) -> 43314537.98
B60: Obs.: Os valores estão apresentados com apenas 2 casas decimais, mas os valores da presente planilha foram calculados utilizando a precisão de 6 casa decimais.
N61: =189.86*I8 -> 18606280

Sheet CRONOGRAMA TOTAL
A2: ='RESUMO MODULO TOTAL'!B1 -> EXECUÇÃO DE SERVIÇOS DE PAVIMENTAÇÃO COM TRATAMENTO SUPERFICIAL DUPLO EM VIAS DE MUNICÍPIOS DIVERSOS INSERIDOS NA ÁREA DE ATUAÇÃO DA CODEVASF, NO ESTADO DO RIO GRANDE DO NORTE (REGIÃO 1)
A3: Cronograma Físico e Financeiro
A4: Item | B4: Descrição | C4: Total Por Etapa | D4: 30 DIAS | E4: 60 DIAS | F4: 90 DIAS | G4: 120 DIAS | H4: 150 DIAS | I4: 180 DIAS | J4: 210 DIAS | K4: 240 DIAS | L4: 270 DIAS | M4: 300 DIAS | N4: 330 DIAS | O4: 360 DIAS
B5: ='RESUMO MODULO TOTAL'!E10 -> MOBILIZAÇÃO/DESMOBILIZAÇÃO | C5: =SUM(D5:O5) -> 1 | D5: 0.5 | O5: 0.5
C6: =SUM('RESUMO MODULO TOTAL'!N11:N12) -> 163976.92 | D6: =$C$6*D5 -> 81988.46 | O6: =$C$6*O5 -> 81988.46 | P6: =SUM(D6:O6) -> 163976.92 | Q6: =IF(P6=C6,"OK","") -> OK
B7: ='RESUMO MODULO TOTAL'!E13 -> INSTALAÇÃO DE CANTEIRO | C7: =SUM(D7:O7) -> 1 | D7: 0.1 | E7: 0.5 | F7: 0.4
C8: =SUM('RESUMO MODULO TOTAL'!N14:N16) -> 611692.03 | D8: =$C$8*D7 -> 61169.203 | E8: =$C$8*E7 -> 305846.015 | F8: 244676.812 | G8: 0 | H8: 0 | I8: 0 | J8: 0 | K8: 0 | L8: 0 | M8: 0 | N8: 0 | O8: 0 | P8: =SUM(D8:O8) -> 611692.03 | Q8: =IF(P8=C8,"OK","") -> OK
B9: ='RESUMO MODULO TOTAL'!E17 -> ADMINISTRAÇÃO LOCAL DA OBRA | C9: =SUM(D9:O9) -> 1.000000014 | D9: =(D6+D8+D12+D14+D16+D18+D20+D22+D24+D26)/($O$33-$C$10) -> 0.01981372366 | E9: 0.0174868912 | F9: 0.06943805103 | G9: 0.05544853807 | H9: 0.05619262856 | I9: 0.1398007198 | J9: 0.1085657663 | K9: 0.1085657663 | L9: 0.1085657663 | M9: 0.1085657663 | N9: 0.1381792819 | O9: =(O6+O8+O12+O14+O16+O18+O20+O22+O24+O26)/($O$33-$C$10) -> 0.06937711441
C10: =SUM('RESUMO MODULO TOTAL'!N18) -> 984247.54 | D10: =$C$10*D9 -> 19501.60877 | E10: =$C$10*E9 -> 17211.42965 | F10: =$C$10*F9 -> 68344.23091 | G10: 54575.08719 | H10: 55307.45643 | I10: 137598.5145 | J10: 106855.5884 | K10: 106855.5884 | L10: 106855.5884 | M10: 106855.5884 | N10: 136002.6183 | O10: 68284.25419 | P10: =SUM(D10:O10) -> 984247.5535 | Q10: =IF(P10=C10,"OK","") -> 
B11: ='RESUMO MODULO TOTAL'!E19 -> TERRAPLANAGEM | C11: =SUM(D11:O11) -> 1 | F11: =1/4 -> 0.25 | G11: =1/4 -> 0.25 | H11: =1/4 -> 0.25 | I11: =1/4 -> 0.25
C12: =SUM('RESUMO MODULO TOTAL'!N20:N21) -> 387102.19 | D12: =$C$14*D11 -> 0 | E12: =$C$12*E11 -> 0 | F12: 96775.5475 | G12: 96775.5475 | H12: 96775.5475 | I12: 96775.5475 | J12: 0 | K12: 0 | L12: 0 | M12: 0 | N12: 0 | O12: 0 | P12: =SUM(D12:O12) -> 387102.19 | Q12: =IF(P12=C12,"OK","") -> OK
B13: ='RESUMO MODULO TOTAL'!E22 -> PAVIMENTAÇÃO | C13: =SUM(D13:O13) -> 1 | I13: =1/6 -> 0.1666666667 | J13: =1/6 -> 0.1666666667 | K13: 0.1666666667 | L13: 0.1666666667 | M13: 0.1666666667 | N13: 0.1666666667
C14: =SUM('RESUMO MODULO TOTAL'!N23:N28) -> 3937891.91 | D14: =$C$14*D13 -> 0 | E14: =$C$14*E13 -> 0 | F14: 0 | G14: 0 | H14: 0 | I14: 656315.3183 | J14: 656315.3183 | K14: 656315.3183 | L14: 656315.3183 | M14: 656315.3183 | N14: 656315.3183 | O14: 0 | P14: =SUM(D14:O14) -> 3937891.91 | Q14: =IF(P14=C14,"OK","") -> OK
B15: ='RESUMO MODULO TOTAL'!E29 -> AQUISIÇÃO E TRANSPORTE DO MATERIAL BETUMINOSO | C15: =SUM(D15:O15) -> 1 | I15: =1/6 -> 0.1666666667 | J15: 0.1666666667 | K15: 0.1666666667 | L15: 0.1666666667 | M15: 0.1666666667 | N15: 0.1666666667
C16: =SUM('RESUMO MODULO TOTAL'!N30:N33) -> 2216888.55 | D16: =$C$16*D15 -> 0 | E16: =$C$16*E15 -> 0 | F16: 0 | G16: 0 | H16: 0 | I16: 369481.425 | J16: 369481.425 | K16: 369481.425 | L16: 369481.425 | M16: 369481.425 | N16: 369481.425 | O16: 0 | P16: =SUM(D16:O16) -> 2216888.55 | Q16: =IF(P16=C16,"OK","") -> OK
B17: ='RESUMO MODULO TOTAL'!E34 -> SINALIZAÇÃO | C17: =SUM(D17:O17) -> 1 | O17: 1
C18: =SUM('RESUMO MODULO TOTAL'!N35:N38) -> 176967.39 | D18: =$C$18*D17 -> 0 | E18: =$C$18*E17 -> 0 | F18: 0 | G18: 0 | H18: 0 | I18: 0 | J18: 0 | K18: 0 | L18: 0 | M18: 0 | N18: 0 | O18: 176967.39 | P18: =SUM(D18:O18) -> 176967.39 | Q18: =IF(P18=C18,"OK","") -> OK
B19: ='RESUMO MODULO TOTAL'!E39 -> DRENAGEM | C19: =SUM(D19:O19) -> 1 | N19: 0.5 | O19: 0.5
C20: =SUM('RESUMO MODULO TOTAL'!N40:N41) -> 1035881.75 | D20: =$C$20*D19 -> 0 | E20: =$C$20*E19 -> 0 | F20: 0 | G20: 0 | H20: 0 | I20: 0 | J20: 0 | K20: 0 | L20: 0 | M20: 0 | N20: 517940.875 | O20: 517940.875 | P20: =SUM(D20:O20) -> 1035881.75 | Q20: =IF(P20=C20,"OK","") -> OK
B21: ='RESUMO MODULO TOTAL'!E42 -> SERVIÇOS COMPLEMENTARES | C21: =SUM(D21:O21) -> 1 | H21: 0.5 | I21: 0.5
C22: =SUM('RESUMO MODULO TOTAL'!N43) -> 26028.31 | D22: =$C$22*D21 -> 0 | E22: =$C$22*E21 -> 0 | F22: 0 | G22: 0 | H22: 13014.155 | I22: 13014.155 | J22: 0 | K22: 0 | L22: 0 | M22: 0 | N22: 0 | O22: 0 | P22: =SUM(D22:O22) -> 26028.31 | Q22: =IF(P22=C22,"OK","") -> OK
B23: ='RESUMO MODULO TOTAL'!E44 -> PROJETO EXECUTIVO | C23: =SUM(D23:O23) -> 1 | D23: 1
C24: ='RESUMO MODULO TOTAL'!N45 -> 203384.69 | D24: =$C$24*D23 -> 203384.69 | E24: =$C$24*E23 -> 0 | F24: 0 | G24: 0 | H24: 0 | I24: 0 | J24: 0 | K24: 0 | L24: 0 | M24: 0 | N24: 0 | O24: 0 | P24: =SUM(D24:O24) -> 203384.69 | Q24: =IF(P24=C24,"OK","") -> OK
B25: ='RESUMO MODULO TOTAL'!E46 -> MOMENTO DE TRANSPORTE | C25: =SUM(D25:O25) -> 1 | F25: 0.1 | G25: 0.1 | H25: 0.1 | I25: 0.15 | J25: 0.1 | K25: 0.1 | L25: 0.1 | M25: 0.1 | N25: 0.1 | O25: 0.05
C26: =SUM('RESUMO MODULO TOTAL'!N47:N58) -> 8730202.96 | D26: =$C$26*D25 -> 0 | E26: =$C$26*E25 -> 0 | F26: 873020.296 | G26: 873020.296 | H26: 873020.296 | I26: 1309530.444 | J26: 873020.296 | K26: 873020.296 | L26: 873020.296 | M26: 873020.296 | N26: 873020.296 | O26: 436510.148 | P26: =SUM(D26:O26) -> 8730202.96 | Q26: =IF(P26=C26,"OK","") -> OK
A28: Porcentagem | D28: =SUM(D6+D8+D10+D12+D14+D16+D18+D20+D22+D24+D26)/$O$33 -> 0.01981372366 | E28: =SUM(E6+E8+E10+E12+E14+E16+E18+E20+E22+E24+E26)/$O$33 -> 0.0174868912 | F28: 0.06943805103 | G28: 0.05544853807 | H28: 0.05619262856 | I28: 0.1398007198 | J28: 0.1085657663 | K28: 0.1085657663 | L28: 0.1085657663 | M28: 0.1085657663 | N28: 0.1381792819 | O28: =SUM(O6+O8+O10+O12+O14+O16+O18+O20+O22+O24+O26)/$O$33 -> 0.06937711441
A29: Custo | D29: =$O$33*D28 -> 366043.9618 | E29: =$O$33*E28 -> 323057.4447 | F29: =$O$33*F28 -> 1282816.886 | G29: 1024370.931 | H29: 1038117.455 | I29: 2582715.404 | J29: 2005672.628 | K29: 2005672.628 | L29: 2005672.628 | M29: 2005672.628 | N29: 2552760.533 | O29: 1281691.127
A30: Porcentagem Acumulado | D30: =D28 -> 0.01981372366 | E30: =D30+E28 -> 0.03730061487 | F30: =E30+F28 -> 0.1067386659 | G30: 0.162187204 | H30: 0.2183798325 | I30: 0.3581805523 | J30: 0.4667463186 | K30: 0.5753120849 | L30: 0.6838778512 | M30: 0.7924436174 | N30: 0.9306228993 | O30: =N30+O28 -> 1.000000014
A31: Custo Acumulado | D31: =D29 -> 366043.9618 | E31: =D31+E29 -> 689101.4064 | F31: 1971918.293 | G31: 2996289.224 | H31: 4034406.678 | I31: 6617122.083 | J31: 8622794.711 | K31: 10628467.34 | L31: 12634139.97 | M31: 14639812.59 | N31: 17192573.13 | O31: =INT(N31+O29) -> 18474264
D33: Total Geral | N33: R$ | O33: =INT(C6+C8+C10+C12+C14+C16+C18+C20+C22+C24+C26) -> 18474264
O36: =O31-O33 -> 0

Sheet Mob
A4: ='RESUMO MODULO TOTAL'!B1 -> EXECUÇÃO DE SERVIÇOS DE PAVIMENTAÇÃO COM TRATAMENTO SUPERFICIAL DUPLO EM VIAS DE MUNICÍPIOS DIVERSOS INSERIDOS NA ÁREA DE ATUAÇÃO DA CODEVASF, NO ESTADO DO RIO GRANDE DO NORTE (REGIÃO 1)
A5: MOBILIZAÇÃO/DESMOBILIZAÇÃO (MOB) | F5: Frentes de serviços | H5: ='Memória de Cálculo'!G1 -> 7
F6: Distância da Capital ao Canteiro: | H6: 108 | I6: Fica a cargo de cada SR colocar a distancia adequada de acordo com o historico de mobilização
F8: Velocidade média de transporte (pavim.): | H8: 60
A10: Transporte dos equipamentos
A11: CODIGO | B11: EQUIPAMENTO | C11: VEÍCULO TRANSPORTADOR | D11: QTDE | E11: K | F11: FU | G11: CUSTO DO TRANSPORTE
G12: (R$/h) | H12: (R$)/km
A13: E9524 | B13: =VLOOKUP(A13,Equipamentos!$A:$K,2,FALSE) -> Motoniveladora - 93 kW | C13: =IFERROR(INDEX('Tabelas 2 e 3 mob'!A:K,MATCH(A13,'Tabelas 2 e 3 mob'!A:A,0),9),"ERRO") -> E9665 | D13: 1 | E13: 2 | F13: 1 | G13: =IF(C13="Veículo(s) da própria frota.",0,INDEX(Equipamentos!B:K,MATCH(C13,Equipamentos!A:A,0),10)) -> 128.1995 | H13: =((D13*E13*F13)/$H$8)*G13 -> 4.273316667
A14: E9526 | B14: =VLOOKUP(A14,Equipamentos!$A:$K,2,FALSE) -> Retroescavadeira de pneus - capacidade da caçamba da pá-carregadeira de 0,76 m³ e da retroescavadeira de 0,29 m³ - 58 kW | C14: =IFERROR(INDEX('Tabelas 2 e 3 mob'!A:K,MATCH(A14,'Tabelas 2 e 3 mob'!A:A,0),9),"ERRO") -> E9665 | D14: 1 | E14: 2 | F14: 1 | G14: =IF(C14="Veículo(s) da própria frota.",0,INDEX(Equipamentos!B:K,MATCH(C14,Equipamentos!A:A,0),10)) -> 128.1995 | H14: =((D14*E14*F14)/$H$8)*G14 -> 4.273316667
A15: E9577 | B15: =VLOOKUP(A15,Equipamentos!$A:$K,2,FALSE) -> Trator agrícola sobre pneus - 77 kW | C15: =IFERROR(INDEX('Tabelas 2 e 3 mob'!A:K,MATCH(A15,'Tabelas 2 e 3 mob'!A:A,0),9),"ERRO") -> E9665 | D15: 1 | E15: 2 | F15: 0.5 | G15: =IF(C15="Veículo(s) da própria frota.",0,INDEX(Equipamentos!B:K,MATCH(C15,Equipamentos!A:A,0),10)) -> 128.1995 | H15: 2.136658333
A16: E9518 | B16: =VLOOKUP(A16,Equipamentos!$A:$K,2,FALSE) -> Grade de 24 discos rebocável de D = 60 cm (24") | C16: =IFERROR(INDEX('Tabelas 2 e 3 mob'!A:K,MATCH(A16,'Tabelas 2 e 3 mob'!A:A,0),9),"ERRO") -> Veículo(s) da própria frota. | D16: 1 | E16: 2 | F16: 0 | G16: =IF(C16="Veículo(s) da própria frota.",0,INDEX(Equipamentos!B:K,MATCH(C16,Equipamentos!A:A,0),10)) -> 0 | H16: 0
A17: E9615 | B17: =VLOOKUP(A17,Equipamentos!$A:$K,2,FALSE) -> Usina misturadora de solos com capacidade de 300 t/h - 44 kW | C17: =IFERROR(INDEX('Tabelas 2 e 3 mob'!A:K,MATCH(A17,'Tabelas 2 e 3 mob'!A:A,0),9),"ERRO") -> E9018 | D17: 1 | E17: 2 | F17: 2 | G17: =IF(C17="Veículo(s) da própria frota.",0,INDEX(Equipamentos!B:K,MATCH(C17,Equipamentos!A:A,0),10)) -> 167.9804 | H17: 11.19869333
A18: E9530 | B18: =VLOOKUP(A18,Equipamentos!$A:$K,2,FALSE) -> Rolo compactador liso vibratório autopropelido por pneus de 11 t - 97 kW | C18: =IFERROR(INDEX('Tabelas 2 e 3 mob'!A:K,MATCH(A18,'Tabelas 2 e 3 mob'!A:A,0),9),"ERRO") -> E9666 | D18: 1 | E18: 2 | F18: 0.5 | G18: =IF(C18="Veículo(s) da própria frota.",0,INDEX(Equipamentos!B:K,MATCH(C18,Equipamentos!A:A,0),10)) -> 133.3255 | H18: 2.222091667
A19: E9558 | B19: =VLOOKUP(A19,Equipamentos!$A:$K,2,FALSE) -> Tanque de estocagem de asfalto com capacidade de 30.000 l | C19: =IFERROR(INDEX('Tabelas 2 e 3 mob'!A:K,MATCH(A19,'Tabelas 2 e 3 mob'!A:A,0),9),"ERRO") -> E9665 | D19: 1 | E19: 2 | F19: 1 | G19: =IF(C19="Veículo(s) da própria frota.",0,INDEX(Equipamentos!B:K,MATCH(C19,Equipamentos!A:A,0),10)) -> 128.1995 | H19: 4.273316667
A20: E9758 | B20: =VLOOKUP(A20,Equipamentos!$A:$K,2,FALSE) -> Vibroacabadora de asfalto sobre pneus - 82 kW | C20: =IFERROR(INDEX('Tabelas 2 e 3 mob'!A:K,MATCH(A20,'Tabelas 2 e 3 mob'!A:A,0),9),"ERRO") -> E9018 | D20: 1 | E20: 2 | F20: 0.5 | G20: =IF(C20="Veículo(s) da própria frota.",0,INDEX(Equipamentos!B:K,MATCH(C20,Equipamentos!A:A,0),10)) -> 167.9804 | H20: 2.799673333
A21: E9685 | B21: =VLOOKUP(A21,Equipamentos!$A:$K,2,FALSE) -> Rolo compactador pé de carneiro vibratório autopropelido por pneus de 11,6 t - 82 kW | C21: =IFERROR(INDEX('Tabelas 2 e 3 mob'!A:K,MATCH(A21,'Tabelas 2 e 3 mob'!A:A,0),9),"ERRO") -> E9666 | D21: 1 | E21: 2 | F21: 0.5 | G21: =IF(C21="Veículo(s) da própria frota.",0,INDEX(Equipamentos!B:K,MATCH(C21,Equipamentos!A:A,0),10)) -> 133.3255 | H21: 2.222091667
A22: E9605 | B22: =VLOOKUP(A22,Equipamentos!$A:$K,2,FALSE) -> Caminhão tanque com capacidade de 6.000 l - 136 kW | C22: =IFERROR(INDEX('Tabelas 2 e 3 mob'!A:K,MATCH(A22,'Tabelas 2 e 3 mob'!A:A,0),9),"ERRO") -> E9605 | D22: 1 | E22: 1 | F22: 1 | G22: =IF(C22="Veículo(s) da própria frota.",0,INDEX(Equipamentos!B:K,MATCH(C22,Equipamentos!A:A,0),10)) -> 74.5082 | H22: 1.241803333
A23: E9579 | B23: =VLOOKUP(A23,Equipamentos!$A:$K,2,FALSE) -> Caminhão basculante com capacidade de 10 m³ - 210 kW | C23: =IFERROR(INDEX('Tabelas 2 e 3 mob'!A:K,MATCH(A23,'Tabelas 2 e 3 mob'!A:A,0),9),"ERRO") -> E9579 | D23: 5 | E23: 1 | F23: 1 | G23: =IF(C23="Veículo(s) da própria frota.",0,INDEX(Equipamentos!B:K,MATCH(C23,Equipamentos!A:A,0),10)) -> 90.2153 | H23: 7.517941667
A24: E9509 | B24: =VLOOKUP(A24,Equipamentos!$A:$K,2,FALSE) -> Caminhão tanque distribuidor de asfalto com capacidade de 6.000 l - 7 kW/136 kW | C24: =IFERROR(INDEX('Tabelas 2 e 3 mob'!A:K,MATCH(A24,'Tabelas 2 e 3 mob'!A:A,0),9),"ERRO") -> E9509 | D24: 1 | E24: 1 | F24: 1 | G24: =IF(C24="Veículo(s) da própria frota.",0,INDEX(Equipamentos!B:K,MATCH(C24,Equipamentos!A:A,0),10)) -> 76.9186 | H24: 1.281976667
A25: E9762 | B25: =VLOOKUP(A25,Equipamentos!$A:$K,2,FALSE) -> Rolo compactador de pneus autopropelido de 27 t - 85 kW | C25: =IFERROR(INDEX('Tabelas 2 e 3 mob'!A:K,MATCH(A25,'Tabelas 2 e 3 mob'!A:A,0),9),"ERRO") -> E9666 | D25: 1 | E25: 2 | F25: 0.5 | G25: =IF(C25="Veículo(s) da própria frota.",0,INDEX(Equipamentos!B:K,MATCH(C25,Equipamentos!A:A,0),10)) -> 133.3255 | H25: 2.222091667
A26: E9681 | B26: =VLOOKUP(A26,Equipamentos!$A:$K,2,FALSE) -> Rolo compactador liso tandem vibratório autopropelido de 10,4 t - 82 kW | C26: =IFERROR(INDEX('Tabelas 2 e 3 mob'!A:K,MATCH(A26,'Tabelas 2 e 3 mob'!A:A,0),9),"ERRO") -> E9666 | D26: 1 | E26: 2 | F26: 0.5 | G26: =IF(C26="Veículo(s) da própria frota.",0,INDEX(Equipamentos!B:K,MATCH(C26,Equipamentos!A:A,0),10)) -> 133.3255 | H26: 2.222091667
A27: E9545 | B27: =VLOOKUP(A27,Equipamentos!$A:$K,2,FALSE) -> Vibroacabadora de asfalto sobre esteiras - 82 kW | C27: =IFERROR(INDEX('Tabelas 2 e 3 mob'!A:K,MATCH(A27,'Tabelas 2 e 3 mob'!A:A,0),9),"ERRO") -> E9018 | D27: 1 | E27: 2 | F27: 0.5 | G27: =IF(C27="Veículo(s) da própria frota.",0,INDEX(Equipamentos!B:K,MATCH(C27,Equipamentos!A:A,0),10)) -> 167.9804 | H27: 2.799673333
A28: E9571 | B28: =VLOOKUP(A28,Equipamentos!$A:$K,2,FALSE) -> Caminhão tanque com capacidade de 10.000 l - 188 kW | C28: =IFERROR(INDEX('Tabelas 2 e 3 mob'!A:K,MATCH(A28,'Tabelas 2 e 3 mob'!A:A,0),9),"ERRO") -> E9571 | D28: 1 | E28: 1 | F28: 1 | G28: =IF(C28="Veículo(s) da própria frota.",0,INDEX(Equipamentos!B:K,MATCH(C28,Equipamentos!A:A,0),10)) -> 87.2592 | H28: 1.45432
A29: E9514 | B29: =VLOOKUP(A29,Equipamentos!$A:$K,2,FALSE) -> Distribuidor de agregados sobre pneus autopropelido - 130 kW | C29: =IFERROR(INDEX('Tabelas 2 e 3 mob'!A:K,MATCH(A29,'Tabelas 2 e 3 mob'!A:A,0),9),"ERRO") -> E9665 | D29: 1 | E29: 2 | F29: 0.5 | G29: =IF(C29="Veículo(s) da própria frota.",0,INDEX(Equipamentos!B:K,MATCH(C29,Equipamentos!A:A,0),10)) -> 128.1995 | H29: 2.136658333
A30: E9511 | B30: =VLOOKUP(A30,Equipamentos!$A:$K,2,FALSE) -> Carregadeira de pneus com capacidade de 3,40 m³ - 195 kW | C30: =IFERROR(INDEX('Tabelas 2 e 3 mob'!A:K,MATCH(A30,'Tabelas 2 e 3 mob'!A:A,0),9),"ERRO") -> E9665 | D30: 1 | E30: 2 | F30: 1 | G30: =IF(C30="Veículo(s) da própria frota.",0,INDEX(Equipamentos!B:K,MATCH(C30,Equipamentos!A:A,0),10)) -> 128.1995 | H30: 4.273316667
A31: E9779 | B31: =VLOOKUP(A31,Equipamentos!$A:$K,2,FALSE) -> Grupo gerador - 113 kVA | C31: =IFERROR(INDEX('Tabelas 2 e 3 mob'!A:K,MATCH(A31,'Tabelas 2 e 3 mob'!A:A,0),9),"ERRO") -> Veículo(s) da própria frota. | D31: 1 | E31: 2 | F31: 0 | G31: =IF(C31="Veículo(s) da própria frota.",0,INDEX(Equipamentos!B:K,MATCH(C31,Equipamentos!A:A,0),10)) -> 0 | H31: 0
A32: E9559 | B32: =VLOOKUP(A32,Equipamentos!$A:$K,2,FALSE) -> Aquecedor de fluido térmico - 12 kW | C32: =IFERROR(INDEX('Tabelas 2 e 3 mob'!A:K,MATCH(A32,'Tabelas 2 e 3 mob'!A:A,0),9),"ERRO") -> Veículo(s) da própria frota. | D32: 1 | E32: 2 | F32: 0 | G32: =IF(C32="Veículo(s) da própria frota.",0,INDEX(Equipamentos!B:K,MATCH(C32,Equipamentos!A:A,0),10)) -> 0 | H32: 0
A33: E9584 | B33: =VLOOKUP(A33,Equipamentos!$A:$K,2,FALSE) -> Carregadeira de pneus com capacidade de 1,72 m³ - 113 kW | C33: =IFERROR(INDEX('Tabelas 2 e 3 mob'!A:K,MATCH(A33,'Tabelas 2 e 3 mob'!A:A,0),9),"ERRO") -> E9665 | D33: 1 | E33: 2 | F33: 1 | G33: =IF(C33="Veículo(s) da própria frota.",0,INDEX(Equipamentos!B:K,MATCH(C33,Equipamentos!A:A,0),10)) -> 128.1995 | H33: 4.273316667
A34: E9021 | B34: =VLOOKUP(A34,Equipamentos!$A:$K,2,FALSE) -> Grupo gerador - 456 kVA | C34: =IFERROR(INDEX('Tabelas 2 e 3 mob'!A:K,MATCH(A34,'Tabelas 2 e 3 mob'!A:A,0),9),"ERRO") -> E9508 | D34: 1 | E34: 2 | F34: 1 | G34: =IF(C34="Veículo(s) da própria frota.",0,INDEX(Equipamentos!B:K,MATCH(C34,Equipamentos!A:A,0),10)) -> 74.1716 | H34: 2.472386667
A35: E9687 | B35: =VLOOKUP(A35,Equipamentos!$A:$K,2,FALSE) -> Caminhão carroceria com capacidade de 5 t - 115 kW | C35: =IFERROR(INDEX('Tabelas 2 e 3 mob'!A:K,MATCH(A35,'Tabelas 2 e 3 mob'!A:A,0),9),"ERRO") -> E9687 | D35: 1 | E35: 1 | F35: 1 | G35: =IF(C35="Veículo(s) da própria frota.",0,INDEX(Equipamentos!B:K,MATCH(C35,Equipamentos!A:A,0),10)) -> 62.9872 | H35: 1.049786667
A36: E9667 | B36: =VLOOKUP(A36,Equipamentos!$A:$K,2,FALSE) -> Caminhão basculante com capacidade de 14 m³ - 210 kW | C36: =IFERROR(INDEX('Tabelas 2 e 3 mob'!A:K,MATCH(A36,'Tabelas 2 e 3 mob'!A:A,0),9),"ERRO") -> E9667 | D36: 1 | E36: 1 | F36: 1 | G36: =IF(C36="Veículo(s) da própria frota.",0,INDEX(Equipamentos!B:K,MATCH(C36,Equipamentos!A:A,0),10)) -> 90.7798 | H36: 1.512996667
A37: E9644 | B37: =VLOOKUP(A37,Equipamentos!$A:$K,2,FALSE) -> Caminhão demarcador de faixas com sistema de pintura a frio - 28 kW/115 kW | C37: =IFERROR(INDEX('Tabelas 2 e 3 mob'!A:K,MATCH(A37,'Tabelas 2 e 3 mob'!A:A,0),9),"ERRO") -> E9644 | D37: 1 | E37: 1 | F37: 1 | G37: =IF(C37="Veículo(s) da própria frota.",0,INDEX(Equipamentos!B:K,MATCH(C37,Equipamentos!A:A,0),10)) -> 159.1031 | H37: 2.651718333
A38: E9592 | B38: =VLOOKUP(A38,Equipamentos!$A:$K,2,FALSE) -> Caminhão carroceria com capacidade de 15 t - 188 kW | C38: =IFERROR(INDEX('Tabelas 2 e 3 mob'!A:K,MATCH(A38,'Tabelas 2 e 3 mob'!A:A,0),9),"ERRO") -> E9592 | D38: 1 | E38: 1 | F38: 1 | G38: =IF(C38="Veículo(s) da própria frota.",0,INDEX(Equipamentos!B:K,MATCH(C38,Equipamentos!A:A,0),10)) -> 81.8378 | H38: 1.363963333
A39: E9540 | B39: =VLOOKUP(A39,Equipamentos!$A:$K,2,FALSE) -> Trator sobre esteiras com lâmina - 127 kW | C39: =IFERROR(INDEX('Tabelas 2 e 3 mob'!A:K,MATCH(A39,'Tabelas 2 e 3 mob'!A:A,0),9),"ERRO") -> E9018 | D39: 1 | E39: 2 | F39: 0.5 | G39: =IF(C39="Veículo(s) da própria frota.",0,INDEX(Equipamentos!B:K,MATCH(C39,Equipamentos!A:A,0),10)) -> 167.9804 | H39: 2.799673333
A40: E9515 | B40: =VLOOKUP(A40,Equipamentos!$A:$K,2,FALSE) -> Escavadeira hidráulica sobre esteiras com caçamba com capacidade de 1,56 m³ - 118 kW | C40: =IFERROR(INDEX('Tabelas 2 e 3 mob'!A:K,MATCH(A40,'Tabelas 2 e 3 mob'!A:A,0),9),"ERRO") -> E9666 | D40: 1 | E40: 2 | F40: 1 | G40: =IF(C40="Veículo(s) da própria frota.",0,INDEX(Equipamentos!B:K,MATCH(C40,Equipamentos!A:A,0),10)) -> 133.3255 | H40: 4.444183333
A41: E9506 | B41: =VLOOKUP(A41,Equipamentos!$A:$K,2,FALSE) -> Caminhão basculante com capacidade de 6 m³ - 136 kW | C41: =IFERROR(INDEX('Tabelas 2 e 3 mob'!A:K,MATCH(A41,'Tabelas 2 e 3 mob'!A:A,0),9),"ERRO") -> E9506 | D41: 1 | E41: 1 | F41: 1 | G41: =IF(C41="Veículo(s) da própria frota.",0,INDEX(Equipamentos!B:K,MATCH(C41,Equipamentos!A:A,0),10)) -> 74.3782 | H41: 1.239636667
A42: E9256 | B42: =VLOOKUP(A42,Equipamentos!$A:$K,2,FALSE) -> Equipamento para pintura com cal rebocável com dois bicos aplicadores e capacidade de 2.200 l | C42: =IFERROR(INDEX('Tabelas 2 e 3 mob'!A:K,MATCH(A42,'Tabelas 2 e 3 mob'!A:A,0),9),"ERRO") -> Veículo(s) da própria frota. | D42: 1 | E42: 2 | F42: 0 | G42: =IF(C42="Veículo(s) da própria frota.",0,INDEX(Equipamentos!B:K,MATCH(C42,Equipamentos!A:A,0),10)) -> 0 | H42: 0
A43: E9156 | B43: =VLOOKUP(A43,Equipamentos!$A:$K,2,FALSE) -> Soprador de ar costal - 2,6 kW | C43: =IFERROR(INDEX('Tabelas 2 e 3 mob'!A:K,MATCH(A43,'Tabelas 2 e 3 mob'!A:A,0),9),"ERRO") -> Veículo(s) da própria frota. | D43: 1 | E43: 2 | F43: 0 | G43: =IF(C43="Veículo(s) da própria frota.",0,INDEX(Equipamentos!B:K,MATCH(C43,Equipamentos!A:A,0),10)) -> 0 | H43: 0
A44: E9146 | B44: =VLOOKUP(A44,Equipamentos!$A:$K,2,FALSE) -> Caminhão silo com capacidade de 30 m³ - 265 kW | C44: =IFERROR(INDEX('Tabelas 2 e 3 mob'!A:K,MATCH(A44,'Tabelas 2 e 3 mob'!A:A,0),9),"ERRO") -> E9146 | D44: 1 | E44: 1 | F44: 1 | G44: =IF(C44="Veículo(s) da própria frota.",0,INDEX(Equipamentos!B:K,MATCH(C44,Equipamentos!A:A,0),10)) -> 116.1772 | H44: 1.936286667
A45: E9599 | B45: =VLOOKUP(A45,Equipamentos!$A:$K,2,FALSE) -> Central de concreto com capacidade de 30 m³/h - dosadora RS | C45: =IFERROR(INDEX('Tabelas 2 e 3 mob'!A:K,MATCH(A45,'Tabelas 2 e 3 mob'!A:A,0),9),"ERRO") -> E9018 | D45: 1 | E45: 2 | F45: 1 | G45: =IF(C45="Veículo(s) da própria frota.",0,INDEX(Equipamentos!B:K,MATCH(C45,Equipamentos!A:A,0),10)) -> 167.9804 | H45: 5.599346667
A46: E9103 | B46: =VLOOKUP(A46,Equipamentos!$A:$K,2,FALSE) -> Extrusora para meio-fio de concreto - 10,44 kW | C46: =IFERROR(INDEX('Tabelas 2 e 3 mob'!A:K,MATCH(A46,'Tabelas 2 e 3 mob'!A:A,0),9),"ERRO") -> Veículo(s) da própria frota. | D46: 1 | E46: 2 | F46: 0 | G46: =IF(C46="Veículo(s) da própria frota.",0,INDEX(Equipamentos!B:K,MATCH(C46,Equipamentos!A:A,0),10)) -> 0 | H46: 0
A47: E9071 | B47: =VLOOKUP(A47,Equipamentos!$A:$K,2,FALSE) -> Transportador manual carrinho de mão com capacidade de 80 l | C47: =IFERROR(INDEX('Tabelas 2 e 3 mob'!A:K,MATCH(A47,'Tabelas 2 e 3 mob'!A:A,0),9),"ERRO") -> Veículo(s) da própria frota. | D47: 0 | E47: 2 | F47: 0 | G47: =IF(C47="Veículo(s) da própria frota.",0,INDEX(Equipamentos!B:K,MATCH(C47,Equipamentos!A:A,0),10)) -> 0 | H47: 0
A48: E9064 | B48: =VLOOKUP(A48,Equipamentos!$A:$K,2,FALSE) -> Transportador manual gerica com capacidade de 180 l | C48: =IFERROR(INDEX('Tabelas 2 e 3 mob'!A:K,MATCH(A48,'Tabelas 2 e 3 mob'!A:A,0),9),"ERRO") -> Veículo(s) da própria frota. | D48: 0 | E48: 2 | F48: 0 | G48: =IF(C48="Veículo(s) da própria frota.",0,INDEX(Equipamentos!B:K,MATCH(C48,Equipamentos!A:A,0),10)) -> 0 | H48: 0
A49: E9066 | B49: =VLOOKUP(A49,Equipamentos!$A:$K,2,FALSE) -> Grupo gerador - 14 kVA | C49: =IFERROR(INDEX('Tabelas 2 e 3 mob'!A:K,MATCH(A49,'Tabelas 2 e 3 mob'!A:A,0),9),"ERRO") -> Veículo(s) da própria frota. | D49: 0 | E49: 2 | F49: 0 | G49: =IF(C49="Veículo(s) da própria frota.",0,INDEX(Equipamentos!B:K,MATCH(C49,Equipamentos!A:A,0),10)) -> 0 | H49: 0
A50: E9535 | B50: =VLOOKUP(A50,Equipamentos!$A:$K,2,FALSE) -> Serra circular com bancada - D = 30 cm - 4 kW | C50: =IFERROR(INDEX('Tabelas 2 e 3 mob'!A:K,MATCH(A50,'Tabelas 2 e 3 mob'!A:A,0),9),"ERRO") -> Veículo(s) da própria frota. | D50: 0 | E50: 2 | F50: 0 | G50: =IF(C50="Veículo(s) da própria frota.",0,INDEX(Equipamentos!B:K,MATCH(C50,Equipamentos!A:A,0),10)) -> 0 | H50: 0
A51: E9507 | B51: =VLOOKUP(A51,Equipamentos!$A:$K,2,FALSE) -> Plotadora de recorte com computador e programa computacional | C51: =IFERROR(INDEX('Tabelas 2 e 3 mob'!A:K,MATCH(A51,'Tabelas 2 e 3 mob'!A:A,0),9),"ERRO") -> Veículo(s) da própria frota. | D51: 0 | E51: 2 | F51: 0 | G51: =IF(C51="Veículo(s) da própria frota.",0,INDEX(Equipamentos!B:K,MATCH(C51,Equipamentos!A:A,0),10)) -> 0 | H51: 0
A52: E9568 | B52: =VLOOKUP(A52,Equipamentos!$A:$K,2,FALSE) -> Furadeira de impacto de 12,5 mm - 0,80 kW | C52: =IFERROR(INDEX('Tabelas 2 e 3 mob'!A:K,MATCH(A52,'Tabelas 2 e 3 mob'!A:A,0),9),"ERRO") -> Veículo(s) da própria frota. | D52: 0 | E52: 2 | F52: 0 | G52: =IF(C52="Veículo(s) da própria frota.",0,INDEX(Equipamentos!B:K,MATCH(C52,Equipamentos!A:A,0),10)) -> 0 | H52: 0
A53: E9753 | B53: =VLOOKUP(A53,Equipamentos!$A:$K,2,FALSE) -> Grupo gerador - 23 kVA | C53: =IFERROR(INDEX('Tabelas 2 e 3 mob'!A:K,MATCH(A53,'Tabelas 2 e 3 mob'!A:A,0),9),"ERRO") -> Veículo(s) da própria frota. | D53: 0 | E53: 2 | F53: 0 | G53: =IF(C53="Veículo(s) da própria frota.",0,INDEX(Equipamentos!B:K,MATCH(C53,Equipamentos!A:A,0),10)) -> 0 | H53: 0
A54: E9623 | B54: =VLOOKUP(A54,Equipamentos!$A:$K,2,FALSE) -> Máquina de bancada guilhotina - 4,00 kW | C54: =IFERROR(INDEX('Tabelas 2 e 3 mob'!A:K,MATCH(A54,'Tabelas 2 e 3 mob'!A:A,0),9),"ERRO") -> Veículo(s) da própria frota. | D54: 0 | E54: 2 | F54: 0 | G54: =IF(C54="Veículo(s) da própria frota.",0,INDEX(Equipamentos!B:K,MATCH(C54,Equipamentos!A:A,0),10)) -> 0 | H54: 0
A55: E9622 | B55: =VLOOKUP(A55,Equipamentos!$A:$K,2,FALSE) -> Máquina de bancada universal para corte de chapa - 1,50 kW | C55: =IFERROR(INDEX('Tabelas 2 e 3 mob'!A:K,MATCH(A55,'Tabelas 2 e 3 mob'!A:A,0),9),"ERRO") -> Veículo(s) da própria frota. | D55: 0 | E55: 2 | F55: 0 | G55: =IF(C55="Veículo(s) da própria frota.",0,INDEX(Equipamentos!B:K,MATCH(C55,Equipamentos!A:A,0),10)) -> 0 | H55: 0
A56: E9678 | B56: =VLOOKUP(A56,Equipamentos!$A:$K,2,FALSE) -> Fresadora a frio - 455 kW | C56: =IFERROR(INDEX('Tabelas 2 e 3 mob'!A:K,MATCH(A56,'Tabelas 2 e 3 mob'!A:A,0),9),"ERRO") -> E9666 | D56: 0 | E56: 2 | F56: 1 | G56: =IF(C56="Veículo(s) da própria frota.",0,INDEX(Equipamentos!B:K,MATCH(C56,Equipamentos!A:A,0),10)) -> 133.3255 | H56: 0
G57: TOTAL | H57: =SUM(H13:H56) -> 87.89232667
A60: CUSTO TOTAL MOBILIZAÇÃO E DESMOBILIZAÇÃO
A61: DESCRIÇÃO | B61: VALOR
A62: Custo Mobilização (km) | B62: =H57 -> 87.89232667
A63: BDI (%) | B63: =BDI!C17 -> 0.2339
A64: Custo Mobilização (R$/km) com BDI | B64: =B62+(B62*B63) -> 108.4503419
A65: Total de Frentes | B65: ='Memória de Cálculo'!G1 -> 7
A66: Custo Mobilização (frentes x distancia) | B66: =B64*H6*B65 -> 81988.45846

Sheet Canteiro
A4: CANTEIRO DE OBRAS PARA CONSTRUÇAO RODOVIÁRIA
A5: Descrição dos serviços | B5: Tipo de container | C5: Unidade | D5: Quantidade | E5: Preço unitário (R$) | F5: Total (R$)
A6: Escritório e seção técnica
A7: =VLOOKUP(B7,'INSUMOS SINAPI'!A:E,2,0) -> LOCACAO DE CONTAINER 2,30 X 6,00 M, ALT. 2,50 M, PARA ESCRITORIO, SEM DIVISORIAS INTERNAS E SEM SANITARIO (NAO INCLUI MOBILIZACAO/DESMOBILIZACAO) | B7: 10776 | C7: und | D7: 1 | E7: =VLOOKUP(B7,'INSUMOS SINAPI'!A:E,5,0) -> 650.39 | F7: =TRUNC(D7*E7,2) -> 650.39
A8: Banheiro e vestiário
A9: =VLOOKUP(B9,'INSUMOS SINAPI'!A:E,2,0) -> LOCACAO DE CONTAINER 2,30 X 4,30 M, ALT. 2,50 M, PARA SANITARIO, COM 3 BACIAS, 4 CHUVEIROS, 1 LAVATORIO E 1 MICTORIO (NAO INCLUI MOBILIZACAO/DESMOBILIZACAO) | B9: 10777 | C9: und | D9: 1 | E9: =VLOOKUP(B9,'INSUMOS SINAPI'!A:E,5,0) -> 945.23 | F9: =TRUNC(D9*E9,2) -> 945.23
D10: TOTAL DO CANTEIRO | F10: =SUM(F7:F9) -> 1595.62
D11: DURAÇÃO (MESES) | E11: 12 | F11: =F10*E11 -> 19147.44
D12: BDI | F12: =BDI!C17 -> 0.2339
D13: TOTAL DO CANTEIRO (com BDI) | F13: =F11+(F11*F12) -> 23626.02622

Sheet Adm Local
A4: parcela fixa da administração local (mão de obra)
A5: Código | B5: Discriminação | C5: Unidade | D5: Quantidade | F5: Custo Unitário (R$) | H5: Custo Total (R$)
B6: Mão de Obra
B7: Gerência Técnica
B8: Geral
A9: P9955 | B9: Engenheiro chefe | C9: mês | D9: 0.5 | F9: =VLOOKUP(A9,'Pessoal Sicro'!$A$6:$G$118,6,0) -> 30481.4614 | H9: =F9*D9 -> 15240.7307
A10: P9840 | B10: Encarregado geral | C10: mês | D10: 0.5 | F10: =VLOOKUP(A10,'Pessoal Sicro'!$A$6:$G$118,6,0) -> 11487.6434 | H10: =F10*D10 -> 5743.8217
A11: P9897 | B11: Técnico de meio ambiente | C11: mês | D11: 0 | F11: =VLOOKUP(A11,'Pessoal Sicro'!$A$6:$G$118,6,0) -> 7697.2018 | H11: =F11*D11 -> 0
A12: P9948 | B12: Motorista | C12: mês | D12: 0 | F12: =VLOOKUP(A12,'Pessoal Sicro'!$A$6:$G$118,6,0) -> 5495.4724 | H12: =F12*D12 -> 0
A13: P9878 | B13: Secretária | C13: mês | D13: 0 | F13: =VLOOKUP(A13,'Pessoal Sicro'!$A$6:$G$118,6,0) -> 6273.3494 | H13: =F13*D13 -> 0
F14: Subtotal do Item 1.1 | H14: =SUM(H9:I13) -> 20984.5524
B15: Auxiliar
A16: P9946 | B16: Engenheiro auxiliar | C16: mês | D16: 1 | F16: =VLOOKUP(A16,'Pessoal Sicro'!$A$6:$G$118,6,0) -> 22410.7945 | H16: =D16*F16 -> 22410.7945
A17: P9903 | B17: Auxiliar técnico | C17: mês | D17: 0 | F17: =VLOOKUP(A17,'Pessoal Sicro'!$A$6:$G$118,6,0) -> 4458.696 | H17: =D17*F17 -> 0
F18: Subtotal do Item 1.2 | H18: =SUM(H16:I17) -> 22410.7945
B19: Gerência Administrativa
B20: Geral
A21: P9883 | B21: Chefe do setor administrativo | C21: mês | D21: 1 | F21: =VLOOKUP(A21,'Pessoal Sicro'!$A$6:$G$118,6,0) -> 7821.9597 | H21: =F21*D21 -> 7821.9597
A22: P9809 | B22: Encarregado administrativo | C22: mês | D22: 0 | F22: =VLOOKUP(A22,'Pessoal Sicro'!$A$6:$G$118,6,0) -> 7821.3231 | H22: =F22*D22 -> 0
A23: P9896 | B23: Porteiro | C23: mês | D23: 0 | F23: =VLOOKUP(A23,'Pessoal Sicro'!$A$6:$G$118,6,0) -> 3895.4164 | H23: =F23*D23 -> 0
A24: P9827 | B24: Vigia | C24: mês | D24: 0 | F24: =VLOOKUP(A24,'Pessoal Sicro'!$A$6:$G$118,6,0) -> 5133.8264 | H24: =F24*D24 -> 0
A25: P9948 | B25: Motorista | C25: mês | D25: 0 | F25: =VLOOKUP(A25,'Pessoal Sicro'!$A$6:$G$118,6,0) -> 5495.4724 | H25: =F25*D25 -> 0
F26: Subtotal do Item 1.3 | H26: =SUM(H21:I25) -> 7821.9597
B27: Auxiliar
A28: P9806 | B28: Auxiliar administrativo | C28: mês | D28: 1 | F28: =VLOOKUP(A28,'Pessoal Sicro'!$A$6:$G$118,6,0) -> 4395.3606 | H28: =F28*D28 -> 4395.3606
A29: P9842 | B29: Faxineiro | C29: mês | D29: 0 | F29: =VLOOKUP(A29,'Pessoal Sicro'!$A$6:$G$118,6,0) -> 3895.4469 | H29: =F29*D29 -> 0
F30: Subtotal do Item 1.4 | H30: =SUM(H28:I29) -> 4395.3606
H31: Total da Mão de Obra da Parcela Fixa | I31: =H30+H26+H18+H14 -> 55612.6672
A33: parcela fixa da administração local (veículos)
A34: Código | B34: Discriminação | C34: Unidade | D34: Quantidade | E34: Utilização Produtiva | F34: Utilização Improdutiva | G34: Custo Horário Produtivo (R$) | H34: Custo Horário Improdutivo (R$) | I34: Custo Total (R$)
A35: 2 | B35: Veículos
B36: Gerência Técnica
A37: 2.1 | B37: Geral
A38: E9093 | B38: Veículo Leve 53 kw | C38: mês | D38: 1 | E38: 44 | F38: 176 | G38: =VLOOKUP(A38,Equipamentos!$A$4:$K$541,10,0) -> 34.8989 | H38: =VLOOKUP(A38,Equipamentos!$A$4:$K$541,11,0) -> 6.1542 | I38: =((E38*G38)+(F38*H38))*D38 -> 2618.6908
A39: E9560 | B39: Ônibus coletivo - 175 kw | C39: mês | D39: 0 | E39: 44 | F39: 176 | G39: =VLOOKUP(A39,Equipamentos!$A$4:$K$541,10,0) -> 357.462 | H39: =VLOOKUP(A39,Equipamentos!$A$4:$K$541,11,0) -> 106.6233 | I39: =((E39*G39)+(F39*H39))*D39 -> 0
H40: Subtotal do Item 2 | I40: =SUM(I38:I39) -> 2618.6908
A41: 2.2 | B41: Auxiliar
A42: E9093 | B42: Veículo Leve 53 kw | C42: mês | D42: 0 | E42: 44 | F42: 176 | G42: =G38 -> 34.8989 | H42: =H38 -> 6.1542 | I42: =((E42*G42)+(F42*H42))*D42 -> 0
H43: Subtotal do Item 2 | I43: =SUM(I42) -> 0
A44: 2.3 | B44: Gerência Administrativa
A45: E9093 | B45: Veículo Leve 53 kw | C45: mês | D45: 0 | E45: 44 | F45: 176 | G45: =G38 -> 34.8989 | H45: =H38 -> 6.1542 | I45: =((E45*G45)+(F45*H45))*D45 -> 0
H46: Subtotal do Item 2 | I46: =I45 -> 0
H47: Total dos Veículos da Parcela Fixa | I47: =I46+I43+I40 -> 2618.6908
A49: Composição de custo da equipe de produção de terraplenagem
A50: Código | B50: Discriminação | C50: Unidade | D50: Quantidade | F50: Custo Unitário (R$) | H50: Custo Total (R$)
B51: Equipe de Produção de Terraplenagem
A52: 3.1 | B52: Mão de Obra
A53: P9893 | B53: Encarregado de produção | C53: mês | D53: 1 | F53: =VLOOKUP(A53,'Pessoal Sicro'!$A$6:$G$118,6,0) -> 7826.5052 | H53: =F53*D53 -> 7826.5052
F54: Subtotal do Item 3.1 | H54: =SUM(H53:H53) -> 7826.5052
A55: Código | B55: Discriminação | C55: Unidade | D55: Quantidade | E55: Utilização Produtiva | F55: Utilização Improdutiva | G55: Custo Horário Produtivo (R$) | H55: Custo Horário Improdutivo (R$) | I55: Custo Total (R$)
A56: 3.2 | B56: Veículos
B57: Veículo Leve 53 kw | C57: mês | D57: 1 | E57: 44 | F57: 176 | G57: =G38 -> 34.8989 | H57: =H38 -> 6.1542 | I57: =((E57*G57)+(F57*H57))*D57 -> 2618.6908
H58: Subtotal do Item 3.2 | I58: =SUM(I57:I57) -> 2618.6908
H59: Total da Equipe de Produção de Terraplenagem | I59: =I58+H54 -> 10445.196
A61: Composição de custo da equipe de produção de pavimentação
A62: Código | B62: Discriminação | C62: Unidade | D62: Quantidade | F62: Custo Unitário (R$) | H62: Custo Total (R$)
B63: Equipe de Produção de Pavimentação
A64: 3.1 | B64: Mão de Obra
A65: P9893 | B65: Encarregado de produção | C65: mês | D65: 1 | F65: =VLOOKUP(A65,'Pessoal Sicro'!$A$6:$G$118,6,0) -> 7826.5052 | H65: =F65*D65 -> 7826.5052
F66: Subtotal do Item 3.1 | H66: =SUM(H65:H65) -> 7826.5052
A67: Código | B67: Discriminação | C67: Unidade | D67: Quantidade | E67: Utilização Produtiva | F67: Utilização Improdutiva | G67: Custo Horário Produtivo (R$) | H67: Custo Horário Improdutivo (R$) | I67: Custo Total (R$)
A68: 3.2 | B68: Veículos
B69: Veículo Leve 53 kw | C69: mês | D69: 1 | E69: 44 | F69: 176 | G69: =$G$38 -> 34.8989 | H69: =$H$38 -> 6.1542 | I69: =((E69*G69)+(F69*H69))*D69 -> 2618.6908
H70: Subtotal do Item 3.2 | I70: =SUM(I69:I69) -> 2618.6908
H71: Total da Equipe de Produção de Pavimentação | I71: =I70+H66 -> 10445.196
A73: Composição de custo da equipe de produção de drenagem
A74: Código | B74: Discriminação | C74: Unidade | D74: Quantidade | F74: Custo Unitário (R$) | H74: Custo Total (R$)
B75: Equipe de Produção de Pavimentação
A76: 3.1 | B76: Mão de Obra
A77: P9893 | B77: Encarregado de produção | C77: mês | D77: 1 | F77: =VLOOKUP(A77,'Pessoal Sicro'!$A$6:$G$118,6,0) -> 7826.5052 | H77: =F77*D77 -> 7826.5052
F78: Subtotal do Item 3.1 | H78: =SUM(H77:H77) -> 7826.5052
A79: Código | B79: Discriminação | C79: Unidade | D79: Quantidade | E79: Utilização Produtiva | F79: Utilização Improdutiva | G79: Custo Horário Produtivo (R$) | H79: Custo Horário Improdutivo (R$) | I79: Custo Total (R$)
A80: 3.2 | B80: Veículos
B81: Veículo Leve 53 kw | C81: mês | D81: 1 | E81: 44 | F81: 176 | G81: =$G$38 -> 34.8989 | H81: =$H$38 -> 6.1542 | I81: =((E81*G81)+(F81*H81))*D81 -> 2618.6908
H82: Subtotal do Item 3.2 | I82: =SUM(I81:I81) -> 2618.6908
H83: Total da Equipe de Produção de Pavimentação | I83: =I82+H78 -> 10445.196
A85: Composição de custo da equipe de produção de sinalização
A86: Código | B86: Discriminação | C86: Unidade | D86: Quantidade | F86: Custo Unitário (R$) | H86: Custo Total (R$)
B87: Equipe de Produção de Pavimentação
A88: 3.1 | B88: Mão de Obra
A89: P9893 | B89: Encarregado de produção | C89: mês | D89: 1 | F89: =VLOOKUP(A89,'Pessoal Sicro'!$A$6:$G$118,6,0) -> 7826.5052 | H89: =F89*D89 -> 7826.5052
F90: Subtotal do Item 3.1 | H90: =SUM(H89:H89) -> 7826.5052
A91: Código | B91: Discriminação | C91: Unidade | D91: Quantidade | E91: Utilização Produtiva | F91: Utilização Improdutiva | G91: Custo Horário Produtivo (R$) | H91: Custo Horário Improdutivo (R$) | I91: Custo Total (R$)
A92: 3.2 | B92: Veículos
B93: Veículo Leve 53 kw | C93: mês | D93: 1 | E93: 44 | F93: 176 | G93: =$G$38 -> 34.8989 | H93: =$H$38 -> 6.1542 | I93: =((E93*G93)+(F93*H93))*D93 -> 2618.6908
H94: Subtotal do Item 3.2 | I94: =SUM(I93:I93) -> 2618.6908
H95: Total da Equipe de Produção de Pavimentação | I95: =I94+H90 -> 10445.196
A97: Composição de custo da equipe topografia
A98: Código | B98: Discriminação | C98: Unidade | D98: Quantidade | F98: Custo Unitário (R$) | H98: Custo Total (R$)
B99: Equipe de Topografia
A100: 3.1 | B100: Mão de Obra
A101: P9949 | B101: Topográfo | C101: mês | D101: 1 | F101: =VLOOKUP(A101,'Pessoal Sicro'!$A$6:$G$118,6,0) -> 8508.0663 | H101: =F101*D101 -> 8508.0663
A102: P9950 | B102: Auxiliar de topografia | C102: mês | D102: 1 | F102: =VLOOKUP(A102,'Pessoal Sicro'!$A$6:$G$118,6,0) -> 5561.4546 | H102: =F102*D102 -> 5561.4546
F103: Subtotal do Item 3.1 | H103: =SUM(H101:I102) -> 14069.5209
A104: Código | B104: Discriminação | C104: Unidade | D104: Quantidade | E104: Utilização Produtiva | F104: Utilização Improdutiva | G104: Custo Horário Produtivo (R$) | H104: Custo Horário Improdutivo (R$) | I104: Custo Total (R$)
A105: 3.2 | B105: Veículos
B106: Veículo Leve 53 kw | C106: mês | D106: 1 | E106: 44 | F106: 176 | G106: =G38 -> 34.8989 | H106: =H38 -> 6.1542 | I106: =((E106*G106)+(F106*H106))*D106 -> 2618.6908
H107: Subtotal do Item 3.2 | I107: =SUM(I106:I106) -> 2618.6908
H108: Total da Equipe de Produção de Topografia | I108: =I107+H103 -> 16688.2117
A110: Composição de custo do setor de medicina e segurança do trabalho
A111: Código | B111: Discriminação | C111: Unidade | D111: Quantidade | F111: Custo Unitário (R$) | H111: Custo Total (R$)
A112: 4 | B112: Setor de Medicina e Segurança do Trabalho
A113: P9876 | B113: Técnico de segurança do trabalho | C113: mês | D113: 1 | F113: =VLOOKUP(A113,'Pessoal Sicro'!$A$6:$G$118,6,0) -> 7081.3754 | H113: =F113*D113 -> 7081.3754
A114: P9864 | B114: Engenheiro de segurança do trabalho | C114: mês | D114: 0 | F114: =VLOOKUP(A114,'Pessoal Sicro'!$A$6:$G$118,6,0) -> 22933.1739 | H114: =F114*D114 -> 0
A115: P9851 | B115: Médico do trabalho | C115: mês | D115: 0 | F115: =VLOOKUP(A115,'Pessoal Sicro'!$A$6:$G$118,6,0) -> 18352.249 | H115: =F115*D115 -> 0
A116: P9951 | B116: Médico de câmara hiperbárica | C116: mês | D116: 0 | F116: =VLOOKUP(A116,'Pessoal Sicro'!$A$6:$G$118,6,0) -> 20300.9664 | H116: =F116*D116 -> 0
F117: Subtotal do Item 4 | H117: =SUM(H113:I116) -> 7081.3754
A119: Parcela Variável - Composição de custo da equipe de frente de serviço
A120: Código | B120: Discriminação | C120: Unidade | D120: Quantidade | F120: Custo Unitário (R$) | H120: Custo Total (R$)
A121: 5 | B121: Equipe de Frente de Serviço | C121: equipexmês
A122: P9875 | B122: Encarregado de Turma | C122: mês | D122: 1 | F122: =VLOOKUP(A122,'Pessoal Sicro'!$A$6:$G$118,6,0) -> 5227.0497 | H122: =F122*D122 -> 5227.0497
A123: P9804 | B123: Apontador | C123: mês | D123: 0.5 | F123: =VLOOKUP(A123,'Pessoal Sicro'!$A$6:$G$118,6,0) -> 4710.754 | H123: =F123*D123 -> 2355.377
F124: Subtotal do Item 5 | H124: =SUM(H122:I123) -> 7582.4267
A126: Parcela Variável - Composição de custo da equipe de frente de serviço (Terraplenagem) - Somente Compactação
A127: Código | B127: Discriminação | C127: Unidade | D127: Quantidade | F127: Produção Horária (und/h) | H127: Efs
A128: 5.1 | B128: Equipe de Frente de Serviço | C128: equipexmês
C129: mês | H129: =(D129)/(F129*182.49) -> 
C130: mês | H130: =(D130)/(F130*182.49) -> 
C131: mês | H131: =(D131)/(F131*182.49) -> 
F132: Total de Equipes para Terraplenagem | H132: =SUM(H131:I131) -> 
A134: Parcela Variável - Composição de custo da acompanhamento das frentes de serviço de pavimentação
A135: Código | B135: Discriminação | C135: Unidade | D135: Quantidade | F135: Produção Horária (und/h) | H135: Efs
A136: 5.2 | B136: Equipe de Frente de Serviço | C136: equipe x mês
A137: 4915637 | B137: =VLOOKUP(A137,'SINTÉTICO SICRO'!$A$4:$D$6373,2,0) -> Capa selante - areia comercial | C137: m² | D137: ='RESUMO MODULO TOTAL'!J23 -> 98000 | F137: 1350 | H137: =(D137)/(F137*182.49) -> 0.3977894273
A138: 4011370 | B138: =VLOOKUP(A138,'SINTÉTICO SICRO'!$A$4:$D$6373,2,0) -> Tratamento superficial duplo com emulsão - brita comercial | C138: m² | D138: ='RESUMO MODULO TOTAL'!J24 -> 98000 | F138: 1125 | H138: 0.4773473128
A139: 4011351 | B139: =VLOOKUP(A139,'SINTÉTICO SICRO'!$A$4:$D$6373,2,0) -> Imprimação com asfalto diluído | C139: m² | D139: ='RESUMO MODULO TOTAL'!J25 -> 98000 | F139: 1500 | H139: 0.3580104846
A140: 4011268 | B140: =VLOOKUP(A140,'SINTÉTICO SICRO'!$A$4:$D$6373,2,0) -> Base estabilizada granulometricamente com mistura solo brita (70% - 30%) em usina com material de jazida e brita comercial | C140: m³ | D140: ='RESUMO MODULO TOTAL'!J26 -> 14700 | F140: 120.7 | H140: 0.6673766283
A141: 4011235 | B141: =VLOOKUP(A141,'SINTÉTICO SICRO'!$A$4:$D$6373,2,0) -> Sub-base estabilizada granulometricamente com mistura solo brita (70% - 30%) em usina com material de jazida e brita comercial | C141: m³ | D141: ='RESUMO MODULO TOTAL'!J27 -> 14700 | F141: 120.7 | H141: 0.6673766283
A142: 4011209 | B142: =VLOOKUP(A142,'SINTÉTICO SICRO'!$A$4:$D$6373,2,0) -> Regularização do subleito | C142: m² | D142: ='RESUMO MODULO TOTAL'!J28 -> 98000 | F142: 1121.33 | H142: 0.4789096224
F143: Total de Equipes para Pavimentação | H143: =SUM(H137:I142) -> 3.046810104
A145: Parcela Variável - Composição de custo da acompanhamento das frentes de serviço de drenagem
A146: Código | B146: Discriminação | C146: Unidade | D146: Quantidade | F146: Efsdu | H146: Efs
A147: 5.3 | B147: Frentes de Serviço para Drenagem | C147: equipe x mês
A148: 2003943 | B148: =VLOOKUP(A148,'SINTÉTICO SICRO'!$A$4:$D$6373,2,0) -> Meio-fio de concreto - MFC 03 moldado no local com extrusora e concreto usinado - areia e brita comerciais | C148: m | D148: =VLOOKUP(A148,'RESUMO MODULO TOTAL'!D:J,7,FALSE) -> 28000 | F148: 0.00021 | H148: =D148*F148 -> 5.88
F149: Total de Equipes para Drenagem | H149: =H148 -> 5.88
A151: Parcela Variável - Composição de custo da acompanhamento das frentes de serviço de sinalização
A152: Código | B152: Discriminação | C152: Unidade | D152: Quantidade | F152: Produção Horária (und/h) | H152: Efs
A153: 5.4 | B153: Frentes de Serviço para Sinalização | C153: equipe x mês
A154: 5213440 | B154: =VLOOKUP(A154,'SINTÉTICO SICRO'!$A$4:$D$6373,2,0) -> Placa de regulamentação em aço D = 0,60 m - película retrorrefletiva tipo I + SI - fornecimento e implantação | C154: ='[204]RESUMO MODULO TOTAL'!I34 -> und | D154: =VLOOKUP(A154,'RESUMO MODULO TOTAL'!D:J,7,FALSE) -> 42 | F154: 3 | H154: =0.2*((D154)/(F154*182.49)) -> 0.01534330648
A155: 5213464 | B155: =VLOOKUP(A155,'SINTÉTICO SICRO'!$A$4:$D$6373,2,0) -> Placa de advertência em aço, lado de 0,60 m - película retrorrefletiva tipo I + SI - fornecimento e implantação | C155: ='[204]RESUMO MODULO TOTAL'!I35 -> und | D155: =VLOOKUP(A155,'RESUMO MODULO TOTAL'!D:J,7,FALSE) -> 42 | F155: 4.1 | H155: =0.2*((D155)/(F155*182.49)) -> 0.01122680962
A156: 5213863 | B156: =VLOOKUP(A156,'SINTÉTICO SICRO'!$A$4:$D$6373,2,0) -> Suporte metálico galvanizado para placa de advertência ou regulamentação - lado ou diâmetro de 0,60 m - fornecimento e implantação | C156: ='[204]RESUMO MODULO TOTAL'!I36 -> und | D156: =VLOOKUP(A156,'RESUMO MODULO TOTAL'!D:J,7,FALSE) -> 84 | F156: 4.1 | H156: 0.02245361924
A157: 5213400 | B157: =VLOOKUP(A157,'SINTÉTICO SICRO'!$A$4:$D$6373,2,0) -> Pintura de faixa com tinta acrílica - espessura de 0,4 mm | C157: ='[204]RESUMO MODULO TOTAL'!I37 -> m² | D157: =VLOOKUP(A157,'RESUMO MODULO TOTAL'!D:J,7,FALSE) -> 3360 | F157: 177.07 | H157: 0.02079625886
F158: Total de Equipes para Sinalização | H158: =SUM(H154:I157) -> 0.0698199942 | J158: =H158+H149 -> 5.949819994
A160: 3. PARCELA VARIÁVEL - EQUIPE DE CONTROLE TECNOLÓGICO
A161: LABORATÓRIO DE SOLOS
A162: Item | B162: Discriminação | F162: Unidade | G162: Quantidade | H162: Custo Unitário (R$) | I162: Custo Total (R$)
B163: Laboratório de Solos (equipe x mês)
B164: Mão de Obra
A165: P9858 | B165: Laboratorista | F165: func./mês | G165: 1 | H165: =VLOOKUP(A165,'Pessoal Sicro'!$A$6:$G$118,6,0) -> 7199.4012 | I165: =TRUNC(G165*H165,2) -> 7199.4
A166: P9833 | B166: Auxiliar de laboratório | F166: func./mês | G166: 1 | H166: =VLOOKUP(A166,'Pessoal Sicro'!$A$6:$G$118,6,0) -> 5528.7453 | I166: =TRUNC(G166*H166,2) -> 5528.74
H167: Subtotal do Item | I167: =SUM(I165:I166) -> 12728.14
A168: Item | B168: Discriminação | C168: Und | D168: Quant | E168: Utilização Produtiva | F168: Utilização Improdutiva | G168: Horário Produtivo (R$) | H168: Horário Improdutivo (R$) | I168: Total (R$)
B169: Equipe de Controle Tecnológico
B170: Veículos
A171: E9125 | B171: Van furgão a diesel - 93 kW | C171: veic./mês | D171: 0.5 | E171: 44 | F171: 176 | G171: =VLOOKUP(A171,Equipamentos!$A$4:$K$533,10,0) -> 84.3517 | H171: =VLOOKUP(A171,Equipamentos!$A$4:$K$533,11,0) -> 47.4188 | I171: =D171*((E171*G171)+(F171*H171)) -> 6028.5918
H172: Subtotal do Item | I172: =SUM(I171:I171) -> 6028.5918
H173: Total da Equipe do Laboratório de Solos | I173: =I167+I172 -> 18756.7318
A175: 3. PARCELA VARIÁVEL - EQUIPE DE CONTROLE TECNOLÓGICO
A176: LABORATÓRIO DE ASFALTOS
A177: Item | B177: Discriminação | F177: Unidade | G177: Quantidade | H177: Custo Unitário (R$) | I177: Custo Total (R$)
B178: Laboratório de Solos (equipe x mês)
B179: Mão de Obra
A180: P9858 | B180: Laboratorista | F180: func./mês | G180: 1 | H180: =VLOOKUP(A180,'Pessoal Sicro'!$A$6:$G$118,6,0) -> 7199.4012 | I180: =TRUNC(G180*H180,2) -> 7199.4
A181: P9833 | B181: Auxiliar de laboratório | F181: func./mês | G181: 1 | H181: =VLOOKUP(A181,'Pessoal Sicro'!$A$6:$G$118,6,0) -> 5528.7453 | I181: =TRUNC(G181*H181,2) -> 5528.74
H182: Subtotal do Item | I182: =SUM(I180:I181) -> 12728.14
A183: Item | B183: Discriminação | C183: Und | D183: Quant | E183: Utilização Produtiva | F183: Utilização Improdutiva | G183: Horário Produtivo (R$) | H183: Horário Improdutivo (R$) | I183: Total (R$)
B184: Equipe de Controle Tecnológico
B185: Veículos
A186: E9125 | B186: Van furgão a diesel - 93 kW | C186: veic./mês | D186: 0.5 | E186: 44 | F186: 176 | G186: =VLOOKUP(A186,Equipamentos!$A$4:$K$533,10,0) -> 84.3517 | H186: =VLOOKUP(A186,Equipamentos!$A$4:$K$533,11,0) -> 47.4188 | I186: =D186*((E186*G186)+(F186*H186)) -> 6028.5918
H187: Subtotal do Item | I187: =SUM(I186:I186) -> 6028.5918
H188: Total da Equipe do Laboratório de Asfaltos | I188: =I182+I187 -> 18756.7318
A190: Equipes de laboratório de solos para pavimentação
A191: Item | B191: Discriminação | F191: Und | G191: Quant | H191: QE | I191: Els
A192: 4011268 | B192: =VLOOKUP(A192,'[204]SINTÉTICO SICRO'!A:D,2,0) -> Base estabilizada granulometricamente com mistura solo brita (70% - 30%) em usina com material de jazida e brita comercial | F192: =VLOOKUP(A192,'[204]SINTÉTICO SICRO'!A:D,3,0) -> m³ | G192: ='RESUMO MODULO TOTAL'!J26 -> 14700 | H192: 21900 | I192: =G192/H192 -> 0.6712328767
A193: 4011235 | B193: =VLOOKUP(A193,'[204]SINTÉTICO SICRO'!A:D,2,0) -> Sub-base estabilizada granulometricamente com mistura solo brita (70% - 30%) em usina com material de jazida e brita comercial | F193: =VLOOKUP(A193,'[204]SINTÉTICO SICRO'!A:D,3,0) -> m³ | G193: ='RESUMO MODULO TOTAL'!J27 -> 14700 | H193: 21900 | I193: =G193/H193 -> 0.6712328767
H194: Total de equipes de Laboratório de Solos para Pavimentação | I194: =SUM(I192:I193) -> 1.342465753
A196: Equipes de laboratório de Asfalto
A197: Item | B197: Discriminação | F197: Und | G197: Quant | H197: QE | I197: Ela
A198: 4011370 | B198: =VLOOKUP(A198,'SINTÉTICO SICRO'!A:D,2,0) -> Tratamento superficial duplo com emulsão - brita comercial | F198: =VLOOKUP(A198,'[204]SINTÉTICO SICRO'!A:D,3,0) -> m² | G198: =VLOOKUP(A198,'RESUMO MODULO TOTAL'!D:J,7,FALSE) -> 98000 | H198: 1610000 | I198: =G198/H198 -> 0.06086956522
A199: 4011352 | B199: =VLOOKUP(A199,'SINTÉTICO SICRO'!A:D,2,0) -> Imprimação com emulsão asfáltica | F199: =VLOOKUP(A199,'[204]SINTÉTICO SICRO'!A:D,3,0) -> m² | G199: =VLOOKUP(A199,'RESUMO MODULO TOTAL'!D:J,7,FALSE) -> 98000 | H199: 3610000 | I199: =G199/H199 -> 0.0271468144
H200: Total de equipes de Laboratório de Asfaltos | I200: =SUM(I198:I199) -> 0.08801637962
A202: manutenção do canteiro de obras e acampamentos
A203: Código | B203: Discriminação | C203: Unidade | D203: Quantidade | F203: Custo Unitário (R$) | H203: Custo Total (R$)
B204: Manutenção do Canteiro de Obras e Acampamentos
A205: 6.1 | B205: Mão de Obra
A206: P9952 | B206: Pedreiro | C206: mês | D206: 0 | F206: =VLOOKUP(A206,'Pessoal Sicro'!$A$6:$G$118,6,0) -> 4768.7493 | H206: =F206*D206 -> 0
A207: P9954 | B207: Servente | C207: mês | D207: 0 | F207: =VLOOKUP(A207,'Pessoal Sicro'!$A$6:$G$118,6,0) -> 4030.0175 | H207: =F207*D207 -> 0
A208: P9953 | B208: Eletricista | C208: mês | D208: 0 | F208: =VLOOKUP(A208,'Pessoal Sicro'!$A$6:$G$118,6,0) -> 5651.8909 | H208: =F208*D208 -> 0
F209: Subtotal do Item 6.1 | H209: =SUM(H206:I208) -> 0
A211: Código | B211: Discriminação | C211: Unidade | D211: Quantidade | F211: Custo Produtivo (R$) | H211: Custo Total (R$)
A212: 6.2 | B212: Equipamentos
B213: Caminhão guindauto de 6 toneladas | C213: h/mês | D213: 0 | H213: =F213*D213 -> 0
B214: Caminhão tanque de 8.000 litros | C214: h/mês | D214: 0 | H214: =F214*D214 -> 0
A215: E9524 | B215: Motoniveladora | C215: h/mês | D215: 0 | F215: =VLOOKUP(A215,Equipamentos!$A$4:$K$541,10,0) -> 290.0451 | H215: =F215*D215 -> 0
F216: Subtotal do Item 6.2 | H216: =SUM(H213:I215) -> 0
G217: Total da Manutenção do Canteiro de Obras e Acampamentos | H217: =H216+H209 -> 0
A221: Resumo das parcelas de administração local
A222: Código | B222: Discriminação | C222: Unidade | D222: Quantidade | F222: Custo Unitário (R$) | H222: Custo Total (R$)
B223: Parcela Fixa
B224: Mão de Obra | C224: mês | D224: 5 | F224: =H14+H18+H26+H30 -> 55612.6672 | H224: =F224*D224 -> 278063.336
... 27 more rows

Sheet Projeto Executivo
A4: COMPOSIÇAO PREÇO PROJETO EXECUTIVO
A6: DISCRIMINAÇAO | F6: Pr. Unit. | G6: Pr. Total
A8: A· EOUIPE TECNICA | G8: =G9+G12 -> 14744.49704
B9: A. 1 - Pessoal de Nível Superior | C9: Unidade | D9: Quantitativo | E9: SICRO e Rel.Custos Gerais | G9: =G10+G11 -> 11819.96722
B10: Engenheiro | C10: mês | D10: 0.4 | E10: P9812 | F10: =VLOOKUP(E10,'Pessoal Sicro'!A:G,6,0) -> 24232.3766 | G10: =F10*D10 -> 9692.95064
B11: Topógrafo | C11: mês | D11: 0.25 | E11: P9949 | F11: =VLOOKUP(E11,'Pessoal Sicro'!A:G,6,0) -> 8508.0663 | G11: =F11*D11 -> 2127.016575
B12: A.2 - Pessoal de Nível Técnico e Aux. | G12: =G13+G14 -> 2924.529825
B13: Auxiliar de topógrafo | C13: mês | D13: 0.125 | E13: P9950 | F13: =VLOOKUP(E13,'Pessoal Sicro'!A:G,6,0) -> 5561.4546 | G13: =F13*D13 -> 695.181825
B14: Auxiliar Técnico/Assistente de Engenharia | C14: mês | D14: 0.5 | E14: P9903 | F14: =VLOOKUP(E14,'Pessoal Sicro'!A:G,6,0) -> 4458.696 | G14: =F14*D14 -> 2229.348
A15: B - ENCARGOS SOCIAIS | G15: =G16 -> 0
B16: =CONCATENATE("Taxas ",'ENC. SOCIAIS'!E51,"%") -> Taxas 116,21% | C16: JÁ INCLUSAS EM "A"
A17: C - DESPESAS GERAIS | G17: =G18+G20+G19 -> 5151.976941
B18: C.1 - MATERIAIS DE CONSUMO | C18: Estimativa % como referência de equipe técnica com encargos sociais | D18: 0.03 | F18: =G8+G16 -> 14744.49704 | G18: =F18*D18 -> 442.3349112
B19: C.2 - VEÍCULOS (Veículo leve picape 4 x 4 com capacidade de 1,10 t - 147 kW) | C19: h | D19: 40 | E19: E9684 | F19: =VLOOKUP(E19,Equipamentos!A:K,10,0) -> 109.2041 | G19: =F19*D19 -> 4368.164
B20: C.3 - Estação total eletrônica com alcance máximo de 3.000 m | C20: h | D20: 67.30487824 | E20: E9553 | F20: =VLOOKUP(E20,Equipamentos!A:K,10,0) -> 5.0736 | G20: =F20*D20 -> 341.4780302
A21: D - ENSAIOS | G21: =SUM(G22:G25) -> 3650.784712
B22: Laboratorista | C22: mês | D22: =1/4 -> 0.25 | E22: P9858 | F22: =VLOOKUP(E22,'Pessoal Sicro'!A:G,6,0) -> 7199.4012 | G22: =F22*D22 -> 1799.8503
B23: Auxiliar de Laboratório | C23: mês | D23: =1/8 -> 0.125 | E23: P9833 | F23: =VLOOKUP(E23,'Pessoal Sicro'!A:G,6,0) -> 5528.7453 | G23: =F23*D23 -> 691.0931625
B24: Laboratório de solos | C24: mês | D24: =1/8 -> 0.125 | E24: B8957 | F24: =VLOOKUP(E24,'Tabelas 1 e 2'!C14:G23,5,0) -> 4073.25 | G24: =F24*D24 -> 509.15625
B25: Laboratório de asfalto | C25: mês | D25: 0.125 | E25: B8955 | F25: =VLOOKUP(E25,'Tabelas 1 e 2'!C15:G24,5,0) -> 5205.48 | G25: =F25*D25 -> 650.685
A26: I - SOMA (A+B+C+D) | G26: =G8+G15+G17+G21 -> 23547.25869
A27: II - CUSTOS ADMINISTRATIVOS | D27: =BDI!C17 -> 0.2339 | G27: =D27*G26 -> 5507.703809
A28: TOTAL | G28: =G26+G27 -> 29054.9625
F29: Por m²: | G29: =G28/('Memória de Cálculo'!C1*'Memória de Cálculo'!C2) -> 2.075354464

Sheet CPU CODEVASF
A4: ='RESUMO MODULO TOTAL'!B1 -> EXECUÇÃO DE SERVIÇOS DE PAVIMENTAÇÃO COM TRATAMENTO SUPERFICIAL DUPLO EM VIAS DE MUNICÍPIOS DIVERSOS INSERIDOS NA ÁREA DE ATUAÇÃO DA CODEVASF, NO ESTADO DO RIO GRANDE DO NORTE (REGIÃO 1)
F5: BDI %: | G5: =BDI!$C$17 -> 0.2339
E6: Encargos Sociais: | G6: Horista | H6: Mensalista
G7: ='ENC. SOCIAIS'!E51/100 -> 1.1621 | H7: ='ENC. SOCIAIS'!F51/100 -> 0.7148
A8: COMPOSIÇÕES DE CUSTO UNITARIO
A9: CPU-12 | B9: CODEVASF | D9: Correção de vazamentos no ramal na rua sem pavimento com fornecimento do material hidráulico | E9: m | F9: COEF. | G9: PRECO UNITÁRIO (R$) | H9: TOTAL (R$)
A11: SICRO | B11: SICRO | C11: P9824 | D11: =VLOOKUP(C11,'Pessoal Sicro'!$A$5:$G$1048576,2,0) -> Servente | E11: H | F11: 0.2 | G11: =VLOOKUP(C11,'Pessoal Sicro'!$A$5:$G$1048576,6,0) -> 21.7533 | H11: =F11*G11 -> 4.35066
A12: SICRO | B12: SICRO | C12: P9807 | D12: =VLOOKUP(C12,'Pessoal Sicro'!$A$5:$G$1048576,2,0) -> Bombeiro hidráulico | E12: H | F12: 0.1 | G12: =VLOOKUP(C12,'Pessoal Sicro'!$A$5:$G$1048576,6,0) -> 31.3673 | H12: 3.13673
A13: INS. SINAPI | B13: SINAPI | C13: 9867 | D13: TUBO PVC, SOLDAVEL, DN 20 MM, AGUA FRIA (NBR-5648) | E13: m | F13: 1 | G13: =IFERROR(VLOOKUP(C13,'INSUMOS SINAPI'!A:E,5,FALSE),VLOOKUP(C13,'COMP Sint. Sinapi'!G:K,5,FALSE)) -> 3.25 | H13: 3.25
A14: INSUMO | B14: ORSE | C14: 10585 | D14: Arco de serra | E14: un | F14: 0.1 | G14: 19.9 | H14: 1.99
A15: INS. SINAPI | B15: SINAPI | C15: 3859 | D15: LUVA SOLDAVEL COM ROSCA, PVC, 20 MM X 1/2", PARA AGUA FRIA PREDIAL | E15: un | F15: 2 | G15: =IFERROR(VLOOKUP(C15,'INSUMOS SINAPI'!A:E,5,FALSE),VLOOKUP(C15,'COMP Sint. Sinapi'!G:K,5,FALSE)) -> 1.17 | H15: 2.34
E16: Sub total: | H16: =SUM(H11:H15) -> 15.06739
F17: BDI | G17: =BDI!$C$17 -> 0.2339 | H17: =H16*G17 -> 3.524262521
G18: Total Serviços: | H18: =H16+H17 -> 18.59165252
E19: =A9 -> CPU-12 | F19: PREÇO UNITÁRIO TOTAL: | H19: =H18 -> 18.59165252 | I19: =H16 -> 15.06739
A21: CPU-14 | B21: CODEVASF | D21: AQUISIÇÃO DE EAI | E21: t | F21: COEF. | G21: PRECO UNITÁRIO (R$) | H21: TOTAL (R$)
D23: EAI | E23: t | F23: 1 | G23: =RESUMO_Transp!$V$17 -> 2852.762226 | H23: =F23*G23 -> 2852.762226
E24: Sub total: | H24: =SUM(H23) -> 2852.762226
F25: BDI | G25: 0.15 | H25: =H24*G25 -> 427.9143338
G26: Total Serviços: | H26: =H24+H25 -> 3280.676559
E27: =A21 -> CPU-14 | F27: PREÇO UNITÁRIO TOTAL: | H27: =H26 -> 3280.676559 | I27: =H24 -> 2852.762226
A29: CPU-15 | B29: CODEVASF | D29: AQUISIÇÃO DE EMULSÃO ASFÁLTICA RR-2C | E29: t | F29: COEF. | G29: PRECO UNITÁRIO (R$) | H29: TOTAL (R$)
D31: EMULSÃO ASFÁLTICA RR-2C | E31: t | F31: 1 | G31: =RESUMO_Transp!$V$24 -> 3339.211216 | H31: =F31*G31 -> 3339.211216
E32: Sub total: | H32: =SUM(H31) -> 3339.211216
F33: BDI | G33: 0.15 | H33: =H32*G33 -> 500.8816824
G34: Total Serviços: | H34: =H32+H33 -> 3840.092898
E35: =A29 -> CPU-15 | F35: PREÇO UNITÁRIO TOTAL: | H35: =H34 -> 3840.092898 | I35: =H32 -> 3339.211216
A37: CPU-18 | B37: CODEVASF | D37: TRANSPORTE DE EAI | E37: t | F37: COEF. | G37: PRECO UNITÁRIO (R$) | H37: TOTAL (R$)
D39: TRANSPORTE DE EAI | E39: t | F39: 1 | G39: =RESUMO_Transp!$U$17 -> 1667.114694 | H39: =F39*G39 -> 1667.114694
E40: Sub total: | H40: =SUM(H39) -> 1667.114694
F41: BDI | G41: 0.15 | H41: =H40*G41 -> 250.0672041
G42: Total Serviços: | H42: =H40+H41 -> 1917.181898
E43: =A37 -> CPU-18 | F43: PREÇO UNITÁRIO TOTAL: | H43: =H42 -> 1917.181898 | I43: =H40 -> 1667.114694
A45: CPU-19 | B45: CODEVASF | D45: TRANSPORTE DE EMULSÃO ASFÁLTICA RR-2C | E45: t | F45: COEF. | G45: PRECO UNITÁRIO (R$) | H45: TOTAL (R$)
D47: TRANSPORTE DE EMULSÃO ASFÁLTICA RR-2C | E47: t | F47: 1 | G47: =RESUMO_Transp!$U$24 -> 1409.74 | H47: =F47*G47 -> 1409.74
E48: Sub total: | H48: =SUM(H47) -> 1409.74
F49: BDI | G49: 0.15 | H49: =H48*G49 -> 211.461
G50: Total Serviços: | H50: =H48+H49 -> 1621.201
E51: =A45 -> CPU-19 | F51: PREÇO UNITÁRIO TOTAL: | H51: =H50 -> 1621.201 | I51: =H48 -> 1409.74
A53: CPU-20 | B53: CODEVASF | D53: CONTROLE TECNOLÓGICO - PROJETO | E53: m² | F53: COEF. | G53: PRECO UNITÁRIO (R$) | H53: TOTAL (R$)
A55: Insumo | B55: SICRO | C55: P9858 | D55: Laboratorista | E55: mês | F55: =0.15/14000 -> 1.071428571e-05 | G55: 7199.4012 | H55: =F55*G55 -> 0.07713644143
A56: Composição | B56: SICRO | C56: P9833 | D56: Auxiliar de Laboratório | E56: mês | F56: =0.15/14000 -> 1.071428571e-05 | G56: 5528.7453 | H56: 0.05923655679
A57: Composição | B57: SICRO | C57: *B8957 | D57: Laboratório de Solos | E57: mês | F57: 1.071428571e-05 | G57: 4073.25 | H57: =F57*G57 -> 0.04364196429
A58: Composição | B58: SICRO | C58: *B8955 | D58: Laboratório de Asfalto | E58: mês | F58: 1.071428571e-05 | G58: 5205.48 | H58: 0.055773
B59: *Relatório de Custos Gerais do DNIT, página 1 | E59: Sub total: | H59: =SUM(H55:H58) -> 0.2357879625
F60: BDI | G60: =BDI!$C$17 -> 0.2339 | H60: =H59*G60 -> 0.05515080443
E61: CPU-20 | F61: PREÇO UNITÁRIO TOTAL: | H61: =H59+H60 -> 0.2909387669 | I61: =H59 -> 0.2357879625

Sheet BDI
A2: OBRA:
A3: LOCAL:
A4: DATA BASE:
A5: DETALHAMENTO DO BDI - SEM DESONERAÇÃO
A6: ='RESUMO MODULO TOTAL'!B1 -> EXECUÇÃO DE SERVIÇOS DE PAVIMENTAÇÃO COM TRATAMENTO SUPERFICIAL DUPLO EM VIAS DE MUNICÍPIOS DIVERSOS INSERIDOS NA ÁREA DE ATUAÇÃO DA CODEVASF, NO ESTADO DO RIO GRANDE DO NORTE (REGIÃO 1)
A7: Descrição dos serviços | B7: Preço de Venda (%) | C7: Custo Direto (%)
A8: ADMINISTRAÇÃO CENTRAL | C8: 0.06
A9: CUSTOS FINANCEIROS | B9: 0.0102
A10: RISCOS | B10: 0.0025
A11: SEGUROS E GARANTIAS CONTRATUAIS | B11: 0.005
A12: LUCRO OPERACIONAL | C12: 0.07
A13: PIS | B13: 0.0065
A14: COFINS | B14: 0.03
A15: ISSQN | B15: 0.03
A16: Contribuição Previdenciaria | B16: 0
B17: BDI | C17: =ROUND((1+(C8+C12))/(1-(B9+B10+B11+B13+B14+B15+B16))-1,4) -> 0.2339
A18: Observação: O percentual de ISSQN aqui utilizado consiste apenas em um referencial médio.
B19: O valor real do ISSQN a ser adotado deve ser aquele proveniente das alíquotas dos municípios situados na área de
B20: influência das obras.
A55: DETALHAMENTO DO BDI DIFERENCIADO - SEM DESONERAÇÃO
A56: ='RESUMO MODULO TOTAL'!B1 -> EXECUÇÃO DE SERVIÇOS DE PAVIMENTAÇÃO COM TRATAMENTO SUPERFICIAL DUPLO EM VIAS DE MUNICÍPIOS DIVERSOS INSERIDOS NA ÁREA DE ATUAÇÃO DA CODEVASF, NO ESTADO DO RIO GRANDE DO NORTE (REGIÃO 1)
A58: DESCRIÇÃO DOS SERVIÇOS | B58: PREÇO DE VENDA (%) | C58: CUSTO DIRETO (%)
A59: ADMINISTRAÇÃO CENTRAL | C59: 0.0377
A60: DESPESA FINANCEIRAS | B60: 0.0102
A61: SEGUROS E GARANTIAS CONTRATUAIS | B61: 0.0025
A62: RISCOS | B62: 0.005
A63: LUCRO OPERACIONAL | C63: 0.05
A64: PIS | B64: 0.0065
A65: COFINS | B65: 0.03
A66: ISSQN | B66: 0
A67: Contribuição Previdenciaria | B67: 0
B68: BDI | C68: =ROUND((1+(C59+C63))/(1-(B60+B61+B62+B64+B65+B66+B67))-1,4) -> 0.15
A69: Fonte da composição, valores de referência e fórmula do BDI: Instrução Normativa N° 62/DNIT SEDE

Sheet ENC. SOCIAIS
A6: NOME DA CONCORRENTE:
A7: EDITAL:
A8: FOLHA:
A9: ='RESUMO MODULO TOTAL'!B1 -> EXECUÇÃO DE SERVIÇOS DE PAVIMENTAÇÃO COM TRATAMENTO SUPERFICIAL DUPLO EM VIAS DE MUNICÍPIOS DIVERSOS INSERIDOS NA ÁREA DE ATUAÇÃO DA CODEVASF, NO ESTADO DO RIO GRANDE DO NORTE (REGIÃO 1)
A11: DETALHAMENTO DOS ENCARGOS SOCIAIS (%)
A12: VIGÊNCIA A PARTIR DE 12/2023 | C12: COM DESONERAÇÃO | E12: SEM DESONERAÇÃO
C14: HORISTA | D14: MENSALISTA | E14: HORISTA | F14: MENSALISTA
A16: GRUPO A
A17: A1 | B17: INSS | C17: 0 | D17: 0 | E17: 20 | F17: 20
A18: A2 | B18: SESI | C18: 1.5 | D18: 1.5 | E18: 1.5 | F18: 1.5
A19: A3 | B19: SENAI | C19: 1 | D19: 1 | E19: 1 | F19: 1
A20: A4 | B20: INCRA | C20: 0.2 | D20: 0.2 | E20: 0.2 | F20: 0.2
A21: A5 | B21: SEBRAE | C21: 0.6 | D21: 0.6 | E21: 0.6 | F21: 0.6
A22: A6 | B22: Salário Educação | C22: 2.5 | D22: 2.5 | E22: 2.5 | F22: 2.5
A23: A7 | B23: Seguro Contra Acidentes de Trabalho | C23: 3 | D23: 3 | E23: 3 | F23: 3
A24: A8 | B24: FGTS | C24: 8 | D24: 8 | E24: 8 | F24: 8
A25: A9 | B25: SECONCI | C25: 1 | D25: 1 | E25: 0
A26: A | B26: Total | C26: =SUM(C17:C25) -> 17.8 | D26: =SUM(D17:D25) -> 17.8 | E26: =SUM(E17:E25) -> 36.8 | F26: =SUM(F17:F25) -> 36.8
A27: GRUPO B
A28: B1 | B28: Repouso Semanal Remunerado | C28: 17.88 | D28: - | E28: 17.97 | F28: -
A29: B2 | B29: Feriados | C29: 3.94 | D29: - | E29: 4.28 | F29: -
A30: B3 | B30: Auxílio-enfermidade | C30: 0.91 | D30: 0.69 | E30: 0.86 | F30: 0.64
A31: B4 | B31: 13° salário | C31: 10.98 | D31: 8.33 | E31: 11.2 | F31: 8.33
A32: B5 | B32: Licença-paternidade | C32: 0.07 | D32: 0.06 | E32: 0.06 | F32: 0.04
A33: B6 | B33: Faltas Justificadas | C33: 0.73 | D33: 0.56 | E33: 0.75 | F33: 0.56
A34: B7 | B34: Dias de chuva | C34: 1.45 | D34: - | E34: 1.75 | F34: -
A35: B8 | B35: Auxílio Acidente de Trabalho | C35: 0.11 | D35: 0.09 | E35: 0.1 | F35: 0.08
A36: B9 | B36: Férias Gozadas | C36: 11.35 | D36: 8.62 | E36: 14.03 | F36: 10.44
A37: B10 | B37: Salário Maternidade | C37: 0.03 | D37: 0.03 | E37: 0.04 | F37: 0.03
A38: B | B38: Total | C38: =SUM(C28:C37) -> 47.45 | D38: =SUM(D28:D37) -> 18.38 | E38: =SUM(E28:E37) -> 51.04 | F38: =SUM(F28:F37) -> 20.12
A39: GRUPO C
A40: C1 | B40: Aviso Prévio Indenizado | C40: 6.76 | D40: 5.14 | E40: 5.25 | F40: 3.91
A41: C2 | B41: Aviso Prévio Trabalhado | C41: 0.16 | D41: 0.12 | E41: 0.12 | F41: 0.09
A42: C3 | B42: Férias Indenizadas | C42: 2.28 | D42: 1.73 | E42: 0.88 | F42: 0.66
A43: C4 | B43: Depósito Rescisão Sem Justa Causa | C43: 3.81 | D43: 2.89 | E43: 2.44 | F43: 1.82
A44: C5 | B44: Indenização Adicional | C44: 0.57 | D44: 0.43 | E44: 0.44 | F44: 0.33
A45: C | B45: Total | C45: =SUM(C40:C44) -> 13.58 | D45: =SUM(D40:D44) -> 10.31 | E45: =SUM(E40:E44) -> 9.13 | F45: =SUM(F40:F44) -> 6.81
A46: GRUPO D
A47: D1 | B47: Reincidência de A sobre B | C47: 8.45 | D47: 3.27 | E47: 18.78 | F47: 7.4
A48: D2 | B48: Reincidência de Grupo A sobre Aviso Prévio Trabalhado e Reincidência do FGTS sobre Aviso Prévio Indenizado | C48: 0.57 | D48: 0.43 | E48: 0.46 | F48: 0.35
A49: D | B49: Total | C49: =SUM(C47:C48) -> 9.02 | D49: =SUM(D47:D48) -> 3.7 | E49: =SUM(E47:E48) -> 19.24 | F49: =SUM(F47:F48) -> 7.75
A51: T O T A L (%) | C51: =C26+C38+C45+C49 -> 87.85 | D51: =D26+D38+D45+D49 -> 50.19 | E51: =E26+E38+E45+E49 -> 116.21 | F51: =F26+F38+F45+F49 -> 71.48
H56: Fonte: Sinapi Cálculos e Parâmetros 5ª Edição - Atualizada em Agosto 2023

Sheet CONSUMO DE MAT. B TOTAL
B3: CONSUMO DO MATERIAL BETUMINOSO TOTAL
B5: TRECHO | D5: QUANTIDADES | M5: MAT. BETUMINOSO
B6: Inicio (km) | C6: Fim (km) | D6: Extensão (m) | E6: Largura (m) | F6: Espess. (m) | G6: Área (m2) | H6: Volume (m3) | I6: Densidade (t/m3) | J6: Massa (t) | K6: Unid | L6: Quant. | M6: Tipo | N6: Consumo Taxa de Aplicação | O6: Unid. | P6: Quant.
B7: IMPRIMAÇÃO
F9: 1 | G9: ='Memória de Cálculo'!H63 -> 98000 | H9: =G9*F9 -> 98000 | M9: CM-30 | N9: 1,2 l/m2 | O9: t | P9: =ROUND((G9*1.2)/1000,2) -> 117.6
B10: CAPA SELANTE
F11: 1 | G11: ='Memória de Cálculo'!H51 -> 98000 | H11: =G11*F11 -> 98000 | M11: RR-2C | N11: 0,5 l/m2 | O11: t | P11: =ROUND((G11*0.5)/1000,2) -> 49
B12: TRATAMENTO SUPERFICIAL DUPLO - 1ª CAMADA
F13: 1 | G13: ='Memória de Cálculo'!H57 -> 98000 | H13: =G13*F13 -> 98000 | M13: RR-2C | N13: 1,5 l/m² | O13: t | P13: =ROUND((G13*1.5)/1000,2) -> 147
B14: TRATAMENTO SUPERFICIAL DUPLO - 2ª CAMADA
F15: 1 | G15: ='Memória de Cálculo'!H57 -> 98000 | H15: =G15*F15 -> 98000 | M15: RR-2C | N15: 1,0 l/m² | O15: t | P15: =ROUND((G15*1)/1000,2) -> 98
H17: =G17*F17 -> 0

Sheet Transporte EAI
C2: MEMÓRIA DE CÁLCULO
C7: REAJUSTE | F7: TIPOLOGIA DO MATERIAL | I7: EMULSÃO ASFÁLTICA PARA SERVIÇO DE IMPRIMAÇÃO | M7: IMPOSTOS | N7: COFINS | O7: 0.0065 | P7: 0.0065
G8: ÍNDICE DE PAVIMENTAÇÃO DNIT | H8: 2014-07-01 | I8: ÍNDICE INICIAL | J8: 270.237 | N8: PIS | O8: 0.03 | P8: 0.03 | T8: LEGENDA | AC8: As empresas tributadas pelo Lucro Presumido pagam 0,65% de PIS e 3% de COFINS
H9: 2024-06-01 | I9: ÍNDICE FINAL | J9: 572.847 | N9: ICMS | O9: 0.18 | P9: 0.18 | Q9: =1-(O9/1) -> 0.82 | R9: =1-(P9/1) -> 0.82 | S9: =1-(Q9/1) -> 0.18 | T9: ENTRADA DE DADOS | AC9: As empresas tributadas pelo Lucro Real pagam 1,65% de PIS e 7,60% de COFINS
G10: Data ANP | H10: ='[205]ANP ESTADO'!A98879 -> 2024-06-01
C11: DATA-BASE | D11: PRODUTOS | E11: LOCALIDADES | J11: CUSTO ANP (R$/Kg) | L11: CUSTO ANP | M11: IMPOSTOS DO PRODUTO | N11: CUSTO DO PRODUTO COM IMPOSTOS | O11: DMT's | P11: DMT'S FLUVIAL | Q11: CUSTO DO TRANSPORTE RODOVIA PAVIMENTADA | R11: CUSTO DO TRANSPORTE FLUVIAL | S11: CUSTO DO TRANSPORTE TOTAL | T11: ICMS | U11: ATUALIZAÇÃO DO CUSTO DE TRANSPORTE | V11: CUSTO DO TRANSPORTE RODOVIA PAVIMENTADA COM IMPOSTOS E ATUALIZAÇÃO MONETÁRIA | W11: PEDÁGIO | Y11: TOTAL TRANSPORTE | Z11: AQUISIÇÃO DO PRODUTO | AA11: TOTAL GERAL ( TRANSP + AQUISIÇÃO) | AC11: 1 | AD11: 2 | AE11: 3
C12: =H9 -> 2024-06-01 | E12: REFINARIAS | F12: ENDEREÇO | G12: ESTADO | H12: CIDADE | I12: DESTINO | J12: ESTADO | K12: REGIÃO | L12: R$/t | M12: R$/t | N12: R$/t | O12: KM | P12: KM | Q12: R$/t | R12: R$/t | S12: R$/t | T12: R$/t | U12: R$/t | V12: R$/t | W12: CUSTO | X12: R$/t | Y12: R$/t | Z12: R$/t | AA12: R$/t | AC12: TOTAL GERAL ( TRANSP + AQUISIÇÃO) | AD12: TOTAL TRANSPORTE | AE12: AQUISIÇÃO DO PRODUTO
B13: =AA13 -> 5069.033688 | C13: 1 | D13: =I7 -> EMULSÃO ASFÁLTICA PARA SERVIÇO DE IMPRIMAÇÃO | E13: 'CENTRO OESTE ASFALTOS LTDA. | F13: SETOR DE INFLAMÁVEIS, S/N TRECHO 02 - LOTE 1.100 - GUARÁ - CEP:71225-000 | G13: Distrito Federal | H13: BRASÍLIA - DF | I13: Natal - RN | J13: =VLOOKUP(G13,OFFSET('ANP ESTADO'!$A$1,MATCH($I$7,'ANP ESTADO'!B:B,0)+MATCH($H$10,OFFSET('ANP ESTADO'!$A$1,MATCH($I$7,'ANP ESTADO'!B:B,0),0,100000,1),0),2,100000,2),2,FALSE) -> - | K13: =VLOOKUP($H$10,OFFSET('ANP REGIÃO'!$A$9,MATCH('Transporte EAI'!$I$7,'ANP REGIÃO'!A:A,0),1,10000,10000),MATCH('Transporte EAI'!AH13,'ANP REGIÃO'!$B$8:$G$8,0),FALSE) -> 2.680425729 | L13: =IF(AND(J13="-",K13="-"),"",IF(AND(J13<>0,K13="-"),J13*1000,IF(AND(J13="-",K13<>0),K13*1000,IF(AND(J13<>0,K13<>0),J13*1000,"")))) -> 2680.425729 | M13: =ROUND(((L13/(1-$O$7-$O$8-$O$9))-L13),2) -> 740.67 | N13: =L13+M13 -> 3421.095729 | O13: 2405 | P13: 0 | Q13: =ROUND((26.939+0.253*O13),2) -> 635.4 | S13: =ROUND((26.939+0.253*Q13),2) -> 187.7 | T13: =TRUNC(Q13*($O$9/(1-$O$9)),2) -> 139.47 | U13: =TRUNC(IF($J$8="","",(($J$9-$J$8)/$J$8)*(Q13+T13)),2) -> 867.69 | V13: =Q13+T13+U13 -> 1642.56 | W13: 73.2 | X13: =EVEN((' CONSUMO DE MAT. B TOTAL'!$P$13+' CONSUMO DE MAT. B TOTAL'!P15)*2/28)*W13/(' CONSUMO DE MAT. B TOTAL'!$P$13+' CONSUMO DE MAT. B TOTAL'!P15) -> 5.377959184 | Y13: =IF(AND(Q13="",T13=""),"",V13+X13) -> 1647.937959 | Z13: =IF(OR(L13="",M13=""),"",L13+M13) -> 3421.095729 | AA13: =IF(OR(Y13="",Z13=""),"",Y13+Z13) -> 5069.033688 | AC13: =AA13 -> 5069.033688 | AD13: =Y13 -> 1647.937959 | AE13: =Z13 -> 3421.095729 | AH13: =IF(OR(G13=$D$58,G13=$D$59,G13=$D$61,G13=$D$67,G13=$D$51,G13=$D$47,G13=$D$43,G13=$D$56,G13=$D$46),"NORDESTE",IF(OR(G13=$D$42,G13=$D$44,G13=$D$45,G13=$D$55,G13=$D$63,G13=$D$64,G13=$D$68),"NORTE",IF(OR(G13=$D$48,G13=$D$50,G13=$D$52,G13=$D$53),"CENTRO-OESTE",IF(OR(G13=$D$66,G13=$D$60,G13=$D$54,G13=$D$49),"SUDESTE",IF(OR(G13=$D$65,G13=$D$57,G13=$D$62),"SUL",""))))) -> CENTRO-OESTE
B14: =AA14 -> 4739.645174 | C14: 2 | E14: STRATURA ASFALTOS S/A | F14: AVENIDA PRESIDENTE WILSON, 08 - JUNDIAÍ - CEP:75115-100 | G14: Goiás | H14: ANÁPOLIS - GO | I14: Natal - RN | J14: =VLOOKUP(G14,OFFSET('ANP ESTADO'!$A$1,MATCH($I$7,'ANP ESTADO'!B:B,0)+MATCH($H$10,OFFSET('ANP ESTADO'!$A$1,MATCH($I$7,'ANP ESTADO'!B:B,0),0,100000,1),0),2,100000,2),2,FALSE) -> 2.342870072 | K14: =VLOOKUP($H$10,OFFSET('ANP REGIÃO'!$A$9,MATCH('Transporte EAI'!$I$7,'ANP REGIÃO'!A:A,0),1,10000,10000),MATCH('Transporte EAI'!AH14,'ANP REGIÃO'!$B$8:$G$8,0),FALSE) -> 2.680425729 | L14: =IF(AND(J14="-",K14="-"),"",IF(AND(J14<>0,K14="-"),J14*1000,IF(AND(J14="-",K14<>0),K14*1000,IF(AND(J14<>0,K14<>0),J14*1000,"")))) -> 2342.870072 | M14: =ROUND(((L14/(1-$O$7-$O$8-$O$9))-L14),2) -> 647.39 | N14: =L14+M14 -> 2990.260072 | O14: 2554 | P14: 0 | Q14: =ROUND((26.939+0.253*O14),2) -> 673.1 | S14: 197.23 | T14: =TRUNC(Q14*($O$9/(1-$O$9)),2) -> 147.75 | U14: =TRUNC(IF($J$8="","",(($J$9-$J$8)/$J$8)*(Q14+T14)),2) -> 919.18 | V14: =Q14+T14+U14 -> 1740.03 | W14: 114.6 | X14: =EVEN((' CONSUMO DE MAT. B TOTAL'!$P$13+' CONSUMO DE MAT. B TOTAL'!P17)*2/28)*W14/(' CONSUMO DE MAT. B TOTAL'!$P$13+' CONSUMO DE MAT. B TOTAL'!P17) -> 9.355102041 | Y14: 1749.385102 | Z14: 2990.260072 | AA14: =IF(OR(Y14="",Z14=""),"",Y14+Z14) -> 4739.645174 | AC14: =AA14 -> 4739.645174 | AD14: =Y14 -> 1749.385102 | AE14: 2990.260072 | AH14: =IF(OR(G14=$D$58,G14=$D$59,G14=$D$61,G14=$D$67,G14=$D$51,G14=$D$47,G14=$D$43,G14=$D$56,G14=$D$46),"NORDESTE",IF(OR(G14=$D$42,G14=$D$44,G14=$D$45,G14=$D$55,G14=$D$63,G14=$D$64,G14=$D$68),"NORTE",IF(OR(G14=$D$48,G14=$D$50,G14=$D$52,G14=$D$53),"CENTRO-OESTE",IF(OR(G14=$D$66,G14=$D$60,G14=$D$54,G14=$D$49),"SUDESTE",IF(OR(G14=$D$65,G14=$D$57,G14=$D$62),"SUL",""))))) -> CENTRO-OESTE
B15: 4786.633133 | C15: 3 | E15: DISTRIBUIDORA BRASILEIRA DE ASFALTO SA - DISBRAL | F15: VIA PRIMARIA 8, S/N QD-18, MODS. 24/47 - DAIAG - CEP:74980-970 | G15: Goiás | H15: APARECIDA DE GOIANIA - GO | I15: Natal - RN | J15: =VLOOKUP(G15,OFFSET('ANP ESTADO'!$A$1,MATCH($I$7,'ANP ESTADO'!B:B,0)+MATCH($H$10,OFFSET('ANP ESTADO'!$A$1,MATCH($I$7,'ANP ESTADO'!B:B,0),0,100000,1),0),2,100000,2),2,FALSE) -> 2.342870072 | K15: =VLOOKUP($H$10,OFFSET('ANP REGIÃO'!$A$9,MATCH('Transporte EAI'!$I$7,'ANP REGIÃO'!A:A,0),1,10000,10000),MATCH('Transporte EAI'!AH15,'ANP REGIÃO'!$B$8:$G$8,0),FALSE) -> 2.680425729 | L15: 2342.870072 | M15: 647.39 | N15: 2990.260072 | O15: 2622 | P15: 0 | Q15: 690.31 | S15: 201.59 | T15: 151.53 | U15: 942.68 | V15: 1784.52 | W15: 145.2 | X15: =EVEN((' CONSUMO DE MAT. B TOTAL'!$P$13+' CONSUMO DE MAT. B TOTAL'!P18)*2/28)*W15/(' CONSUMO DE MAT. B TOTAL'!$P$13+' CONSUMO DE MAT. B TOTAL'!P18) -> 11.85306122 | Y15: 1796.373061 | Z15: 2990.260072 | AA15: 4786.633133 | AC15: 4786.633133 | AD15: 1796.373061 | AE15: 2990.260072 | AH15: CENTRO-OESTE
A16: 2403 | B16: 4787.385174 | C16: 4 | E16: INDÚSTRIA NACIONAL DE ASFALTOS LTDA. | F16: VIA PRIMEIRA E SEGUNDA 3, S/N.º LOTES 01 A 10 - DISTRITO AGROINDUSTRIAL - CEP:75370-000 | G16: Goiás | H16: GOIANIRA - GO | I16: Natal - RN | J16: =VLOOKUP(G16,OFFSET('ANP ESTADO'!$A$1,MATCH($I$7,'ANP ESTADO'!B:B,0)+MATCH($H$10,OFFSET('ANP ESTADO'!$A$1,MATCH($I$7,'ANP ESTADO'!B:B,0),0,100000,1),0),2,100000,2),2,FALSE) -> 2.342870072 | K16: =VLOOKUP($H$10,OFFSET('ANP REGIÃO'!$A$9,MATCH('Transporte EAI'!$I$7,'ANP REGIÃO'!A:A,0),1,10000,10000),MATCH('Transporte EAI'!AH16,'ANP REGIÃO'!$B$8:$G$8,0),FALSE) -> 2.680425729 | L16: 2342.870072 | M16: 647.39 | N16: 2990.260072 | O16: 2627 | P16: 0 | Q16: 691.57 | S16: 201.91 | T16: 151.8 | U16: 944.4 | V16: 1787.77 | W16: 114.6 | X16: =EVEN((' CONSUMO DE MAT. B TOTAL'!$P$13+' CONSUMO DE MAT. B TOTAL'!P19)*2/28)*W16/(' CONSUMO DE MAT. B TOTAL'!$P$13+' CONSUMO DE MAT. B TOTAL'!P19) -> 9.355102041 | Y16: 1797.125102 | Z16: 2990.260072 | AA16: 4787.385174 | AC16: 4787.385174 | AD16: 1797.125102 | AE16: 2990.260072 | AH16: CENTRO-OESTE
B17: 4631.951817 | C17: 5 | E17: STRATURA ASFALTOS S/A | F17: RUA VICTOR RODRIGUES RESENDE, 333 - DISTRITO IND. DE UBERLÂNDIA - CEP:38405-440 | G17: Minas Gerais | H17: UBERLANDIA - MG | I17: Natal - RN | J17: =VLOOKUP(G17,OFFSET('ANP ESTADO'!$A$1,MATCH($I$7,'ANP ESTADO'!B:B,0)+MATCH($H$10,OFFSET('ANP ESTADO'!$A$1,MATCH($I$7,'ANP ESTADO'!B:B,0),0,100000,1),0),2,100000,2),2,FALSE) -> 2.235142226 | K17: =VLOOKUP($H$10,OFFSET('ANP REGIÃO'!$A$9,MATCH('Transporte EAI'!$I$7,'ANP REGIÃO'!A:A,0),1,10000,10000),MATCH('Transporte EAI'!AH17,'ANP REGIÃO'!$B$8:$G$8,0),FALSE) -> 2.329044365 | L17: 2235.142226 | M17: 617.62 | N17: 2852.762226 | O17: 2572 | P17: 0 | Q17: 677.66 | S17: 198.39 | T17: 148.75 | U17: 925.4 | V17: 1751.81 | W17: 335.4 | X17: =EVEN((' CONSUMO DE MAT. B TOTAL'!$P$13+' CONSUMO DE MAT. B TOTAL'!P20)*2/28)*W17/(' CONSUMO DE MAT. B TOTAL'!$P$13+' CONSUMO DE MAT. B TOTAL'!P20) -> 27.37959184 | Y17: 1779.189592 | Z17: 2852.762226 | AA17: 4631.951817 | AC17: 4631.951817 | AD17: 1779.189592 | AE17: 2852.762226 | AH17: SUDESTE
B18: 4633.881817 | C18: 6 | E18: BETUNEL INDÚSTRIA E COMÉRCIO LTDA. | F18: RUA VICTOR RODRIGUES DE REZENDE, 185 - DISTRITO INDUSTRIAL - CEP:38402-334 | G18: Minas Gerais | H18: UBERLANDIA - MG | I18: Natal - RN | J18: =VLOOKUP(G18,OFFSET('ANP ESTADO'!$A$1,MATCH($I$7,'ANP ESTADO'!B:B,0)+MATCH($H$10,OFFSET('ANP ESTADO'!$A$1,MATCH($I$7,'ANP ESTADO'!B:B,0),0,100000,1),0),2,100000,2),2,FALSE) -> 2.235142226 | K18: =VLOOKUP($H$10,OFFSET('ANP REGIÃO'!$A$9,MATCH('Transporte EAI'!$I$7,'ANP REGIÃO'!A:A,0),1,10000,10000),MATCH('Transporte EAI'!AH18,'ANP REGIÃO'!$B$8:$G$8,0),FALSE) -> 2.329044365 | L18: 2235.142226 | M18: 617.62 | N18: 2852.762226 | O18: 2575 | P18: 0 | Q18: 678.41 | S18: 198.58 | T18: 148.91 | U18: 926.42 | V18: 1753.74 | W18: 335.4 | X18: =EVEN((' CONSUMO DE MAT. B TOTAL'!$P$13+' CONSUMO DE MAT. B TOTAL'!P21)*2/28)*W18/(' CONSUMO DE MAT. B TOTAL'!$P$13+' CONSUMO DE MAT. B TOTAL'!P21) -> 27.37959184 | Y18: 1781.119592 | Z18: 2852.762226 | AA18: 4633.881817 | AC18: 4633.881817 | AD18: 1781.119592 | AE18: 2852.762226 | AH18: SUDESTE
B19: 5516.313643 | C19: 7 | E19: ARAPETRO DISTRIBUIDORA DE PETRÓLEO LTDA. | F19: RUA 04, S/N° LOTES 17 A 20. - DISTRITO INDUSTRIAL 1/8 - CEP:78600-000 | G19: Mato grosso | H19: BARRA DO GARCAS - MT | I19: Natal - RN | J19: =VLOOKUP(G19,OFFSET('ANP ESTADO'!$A$1,MATCH($I$7,'ANP ESTADO'!B:B,0)+MATCH($H$10,OFFSET('ANP ESTADO'!$A$1,MATCH($I$7,'ANP ESTADO'!B:B,0),0,100000,1),0),2,100000,2),2,FALSE) -> 2.735658541 | K19: =VLOOKUP($H$10,OFFSET('ANP REGIÃO'!$A$9,MATCH('Transporte EAI'!$I$7,'ANP REGIÃO'!A:A,0),1,10000,10000),MATCH('Transporte EAI'!AH19,'ANP REGIÃO'!$B$8:$G$8,0),FALSE) -> 2.680425729 | L19: =IF(AND(J19="-",K19="-"),"",IF(AND(J19<>0,K19="-"),J19*1000,IF(AND(J19="-",K19<>0),K19*1000,IF(AND(J19<>0,K19<>0),J19*1000,"")))) -> 2735.658541 | M19: =ROUND(((L19/(1-$O$7-$O$8-$O$9))-L19),2) -> 755.93 | N19: 3491.588541 | O19: 2975 | P19: 0 | Q19: 779.61 | S19: 224.18 | T19: 171.13 | U19: 1064.63 | V19: 2015.37 | W19: 114.6 | X19: =EVEN((' CONSUMO DE MAT. B TOTAL'!$P$13+' CONSUMO DE MAT. B TOTAL'!P22)*2/28)*W19/(' CONSUMO DE MAT. B TOTAL'!$P$13+' CONSUMO DE MAT. B TOTAL'!P22) -> 9.355102041 | Y19: 2024.725102 | Z19: 3491.588541 | AA19: 5516.313643 | AH19: CENTRO-OESTE
B20: 4519.876919 | C20: 8 | E20: DISTRIBUIDORA BRASILEIRA DE ASFALTO SA - DISBRAL | F20: SÃO JUDAS TADEU, 288 - DISTRITO INDUSTRIAL - CEP:32450-000 | G20: Minas Gerais | H20: SARZEDO - MG | I20: Natal - RN | J20: =VLOOKUP(G20,OFFSET('ANP ESTADO'!$A$1,MATCH($I$7,'ANP ESTADO'!B:B,0)+MATCH($H$10,OFFSET('ANP ESTADO'!$A$1,MATCH($I$7,'ANP ESTADO'!B:B,0),0,100000,1),0),2,100000,2),2,FALSE) -> 2.235142226 | K20: =VLOOKUP($H$10,OFFSET('ANP REGIÃO'!$A$9,MATCH('Transporte EAI'!$I$7,'ANP REGIÃO'!A:A,0),1,10000,10000),MATCH('Transporte EAI'!AH20,'ANP REGIÃO'!$B$8:$G$8,0),FALSE) -> 2.329044365 | L20: 2235.142226 | M20: 617.62 | N20: 2852.762226 | O20: 2379 | P20: 0 | Q20: 628.83 | S20: 186.03 | T20: 138.03 | U20: 858.72 | V20: 1625.58 | W20: 508.8 | X20: =EVEN((' CONSUMO DE MAT. B TOTAL'!$P$13+' CONSUMO DE MAT. B TOTAL'!P23)*2/28)*W20/(' CONSUMO DE MAT. B TOTAL'!$P$13+' CONSUMO DE MAT. B TOTAL'!P23) -> 41.53469388 | Y20: 1667.114694 | Z20: 2852.762226 | AA20: 4519.876919 | AH20: SUDESTE
B21: 5018.191265 | C21: 9 | E21: 'INDÚSTRIA NACIONAL DE ASFALTOS LTDA. | F21: INDÚSTRIA NACIONAL DE ASFALTOS LTDA - CEP:77053-080 | G21: Tocantins | H21: PALMAS - TO | I21: Natal - RN | J21: =VLOOKUP(G21,OFFSET('ANP ESTADO'!$A$1,MATCH($I$7,'ANP ESTADO'!B:B,0)+MATCH($H$10,OFFSET('ANP ESTADO'!$A$1,MATCH($I$7,'ANP ESTADO'!B:B,0),0,100000,1),0),2,100000,2),2,FALSE) -> - | K21: =VLOOKUP($H$10,OFFSET('ANP REGIÃO'!$A$9,MATCH('Transporte EAI'!$I$7,'ANP REGIÃO'!A:A,0),1,10000,10000),MATCH('Transporte EAI'!AH21,'ANP REGIÃO'!$B$8:$G$8,0),FALSE) -> 2.827221265 | L21: 2827.221265 | M21: 781.23 | N21: 3608.451265 | O21: 2049 | P21: 0 | Q21: 545.34 | S21: 164.91 | T21: 119.7 | U21: 744.7 | V21: 1409.74 | W21: 0 | X21: =EVEN((' CONSUMO DE MAT. B TOTAL'!$P$13+' CONSUMO DE MAT. B TOTAL'!P24)*2/28)*W21/(' CONSUMO DE MAT. B TOTAL'!$P$13+' CONSUMO DE MAT. B TOTAL'!P24) -> 0 | Y21: 1409.74 | Z21: 3608.451265 | AA21: 5018.191265 | AH21: NORTE
B22: 5164.714373 | C22: 10 | E22: 'NTA - NOVAS TÉCNICAS DE ASFALTOS S/A | F22: RUA SOFIA ATAURI FADIN, 150 SALA A - B. SANTA TEREZINHA - CEP:13140-000 | G22: São Paulo | H22: PAULINIA - SP | I22: Natal - RN | J22: =VLOOKUP(G22,OFFSET('ANP ESTADO'!$A$1,MATCH($I$7,'ANP ESTADO'!B:B,0)+MATCH($H$10,OFFSET('ANP ESTADO'!$A$1,MATCH($I$7,'ANP ESTADO'!B:B,0),0,100000,1),0),2,100000,2),2,FALSE) -> 2.456344578 | K22: =VLOOKUP($H$10,OFFSET('ANP REGIÃO'!$A$9,MATCH('Transporte EAI'!$I$7,'ANP REGIÃO'!A:A,0),1,10000,10000),MATCH('Transporte EAI'!AH22,'ANP REGIÃO'!$B$8:$G$8,0),FALSE) -> 2.329044365 | L22: 2456.344578 | M22: =ROUND(((L22/(1-$O$7-$O$8-$O$9))-L22),2) -> 678.75 | N22: 3135.094578 | O22: 2941 | P22: 0 | Q22: 771.01 | S22: 222 | T22: 169.24 | U22: 1052.88 | V22: 1993.13 | W22: 447 | X22: =EVEN((' CONSUMO DE MAT. B TOTAL'!$P$13+' CONSUMO DE MAT. B TOTAL'!P25)*2/28)*W22/(' CONSUMO DE MAT. B TOTAL'!$P$13+' CONSUMO DE MAT. B TOTAL'!P25) -> 36.48979592 | Y22: 2029.619796 | Z22: 3135.094578 | AA22: 5164.714373 | AC22: 5164.714373 | AD22: 2029.619796 | AE22: 3135.094578 | AH22: SUDESTE
B23: 5132.84621 | C23: 11 | E23: COMPANHIA BRASILEIRA DE ASFALTOS DA AMAZÔNIA - IMPORTAÇÃO E EXPORTAÇÃO | F23: Avenida Doutor Olindo Dártora 2451, Galpão 02, Morro Grande - CEP:07726-555 | G23: São Paulo | H23: CAIEIRAS - SP | I23: Natal - RN | J23: =VLOOKUP(G23,OFFSET('ANP ESTADO'!$A$1,MATCH($I$7,'ANP ESTADO'!B:B,0)+MATCH($H$10,OFFSET('ANP ESTADO'!$A$1,MATCH($I$7,'ANP ESTADO'!B:B,0),0,100000,1),0),2,100000,2),2,FALSE) -> 2.456344578 | K23: =VLOOKUP($H$10,OFFSET('ANP REGIÃO'!$A$9,MATCH('Transporte EAI'!$I$7,'ANP REGIÃO'!A:A,0),1,10000,10000),MATCH('Transporte EAI'!AH23,'ANP REGIÃO'!$B$8:$G$8,0),FALSE) -> 2.329044365 | L23: 2456.344578 | M23: =ROUND(((L23/(1-$O$7-$O$8-$O$9))-L23),2) -> 678.75 | N23: 3135.094578 | O23: 2910 | P23: 0 | Q23: 763.17 | S23: 220.02 | T23: 167.52 | U23: 1042.18 | V23: 1972.87 | W23: 304.8 | X23: =EVEN((' CONSUMO DE MAT. B TOTAL'!$P$13+' CONSUMO DE MAT. B TOTAL'!P26)*2/28)*W23/(' CONSUMO DE MAT. B TOTAL'!$P$13+' CONSUMO DE MAT. B TOTAL'!P26) -> 24.88163265 | Y23: 1997.751633 | Z23: 3135.094578 | AA23: 5132.84621 | AH23: SUDESTE
B24: 5796.174577 | C24: 12 | E24: BETUNEL INDÚSTRIA E COMÉRCIO LTDA. | F24: R 16 , 82, Vila Nova Campo Grande - CEP:79.103-834 | G24: Mato Grosso do Sul | H24: CAMPO GRANDE - MS | I24: Natal - RN | J24: =VLOOKUP(G24,OFFSET('ANP ESTADO'!$A$1,MATCH($I$7,'ANP ESTADO'!B:B,0)+MATCH($H$10,OFFSET('ANP ESTADO'!$A$1,MATCH($I$7,'ANP ESTADO'!B:B,0),0,100000,1),0),2,100000,2),2,FALSE) -> 2.699964985 | K24: =VLOOKUP($H$10,OFFSET('ANP REGIÃO'!$A$9,MATCH('Transporte EAI'!$I$7,'ANP REGIÃO'!A:A,0),1,10000,10000),MATCH('Transporte EAI'!AH24,'ANP REGIÃO'!$B$8:$G$8,0),FALSE) -> 2.680425729 | L24: 2699.964985 | M24: =ROUND(((L24/(1-$O$7-$O$8-$O$9))-L24),2) -> 746.07 | N24: 3446.034985 | O24: 3445 | P24: 0 | Q24: 898.52 | S24: 254.26 | T24: 197.23 | U24: 1227.01 | V24: 2322.76 | W24: 335.4 | X24: =EVEN((' CONSUMO DE MAT. B TOTAL'!$P$13+' CONSUMO DE MAT. B TOTAL'!P27)*2/28)*W24/(' CONSUMO DE MAT. B TOTAL'!$P$13+' CONSUMO DE MAT. B TOTAL'!P27) -> 27.37959184 | Y24: 2350.139592 | Z24: 3446.034985 | AA24: 5796.174577 | AH24: CENTRO-OESTE
B25: 5868.701806 | C25: 13 | E25: CENTRO OESTE ASFALTOS LTDA. | F25: RUA N, S/N.º LOTES 39/43 E LOTES 129/133 - DISTRITO INDUSTRIAL - CEP:78098-400 | G25: Mato Grosso | H25: CUIABA - MT | I25: Natal - RN | J25: =VLOOKUP(G25,OFFSET('ANP ESTADO'!$A$1,MATCH($I$7,'ANP ESTADO'!B:B,0)+MATCH($H$10,OFFSET('ANP ESTADO'!$A$1,MATCH($I$7,'ANP ESTADO'!B:B,0),0,100000,1),0),2,100000,2),2,FALSE) -> 2.735658541 | K25: =VLOOKUP($H$10,OFFSET('ANP REGIÃO'!$A$9,MATCH('Transporte EAI'!$I$7,'ANP REGIÃO'!A:A,0),1,10000,10000),MATCH('Transporte EAI'!AH25,'ANP REGIÃO'!$B$8:$G$8,0),FALSE) -> 2.680425729 | L25: 2735.658541 | M25: 755.93 | N25: 3491.588541 | O25: 3496 | P25: 0 | Q25: 911.43 | S25: 257.53 | T25: 200.07 | U25: 1244.65 | V25: 2356.15 | W25: 256.8 | X25: =EVEN((' CONSUMO DE MAT. B TOTAL'!$P$13+' CONSUMO DE MAT. B TOTAL'!P28)*2/28)*W25/(' CONSUMO DE MAT. B TOTAL'!$P$13+' CONSUMO DE MAT. B TOTAL'!P28) -> 20.96326531 | Y25: 2377.113265 | Z25: 3491.588541 | AA25: 5868.701806 | AH25: CENTRO-OESTE
B26: 5863.441806 | C26: 14 | E26: BETUNEL INDÚSTRIA E COMÉRCIO LTDA. | F26: RUA N ESQUINA COM RUA X, S/N QD. IND. 7 L 01/08 - DIST. IND. - CEP:78015-285 | G26: Mato Grosso | H26: CUIABA - MT | I26: Natal - RN | J26: =VLOOKUP(G26,OFFSET('ANP ESTADO'!$A$1,MATCH($I$7,'ANP ESTADO'!B:B,0)+MATCH($H$10,OFFSET('ANP ESTADO'!$A$1,MATCH($I$7,'ANP ESTADO'!B:B,0),0,100000,1),0),2,100000,2),2,FALSE) -> 2.735658541 | K26: =VLOOKUP($H$10,OFFSET('ANP REGIÃO'!$A$9,MATCH('Transporte EAI'!$I$7,'ANP REGIÃO'!A:A,0),1,10000,10000),MATCH('Transporte EAI'!AH26,'ANP REGIÃO'!$B$8:$G$8,0),FALSE) -> 2.680425729 | L26: 2735.658541 | M26: 755.93 | N26: 3491.588541 | O26: 3488 | P26: 0 | Q26: 909.4 | S26: 257.02 | T26: 199.62 | U26: 1241.87 | V26: 2350.89 | W26: 256.8 | X26: =EVEN((' CONSUMO DE MAT. B TOTAL'!$P$13+' CONSUMO DE MAT. B TOTAL'!P29)*2/28)*W26/(' CONSUMO DE MAT. B TOTAL'!$P$13+' CONSUMO DE MAT. B TOTAL'!P29) -> 20.96326531 | Y26: 2371.853265 | Z26: 3491.588541 | AA26: 5863.441806 | AH26: CENTRO-OESTE
B27: 5868.701806 | C27: 15 | E27: EMAM - EMULSÕES E TRANSPORTES LTDA. | F27: RODOVIA DOS IMIGRANTES, S/Nº KM 8,6 - - CEP:60035-351 | G27: Mato Grosso | H27: VARZEA GRANDE - MT | I27: Natal - RN | J27: =VLOOKUP(G27,OFFSET('ANP ESTADO'!$A$1,MATCH($I$7,'ANP ESTADO'!B:B,0)+MATCH($H$10,OFFSET('ANP ESTADO'!$A$1,MATCH($I$7,'ANP ESTADO'!B:B,0),0,100000,1),0),2,100000,2),2,FALSE) -> 2.735658541 | K27: =VLOOKUP($H$10,OFFSET('ANP REGIÃO'!$A$9,MATCH('Transporte EAI'!$I$7,'ANP REGIÃO'!A:A,0),1,10000,10000),MATCH('Transporte EAI'!AH27,'ANP REGIÃO'!$B$8:$G$8,0),FALSE) -> 2.680425729 | L27: 2735.658541 | M27: 755.93 | N27: 3491.588541 | O27: 3496 | P27: 0 | Q27: 911.43 | S27: 257.53 | T27: 200.07 | U27: 1244.65 | V27: 2356.15 | W27: 256.8 | X27: =EVEN((' CONSUMO DE MAT. B TOTAL'!$P$13+' CONSUMO DE MAT. B TOTAL'!P30)*2/28)*W27/(' CONSUMO DE MAT. B TOTAL'!$P$13+' CONSUMO DE MAT. B TOTAL'!P30) -> 20.96326531 | Y27: 2377.113265 | Z27: 3491.588541 | AA27: 5868.701806 | AC27: 5868.701806 | AD27: 2377.113265 | AE27: 3491.588541 | AH27: CENTRO-OESTE
B28: 5134.702537 | C28: 16 | E28: VIAPOL LTDA. | F28: VITO ARDITO, 6401 KM 118,5 - JARDIM CAMPO GRANDE - CEP:12282-535 | G28: São Paulo | H28: CACAPAVA - SP | I28: Natal - RN | J28: =VLOOKUP(G28,OFFSET('ANP ESTADO'!$A$1,MATCH($I$7,'ANP ESTADO'!B:B,0)+MATCH($H$10,OFFSET('ANP ESTADO'!$A$1,MATCH($I$7,'ANP ESTADO'!B:B,0),0,100000,1),0),2,100000,2),2,FALSE) -> 2.456344578 | K28: =VLOOKUP($H$10,OFFSET('ANP REGIÃO'!$A$9,MATCH('Transporte EAI'!$I$7,'ANP REGIÃO'!A:A,0),1,10000,10000),MATCH('Transporte EAI'!AH28,'ANP REGIÃO'!$B$8:$G$8,0),FALSE) -> 2.329044365 | L28: 2456.344578 | M28: 678.75 | N28: 3135.094578 | O28: 2870 | P28: 0 | Q28: 753.05 | S28: 217.46 | T28: 165.3 | U28: 1028.36 | V28: 1946.71 | W28: 648 | X28: =EVEN((' CONSUMO DE MAT. B TOTAL'!$P$13+' CONSUMO DE MAT. B TOTAL'!P31)*2/28)*W28/(' CONSUMO DE MAT. B TOTAL'!$P$13+' CONSUMO DE MAT. B TOTAL'!P31) -> 52.89795918 | Y28: 1999.607959 | Z28: 3135.094578 | AA28: 5134.702537 | AC28: 5134.702537 | AD28: 1999.607959 | AE28: 3135.094578 | AH28: SUDESTE
B29: 4774.375182 | C29: 17 | E29: STRATURA ASFALTOS S/A | F29: RUA LUIS DE CAMÕES, 26 - CAMPOS ELÍSEOS - CEP:25225-030 | G29: Rio de Janeiro | H29: DUQUE DE CAXIAS - RJ | I29: Natal - RN | J29: =VLOOKUP(G29,OFFSET('ANP ESTADO'!$A$1,MATCH($I$7,'ANP ESTADO'!B:B,0)+MATCH($H$10,OFFSET('ANP ESTADO'!$A$1,MATCH($I$7,'ANP ESTADO'!B:B,0),0,100000,1),0),2,100000,2),2,FALSE) -> - | K29: =VLOOKUP($H$10,OFFSET('ANP REGIÃO'!$A$9,MATCH('Transporte EAI'!$I$7,'ANP REGIÃO'!A:A,0),1,10000,10000),MATCH('Transporte EAI'!AH29,'ANP REGIÃO'!$B$8:$G$8,0),FALSE) -> 2.329044365 | L29: 2329.044365 | M29: 643.57 | N29: 2972.614365 | O29: 2578 | P29: 0 | Q29: 679.17 | S29: 198.77 | T29: 149.08 | U29: 927.47 | V29: 1755.72 | W29: 564 | X29: =EVEN((' CONSUMO DE MAT. B TOTAL'!$P$13+' CONSUMO DE MAT. B TOTAL'!P32)*2/28)*W29/(' CONSUMO DE MAT. B TOTAL'!$P$13+' CONSUMO DE MAT. B TOTAL'!P32) -> 46.04081633 | Y29: 1801.760816 | Z29: 2972.614365 | AA29: 4774.375182 | AC29: 4774.375182 | AD29: 1801.760816 | AE29: 2972.614365 | AH29: SUDESTE
B30: 4784.205182 | C30: 18 | E30: PROBITEC - PRODUTOS BETUMINOSOS E TECNOLOGIA DE APLICAÇÃO LTDA. | F30: AVENIDA CANAL DA PAVUNA, 620 - PAVUNA - CEP:21535-630 | G30: Rio de Janeiro | H30: RIO DE JANEIRO - RJ | I30: Natal - RN | J30: =VLOOKUP(G30,OFFSET('ANP ESTADO'!$A$1,MATCH($I$7,'ANP ESTADO'!B:B,0)+MATCH($H$10,OFFSET('ANP ESTADO'!$A$1,MATCH($I$7,'ANP ESTADO'!B:B,0),0,100000,1),0),2,100000,2),2,FALSE) -> - | K30: =VLOOKUP($H$10,OFFSET('ANP REGIÃO'!$A$9,MATCH('Transporte EAI'!$I$7,'ANP REGIÃO'!A:A,0),1,10000,10000),MATCH('Transporte EAI'!AH30,'ANP REGIÃO'!$B$8:$G$8,0),FALSE) -> 2.329044365 | L30: 2329.044365 | M30: 643.57 | N30: 2972.614365 | O30: 2593 | P30: 0 | Q30: 682.97 | S30: 199.73 | T30: 149.92 | U30: 932.66 | V30: 1765.55 | W30: 564 | X30: =EVEN((' CONSUMO DE MAT. B TOTAL'!$P$13+' CONSUMO DE MAT. B TOTAL'!P33)*2/28)*W30/(' CONSUMO DE MAT. B TOTAL'!$P$13+' CONSUMO DE MAT. B TOTAL'!P33) -> 46.04081633 | Y30: 1811.590816 | Z30: 2972.614365 | AA30: 4784.205182 | AC30: 4784.205182 | AD30: 1811.590816 | AE30: 2972.614365 | AH30: SUDESTE
B31: 5762.414494 | C31: 19 | E31: CASA DO ASFALTO DISTRIBUIDORA, INDÚSTRIA E COMÉRCIO DE ASFALTO LTDA. | F31: BR 376, PARQUE INDUSTRIAL, S/N LOTE 6/7/7-A-3-1 - GL.PATR.MARIALVA - CEP:86990-000 | G31: Paraná | H31: MARIALVA - PR | I31: Natal - RN | J31: =VLOOKUP(G31,OFFSET('ANP ESTADO'!$A$1,MATCH($I$7,'ANP ESTADO'!B:B,0)+MATCH($H$10,OFFSET('ANP ESTADO'!$A$1,MATCH($I$7,'ANP ESTADO'!B:B,0),0,100000,1),0),2,100000,2),2,FALSE) -> 2.711104698 | K31: =VLOOKUP($H$10,OFFSET('ANP REGIÃO'!$A$9,MATCH('Transporte EAI'!$I$7,'ANP REGIÃO'!A:A,0),1,10000,10000),MATCH('Transporte EAI'!AH31,'ANP REGIÃO'!$B$8:$G$8,0),FALSE) -> 2.728540168 | L31: 2711.104698 | M31: 749.14 | N31: 3460.244698 | O31: 3299 | P31: 0 | Q31: 861.59 | S31: 244.92 | T31: 189.12 | U31: 1176.57 | V31: 2227.28 | W31: 917.4 | X31: =EVEN((' CONSUMO DE MAT. B TOTAL'!$P$13+' CONSUMO DE MAT. B TOTAL'!P34)*2/28)*W31/(' CONSUMO DE MAT. B TOTAL'!$P$13+' CONSUMO DE MAT. B TOTAL'!P34) -> 74.88979592 | Y31: 2302.169796 | Z31: 3460.244698 | AA31: 5762.414494 | AC31: 5762.414494 | AD31: 2302.169796 | AE31: 3460.244698 | AH31: SUL
B32: 5793.261637 | C32: 20 | E32: PETROBRAS DISTRIBUIDORA S.A. | F32: RUA MAQUINISTA ELEODORO JACINTO, 100 - OFICINAS - CEP:84045-170 | G32: Paraná | H32: PONTA GROSSA - PR | I32: Natal - RN | J32: =VLOOKUP(G32,OFFSET('ANP ESTADO'!$A$1,MATCH($I$7,'ANP ESTADO'!B:B,0)+MATCH($H$10,OFFSET('ANP ESTADO'!$A$1,MATCH($I$7,'ANP ESTADO'!B:B,0),0,100000,1),0),2,100000,2),2,FALSE) -> 2.711104698 | K32: =VLOOKUP($H$10,OFFSET('ANP REGIÃO'!$A$9,MATCH('Transporte EAI'!$I$7,'ANP REGIÃO'!A:A,0),1,10000,10000),MATCH('Transporte EAI'!AH32,'ANP REGIÃO'!$B$8:$G$8,0),FALSE) -> 2.728540168 | L32: 2711.104698 | M32: 749.14 | N32: 3460.244698 | O32: 3343 | P32: 0 | Q32: 872.72 | S32: 247.74 | T32: 191.57 | U32: 1191.78 | V32: 2256.07 | W32: 942.6 | X32: =EVEN((' CONSUMO DE MAT. B TOTAL'!$P$13+' CONSUMO DE MAT. B TOTAL'!P35)*2/28)*W32/(' CONSUMO DE MAT. B TOTAL'!$P$13+' CONSUMO DE MAT. B TOTAL'!P35) -> 76.94693878 | Y32: 2333.016939 | Z32: 3460.244698 | AA32: 5793.261637 | AC32: 5793.261637 | AD32: 2333.016939 | AE32: 3460.244698 | AH32: SUL
D42: Acre
D43: Alagoas
D44: Amapá
D45: Amazonas
D46: Bahia
D47: Ceará
D48: Distrito Federal
D49: Espírito Santo
D50: Goiás
D51: Maranhão
D52: Mato Grosso
D53: Mato Grosso do Sul
D54: Minas Gerais
D55: Pará
D56: Paraíba
D57: Paraná
D58: Pernambuco
D59: Piauí
D60: Rio de Janeiro
D61: Rio Grande do Norte
D62: Rio Grande do Sul
D63: Rondônia
D64: Roraima
D65: Santa Catarina
D66: São Paulo
D67: Sergipe
D68: Tocantins
D72: ASFALTOS DILUÍDOS CM-30
D73: ASFALTOS DILUÍDOS CM-70
D74: ASFALTOS DILUÍDOS CR-250
D75: ASFALTOS DILUÍDOS CR-70
D76: CAP MODIFICADO POR BORRACHA DE PNEU AB22
D77: CAP MODIFICADO POR BORRACHA DE PNEU AB8
D78: CAP MODIFICADO POR POLÍMERO 55-75-E
D79: CAP MODIFICADO POR POLÍMERO 60-85-E
D80: CAP MODIFICADO POR POLÍMERO 65-90-E
D81: CIMENTOS ASFÁLTICOS CAP-150-200
D82: CIMENTOS ASFÁLTICOS CAP-30-45
D83: CIMENTOS ASFÁLTICOS CAP-50-70
D84: CIMENTOS ASFÁLTICOS CAP-85-100
D85: EMULSÃO ASFÁLTICA CATIÔNICA DE RUPTURA CONTROLADA PARA SERVIÇO DE LAMA ASFÁLTICA
D86: EMULSÃO ASFÁLTICA DE RUPTURA LENTA CATIÔNICA PARA SERVIÇO DE LAMA ASFÁLTICA
D87: EMULSÃO ASFÁLTICA DE RUPTURA LENTA DE CARGA NEUTRA PARA SERVIÇO DE LAMA ASFÁLTICA
D88: EMULSÃO ASFÁLTICA PARA SERVIÇO DE IMPRIMAÇÃO
D89: EMULSÕES ASF. MOD. POR POLÍMEROS RC1C-E
D90: EMULSÕES ASF. MOD. POR POLÍMEROS RL1C-E
D91: EMULSÕES ASF. MOD. POR POLÍMEROS RM1C-E
D92: EMULSÕES ASF. MOD. POR POLÍMEROS RR1C-E
D93: EMULSÕES ASF. MOD. POR POLÍMEROS RR2C-E
D94: EMULSÕES ASFÁLTICAS RL-1C
D95: EMULSÕES ASFÁLTICAS RM-1C
D96: EMULSÕES ASFÁLTICAS RM-2C
D97: EMULSÕES ASFÁLTICAS RR-1C
D98: EMULSÕES ASFÁLTICAS RR-2C

Sheet Transporte RR-2C
C2: MEMÓRIA DE CÁLCULO
C7: REAJUSTE | F7: TIPOLOGIA DO MATERIAL | I7: EMULSÕES ASFÁLTICAS RR-2C | M7: IMPOSTOS | N7: COFINS | O7: 0.0065 | P7: 0.0065
G8: ÍNDICE DE PAVIMENTAÇÃO DNIT | H8: 2014-07-01 | I8: ÍNDICE INICIAL | J8: 270.237 | N8: PIS | O8: 0.03 | P8: 0.03 | T8: LEGENDA | AC8: As empresas tributadas pelo Lucro Presumido pagam 0,65% de PIS e 3% de COFINS
H9: ='Transporte EAI'!H9 -> 2024-06-01 | I9: ÍNDICE FINAL | J9: ='Transporte EAI'!J9 -> 572.847 | N9: ICMS | O9: 0.18 | P9: 0.18 | Q9: =1-(O9/1) -> 0.82 | R9: =1-(P9/1) -> 0.82 | S9: =1-(Q9/1) -> 0.18 | T9: ENTRADA DE DADOS | AC9: As empresas tributadas pelo Lucro Real pagam 1,65% de PIS e 7,60% de COFINS
G10: Data ANP | H10: ='Transporte EAI'!H10 -> 2024-06-01
C11: DATA-BASE | D11: PRODUTOS | E11: LOCALIDADES | J11: CUSTO ANP (R$/Kg) | L11: CUSTO ANP | M11: IMPOSTOS DO PRODUTO | N11: CUSTO DO PRODUTO COM IMPOSTOS | O11: DMT's | P11: DMT'S FLUVIAL | Q11: CUSTO DO TRANSPORTE RODOVIA PAVIMENTADA | R11: CUSTO DO TRANSPORTE FLUVIAL | S11: CUSTO DO TRANSPORTE TOTAL | T11: ICMS | U11: ATUALIZAÇÃO DO CUSTO DE TRANSPORTE | V11: CUSTO DO TRANSPORTE RODOVIA PAVIMENTADA COM IMPOSTOS E ATUALIZAÇÃO MONETÁRIA | W11: PEDÁGIO | Y11: TOTAL TRANSPORTE | Z11: AQUISIÇÃO DO PRODUTO | AA11: TOTAL GERAL ( TRANSP + AQUISIÇÃO) | AC11: 1 | AD11: 2 | AE11: 3
C12: =H9 -> 2024-06-01 | E12: REFINARIAS | F12: ENDEREÇO | G12: ESTADO | H12: CIDADE | I12: DESTINO | J12: ESTADO | K12: REGIÃO | L12: R$/t | M12: R$/t | N12: R$/t | O12: KM | P12: KM | Q12: R$/t | R12: R$/t | S12: R$/t | T12: R$/t | U12: R$/t | V12: R$/t | W12: CUSTO | X12: R$/t | Y12: R$/t | Z12: R$/t | AA12: R$/t | AC12: TOTAL GERAL ( TRANSP + AQUISIÇÃO) | AD12: TOTAL TRANSPORTE | AE12: AQUISIÇÃO DO PRODUTO
B13: =AA13 -> 5613.533726 | C13: 1 | D13: =I7 -> EMULSÕES ASFÁLTICAS RR-2C | E13: 'CENTRO OESTE ASFALTOS LTDA. | F13: SETOR DE INFLAMÁVEIS, S/N TRECHO 02 - LOTE 1.100 - GUARÁ - CEP:71225-000 | G13: Distrito Federal | H13: BRASÍLIA - DF | I13: ='Transporte EAI'!I13 -> Natal - RN | J13: =VLOOKUP(G13,OFFSET('ANP ESTADO'!$A$1,MATCH($I$7,'ANP ESTADO'!B:B,0)+MATCH($H$10,OFFSET('ANP ESTADO'!$A$1,MATCH($I$7,'ANP ESTADO'!B:B,0),0,100000,1),0),2,100000,2),2,FALSE) -> - | K13: =VLOOKUP($H$10,OFFSET('ANP REGIÃO'!$A$9,MATCH('Transporte RR-2C'!$I$7,'ANP REGIÃO'!A:A,0),1,10000,10000),MATCH('Transporte RR-2C'!AH13,'ANP REGIÃO'!$B$8:$G$8,0),FALSE) -> 3.107045767 | L13: =IF(AND(J13="-",K13="-"),"",IF(AND(J13<>0,K13="-"),J13*1000,IF(AND(J13="-",K13<>0),K13*1000,IF(AND(J13<>0,K13<>0),J13*1000,"")))) -> 3107.045767 | M13: =ROUND(((L13/(1-$O$7-$O$8-$O$9))-L13),2) -> 858.55 | N13: =L13+M13 -> 3965.595767 | O13: ='Transporte EAI'!O13 -> 2405 | P13: ='Transporte EAI'!P13 -> 0 | Q13: =ROUND((26.939+0.253*O13),2) -> 635.4 | S13: =ROUND((26.939+0.253*Q13),2) -> 187.7 | T13: =TRUNC(Q13*($O$9/(1-$O$9)),2) -> 139.47 | U13: =TRUNC(IF($J$8="","",(($J$9-$J$8)/$J$8)*(Q13+T13)),2) -> 867.69 | V13: =Q13+T13+U13 -> 1642.56 | W13: ='Transporte EAI'!W13 -> 73.2 | X13: =EVEN((' CONSUMO DE MAT. B TOTAL'!$P$13+' CONSUMO DE MAT. B TOTAL'!P15)*2/28)*W13/(' CONSUMO DE MAT. B TOTAL'!$P$13+' CONSUMO DE MAT. B TOTAL'!P15) -> 5.377959184 | Y13: =IF(AND(Q13="",T13=""),"",V13+X13) -> 1647.937959 | Z13: =IF(OR(L13="",M13=""),"",L13+M13) -> 3965.595767 | AA13: =IF(OR(Y13="",Z13=""),"",Y13+Z13) -> 5613.533726 | AC13: =AA13 -> 5613.533726 | AD13: =Y13 -> 1647.937959 | AE13: =Z13 -> 3965.595767 | AH13: =IF(OR(G13=$D$58,G13=$D$59,G13=$D$61,G13=$D$67,G13=$D$51,G13=$D$47,G13=$D$43,G13=$D$56,G13=$D$46),"NORDESTE",IF(OR(G13=$D$42,G13=$D$44,G13=$D$45,G13=$D$55,G13=$D$63,G13=$D$64,G13=$D$68),"NORTE",IF(OR(G13=$D$48,G13=$D$50,G13=$D$52,G13=$D$53),"CENTRO-OESTE",IF(OR(G13=$D$66,G13=$D$60,G13=$D$54,G13=$D$49),"SUDESTE",IF(OR(G13=$D$65,G13=$D$57,G13=$D$62),"SUL",""))))) -> CENTRO-OESTE
B14: =AA14 -> 5158.163544 | C14: 2 | E14: STRATURA ASFALTOS S/A | F14: AVENIDA PRESIDENTE WILSON, 08 - JUNDIAÍ - CEP:75115-100 | G14: Goiás | H14: ANÁPOLIS - GO | I14: ='Transporte EAI'!I14 -> Natal - RN | J14: =VLOOKUP(G14,OFFSET('ANP ESTADO'!$A$1,MATCH($I$7,'ANP ESTADO'!B:B,0)+MATCH($H$10,OFFSET('ANP ESTADO'!$A$1,MATCH($I$7,'ANP ESTADO'!B:B,0),0,100000,1),0),2,100000,2),2,FALSE) -> 2.670778442 | K14: =VLOOKUP($H$10,OFFSET('ANP REGIÃO'!$A$9,MATCH('Transporte RR-2C'!$I$7,'ANP REGIÃO'!A:A,0),1,10000,10000),MATCH('Transporte RR-2C'!AH14,'ANP REGIÃO'!$B$8:$G$8,0),FALSE) -> 3.107045767 | L14: =IF(AND(J14="-",K14="-"),"",IF(AND(J14<>0,K14="-"),J14*1000,IF(AND(J14="-",K14<>0),K14*1000,IF(AND(J14<>0,K14<>0),J14*1000,"")))) -> 2670.778442 | M14: =ROUND(((L14/(1-$O$7-$O$8-$O$9))-L14),2) -> 738 | N14: =L14+M14 -> 3408.778442 | O14: ='Transporte EAI'!O14 -> 2554 | P14: ='Transporte EAI'!P14 -> 0 | Q14: =ROUND((26.939+0.253*O14),2) -> 673.1 | S14: 197.23 | T14: =TRUNC(Q14*($O$9/(1-$O$9)),2) -> 147.75 | U14: =TRUNC(IF($J$8="","",(($J$9-$J$8)/$J$8)*(Q14+T14)),2) -> 919.18 | V14: =Q14+T14+U14 -> 1740.03 | W14: ='Transporte EAI'!W14 -> 114.6 | X14: =EVEN((' CONSUMO DE MAT. B TOTAL'!$P$13+' CONSUMO DE MAT. B TOTAL'!P17)*2/28)*W14/(' CONSUMO DE MAT. B TOTAL'!$P$13+' CONSUMO DE MAT. B TOTAL'!P17) -> 9.355102041 | Y14: 1749.385102 | Z14: 3408.778442 | AA14: =IF(OR(Y14="",Z14=""),"",Y14+Z14) -> 5158.163544 | AC14: =AA14 -> 5158.163544 | AD14: =Y14 -> 1749.385102 | AE14: 3408.778442 | AH14: =IF(OR(G14=$D$58,G14=$D$59,G14=$D$61,G14=$D$67,G14=$D$51,G14=$D$47,G14=$D$43,G14=$D$56,G14=$D$46),"NORDESTE",IF(OR(G14=$D$42,G14=$D$44,G14=$D$45,G14=$D$55,G14=$D$63,G14=$D$64,G14=$D$68),"NORTE",IF(OR(G14=$D$48,G14=$D$50,G14=$D$52,G14=$D$53),"CENTRO-OESTE",IF(OR(G14=$D$66,G14=$D$60,G14=$D$54,G14=$D$49),"SUDESTE",IF(OR(G14=$D$65,G14=$D$57,G14=$D$62),"SUL",""))))) -> CENTRO-OESTE
B15: 5205.151503 | C15: 3 | E15: DISTRIBUIDORA BRASILEIRA DE ASFALTO SA - DISBRAL | F15: VIA PRIMARIA 8, S/N QD-18, MODS. 24/47 - DAIAG - CEP:74980-970 | G15: Goiás | H15: APARECIDA DE GOIANIA - GO | I15: ='Transporte EAI'!I15 -> Natal - RN | J15: =VLOOKUP(G15,OFFSET('ANP ESTADO'!$A$1,MATCH($I$7,'ANP ESTADO'!B:B,0)+MATCH($H$10,OFFSET('ANP ESTADO'!$A$1,MATCH($I$7,'ANP ESTADO'!B:B,0),0,100000,1),0),2,100000,2),2,FALSE) -> 2.670778442 | K15: =VLOOKUP($H$10,OFFSET('ANP REGIÃO'!$A$9,MATCH('Transporte RR-2C'!$I$7,'ANP REGIÃO'!A:A,0),1,10000,10000),MATCH('Transporte RR-2C'!AH15,'ANP REGIÃO'!$B$8:$G$8,0),FALSE) -> 3.107045767 | L15: 2670.778442 | M15: 738 | N15: 3408.778442 | O15: ='Transporte EAI'!O15 -> 2622 | P15: ='Transporte EAI'!P15 -> 0 | Q15: 690.31 | S15: 201.59 | T15: 151.53 | U15: 942.68 | V15: 1784.52 | W15: ='Transporte EAI'!W15 -> 145.2 | X15: =EVEN((' CONSUMO DE MAT. B TOTAL'!$P$13+' CONSUMO DE MAT. B TOTAL'!P18)*2/28)*W15/(' CONSUMO DE MAT. B TOTAL'!$P$13+' CONSUMO DE MAT. B TOTAL'!P18) -> 11.85306122 | Y15: 1796.373061 | Z15: 3408.778442 | AA15: 5205.151503 | AC15: 5205.151503 | AD15: 1796.373061 | AE15: 3408.778442 | AH15: CENTRO-OESTE
A16: 2403 | B16: 5205.903544 | C16: 4 | E16: INDÚSTRIA NACIONAL DE ASFALTOS LTDA. | F16: VIA PRIMEIRA E SEGUNDA 3, S/N.º LOTES 01 A 10 - DISTRITO AGROINDUSTRIAL - CEP:75370-000 | G16: Goiás | H16: GOIANIRA - GO | I16: ='Transporte EAI'!I16 -> Natal - RN | J16: =VLOOKUP(G16,OFFSET('ANP ESTADO'!$A$1,MATCH($I$7,'ANP ESTADO'!B:B,0)+MATCH($H$10,OFFSET('ANP ESTADO'!$A$1,MATCH($I$7,'ANP ESTADO'!B:B,0),0,100000,1),0),2,100000,2),2,FALSE) -> 2.670778442 | K16: =VLOOKUP($H$10,OFFSET('ANP REGIÃO'!$A$9,MATCH('Transporte RR-2C'!$I$7,'ANP REGIÃO'!A:A,0),1,10000,10000),MATCH('Transporte RR-2C'!AH16,'ANP REGIÃO'!$B$8:$G$8,0),FALSE) -> 3.107045767 | L16: 2670.778442 | M16: 738 | N16: 3408.778442 | O16: ='Transporte EAI'!O16 -> 2627 | P16: ='Transporte EAI'!P16 -> 0 | Q16: 691.57 | S16: 201.91 | T16: 151.8 | U16: 944.4 | V16: 1787.77 | W16: ='Transporte EAI'!W16 -> 114.6 | X16: =EVEN((' CONSUMO DE MAT. B TOTAL'!$P$13+' CONSUMO DE MAT. B TOTAL'!P19)*2/28)*W16/(' CONSUMO DE MAT. B TOTAL'!$P$13+' CONSUMO DE MAT. B TOTAL'!P19) -> 9.355102041 | Y16: 1797.125102 | Z16: 3408.778442 | AA16: 5205.903544 | AC16: 5205.903544 | AD16: 1797.125102 | AE16: 3408.778442 | AH16: CENTRO-OESTE
B17: 5060.466751 | C17: 5 | E17: STRATURA ASFALTOS S/A | F17: RUA VICTOR RODRIGUES RESENDE, 333 - DISTRITO IND. DE UBERLÂNDIA - CEP:38405-440 | G17: Minas Gerais | H17: UBERLANDIA - MG | I17: ='Transporte EAI'!I17 -> Natal - RN | J17: =VLOOKUP(G17,OFFSET('ANP ESTADO'!$A$1,MATCH($I$7,'ANP ESTADO'!B:B,0)+MATCH($H$10,OFFSET('ANP ESTADO'!$A$1,MATCH($I$7,'ANP ESTADO'!B:B,0),0,100000,1),0),2,100000,2),2,FALSE) -> 2.570877159 | K17: =VLOOKUP($H$10,OFFSET('ANP REGIÃO'!$A$9,MATCH('Transporte RR-2C'!$I$7,'ANP REGIÃO'!A:A,0),1,10000,10000),MATCH('Transporte RR-2C'!AH17,'ANP REGIÃO'!$B$8:$G$8,0),FALSE) -> 2.604679585 | L17: 2570.877159 | M17: 710.4 | N17: 3281.277159 | O17: ='Transporte EAI'!O17 -> 2572 | P17: ='Transporte EAI'!P17 -> 0 | Q17: 677.66 | S17: 198.39 | T17: 148.75 | U17: 925.4 | V17: 1751.81 | W17: ='Transporte EAI'!W17 -> 335.4 | X17: =EVEN((' CONSUMO DE MAT. B TOTAL'!$P$13+' CONSUMO DE MAT. B TOTAL'!P20)*2/28)*W17/(' CONSUMO DE MAT. B TOTAL'!$P$13+' CONSUMO DE MAT. B TOTAL'!P20) -> 27.37959184 | Y17: 1779.189592 | Z17: 3281.277159 | AA17: 5060.466751 | AC17: 5060.466751 | AD17: 1779.189592 | AE17: 3281.277159 | AH17: SUDESTE
B18: 5062.396751 | C18: 6 | E18: BETUNEL INDÚSTRIA E COMÉRCIO LTDA. | F18: RUA VICTOR RODRIGUES DE REZENDE, 185 - DISTRITO INDUSTRIAL - CEP:38402-334 | G18: Minas Gerais | H18: UBERLANDIA - MG | I18: ='Transporte EAI'!I18 -> Natal - RN | J18: =VLOOKUP(G18,OFFSET('ANP ESTADO'!$A$1,MATCH($I$7,'ANP ESTADO'!B:B,0)+MATCH($H$10,OFFSET('ANP ESTADO'!$A$1,MATCH($I$7,'ANP ESTADO'!B:B,0),0,100000,1),0),2,100000,2),2,FALSE) -> 2.570877159 | K18: =VLOOKUP($H$10,OFFSET('ANP REGIÃO'!$A$9,MATCH('Transporte RR-2C'!$I$7,'ANP REGIÃO'!A:A,0),1,10000,10000),MATCH('Transporte RR-2C'!AH18,'ANP REGIÃO'!$B$8:$G$8,0),FALSE) -> 2.604679585 | L18: 2570.877159 | M18: 710.4 | N18: 3281.277159 | O18: ='Transporte EAI'!O18 -> 2575 | P18: ='Transporte EAI'!P18 -> 0 | Q18: 678.41 | S18: 198.58 | T18: 148.91 | U18: 926.42 | V18: 1753.74 | W18: ='Transporte EAI'!W18 -> 335.4 | X18: =EVEN((' CONSUMO DE MAT. B TOTAL'!$P$13+' CONSUMO DE MAT. B TOTAL'!P21)*2/28)*W18/(' CONSUMO DE MAT. B TOTAL'!$P$13+' CONSUMO DE MAT. B TOTAL'!P21) -> 27.37959184 | Y18: 1781.119592 | Z18: 3281.277159 | AA18: 5062.396751 | AC18: 5062.396751 | AD18: 1781.119592 | AE18: 3281.277159 | AH18: SUDESTE
B19: 6283.290789 | C19: 7 | E19: ARAPETRO DISTRIBUIDORA DE PETRÓLEO LTDA. | F19: RUA 04, S/N° LOTES 17 A 20. - DISTRITO INDUSTRIAL 1/8 - CEP:78600-000 | G19: Mato grosso | H19: BARRA DO GARCAS - MT | I19: ='Transporte EAI'!I19 -> Natal - RN | J19: =VLOOKUP(G19,OFFSET('ANP ESTADO'!$A$1,MATCH($I$7,'ANP ESTADO'!B:B,0)+MATCH($H$10,OFFSET('ANP ESTADO'!$A$1,MATCH($I$7,'ANP ESTADO'!B:B,0),0,100000,1),0),2,100000,2),2,FALSE) -> 3.336585687 | K19: =VLOOKUP($H$10,OFFSET('ANP REGIÃO'!$A$9,MATCH('Transporte RR-2C'!$I$7,'ANP REGIÃO'!A:A,0),1,10000,10000),MATCH('Transporte RR-2C'!AH19,'ANP REGIÃO'!$B$8:$G$8,0),FALSE) -> 3.107045767 | L19: =IF(AND(J19="-",K19="-"),"",IF(AND(J19<>0,K19="-"),J19*1000,IF(AND(J19="-",K19<>0),K19*1000,IF(AND(J19<>0,K19<>0),J19*1000,"")))) -> 3336.585687 | M19: =ROUND(((L19/(1-$O$7-$O$8-$O$9))-L19),2) -> 921.98 | N19: 4258.565687 | O19: ='Transporte EAI'!O19 -> 2975 | P19: ='Transporte EAI'!P19 -> 0 | Q19: 779.61 | S19: 224.18 | T19: 171.13 | U19: 1064.63 | V19: 2015.37 | W19: ='Transporte EAI'!W19 -> 114.6 | X19: =EVEN((' CONSUMO DE MAT. B TOTAL'!$P$13+' CONSUMO DE MAT. B TOTAL'!P22)*2/28)*W19/(' CONSUMO DE MAT. B TOTAL'!$P$13+' CONSUMO DE MAT. B TOTAL'!P22) -> 9.355102041 | Y19: 2024.725102 | Z19: 4258.565687 | AA19: 6283.290789 | AH19: CENTRO-OESTE
B20: 4948.391853 | C20: 8 | E20: DISTRIBUIDORA BRASILEIRA DE ASFALTO SA - DISBRAL | F20: SÃO JUDAS TADEU, 288 - DISTRITO INDUSTRIAL - CEP:32450-000 | G20: Minas Gerais | H20: SARZEDO - MG | I20: ='Transporte EAI'!I20 -> Natal - RN | J20: =VLOOKUP(G20,OFFSET('ANP ESTADO'!$A$1,MATCH($I$7,'ANP ESTADO'!B:B,0)+MATCH($H$10,OFFSET('ANP ESTADO'!$A$1,MATCH($I$7,'ANP ESTADO'!B:B,0),0,100000,1),0),2,100000,2),2,FALSE) -> 2.570877159 | K20: =VLOOKUP($H$10,OFFSET('ANP REGIÃO'!$A$9,MATCH('Transporte RR-2C'!$I$7,'ANP REGIÃO'!A:A,0),1,10000,10000),MATCH('Transporte RR-2C'!AH20,'ANP REGIÃO'!$B$8:$G$8,0),FALSE) -> 2.604679585 | L20: 2570.877159 | M20: 710.4 | N20: 3281.277159 | O20: ='Transporte EAI'!O20 -> 2379 | P20: ='Transporte EAI'!P20 -> 0 | Q20: 628.83 | S20: 186.03 | T20: 138.03 | U20: 858.72 | V20: 1625.58 | W20: ='Transporte EAI'!W20 -> 508.8 | X20: =EVEN((' CONSUMO DE MAT. B TOTAL'!$P$13+' CONSUMO DE MAT. B TOTAL'!P23)*2/28)*W20/(' CONSUMO DE MAT. B TOTAL'!$P$13+' CONSUMO DE MAT. B TOTAL'!P23) -> 41.53469388 | Y20: 1667.114694 | Z20: 3281.277159 | AA20: 4948.391853 | AH20: SUDESTE
B21: 4748.951216 | C21: 9 | E21: 'INDÚSTRIA NACIONAL DE ASFALTOS LTDA. | F21: INDÚSTRIA NACIONAL DE ASFALTOS LTDA - CEP:77053-080 | G21: Tocantins | H21: PALMAS - TO | I21: ='Transporte EAI'!I21 -> Natal - RN | J21: =VLOOKUP(G21,OFFSET('ANP ESTADO'!$A$1,MATCH($I$7,'ANP ESTADO'!B:B,0)+MATCH($H$10,OFFSET('ANP ESTADO'!$A$1,MATCH($I$7,'ANP ESTADO'!B:B,0),0,100000,1),0),2,100000,2),2,FALSE) -> 2.616271216 | K21: =VLOOKUP($H$10,OFFSET('ANP REGIÃO'!$A$9,MATCH('Transporte RR-2C'!$I$7,'ANP REGIÃO'!A:A,0),1,10000,10000),MATCH('Transporte RR-2C'!AH21,'ANP REGIÃO'!$B$8:$G$8,0),FALSE) -> 3.025080833 | L21: 2616.271216 | M21: 722.94 | N21: 3339.211216 | O21: ='Transporte EAI'!O21 -> 2049 | P21: ='Transporte EAI'!P21 -> 0 | Q21: 545.34 | S21: 164.91 | T21: 119.7 | U21: =TRUNC(IF($J$8="","",(($J$9-$J$8)/$J$8)*(Q21+T21)),2) -> 744.7 | V21: 1409.74 | W21: ='Transporte EAI'!W21 -> 0 | X21: =EVEN((' CONSUMO DE MAT. B TOTAL'!$P$13+' CONSUMO DE MAT. B TOTAL'!P24)*2/28)*W21/(' CONSUMO DE MAT. B TOTAL'!$P$13+' CONSUMO DE MAT. B TOTAL'!P24) -> 0 | Y21: 1409.74 | Z21: 3339.211216 | AA21: 4748.951216 | AH21: NORTE
B22: 5364.963482 | C22: 10 | E22: 'NTA - NOVAS TÉCNICAS DE ASFALTOS S/A | F22: RUA SOFIA ATAURI FADIN, 150 SALA A - B. SANTA TEREZINHA - CEP:13140-000 | G22: São Paulo | H22: PAULINIA - SP | I22: ='Transporte EAI'!I22 -> Natal - RN | J22: =VLOOKUP(G22,OFFSET('ANP ESTADO'!$A$1,MATCH($I$7,'ANP ESTADO'!B:B,0)+MATCH($H$10,OFFSET('ANP ESTADO'!$A$1,MATCH($I$7,'ANP ESTADO'!B:B,0),0,100000,1),0),2,100000,2),2,FALSE) -> 2.613243687 | K22: =VLOOKUP($H$10,OFFSET('ANP REGIÃO'!$A$9,MATCH('Transporte RR-2C'!$I$7,'ANP REGIÃO'!A:A,0),1,10000,10000),MATCH('Transporte RR-2C'!AH22,'ANP REGIÃO'!$B$8:$G$8,0),FALSE) -> 2.604679585 | L22: 2613.243687 | M22: =ROUND(((L22/(1-$O$7-$O$8-$O$9))-L22),2) -> 722.1 | N22: 3335.343687 | O22: ='Transporte EAI'!O22 -> 2941 | P22: ='Transporte EAI'!P22 -> 0 | Q22: 771.01 | S22: 222 | T22: 169.24 | U22: 1052.88 | V22: 1993.13 | W22: ='Transporte EAI'!W22 -> 447 | X22: =EVEN((' CONSUMO DE MAT. B TOTAL'!$P$13+' CONSUMO DE MAT. B TOTAL'!P25)*2/28)*W22/(' CONSUMO DE MAT. B TOTAL'!$P$13+' CONSUMO DE MAT. B TOTAL'!P25) -> 36.48979592 | Y22: 2029.619796 | Z22: 3335.343687 | AA22: 5364.963482 | AC22: 5364.963482 | AD22: 2029.619796 | AE22: 3335.343687 | AH22: SUDESTE
B23: 5333.095319 | C23: 11 | E23: COMPANHIA BRASILEIRA DE ASFALTOS DA AMAZÔNIA - IMPORTAÇÃO E EXPORTAÇÃO | F23: Avenida Doutor Olindo Dártora 2451, Galpão 02, Morro Grande - CEP:07726-555 | G23: São Paulo | H23: CAIEIRAS - SP | I23: ='Transporte EAI'!I23 -> Natal - RN | J23: =VLOOKUP(G23,OFFSET('ANP ESTADO'!$A$1,MATCH($I$7,'ANP ESTADO'!B:B,0)+MATCH($H$10,OFFSET('ANP ESTADO'!$A$1,MATCH($I$7,'ANP ESTADO'!B:B,0),0,100000,1),0),2,100000,2),2,FALSE) -> 2.613243687 | K23: =VLOOKUP($H$10,OFFSET('ANP REGIÃO'!$A$9,MATCH('Transporte RR-2C'!$I$7,'ANP REGIÃO'!A:A,0),1,10000,10000),MATCH('Transporte RR-2C'!AH23,'ANP REGIÃO'!$B$8:$G$8,0),FALSE) -> 2.604679585 | L23: 2613.243687 | M23: =ROUND(((L23/(1-$O$7-$O$8-$O$9))-L23),2) -> 722.1 | N23: 3335.343687 | O23: ='Transporte EAI'!O23 -> 2910 | P23: ='Transporte EAI'!P23 -> 0 | Q23: 763.17 | S23: 220.02 | T23: 167.52 | U23: 1042.18 | V23: 1972.87 | W23: ='Transporte EAI'!W23 -> 304.8 | X23: =EVEN((' CONSUMO DE MAT. B TOTAL'!$P$13+' CONSUMO DE MAT. B TOTAL'!P26)*2/28)*W23/(' CONSUMO DE MAT. B TOTAL'!$P$13+' CONSUMO DE MAT. B TOTAL'!P26) -> 24.88163265 | Y23: 1997.751633 | Z23: 3335.343687 | AA23: 5333.095319 | AH23: SUDESTE
B24: 5885.108745 | C24: 12 | E24: BETUNEL INDÚSTRIA E COMÉRCIO LTDA. | F24: R 16 , 82, Vila Nova Campo Grande - CEP:79.103-834 | G24: Mato Grosso do Sul | H24: CAMPO GRANDE - MS | I24: ='Transporte EAI'!I24 -> Natal - RN | J24: =VLOOKUP(G24,OFFSET('ANP ESTADO'!$A$1,MATCH($I$7,'ANP ESTADO'!B:B,0)+MATCH($H$10,OFFSET('ANP ESTADO'!$A$1,MATCH($I$7,'ANP ESTADO'!B:B,0),0,100000,1),0),2,100000,2),2,FALSE) -> 2.769649153 | K24: =VLOOKUP($H$10,OFFSET('ANP REGIÃO'!$A$9,MATCH('Transporte RR-2C'!$I$7,'ANP REGIÃO'!A:A,0),1,10000,10000),MATCH('Transporte RR-2C'!AH24,'ANP REGIÃO'!$B$8:$G$8,0),FALSE) -> 3.107045767 | L24: 2769.649153 | M24: =ROUND(((L24/(1-$O$7-$O$8-$O$9))-L24),2) -> 765.32 | N24: 3534.969153 | O24: ='Transporte EAI'!O24 -> 3445 | P24: ='Transporte EAI'!P24 -> 0 | Q24: 898.52 | S24: 254.26 | T24: 197.23 | U24: 1227.01 | V24: 2322.76 | W24: ='Transporte EAI'!W24 -> 335.4 | X24: =EVEN((' CONSUMO DE MAT. B TOTAL'!$P$13+' CONSUMO DE MAT. B TOTAL'!P27)*2/28)*W24/(' CONSUMO DE MAT. B TOTAL'!$P$13+' CONSUMO DE MAT. B TOTAL'!P27) -> 27.37959184 | Y24: 2350.139592 | Z24: 3534.969153 | AA24: 5885.108745 | AH24: CENTRO-OESTE
B25: 6635.678952 | C25: 13 | E25: CENTRO OESTE ASFALTOS LTDA. | F25: RUA N, S/N.º LOTES 39/43 E LOTES 129/133 - DISTRITO INDUSTRIAL - CEP:78098-400 | G25: Mato Grosso | H25: CUIABA - MT | I25: ='Transporte EAI'!I25 -> Natal - RN | J25: =VLOOKUP(G25,OFFSET('ANP ESTADO'!$A$1,MATCH($I$7,'ANP ESTADO'!B:B,0)+MATCH($H$10,OFFSET('ANP ESTADO'!$A$1,MATCH($I$7,'ANP ESTADO'!B:B,0),0,100000,1),0),2,100000,2),2,FALSE) -> 3.336585687 | K25: =VLOOKUP($H$10,OFFSET('ANP REGIÃO'!$A$9,MATCH('Transporte RR-2C'!$I$7,'ANP REGIÃO'!A:A,0),1,10000,10000),MATCH('Transporte RR-2C'!AH25,'ANP REGIÃO'!$B$8:$G$8,0),FALSE) -> 3.107045767 | L25: 3336.585687 | M25: 921.98 | N25: 4258.565687 | O25: ='Transporte EAI'!O25 -> 3496 | P25: ='Transporte EAI'!P25 -> 0 | Q25: 911.43 | S25: 257.53 | T25: 200.07 | U25: 1244.65 | V25: 2356.15 | W25: ='Transporte EAI'!W25 -> 256.8 | X25: =EVEN((' CONSUMO DE MAT. B TOTAL'!$P$13+' CONSUMO DE MAT. B TOTAL'!P28)*2/28)*W25/(' CONSUMO DE MAT. B TOTAL'!$P$13+' CONSUMO DE MAT. B TOTAL'!P28) -> 20.96326531 | Y25: 2377.113265 | Z25: 4258.565687 | AA25: 6635.678952 | AH25: CENTRO-OESTE
B26: 6630.418952 | C26: 14 | E26: BETUNEL INDÚSTRIA E COMÉRCIO LTDA. | F26: RUA N ESQUINA COM RUA X, S/N QD. IND. 7 L 01/08 - DIST. IND. - CEP:78015-285 | G26: Mato Grosso | H26: CUIABA - MT | I26: ='Transporte EAI'!I26 -> Natal - RN | J26: =VLOOKUP(G26,OFFSET('ANP ESTADO'!$A$1,MATCH($I$7,'ANP ESTADO'!B:B,0)+MATCH($H$10,OFFSET('ANP ESTADO'!$A$1,MATCH($I$7,'ANP ESTADO'!B:B,0),0,100000,1),0),2,100000,2),2,FALSE) -> 3.336585687 | K26: =VLOOKUP($H$10,OFFSET('ANP REGIÃO'!$A$9,MATCH('Transporte RR-2C'!$I$7,'ANP REGIÃO'!A:A,0),1,10000,10000),MATCH('Transporte RR-2C'!AH26,'ANP REGIÃO'!$B$8:$G$8,0),FALSE) -> 3.107045767 | L26: 3336.585687 | M26: 921.98 | N26: 4258.565687 | O26: ='Transporte EAI'!O26 -> 3488 | P26: ='Transporte EAI'!P26 -> 0 | Q26: 909.4 | S26: 257.02 | T26: 199.62 | U26: 1241.87 | V26: 2350.89 | W26: ='Transporte EAI'!W26 -> 256.8 | X26: =EVEN((' CONSUMO DE MAT. B TOTAL'!$P$13+' CONSUMO DE MAT. B TOTAL'!P29)*2/28)*W26/(' CONSUMO DE MAT. B TOTAL'!$P$13+' CONSUMO DE MAT. B TOTAL'!P29) -> 20.96326531 | Y26: 2371.853265 | Z26: 4258.565687 | AA26: 6630.418952 | AH26: CENTRO-OESTE
B27: 6635.678952 | C27: 15 | E27: EMAM - EMULSÕES E TRANSPORTES LTDA. | F27: RODOVIA DOS IMIGRANTES, S/Nº KM 8,6 - - CEP:60035-351 | G27: Mato Grosso | H27: VARZEA GRANDE - MT | I27: ='Transporte EAI'!I27 -> Natal - RN | J27: =VLOOKUP(G27,OFFSET('ANP ESTADO'!$A$1,MATCH($I$7,'ANP ESTADO'!B:B,0)+MATCH($H$10,OFFSET('ANP ESTADO'!$A$1,MATCH($I$7,'ANP ESTADO'!B:B,0),0,100000,1),0),2,100000,2),2,FALSE) -> 3.336585687 | K27: =VLOOKUP($H$10,OFFSET('ANP REGIÃO'!$A$9,MATCH('Transporte RR-2C'!$I$7,'ANP REGIÃO'!A:A,0),1,10000,10000),MATCH('Transporte RR-2C'!AH27,'ANP REGIÃO'!$B$8:$G$8,0),FALSE) -> 3.107045767 | L27: 3336.585687 | M27: =ROUND(((L27/(1-$O$7-$O$8-$O$9))-L27),2) -> 921.98 | N27: 4258.565687 | O27: ='Transporte EAI'!O27 -> 3496 | P27: ='Transporte EAI'!P27 -> 0 | Q27: 911.43 | S27: 257.53 | T27: 200.07 | U27: 1244.65 | V27: 2356.15 | W27: ='Transporte EAI'!W27 -> 256.8 | X27: =EVEN((' CONSUMO DE MAT. B TOTAL'!$P$13+' CONSUMO DE MAT. B TOTAL'!P30)*2/28)*W27/(' CONSUMO DE MAT. B TOTAL'!$P$13+' CONSUMO DE MAT. B TOTAL'!P30) -> 20.96326531 | Y27: 2377.113265 | Z27: 4258.565687 | AA27: 6635.678952 | AC27: 6635.678952 | AD27: 2377.113265 | AE27: 4258.565687 | AH27: CENTRO-OESTE
B28: 5334.951646 | C28: 16 | E28: VIAPOL LTDA. | F28: VITO ARDITO, 6401 KM 118,5 - JARDIM CAMPO GRANDE - CEP:12282-535 | G28: São Paulo | H28: CACAPAVA - SP | I28: ='Transporte EAI'!I28 -> Natal - RN | J28: =VLOOKUP(G28,OFFSET('ANP ESTADO'!$A$1,MATCH($I$7,'ANP ESTADO'!B:B,0)+MATCH($H$10,OFFSET('ANP ESTADO'!$A$1,MATCH($I$7,'ANP ESTADO'!B:B,0),0,100000,1),0),2,100000,2),2,FALSE) -> 2.613243687 | K28: =VLOOKUP($H$10,OFFSET('ANP REGIÃO'!$A$9,MATCH('Transporte RR-2C'!$I$7,'ANP REGIÃO'!A:A,0),1,10000,10000),MATCH('Transporte RR-2C'!AH28,'ANP REGIÃO'!$B$8:$G$8,0),FALSE) -> 2.604679585 | L28: 2613.243687 | M28: 722.1 | N28: 3335.343687 | O28: ='Transporte EAI'!O28 -> 2870 | P28: ='Transporte EAI'!P28 -> 0 | Q28: 753.05 | S28: 217.46 | T28: 165.3 | U28: 1028.36 | V28: 1946.71 | W28: ='Transporte EAI'!W28 -> 648 | X28: =EVEN((' CONSUMO DE MAT. B TOTAL'!$P$13+' CONSUMO DE MAT. B TOTAL'!P31)*2/28)*W28/(' CONSUMO DE MAT. B TOTAL'!$P$13+' CONSUMO DE MAT. B TOTAL'!P31) -> 52.89795918 | Y28: 1999.607959 | Z28: 3335.343687 | AA28: 5334.951646 | AC28: 5334.951646 | AD28: 1999.607959 | AE28: 3335.343687 | AH28: SUDESTE
B29: 5126.180402 | C29: 17 | E29: STRATURA ASFALTOS S/A | F29: RUA LUIS DE CAMÕES, 26 - CAMPOS ELÍSEOS - CEP:25225-030 | G29: Rio de Janeiro | H29: DUQUE DE CAXIAS - RJ | I29: ='Transporte EAI'!I29 -> Natal - RN | J29: =VLOOKUP(G29,OFFSET('ANP ESTADO'!$A$1,MATCH($I$7,'ANP ESTADO'!B:B,0)+MATCH($H$10,OFFSET('ANP ESTADO'!$A$1,MATCH($I$7,'ANP ESTADO'!B:B,0),0,100000,1),0),2,100000,2),2,FALSE) -> - | K29: =VLOOKUP($H$10,OFFSET('ANP REGIÃO'!$A$9,MATCH('Transporte RR-2C'!$I$7,'ANP REGIÃO'!A:A,0),1,10000,10000),MATCH('Transporte RR-2C'!AH29,'ANP REGIÃO'!$B$8:$G$8,0),FALSE) -> 2.604679585 | L29: 2604.679585 | M29: 719.74 | N29: 3324.419585 | O29: ='Transporte EAI'!O29 -> 2578 | P29: ='Transporte EAI'!P29 -> 0 | Q29: 679.17 | S29: 198.77 | T29: 149.08 | U29: 927.47 | V29: 1755.72 | W29: ='Transporte EAI'!W29 -> 564 | X29: =EVEN((' CONSUMO DE MAT. B TOTAL'!$P$13+' CONSUMO DE MAT. B TOTAL'!P32)*2/28)*W29/(' CONSUMO DE MAT. B TOTAL'!$P$13+' CONSUMO DE MAT. B TOTAL'!P32) -> 46.04081633 | Y29: 1801.760816 | Z29: 3324.419585 | AA29: 5126.180402 | AC29: 5126.180402 | AD29: 1801.760816 | AE29: 3324.419585 | AH29: SUDESTE
B30: 5136.010402 | C30: 18 | E30: PROBITEC - PRODUTOS BETUMINOSOS E TECNOLOGIA DE APLICAÇÃO LTDA. | F30: AVENIDA CANAL DA PAVUNA, 620 - PAVUNA - CEP:21535-630 | G30: Rio de Janeiro | H30: RIO DE JANEIRO - RJ | I30: ='Transporte EAI'!I30 -> Natal - RN | J30: =VLOOKUP(G30,OFFSET('ANP ESTADO'!$A$1,MATCH($I$7,'ANP ESTADO'!B:B,0)+MATCH($H$10,OFFSET('ANP ESTADO'!$A$1,MATCH($I$7,'ANP ESTADO'!B:B,0),0,100000,1),0),2,100000,2),2,FALSE) -> - | K30: =VLOOKUP($H$10,OFFSET('ANP REGIÃO'!$A$9,MATCH('Transporte RR-2C'!$I$7,'ANP REGIÃO'!A:A,0),1,10000,10000),MATCH('Transporte RR-2C'!AH30,'ANP REGIÃO'!$B$8:$G$8,0),FALSE) -> 2.604679585 | L30: 2604.679585 | M30: 719.74 | N30: 3324.419585 | O30: ='Transporte EAI'!O30 -> 2593 | P30: ='Transporte EAI'!P30 -> 0 | Q30: 682.97 | S30: 199.73 | T30: 149.92 | U30: 932.66 | V30: 1765.55 | W30: ='Transporte EAI'!W30 -> 564 | X30: =EVEN((' CONSUMO DE MAT. B TOTAL'!$P$13+' CONSUMO DE MAT. B TOTAL'!P33)*2/28)*W30/(' CONSUMO DE MAT. B TOTAL'!$P$13+' CONSUMO DE MAT. B TOTAL'!P33) -> 46.04081633 | Y30: 1811.590816 | Z30: 3324.419585 | AA30: 5136.010402 | AC30: 5136.010402 | AD30: 1811.590816 | AE30: 3324.419585 | AH30: SUDESTE
B31: 5850.483305 | C31: 19 | E31: CASA DO ASFALTO DISTRIBUIDORA, INDÚSTRIA E COMÉRCIO DE ASFALTO LTDA. | F31: BR 376, PARQUE INDUSTRIAL, S/N LOTE 6/7/7-A-3-1 - GL.PATR.MARIALVA - CEP:86990-000 | G31: Paraná | H31: MARIALVA - PR | I31: ='Transporte EAI'!I31 -> Natal - RN | J31: =VLOOKUP(G31,OFFSET('ANP ESTADO'!$A$1,MATCH($I$7,'ANP ESTADO'!B:B,0)+MATCH($H$10,OFFSET('ANP ESTADO'!$A$1,MATCH($I$7,'ANP ESTADO'!B:B,0),0,100000,1),0),2,100000,2),2,FALSE) -> 2.78010351 | K31: =VLOOKUP($H$10,OFFSET('ANP REGIÃO'!$A$9,MATCH('Transporte RR-2C'!$I$7,'ANP REGIÃO'!A:A,0),1,10000,10000),MATCH('Transporte RR-2C'!AH31,'ANP REGIÃO'!$B$8:$G$8,0),FALSE) -> 2.792340883 | L31: 2780.10351 | M31: 768.21 | N31: 3548.31351 | O31: ='Transporte EAI'!O31 -> 3299 | P31: ='Transporte EAI'!P31 -> 0 | Q31: 861.59 | S31: 244.92 | T31: 189.12 | U31: 1176.57 | V31: 2227.28 | W31: ='Transporte EAI'!W31 -> 917.4 | X31: =EVEN((' CONSUMO DE MAT. B TOTAL'!$P$13+' CONSUMO DE MAT. B TOTAL'!P34)*2/28)*W31/(' CONSUMO DE MAT. B TOTAL'!$P$13+' CONSUMO DE MAT. B TOTAL'!P34) -> 74.88979592 | Y31: 2302.169796 | Z31: 3548.31351 | AA31: 5850.483305 | AC31: 5850.483305 | AD31: 2302.169796 | AE31: 3548.31351 | AH31: SUL
B32: 5881.330448 | C32: 20 | E32: PETROBRAS DISTRIBUIDORA S.A. | F32: RUA MAQUINISTA ELEODORO JACINTO, 100 - OFICINAS - CEP:84045-170 | G32: Paraná | H32: PONTA GROSSA - PR | I32: ='Transporte EAI'!I32 -> Natal - RN | J32: =VLOOKUP(G32,OFFSET('ANP ESTADO'!$A$1,MATCH($I$7,'ANP ESTADO'!B:B,0)+MATCH($H$10,OFFSET('ANP ESTADO'!$A$1,MATCH($I$7,'ANP ESTADO'!B:B,0),0,100000,1),0),2,100000,2),2,FALSE) -> 2.78010351 | K32: =VLOOKUP($H$10,OFFSET('ANP REGIÃO'!$A$9,MATCH('Transporte RR-2C'!$I$7,'ANP REGIÃO'!A:A,0),1,10000,10000),MATCH('Transporte RR-2C'!AH32,'ANP REGIÃO'!$B$8:$G$8,0),FALSE) -> 2.792340883 | L32: 2780.10351 | M32: 768.21 | N32: 3548.31351 | O32: ='Transporte EAI'!O32 -> 3343 | P32: ='Transporte EAI'!P32 -> 0 | Q32: 872.72 | S32: 247.74 | T32: 191.57 | U32: 1191.78 | V32: 2256.07 | W32: ='Transporte EAI'!W32 -> 942.6 | X32: =EVEN((' CONSUMO DE MAT. B TOTAL'!$P$13+' CONSUMO DE MAT. B TOTAL'!P35)*2/28)*W32/(' CONSUMO DE MAT. B TOTAL'!$P$13+' CONSUMO DE MAT. B TOTAL'!P35) -> 76.94693878 | Y32: 2333.016939 | Z32: 3548.31351 | AA32: 5881.330448 | AC32: 5881.330448 | AD32: 2333.016939 | AE32: 3548.31351 | AH32: SUL
D42: Acre
D43: Alagoas
D44: Amapá
D45: Amazonas
D46: Bahia
D47: Ceará
D48: Distrito Federal
D49: Espírito Santo
D50: Goiás
D51: Maranhão
D52: Mato Grosso
D53: Mato Grosso do Sul
D54: Minas Gerais
D55: Pará
D56: Paraíba
D57: Paraná
D58: Pernambuco
D59: Piauí
D60: Rio de Janeiro
D61: Rio Grande do Norte
D62: Rio Grande do Sul
D63: Rondônia
D64: Roraima
D65: Santa Catarina
D66: São Paulo
D67: Sergipe
D68: Tocantins
D72: ASFALTOS DILUÍDOS CM-30
D73: ASFALTOS DILUÍDOS CM-70
D74: ASFALTOS DILUÍDOS CR-250
D75: ASFALTOS DILUÍDOS CR-70
D76: CAP MODIFICADO POR BORRACHA DE PNEU AB22
D77: CAP MODIFICADO POR BORRACHA DE PNEU AB8
D78: CAP MODIFICADO POR POLÍMERO 55-75-E
D79: CAP MODIFICADO POR POLÍMERO 60-85-E
D80: CAP MODIFICADO POR POLÍMERO 65-90-E
D81: CIMENTOS ASFÁLTICOS CAP-150-200
D82: CIMENTOS ASFÁLTICOS CAP-30-45
D83: CIMENTOS ASFÁLTICOS CAP-50-70
D84: CIMENTOS ASFÁLTICOS CAP-85-100
D85: EMULSÃO ASFÁLTICA CATIÔNICA DE RUPTURA CONTROLADA PARA SERVIÇO DE LAMA ASFÁLTICA
D86: EMULSÃO ASFÁLTICA DE RUPTURA LENTA CATIÔNICA PARA SERVIÇO DE LAMA ASFÁLTICA
D87: EMULSÃO ASFÁLTICA DE RUPTURA LENTA DE CARGA NEUTRA PARA SERVIÇO DE LAMA ASFÁLTICA
D88: EMULSÃO ASFÁLTICA PARA SERVIÇO DE IMPRIMAÇÃO
D89: EMULSÕES ASF. MOD. POR POLÍMEROS RC1C-E
D90: EMULSÕES ASF. MOD. POR POLÍMEROS RL1C-E
D91: EMULSÕES ASF. MOD. POR POLÍMEROS RM1C-E
D92: EMULSÕES ASF. MOD. POR POLÍMEROS RR1C-E
D93: EMULSÕES ASF. MOD. POR POLÍMEROS RR2C-E
D94: EMULSÕES ASFÁLTICAS RL-1C
D95: EMULSÕES ASFÁLTICAS RM-1C
D96: EMULSÕES ASFÁLTICAS RM-2C
D97: EMULSÕES ASFÁLTICAS RR-1C
D98: EMULSÕES ASFÁLTICAS RR-2C

Sheet RESUMO_Transp
B11: ÍNDICE DE PAVIMENTAÇÃO DNIT | E11: TIPOLOGIA DO MATERIAL | G11: LIGANTE BETUMINOSO | K11: IMPOSTOS | L11: COFINS | M11: ='Transporte RR-2C'!O7 -> 0.0065 | N11: ='Transporte RR-2C'!P7 -> 0.0065
C12: DATA INICIAL | F12: 2014-07-01 | G12: ÍNDICE INICIAL | H12: ='Transporte RR-2C'!J8 -> 270.237 | L12: PIS | M12: ='Transporte RR-2C'!O8 -> 0.03 | N12: ='Transporte RR-2C'!P8 -> 0.03 | P12: LEGENDA
C13: DATA FINAL | F13: ='Transporte EAI'!H10 -> 2024-06-01 | G13: ÍNDICE FINAL | H13: ='Transporte RR-2C'!J9 -> 572.847 | L13: ICMS | M13: ='Transporte RR-2C'!O9 -> 0.18 | N13: ='Transporte RR-2C'!P9 -> 0.18 | P13: ENTRADA DE DADOS
B15: DATA-BASE | C15: PRODUTOS | D15: LOCALIDADES | H15: CUSTO ANP (R$/Kg) | J15: CUSTO ANP | K15: IMPOSTOS DO PRODUTO | L15: CUSTO DO PRODUTO COM IMPOSTOS | M15: DMT's | N15: DMT's | O15: CUSTO DO TRANSPORTE TOTAL | P15: ICMS | Q15: ATUALIZAÇÃO DO CUSTO DE TRANSPORTE | R15: CUSTO DO TRANSPORTE RODOVIA PAVIMENTADA COM IMPOSTOS E ATUALIZAÇÃO MONETÁRIA | S15: PEDÁGIO | U15: TOTAL TRANSPORTE | V15: TOTAL PRODUTO | W15: TOTAL GERAL
B16: =F13 -> 2024-06-01 | D16: REFINARIAS | E16: ENDEREÇO | F16: ORIGEM REFINARIAS / DISTRIBUIDORAS | G16: DESTINO | H16: ESTADO | I16: REGIÃO | J16: R$/t | K16: R$/t | L16: R$/t | M16: KM | N16: KM | O16: R$/t | P16: R$/t | Q16: R$/t | R16: R$/t | S16: CUSTO POR EIXO | T16: R$/t | U16: R$/t | V16: R$/t | W16: R$/t
B17: 1 | C17: EAI | D17: Refinaria Abreu e Lima | E17: Rodovia PE 60, Km 10 - Ipojuca - PE CEP:55590-000 | F17: =VLOOKUP($W17,'Transporte EAI'!$B:$AA,7,FALSE) -> SARZEDO - MG | G17: =VLOOKUP($W17,'Transporte EAI'!$B:$AA,8,FALSE) -> Natal - RN | H17: =VLOOKUP($W17,'Transporte EAI'!$B:$AA,9,FALSE) -> 2.235142226 | I17: =VLOOKUP($W17,'Transporte EAI'!$B:$AA,10,FALSE) -> 2.329044365 | J17: =VLOOKUP($W17,'Transporte EAI'!$B:$AA,11,FALSE) -> 2235.142226 | K17: =VLOOKUP($W17,'Transporte EAI'!$B:$AA,12,FALSE) -> 617.62 | L17: =VLOOKUP($W17,'Transporte EAI'!$B:$AA,13,FALSE) -> 2852.762226 | M17: =VLOOKUP($W17,'Transporte EAI'!$B:$AA,14,FALSE) -> 2379 | N17: =VLOOKUP($W17,'Transporte EAI'!$B:$AA,15,FALSE) -> 0 | O17: =VLOOKUP($W17,'Transporte EAI'!$B:$AA,18,FALSE) -> 186.03 | P17: =VLOOKUP($W17,'Transporte EAI'!$B:$AA,19,FALSE) -> 138.03 | Q17: =VLOOKUP($W17,'Transporte EAI'!$B:$AA,20,FALSE) -> 858.72 | R17: =VLOOKUP($W17,'Transporte EAI'!$B:$AA,21,FALSE) -> 1625.58 | S17: =VLOOKUP($W17,'Transporte EAI'!$B:$AA,22,FALSE) -> 508.8 | T17: =VLOOKUP($W17,'Transporte EAI'!$B:$AA,23,FALSE) -> 41.53469388 | U17: =VLOOKUP($W17,'Transporte EAI'!$B:$AA,24,FALSE) -> 1667.114694 | V17: =VLOOKUP($W17,'Transporte EAI'!$B:$AA,25,FALSE) -> 2852.762226 | W17: =SMALL('Transporte EAI'!$AA$13:$AA$32,1) -> 4519.876919
B18: 2 | D18: Refinaria Potiguar Clara Camarão | E18: Rodovia RN 221, KM 25 - Guamaré - RN CEP:59598-000 | F18: =VLOOKUP($W18,'Transporte EAI'!$B:$AA,7,FALSE) -> UBERLANDIA - MG | G18: =VLOOKUP($W18,'Transporte EAI'!$B:$AA,8,FALSE) -> Natal - RN | H18: =VLOOKUP($W18,'Transporte EAI'!$B:$AA,9,FALSE) -> 2.235142226 | I18: =VLOOKUP($W18,'Transporte EAI'!$B:$AA,10,FALSE) -> 2.329044365 | J18: =VLOOKUP($W18,'Transporte EAI'!$B:$AA,11,FALSE) -> 2235.142226 | K18: =VLOOKUP($W18,'Transporte EAI'!$B:$AA,12,FALSE) -> 617.62 | L18: =VLOOKUP($W18,'Transporte EAI'!$B:$AA,13,FALSE) -> 2852.762226 | M18: =VLOOKUP($W18,'Transporte EAI'!$B:$AA,14,FALSE) -> 2572 | N18: =VLOOKUP($W18,'Transporte EAI'!$B:$AA,15,FALSE) -> 0 | O18: =VLOOKUP($W18,'Transporte EAI'!$B:$AA,18,FALSE) -> 198.39 | P18: =VLOOKUP($W18,'Transporte EAI'!$B:$AA,19,FALSE) -> 148.75 | Q18: =VLOOKUP($W18,'Transporte EAI'!$B:$AA,20,FALSE) -> 925.4 | R18: =VLOOKUP($W18,'Transporte EAI'!$B:$AA,21,FALSE) -> 1751.81 | S18: =VLOOKUP($W18,'Transporte EAI'!$B:$AA,22,FALSE) -> 335.4 | T18: =VLOOKUP($W18,'Transporte EAI'!$B:$AA,23,FALSE) -> 27.37959184 | U18: =VLOOKUP($W18,'Transporte EAI'!$B:$AA,24,FALSE) -> 1779.189592 | V18: =VLOOKUP($W18,'Transporte EAI'!$B:$AA,25,FALSE) -> 2852.762226 | W18: =SMALL('Transporte EAI'!$AA$13:$AA$32,2) -> 4631.951817
B19: 3 | D19: Complexo Petroquímico do Rio de Janeiro (Comperj) | E19: Rodovia Estadual RJ-116 - Km 5,2 - Acesso A-1, s/n, Complemento Sambaetiba - Zona Urbana do 4º Distrito de Itaboraí - RJ CEP:24841-203 | F19: =VLOOKUP($W19,'Transporte EAI'!$B:$AA,7,FALSE) -> UBERLANDIA - MG | G19: =VLOOKUP($W19,'Transporte EAI'!$B:$AA,8,FALSE) -> Natal - RN | H19: =VLOOKUP($W19,'Transporte EAI'!$B:$AA,9,FALSE) -> 2.235142226 | I19: =VLOOKUP($W19,'Transporte EAI'!$B:$AA,10,FALSE) -> 2.329044365 | J19: =VLOOKUP($W19,'Transporte EAI'!$B:$AA,11,FALSE) -> 2235.142226 | K19: =VLOOKUP($W19,'Transporte EAI'!$B:$AA,12,FALSE) -> 617.62 | L19: =VLOOKUP($W19,'Transporte EAI'!$B:$AA,13,FALSE) -> 2852.762226 | M19: =VLOOKUP($W19,'Transporte EAI'!$B:$AA,14,FALSE) -> 2575 | N19: =VLOOKUP($W19,'Transporte EAI'!$B:$AA,15,FALSE) -> 0 | O19: =VLOOKUP($W19,'Transporte EAI'!$B:$AA,18,FALSE) -> 198.58 | P19: =VLOOKUP($W19,'Transporte EAI'!$B:$AA,19,FALSE) -> 148.91 | Q19: =VLOOKUP($W19,'Transporte EAI'!$B:$AA,20,FALSE) -> 926.42 | R19: =VLOOKUP($W19,'Transporte EAI'!$B:$AA,21,FALSE) -> 1753.74 | S19: =VLOOKUP($W19,'Transporte EAI'!$B:$AA,22,FALSE) -> 335.4 | T19: =VLOOKUP($W19,'Transporte EAI'!$B:$AA,23,FALSE) -> 27.37959184 | U19: =VLOOKUP($W19,'Transporte EAI'!$B:$AA,24,FALSE) -> 1781.119592 | V19: =VLOOKUP($W19,'Transporte EAI'!$B:$AA,25,FALSE) -> 2852.762226 | W19: =SMALL('Transporte EAI'!$AA$13:$AA$32,3) -> 4633.881817
B20: 4 | F20: =VLOOKUP($W20,'Transporte EAI'!$B:$AA,7,FALSE) -> ANÁPOLIS - GO | G20: =VLOOKUP($W20,'Transporte EAI'!$B:$AA,8,FALSE) -> Natal - RN | H20: =VLOOKUP($W20,'Transporte EAI'!$B:$AA,9,FALSE) -> 2.342870072 | I20: =VLOOKUP($W20,'Transporte EAI'!$B:$AA,10,FALSE) -> 2.680425729 | J20: =VLOOKUP($W20,'Transporte EAI'!$B:$AA,11,FALSE) -> 2342.870072 | K20: =VLOOKUP($W20,'Transporte EAI'!$B:$AA,12,FALSE) -> 647.39 | L20: =VLOOKUP($W20,'Transporte EAI'!$B:$AA,13,FALSE) -> 2990.260072 | M20: =VLOOKUP($W20,'Transporte EAI'!$B:$AA,14,FALSE) -> 2554 | N20: =VLOOKUP($W20,'Transporte EAI'!$B:$AA,15,FALSE) -> 0 | O20: =VLOOKUP($W20,'Transporte EAI'!$B:$AA,18,FALSE) -> 197.23 | P20: =VLOOKUP($W20,'Transporte EAI'!$B:$AA,19,FALSE) -> 147.75 | Q20: =VLOOKUP($W20,'Transporte EAI'!$B:$AA,20,FALSE) -> 919.18 | R20: =VLOOKUP($W20,'Transporte EAI'!$B:$AA,21,FALSE) -> 1740.03 | S20: =VLOOKUP($W20,'Transporte EAI'!$B:$AA,22,FALSE) -> 114.6 | T20: =VLOOKUP($W20,'Transporte EAI'!$B:$AA,23,FALSE) -> 9.355102041 | U20: =VLOOKUP($W20,'Transporte EAI'!$B:$AA,24,FALSE) -> 1749.385102 | V20: =VLOOKUP($W20,'Transporte EAI'!$B:$AA,25,FALSE) -> 2990.260072 | W20: =SMALL('Transporte EAI'!$AA$13:$AA$32,4) -> 4739.645174
B21: 5 | F21: =VLOOKUP($W21,'Transporte EAI'!$B:$AA,7,FALSE) -> DUQUE DE CAXIAS - RJ | G21: =VLOOKUP($W21,'Transporte EAI'!$B:$AA,8,FALSE) -> Natal - RN | H21: =VLOOKUP($W21,'Transporte EAI'!$B:$AA,9,FALSE) -> - | I21: =VLOOKUP($W21,'Transporte EAI'!$B:$AA,10,FALSE) -> 2.329044365 | J21: =VLOOKUP($W21,'Transporte EAI'!$B:$AA,11,FALSE) -> 2329.044365 | K21: =VLOOKUP($W21,'Transporte EAI'!$B:$AA,12,FALSE) -> 643.57 | L21: =VLOOKUP($W21,'Transporte EAI'!$B:$AA,13,FALSE) -> 2972.614365 | M21: =VLOOKUP($W21,'Transporte EAI'!$B:$AA,14,FALSE) -> 2578 | N21: =VLOOKUP($W21,'Transporte EAI'!$B:$AA,15,FALSE) -> 0 | O21: =VLOOKUP($W21,'Transporte EAI'!$B:$AA,18,FALSE) -> 198.77 | P21: =VLOOKUP($W21,'Transporte EAI'!$B:$AA,19,FALSE) -> 149.08 | Q21: =VLOOKUP($W21,'Transporte EAI'!$B:$AA,20,FALSE) -> 927.47 | R21: =VLOOKUP($W21,'Transporte EAI'!$B:$AA,21,FALSE) -> 1755.72 | S21: =VLOOKUP($W21,'Transporte EAI'!$B:$AA,22,FALSE) -> 564 | T21: =VLOOKUP($W21,'Transporte EAI'!$B:$AA,23,FALSE) -> 46.04081633 | U21: =VLOOKUP($W21,'Transporte EAI'!$B:$AA,24,FALSE) -> 1801.760816 | V21: =VLOOKUP($W21,'Transporte EAI'!$B:$AA,25,FALSE) -> 2972.614365 | W21: =SMALL('Transporte EAI'!$AA$13:$AA$32,5) -> 4774.375182
B22: 6 | F22: =VLOOKUP($W22,'Transporte EAI'!$B:$AA,7,FALSE) -> RIO DE JANEIRO - RJ | G22: =VLOOKUP($W22,'Transporte EAI'!$B:$AA,8,FALSE) -> Natal - RN | H22: =VLOOKUP($W22,'Transporte EAI'!$B:$AA,9,FALSE) -> - | I22: =VLOOKUP($W22,'Transporte EAI'!$B:$AA,10,FALSE) -> 2.329044365 | J22: =VLOOKUP($W22,'Transporte EAI'!$B:$AA,11,FALSE) -> 2329.044365 | K22: =VLOOKUP($W22,'Transporte EAI'!$B:$AA,12,FALSE) -> 643.57 | L22: =VLOOKUP($W22,'Transporte EAI'!$B:$AA,13,FALSE) -> 2972.614365 | M22: =VLOOKUP($W22,'Transporte EAI'!$B:$AA,14,FALSE) -> 2593 | N22: =VLOOKUP($W22,'Transporte EAI'!$B:$AA,15,FALSE) -> 0 | O22: =VLOOKUP($W22,'Transporte EAI'!$B:$AA,18,FALSE) -> 199.73 | P22: =VLOOKUP($W22,'Transporte EAI'!$B:$AA,19,FALSE) -> 149.92 | Q22: =VLOOKUP($W22,'Transporte EAI'!$B:$AA,20,FALSE) -> 932.66 | R22: =VLOOKUP($W22,'Transporte EAI'!$B:$AA,21,FALSE) -> 1765.55 | S22: =VLOOKUP($W22,'Transporte EAI'!$B:$AA,22,FALSE) -> 564 | T22: =VLOOKUP($W22,'Transporte EAI'!$B:$AA,23,FALSE) -> 46.04081633 | U22: =VLOOKUP($W22,'Transporte EAI'!$B:$AA,24,FALSE) -> 1811.590816 | V22: =VLOOKUP($W22,'Transporte EAI'!$B:$AA,25,FALSE) -> 2972.614365 | W22: =SMALL('Transporte EAI'!$AA$13:$AA$32,6) -> 4784.205182
B24: 1 | C24: RR2-C | D24: Refinaria Abreu e Lima | E24: Rodovia PE 60, Km 10 - Ipojuca - PE CEP:55590-000 | F24: =VLOOKUP($W24,'Transporte RR-2C'!$B:$AA,7,FALSE) -> PALMAS - TO | G24: =VLOOKUP($W24,'Transporte RR-2C'!$B:$AA,8,FALSE) -> Natal - RN | H24: =VLOOKUP($W24,'Transporte RR-2C'!$B:$AA,9,FALSE) -> 2.616271216 | I24: =VLOOKUP($W24,'Transporte RR-2C'!$B:$AA,10,FALSE) -> 3.025080833 | J24: =VLOOKUP($W24,'Transporte RR-2C'!$B:$AA,11,FALSE) -> 2616.271216 | K24: =VLOOKUP($W24,'Transporte RR-2C'!$B:$AA,12,FALSE) -> 722.94 | L24: =VLOOKUP($W24,'Transporte RR-2C'!$B:$AA,13,FALSE) -> 3339.211216 | M24: =VLOOKUP($W24,'Transporte RR-2C'!$B:$AA,14,FALSE) -> 2049 | N24: =VLOOKUP($W24,'Transporte RR-2C'!$B:$AA,15,FALSE) -> 0 | O24: =VLOOKUP($W24,'Transporte RR-2C'!$B:$AA,18,FALSE) -> 164.91 | P24: =VLOOKUP($W24,'Transporte RR-2C'!$B:$AA,19,FALSE) -> 119.7 | Q24: =VLOOKUP($W24,'Transporte RR-2C'!$B:$AA,20,FALSE) -> 744.7 | R24: =VLOOKUP($W24,'Transporte RR-2C'!$B:$AA,21,FALSE) -> 1409.74 | S24: =VLOOKUP($W24,'Transporte RR-2C'!$B:$AA,22,FALSE) -> 0 | T24: =VLOOKUP($W24,'Transporte RR-2C'!$B:$AA,23,FALSE) -> 0 | U24: =VLOOKUP($W24,'Transporte RR-2C'!$B:$AA,24,FALSE) -> 1409.74 | V24: =VLOOKUP($W24,'Transporte RR-2C'!$B:$AA,25,FALSE) -> 3339.211216 | W24: =SMALL('Transporte RR-2C'!$AA$13:$AA$32,1) -> 4748.951216
B25: 2 | D25: Refinaria Potiguar Clara Camarão | E25: Rodovia RN 221, KM 25 - Guamaré - RN CEP:59598-000 | F25: =VLOOKUP($W25,'Transporte RR-2C'!$B:$AA,7,FALSE) -> SARZEDO - MG | G25: =VLOOKUP($W25,'Transporte RR-2C'!$B:$AA,8,FALSE) -> Natal - RN | H25: =VLOOKUP($W25,'Transporte RR-2C'!$B:$AA,9,FALSE) -> 2.570877159 | I25: =VLOOKUP($W25,'Transporte RR-2C'!$B:$AA,10,FALSE) -> 2.604679585 | J25: =VLOOKUP($W25,'Transporte RR-2C'!$B:$AA,11,FALSE) -> 2570.877159 | K25: =VLOOKUP($W25,'Transporte RR-2C'!$B:$AA,12,FALSE) -> 710.4 | L25: =VLOOKUP($W25,'Transporte RR-2C'!$B:$AA,13,FALSE) -> 3281.277159 | M25: =VLOOKUP($W25,'Transporte RR-2C'!$B:$AA,14,FALSE) -> 2379 | N25: =VLOOKUP($W25,'Transporte RR-2C'!$B:$AA,15,FALSE) -> 0 | O25: =VLOOKUP($W25,'Transporte RR-2C'!$B:$AA,18,FALSE) -> 186.03 | P25: =VLOOKUP($W25,'Transporte RR-2C'!$B:$AA,19,FALSE) -> 138.03 | Q25: =VLOOKUP($W25,'Transporte RR-2C'!$B:$AA,20,FALSE) -> 858.72 | R25: =VLOOKUP($W25,'Transporte RR-2C'!$B:$AA,21,FALSE) -> 1625.58 | S25: =VLOOKUP($W25,'Transporte RR-2C'!$B:$AA,22,FALSE) -> 508.8 | T25: =VLOOKUP($W25,'Transporte RR-2C'!$B:$AA,23,FALSE) -> 41.53469388 | U25: =VLOOKUP($W25,'Transporte RR-2C'!$B:$AA,24,FALSE) -> 1667.114694 | V25: =VLOOKUP($W25,'Transporte RR-2C'!$B:$AA,25,FALSE) -> 3281.277159 | W25: =SMALL('Transporte RR-2C'!$AA$13:$AA$32,2) -> 4948.391853
B26: 3 | D26: Complexo Petroquímico do Rio de Janeiro (Comperj) | E26: Rodovia Estadual RJ-116 - Km 5,2 - Acesso A-1, s/n, Complemento Sambaetiba - Zona Urbana do 4º Distrito de Itaboraí - RJ CEP:24841-203 | F26: =VLOOKUP($W26,'Transporte RR-2C'!$B:$AA,7,FALSE) -> UBERLANDIA - MG | G26: =VLOOKUP($W26,'Transporte RR-2C'!$B:$AA,8,FALSE) -> Natal - RN | H26: =VLOOKUP($W26,'Transporte RR-2C'!$B:$AA,9,FALSE) -> 2.570877159 | I26: =VLOOKUP($W26,'Transporte RR-2C'!$B:$AA,10,FALSE) -> 2.604679585 | J26: =VLOOKUP($W26,'Transporte RR-2C'!$B:$AA,11,FALSE) -> 2570.877159 | K26: =VLOOKUP($W26,'Transporte RR-2C'!$B:$AA,12,FALSE) -> 710.4 | L26: =VLOOKUP($W26,'Transporte RR-2C'!$B:$AA,13,FALSE) -> 3281.277159 | M26: =VLOOKUP($W26,'Transporte RR-2C'!$B:$AA,14,FALSE) -> 2572 | N26: =VLOOKUP($W26,'Transporte RR-2C'!$B:$AA,15,FALSE) -> 0 | O26: =VLOOKUP($W26,'Transporte RR-2C'!$B:$AA,18,FALSE) -> 198.39 | P26: =VLOOKUP($W26,'Transporte RR-2C'!$B:$AA,19,FALSE) -> 148.75 | Q26: =VLOOKUP($W26,'Transporte RR-2C'!$B:$AA,20,FALSE) -> 925.4 | R26: =VLOOKUP($W26,'Transporte RR-2C'!$B:$AA,21,FALSE) -> 1751.81 | S26: =VLOOKUP($W26,'Transporte RR-2C'!$B:$AA,22,FALSE) -> 335.4 | T26: =VLOOKUP($W26,'Transporte RR-2C'!$B:$AA,23,FALSE) -> 27.37959184 | U26: =VLOOKUP($W26,'Transporte RR-2C'!$B:$AA,24,FALSE) -> 1779.189592 | V26: =VLOOKUP($W26,'Transporte RR-2C'!$B:$AA,25,FALSE) -> 3281.277159 | W26: =SMALL('Transporte RR-2C'!$AA$13:$AA$32,3) -> 5060.466751
B27: 4 | D27: Refinaria Abreu e Lima | E27: Rodovia PE 60, Km 10 - Ipojuca - PE CEP:55590-000 | F27: =VLOOKUP($W27,'Transporte RR-2C'!$B:$AA,7,FALSE) -> UBERLANDIA - MG | G27: =VLOOKUP($W27,'Transporte RR-2C'!$B:$AA,8,FALSE) -> Natal - RN | H27: =VLOOKUP($W27,'Transporte RR-2C'!$B:$AA,9,FALSE) -> 2.570877159 | I27: =VLOOKUP($W27,'Transporte RR-2C'!$B:$AA,10,FALSE) -> 2.604679585 | J27: =VLOOKUP($W27,'Transporte RR-2C'!$B:$AA,11,FALSE) -> 2570.877159 | K27: =VLOOKUP($W27,'Transporte RR-2C'!$B:$AA,12,FALSE) -> 710.4 | L27: =VLOOKUP($W27,'Transporte RR-2C'!$B:$AA,13,FALSE) -> 3281.277159 | M27: =VLOOKUP($W27,'Transporte RR-2C'!$B:$AA,14,FALSE) -> 2575 | N27: =VLOOKUP($W27,'Transporte RR-2C'!$B:$AA,15,FALSE) -> 0 | O27: =VLOOKUP($W27,'Transporte RR-2C'!$B:$AA,18,FALSE) -> 198.58 | P27: =VLOOKUP($W27,'Transporte RR-2C'!$B:$AA,19,FALSE) -> 148.91 | Q27: =VLOOKUP($W27,'Transporte RR-2C'!$B:$AA,20,FALSE) -> 926.42 | R27: =VLOOKUP($W27,'Transporte RR-2C'!$B:$AA,21,FALSE) -> 1753.74 | S27: =VLOOKUP($W27,'Transporte RR-2C'!$B:$AA,22,FALSE) -> 335.4 | T27: =VLOOKUP($W27,'Transporte RR-2C'!$B:$AA,23,FALSE) -> 27.37959184 | U27: =VLOOKUP($W27,'Transporte RR-2C'!$B:$AA,24,FALSE) -> 1781.119592 | V27: =VLOOKUP($W27,'Transporte RR-2C'!$B:$AA,25,FALSE) -> 3281.277159 | W27: =SMALL('Transporte RR-2C'!$AA$13:$AA$32,4) -> 5062.396751
B28: 5 | D28: Refinaria Potiguar Clara Camarão | E28: Rodovia RN 221, KM 25 - Guamaré - RN CEP:59598-000 | F28: =VLOOKUP($W28,'Transporte RR-2C'!$B:$AA,7,FALSE) -> DUQUE DE CAXIAS - RJ | G28: =VLOOKUP($W28,'Transporte RR-2C'!$B:$AA,8,FALSE) -> Natal - RN | H28: =VLOOKUP($W28,'Transporte RR-2C'!$B:$AA,9,FALSE) -> - | I28: =VLOOKUP($W28,'Transporte RR-2C'!$B:$AA,10,FALSE) -> 2.604679585 | J28: =VLOOKUP($W28,'Transporte RR-2C'!$B:$AA,11,FALSE) -> 2604.679585 | K28: =VLOOKUP($W28,'Transporte RR-2C'!$B:$AA,12,FALSE) -> 719.74 | L28: =VLOOKUP($W28,'Transporte RR-2C'!$B:$AA,13,FALSE) -> 3324.419585 | M28: =VLOOKUP($W28,'Transporte RR-2C'!$B:$AA,14,FALSE) -> 2578 | N28: =VLOOKUP($W28,'Transporte RR-2C'!$B:$AA,15,FALSE) -> 0 | O28: =VLOOKUP($W28,'Transporte RR-2C'!$B:$AA,18,FALSE) -> 198.77 | P28: =VLOOKUP($W28,'Transporte RR-2C'!$B:$AA,19,FALSE) -> 149.08 | Q28: =VLOOKUP($W28,'Transporte RR-2C'!$B:$AA,20,FALSE) -> 927.47 | R28: =VLOOKUP($W28,'Transporte RR-2C'!$B:$AA,21,FALSE) -> 1755.72 | S28: =VLOOKUP($W28,'Transporte RR-2C'!$B:$AA,22,FALSE) -> 564 | T28: =VLOOKUP($W28,'Transporte RR-2C'!$B:$AA,23,FALSE) -> 46.04081633 | U28: =VLOOKUP($W28,'Transporte RR-2C'!$B:$AA,24,FALSE) -> 1801.760816 | V28: =VLOOKUP($W28,'Transporte RR-2C'!$B:$AA,25,FALSE) -> 3324.419585 | W28: =SMALL('Transporte RR-2C'!$AA$13:$AA$32,5) -> 5126.180402
B29: 6 | D29: Complexo Petroquímico do Rio de Janeiro (Comperj) | E29: Rodovia Estadual RJ-116 - Km 5,2 - Acesso A-1, s/n, Complemento Sambaetiba - Zona Urbana do 4º Distrito de Itaboraí - RJ CEP:24841-203 | F29: =VLOOKUP($W29,'Transporte RR-2C'!$B:$AA,7,FALSE) -> RIO DE JANEIRO - RJ | G29: =VLOOKUP($W29,'Transporte RR-2C'!$B:$AA,8,FALSE) -> Natal - RN | H29: =VLOOKUP($W29,'Transporte RR-2C'!$B:$AA,9,FALSE) -> - | I29: =VLOOKUP($W29,'Transporte RR-2C'!$B:$AA,10,FALSE) -> 2.604679585 | J29: =VLOOKUP($W29,'Transporte RR-2C'!$B:$AA,11,FALSE) -> 2604.679585 | K29: =VLOOKUP($W29,'Transporte RR-2C'!$B:$AA,12,FALSE) -> 719.74 | L29: =VLOOKUP($W29,'Transporte RR-2C'!$B:$AA,13,FALSE) -> 3324.419585 | M29: =VLOOKUP($W29,'Transporte RR-2C'!$B:$AA,14,FALSE) -> 2593 | N29: =VLOOKUP($W29,'Transporte RR-2C'!$B:$AA,15,FALSE) -> 0 | O29: =VLOOKUP($W29,'Transporte RR-2C'!$B:$AA,18,FALSE) -> 199.73 | P29: =VLOOKUP($W29,'Transporte RR-2C'!$B:$AA,19,FALSE) -> 149.92 | Q29: =VLOOKUP($W29,'Transporte RR-2C'!$B:$AA,20,FALSE) -> 932.66 | R29: =VLOOKUP($W29,'Transporte RR-2C'!$B:$AA,21,FALSE) -> 1765.55 | S29: =VLOOKUP($W29,'Transporte RR-2C'!$B:$AA,22,FALSE) -> 564 | T29: =VLOOKUP($W29,'Transporte RR-2C'!$B:$AA,23,FALSE) -> 46.04081633 | U29: =VLOOKUP($W29,'Transporte RR-2C'!$B:$AA,24,FALSE) -> 1811.590816 | V29: =VLOOKUP($W29,'Transporte RR-2C'!$B:$AA,25,FALSE) -> 3324.419585 | W29: =SMALL('Transporte RR-2C'!$AA$13:$AA$32,6) -> 5136.010402

Sheet MOMENTO DE TRANSPORTE - PRINC
B5: ='RESUMO MODULO TOTAL'!B1 -> EXECUÇÃO DE SERVIÇOS DE PAVIMENTAÇÃO COM TRATAMENTO SUPERFICIAL DUPLO EM VIAS DE MUNICÍPIOS DIVERSOS INSERIDOS NA ÁREA DE ATUAÇÃO DA CODEVASF, NO ESTADO DO RIO GRANDE DO NORTE (REGIÃO 1)
B6: DATA BASE: | C6: ='RESUMO MODULO TOTAL'!$N$2 -> Rio Grande do Norte - Abril/2024
C8: RESUMO DO TRANSPORTE PRINCIPAL
B9: CODIGO | C9: DESCRIÇÃO | D9: TKM
B10: 5914359 | C10: =VLOOKUP(B10,'SINTÉTICO SICRO'!$A:$D,2,0) -> Transporte com caminhão basculante de 10 m³ - rodovia em leito natural | D10: =ROUND(SUMIF('MOMENTO DE TRANSPORTE - PRINC'!A:A,B10,'MOMENTO DE TRANSPORTE - PRINC'!K:K),2) -> 0
B11: 5914314 | C11: =VLOOKUP(B11,'SINTÉTICO SICRO'!$A:$D,2,0) -> Transporte com caminhão basculante de 6 m³ - rodovia em leito natural | D11: =ROUND(SUMIF('MOMENTO DE TRANSPORTE - PRINC'!A:A,B11,'MOMENTO DE TRANSPORTE - PRINC'!K:K),2) -> 0
B12: 5914329 | C12: =VLOOKUP(B12,'SINTÉTICO SICRO'!$A:$D,2,0) -> Transporte com caminhão basculante de 6 m³ - rodovia em revestimento primário | D12: =ROUND(SUMIF('MOMENTO DE TRANSPORTE - PRINC'!A:A,B12,'MOMENTO DE TRANSPORTE - PRINC'!K:K),2) -> 3836.7
B13: 5914344 | C13: =VLOOKUP(B13,'SINTÉTICO SICRO'!$A:$D,2,0) -> Transporte com caminhão basculante de 6 m³ - rodovia pavimentada | D13: =ROUND(SUMIF('MOMENTO DE TRANSPORTE - PRINC'!A:A,B13,'MOMENTO DE TRANSPORTE - PRINC'!K:K),2) -> 34530.3
B14: 5914374 | C14: =VLOOKUP(B14,'SINTÉTICO SICRO'!$A:$D,2,0) -> Transporte com caminhão basculante de 10 m³ - rodovia em revestimento primário | D14: =ROUND(SUMIF('MOMENTO DE TRANSPORTE - PRINC'!A:A,B14,'MOMENTO DE TRANSPORTE - PRINC'!K:K),2) -> 575416.8
B15: 5914389 | C15: =VLOOKUP(B15,'SINTÉTICO SICRO'!$A:$D,2,0) -> Transporte com caminhão basculante de 10 m³ - rodovia pavimentada | D15: =ROUND(SUMIF('MOMENTO DE TRANSPORTE - PRINC'!A:A,B15,'MOMENTO DE TRANSPORTE - PRINC'!K:K),2) -> 5178751.2
B16: 5914539 | C16: =VLOOKUP(B16,'SINTÉTICO SICRO'!$A:$D,2,0) -> Transporte com caminhão betoneira - rodovia em leito natural | D16: =ROUND(SUMIF('MOMENTO DE TRANSPORTE - PRINC'!A:A,B16,'MOMENTO DE TRANSPORTE - PRINC'!K:K),2) -> 0
B17: 5914554 | C17: =VLOOKUP(B17,'SINTÉTICO SICRO'!$A:$D,2,0) -> Transporte com caminhão betoneira - rodovia em revestimento primário | D17: =ROUND(SUMIF('MOMENTO DE TRANSPORTE - PRINC'!A:A,B17,'MOMENTO DE TRANSPORTE - PRINC'!K:K),2) -> 25401.6
B18: 5914569 | C18: =VLOOKUP(B18,'SINTÉTICO SICRO'!$A:$D,2,0) -> Transporte com caminhão betoneira - rodovia pavimentada | D18: =ROUND(SUMIF('MOMENTO DE TRANSPORTE - PRINC'!A:A,B18,'MOMENTO DE TRANSPORTE - PRINC'!K:K),2) -> 228614.4
B20: TIPO (P, RP ou LN) | C20: DMT ESTIMADA (DISTRIBUIÇÃO DO ITEM NA PISTA
B21: P | C21: =90*0.9 -> 81
B23: COMPOSIÇÕES PRINCIPAIS
B24: SISTEMA DE CUSTOS REFERENCIAIS DE OBRAS - SICRO
B25: Custo Unitário de Referência | E25: =$C$6 -> Rio Grande do Norte - Abril/2024 | I25: Quantitativo | K25: m²
B26: ='RESUMO MODULO TOTAL'!$D$23 -> 4915637 | C26: =VLOOKUP(B26,'SINTÉTICO SICRO'!$A$4:$D$1048576,2,0) -> Capa selante - areia comercial | I26: =(SUMIF('RESUMO MODULO TOTAL'!D:D,B26,'RESUMO MODULO TOTAL'!J:J)) -> 98000
B27: F - MOMENTO DE TRANSPORTE | D27: Quantidade | E27: Unidade | F27: CÓDIGO TRANSPORTE
F28: LN | G28: RP | H28: P | I28: TIPO (P, RP ou LN) | J28: DMT ESTIMADA (km) | K28: QUANTITATIVO TOTAL DE TRANSPORTE (tkm)
A29: =IF(I29="P",H29,IF(I29="RP",G29,IF(I29="LN",F29,""))) -> 5914344 | B29: M0028 | C29: Areia média - Caminhão Basculante com capacidade de 6m³ | D29: 0.00435 | E29: tkm | F29: 5914314 | G29: 5914329 | H29: 5914344 | I29: =$B$21 -> P | J29: =$C$21 -> 81 | K29: =IF(ISBLANK(J29),"",J29*D29)*I26 -> 34530.3
A30: =IF(I30="P",H30,IF(I30="RP",G30,IF(I30="LN",F30,""))) -> 
B31: Obs.
B32: SISTEMA DE CUSTOS REFERENCIAIS DE OBRAS - SICRO
B33: Custo Unitário de Referência | E33: =$C$6 -> Rio Grande do Norte - Abril/2024 | I33: Quantitativo | K33: m²
B34: ='RESUMO MODULO TOTAL'!$D$24 -> 4011370 | C34: =VLOOKUP(B34,'SINTÉTICO SICRO'!$A$4:$D$1048576,2,0) -> Tratamento superficial duplo com emulsão - brita comercial | I34: =(SUMIF('RESUMO MODULO TOTAL'!D:D,B34,'RESUMO MODULO TOTAL'!J:J)) -> 98000
B35: F - MOMENTO DE TRANSPORTE | D35: Quantidade | E35: Unidade | F35: CÓDIGO TRANSPORTE
F36: LN | G36: RP | H36: P | I36: TIPO (P, RP ou LN) | J36: DMT ESTIMADA (km) | K36: QUANTITATIVO TOTAL DE TRANSPORTE (tkm)
A37: =IF(I37="P",H37,IF(I37="RP",G37,IF(I37="LN",F37,""))) -> 5914389 | B37: M005 | C37: Brita 0 - Caminhão basculante com capacidade de 10 m³ - 188 Kw | D37: 0.011 | E37: tkm | F37: 5914359 | G37: 5914374 | H37: 5914389 | I37: =$B$21 -> P | J37: =$C$21 -> 81 | K37: =IF(ISBLANK(J37),"",J37*D37)*I34 -> 87318
A38: =IF(I38="P",H38,IF(I38="RP",G38,IF(I38="LN",F38,""))) -> 5914389 | B38: M0191 | C38: Brita 1 - Caminhão basculante com capacidade de 10 m³ - 188 kW | D38: 0.0225 | E38: tkm | F38: 5914359 | G38: 5914374 | H38: 5914389 | I38: =$B$21 -> P | J38: =$C$21 -> 81 | K38: =IF(ISBLANK(J38),"",J38*D38)*I34 -> 178605
A39: =IF(I39="P",H39,IF(I39="RP",G39,IF(I39="LN",F39,""))) -> 
B42: SISTEMA DE CUSTOS REFERENCIAIS DE OBRAS - SICRO
B43: Custo Unitário de Referência | E43: =$C$6 -> Rio Grande do Norte - Abril/2024 | I43: Quantitativo | K43: un
B44: ='RESUMO MODULO TOTAL'!$D$26 -> 4011268 | C44: =VLOOKUP(B44,'SINTÉTICO SICRO'!$A$4:$D$1048576,2,0) -> Base estabilizada granulometricamente com mistura solo brita (70% - 30%) em usina com material de jazida e brita comercial | I44: =(SUMIF('RESUMO MODULO TOTAL'!D:D,B44,'RESUMO MODULO TOTAL'!J:J)) -> 14700
B45: D - ATIVIDADES AUXILIARES | D45: Quantidade | E45: Unidade
B46: 6416030 | C46: Usinagem de solo brita (70% - 30%) com material de jazida e brita comercial em usina de 300 t/h | D46: 1 | E46: m³
B48: F - MOMENTO DE TRANSPORTE | D48: Quantidade | E48: Unidade | F48: CÓDIGO TRANSPORTE
F49: LN | G49: RP | H49: P | I49: TIPO (P, RP ou LN) | J49: DMT ESTIMADA (km) | K49: QUANTITATIVO TOTAL DE TRANSPORTE (tkm)
A50: 5914389 | B50: 6416030 | C50: Usinagem de solo brita (70% - 30%) com material de jazida e brita comercial em usina de 300 t/h - Caminhão basculante 10 m³ | D50: 2.063 | E50: tkm | F50: 5914359 | G50: 5914374 | H50: 5914389 | I50: =$B$21 -> P | J50: =$C$21 -> 81 | K50: =IF(ISBLANK(J50),"",J50*D50)*I44 -> 2456414.1
B52: Obs.
B53: SISTEMA DE CUSTOS REFERENCIAIS DE OBRAS - SICRO
B54: Custo Unitário de Referência | I54: Quantitativo | K54: m³
B55: 4011235 | C55: =VLOOKUP(B55,'SINTÉTICO SICRO'!A:D,2,0) -> Sub-base estabilizada granulometricamente com mistura solo brita (70% - 30%) em usina com material de jazida e brita comercial | I55: =SUMIF('RESUMO MODULO TOTAL'!D:D,B55,'RESUMO MODULO TOTAL'!J:J) -> 14700
B56: D - ATIVIDADES AUXILIARES | D56: Quantidade | E56: Unidade
B57: 6416030 | C57: =VLOOKUP(B57,'SINTÉTICO SICRO'!A:D,2,0) -> Usinagem de solo brita (70% - 30%) com material de jazida e brita comercial em usina de 300 t/h | D57: 1 | E57: m³
B59: F - MOMENTO DE TRANSPORTE | D59: Quantidade | E59: Unidade | F59: CÓDIGO TRANSPORTE
F60: LN | G60: RP | H60: P | I60: TIPO (P, RP ou LN) | J60: DMT ESTIMADA (km) | K60: QUANTITATIVO TOTAL DE TRANSPORTE (tkm)
A61: =IF(I61="P",H61,IF(I61="RP",G61,IF(I61="LN",F61,""))) -> 5914389 | B61: 6416030 | C61: =VLOOKUP(B61,'SINTÉTICO SICRO'!A:D,2,0) -> Usinagem de solo brita (70% - 30%) com material de jazida e brita comercial em usina de 300 t/h | D61: 2.063 | E61: tkm | F61: 5914359 | G61: 5914374 | H61: 5914389 | I61: =$B$21 -> P | J61: =$C$21 -> 81 | K61: =IF(ISBLANK(J61),"",J61*D61)*I55 -> 2456414.1
B63: Obs.
B65: SISTEMA DE CUSTOS REFERENCIAIS DE OBRAS - SICRO
B66: Custo Unitário de Referência | I66: Quantitativo | K66: m
B67: 2003943 | C67: =VLOOKUP(B67,'SINTÉTICO SICRO'!A:D,2,0) -> Meio-fio de concreto - MFC 03 moldado no local com extrusora e concreto usinado - areia e brita comerciais | I67: =SUMIF('RESUMO MODULO TOTAL'!D:D,B67,'RESUMO MODULO TOTAL'!J:J) -> 28000
B68: D - ATIVIDADES AUXILIARES | D68: Quantidade | E68: Unidade
B69: 1107928 | C69: =VLOOKUP(B69,'SINTÉTICO SICRO'!A:D,2,0) -> Concreto fck = 20 MPa - confecção em central dosadora de 30 m³/h - areia e brita comerciais | D69: 0.042 | E69: m³
B70: 2003842 | C70: =VLOOKUP(B70,'SINTÉTICO SICRO'!A:D,2,0) -> Enchimento de junta de concreto com argamassa asfáltica de densidade 1.700 kg/m³ - espessura de 1 cm | D70: 0.0595 | E70: kg
B71: 4805750 | C71: =VLOOKUP(B71,'SINTÉTICO SICRO'!A:D,2,0) -> Escavação manual em material de 1ª categoria na profundidade de até 1 m | D71: 0.03 | E71: m³
B73: F - MOMENTO DE TRANSPORTE | D73: Quantidade | E73: Unidade | F73: CÓDIGO TRANSPORTE
F74: LN | G74: RP | H74: P | I74: TIPO (P, RP ou LN) | J74: DMT ESTIMADA (km) | K74: QUANTITATIVO TOTAL DE TRANSPORTE (tkm)
A75: =IF(I75="P",H75,IF(I75="RP",G75,IF(I75="LN",F75,""))) -> 5914569 | B75: 1107928 | C75: =VLOOKUP(B75,'SINTÉTICO SICRO'!A:D,2,0) -> Concreto fck = 20 MPa - confecção em central dosadora de 30 m³/h - areia e brita comerciais | D75: 0.1008 | E75: tkm | F75: 5914539 | G75: 5914554 | H75: 5914569 | I75: =$B$21 -> P | J75: =$C$21 -> 81 | K75: =IF(ISBLANK(J75),"",J75*D75)*I67 -> 228614.4
B76: Obs.
B77: TIPO (P, RP ou LN) | C77: DMT ESTIMADA (DISTRIBUIÇÃO DO ITEM NA PISTA
B78: LN | C78: 0
B80: COMPOSIÇÕES PRINCIPAIS
B81: SISTEMA DE CUSTOS REFERENCIAIS DE OBRAS - SICRO
B82: Custo Unitário de Referência | E82: =$C$6 -> Rio Grande do Norte - Abril/2024 | I82: Quantitativo | K82: m²
B83: ='RESUMO MODULO TOTAL'!$D$23 -> 4915637 | C83: =VLOOKUP(B83,'SINTÉTICO SICRO'!$A$4:$D$1048576,2,0) -> Capa selante - areia comercial | I83: =(SUMIF('RESUMO MODULO TOTAL'!D:D,B83,'RESUMO MODULO TOTAL'!J:J))*0 -> 0
B84: F - MOMENTO DE TRANSPORTE | D84: Quantidade | E84: Unidade | F84: CÓDIGO TRANSPORTE
F85: LN | G85: RP | H85: P | I85: TIPO (P, RP ou LN) | J85: DMT ESTIMADA (km) | K85: QUANTITATIVO TOTAL DE TRANSPORTE (tkm)
A86: =IF(I86="P",H86,IF(I86="RP",G86,IF(I86="LN",F86,""))) -> 5914314 | B86: M0028 | C86: Areia média - Caminhão Basculante com capacidade de 6m³ | D86: 0.00435 | E86: tkm | F86: 5914314 | G86: 5914329 | H86: 5914344 | I86: =$B$78 -> LN | J86: =$C$78 -> 0 | K86: =IF(ISBLANK(J86),"",J86*D86)*I83 -> 0
A87: =IF(I87="P",H87,IF(I87="RP",G87,IF(I87="LN",F87,""))) -> 
B88: Obs.
B89: SISTEMA DE CUSTOS REFERENCIAIS DE OBRAS - SICRO
B90: Custo Unitário de Referência | E90: =$C$6 -> Rio Grande do Norte - Abril/2024 | I90: Quantitativo | K90: m²
B91: ='RESUMO MODULO TOTAL'!$D$24 -> 4011370 | C91: =VLOOKUP(B91,'SINTÉTICO SICRO'!$A$4:$D$1048576,2,0) -> Tratamento superficial duplo com emulsão - brita comercial | I91: =(SUMIF('RESUMO MODULO TOTAL'!D:D,B91,'RESUMO MODULO TOTAL'!J:J))*0 -> 0
B92: F - MOMENTO DE TRANSPORTE | D92: Quantidade | E92: Unidade | F92: CÓDIGO TRANSPORTE
F93: LN | G93: RP | H93: P | I93: TIPO (P, RP ou LN) | J93: DMT ESTIMADA (km) | K93: QUANTITATIVO TOTAL DE TRANSPORTE (tkm)
A94: =IF(I94="P",H94,IF(I94="RP",G94,IF(I94="LN",F94,""))) -> 5914359 | B94: M005 | C94: Brita 0 - Caminhão basculante com capacidade de 10 m³ - 188 Kw | D94: 0.011 | E94: tkm | F94: 5914359 | G94: 5914374 | H94: 5914389 | I94: =$B$78 -> LN | J94: =$C$78 -> 0 | K94: =IF(ISBLANK(J94),"",J94*D94)*I91 -> 0
A95: =IF(I95="P",H95,IF(I95="RP",G95,IF(I95="LN",F95,""))) -> 5914359 | B95: M0191 | C95: Brita 1 - Caminhão basculante com capacidade de 10 m³ - 188 kW | D95: 0.0225 | E95: tkm | F95: 5914359 | G95: 5914374 | H95: 5914389 | I95: LN | J95: =$C$78 -> 0 | K95: =IF(ISBLANK(J95),"",J95*D95)*I91 -> 0
A96: =IF(I96="P",H96,IF(I96="RP",G96,IF(I96="LN",F96,""))) -> 
A98: =IF(I98="P",H98,IF(I98="RP",G98,IF(I98="LN",F98,""))) ->  | B98: SISTEMA DE CUSTOS REFERENCIAIS DE OBRAS - SICRO
B99: Custo Unitário de Referência | E99: =$C$6 -> Rio Grande do Norte - Abril/2024 | I99: Quantitativo | K99: un
B100: ='RESUMO MODULO TOTAL'!$D$26 -> 4011268 | C100: =VLOOKUP(B100,'SINTÉTICO SICRO'!$A$4:$D$1048576,2,0) -> Base estabilizada granulometricamente com mistura solo brita (70% - 30%) em usina com material de jazida e brita comercial | I100: =(SUMIF('RESUMO MODULO TOTAL'!D:D,B100,'RESUMO MODULO TOTAL'!J:J))*0 -> 0
B101: D - ATIVIDADES AUXILIARES | D101: Quantidade | E101: Unidade
B102: 6416030 | C102: Usinagem de solo brita (70% - 30%) com material de jazida e brita comercial em usina de 300 t/h | D102: 1 | E102: m³
B104: F - MOMENTO DE TRANSPORTE | D104: Quantidade | E104: Unidade | F104: CÓDIGO TRANSPORTE
F105: LN | G105: RP | H105: P | I105: TIPO (P, RP ou LN) | J105: DMT ESTIMADA (km) | K105: QUANTITATIVO TOTAL DE TRANSPORTE (tkm)
A106: 5914359 | B106: 6416030 | C106: Usinagem de solo brita (70% - 30%) com material de jazida e brita comercial em usina de 300 t/h - Caminhão basculante 10 m³ | D106: 2.063 | E106: tkm | F106: 5914359 | G106: 5914374 | H106: 5914389 | I106: =$B$78 -> LN | J106: =$C$78 -> 0 | K106: =IF(ISBLANK(J106),"",J106*D106)*I100 -> 0
B108: Obs.
B109: SISTEMA DE CUSTOS REFERENCIAIS DE OBRAS - SICRO
B110: Custo Unitário de Referência | I110: Quantitativo | K110: m³
B111: 4011235 | C111: =VLOOKUP(B111,'SINTÉTICO SICRO'!A:D,2,0) -> Sub-base estabilizada granulometricamente com mistura solo brita (70% - 30%) em usina com material de jazida e brita comercial | I111: =SUMIF('RESUMO MODULO TOTAL'!D:D,B111,'RESUMO MODULO TOTAL'!J:J)*0 -> 0
B112: D - ATIVIDADES AUXILIARES | D112: Quantidade | E112: Unidade
B113: 6416030 | C113: =VLOOKUP(B113,'SINTÉTICO SICRO'!A:D,2,0) -> Usinagem de solo brita (70% - 30%) com material de jazida e brita comercial em usina de 300 t/h | D113: 1 | E113: m³
B115: F - MOMENTO DE TRANSPORTE | D115: Quantidade | E115: Unidade | F115: CÓDIGO TRANSPORTE
F116: LN | G116: RP | H116: P | I116: TIPO (P, RP ou LN) | J116: DMT ESTIMADA (km) | K116: QUANTITATIVO TOTAL DE TRANSPORTE (tkm)
A117: =IF(I117="P",H117,IF(I117="RP",G117,IF(I117="LN",F117,""))) -> 5914359 | B117: 6416030 | C117: =VLOOKUP(B117,'SINTÉTICO SICRO'!A:D,2,0) -> Usinagem de solo brita (70% - 30%) com material de jazida e brita comercial em usina de 300 t/h | D117: 2.063 | E117: tkm | F117: 5914359 | G117: 5914374 | H117: 5914389 | I117: =$B$78 -> LN | J117: =$C$78 -> 0 | K117: =IF(ISBLANK(J117),"",J117*D117)*I111 -> 0
B119: Obs.
B120: SISTEMA DE CUSTOS REFERENCIAIS DE OBRAS - SICRO
B121: Custo Unitário de Referência | I121: Quantitativo | K121: m
B122: 2003943 | C122: =VLOOKUP(B122,'SINTÉTICO SICRO'!A:D,2,0) -> Meio-fio de concreto - MFC 03 moldado no local com extrusora e concreto usinado - areia e brita comerciais | I122: =SUMIF('RESUMO MODULO TOTAL'!D:D,B122,'RESUMO MODULO TOTAL'!J:J)*0 -> 0
B123: D - ATIVIDADES AUXILIARES | D123: Quantidade | E123: Unidade
B124: 1107928 | C124: =VLOOKUP(B124,'SINTÉTICO SICRO'!A:D,2,0) -> Concreto fck = 20 MPa - confecção em central dosadora de 30 m³/h - areia e brita comerciais | D124: 0.042 | E124: m³
B125: 2003842 | C125: =VLOOKUP(B125,'SINTÉTICO SICRO'!A:D,2,0) -> Enchimento de junta de concreto com argamassa asfáltica de densidade 1.700 kg/m³ - espessura de 1 cm | D125: 0.0595 | E125: kg
B126: 4805750 | C126: =VLOOKUP(B126,'SINTÉTICO SICRO'!A:D,2,0) -> Escavação manual em material de 1ª categoria na profundidade de até 1 m | D126: 0.03 | E126: m³
B128: F - MOMENTO DE TRANSPORTE | D128: Quantidade | E128: Unidade | F128: CÓDIGO TRANSPORTE
F129: LN | G129: RP | H129: P | I129: TIPO (P, RP ou LN) | J129: DMT ESTIMADA (km) | K129: QUANTITATIVO TOTAL DE TRANSPORTE (tkm)
A130: =IF(I130="P",H130,IF(I130="RP",G130,IF(I130="LN",F130,""))) -> 5914539 | B130: 1107928 | C130: =VLOOKUP(B130,'SINTÉTICO SICRO'!A:D,2,0) -> Concreto fck = 20 MPa - confecção em central dosadora de 30 m³/h - areia e brita comerciais | D130: 0.1008 | E130: tkm | F130: 5914539 | G130: 5914554 | H130: 5914569 | I130: =$B$78 -> LN | J130: =$C$78 -> 0 | K130: =IF(ISBLANK(J130),"",J130*D130)*I122 -> 0
B131: Obs.
B132: TIPO (P, RP ou LN) | C132: DMT ESTIMADA (DISTRIBUIÇÃO DO ITEM NA PISTA
B133: RP | C133: =90*0.1 -> 9
B135: COMPOSIÇÕES PRINCIPAIS
B136: SISTEMA DE CUSTOS REFERENCIAIS DE OBRAS - SICRO
B137: Custo Unitário de Referência | E137: =$C$6 -> Rio Grande do Norte - Abril/2024 | I137: Quantitativo | K137: m²
B138: ='RESUMO MODULO TOTAL'!$D$23 -> 4915637 | C138: =VLOOKUP(B138,'SINTÉTICO SICRO'!$A$4:$D$1048576,2,0) -> Capa selante - areia comercial | I138: =(SUMIF('RESUMO MODULO TOTAL'!D:D,B138,'RESUMO MODULO TOTAL'!J:J)) -> 98000
B139: F - MOMENTO DE TRANSPORTE | D139: Quantidade | E139: Unidade | F139: CÓDIGO TRANSPORTE
F140: LN | G140: RP | H140: P | I140: TIPO (P, RP ou LN) | J140: DMT ESTIMADA (km) | K140: QUANTITATIVO TOTAL DE TRANSPORTE (tkm)
A141: =IF(I141="P",H141,IF(I141="RP",G141,IF(I141="LN",F141,""))) -> 5914329 | B141: M0028 | C141: Areia média - Caminhão Basculante com capacidade de 6m³ | D141: 0.00435 | E141: tkm | F141: 5914314 | G141: 5914329 | H141: 5914344 | I141: =$B$133 -> RP | J141: =C133 -> 9 | K141: =IF(ISBLANK(J141),"",J141*D141)*I138 -> 3836.7
A142: =IF(I142="P",H142,IF(I142="RP",G142,IF(I142="LN",F142,""))) -> 
B143: Obs.
B144: SISTEMA DE CUSTOS REFERENCIAIS DE OBRAS - SICRO
B145: Custo Unitário de Referência | E145: =$C$6 -> Rio Grande do Norte - Abril/2024 | I145: Quantitativo | K145: m²
B146: ='RESUMO MODULO TOTAL'!$D$24 -> 4011370 | C146: =VLOOKUP(B146,'SINTÉTICO SICRO'!$A$4:$D$1048576,2,0) -> Tratamento superficial duplo com emulsão - brita comercial | I146: =(SUMIF('RESUMO MODULO TOTAL'!D:D,B146,'RESUMO MODULO TOTAL'!J:J)) -> 98000
B147: F - MOMENTO DE TRANSPORTE | D147: Quantidade | E147: Unidade | F147: CÓDIGO TRANSPORTE
F148: LN | G148: RP | H148: P | I148: TIPO (P, RP ou LN) | J148: DMT ESTIMADA (km) | K148: QUANTITATIVO TOTAL DE TRANSPORTE (tkm)
A149: =IF(I149="P",H149,IF(I149="RP",G149,IF(I149="LN",F149,""))) -> 5914374 | B149: M005 | C149: Brita 0 - Caminhão basculante com capacidade de 10 m³ - 188 Kw | D149: 0.011 | E149: tkm | F149: 5914359 | G149: 5914374 | H149: 5914389 | I149: =$B$133 -> RP | J149: =C133 -> 9 | K149: =IF(ISBLANK(J149),"",J149*D149)*I146 -> 9702
A150: =IF(I150="P",H150,IF(I150="RP",G150,IF(I150="LN",F150,""))) -> 5914374 | B150: M0191 | C150: Brita 1 - Caminhão basculante com capacidade de 10 m³ - 188 kW | D150: 0.0225 | E150: tkm | F150: 5914359 | G150: 5914374 | H150: 5914389 | I150: =$B$133 -> RP | J150: =C133 -> 9 | K150: =IF(ISBLANK(J150),"",J150*D150)*I146 -> 19845
A151: =IF(I151="P",H151,IF(I151="RP",G151,IF(I151="LN",F151,""))) -> 
A153: =IF(I153="P",H153,IF(I153="RP",G153,IF(I153="LN",F153,""))) ->  | B153: SISTEMA DE CUSTOS REFERENCIAIS DE OBRAS - SICRO
B154: Custo Unitário de Referência | E154: =$C$6 -> Rio Grande do Norte - Abril/2024 | I154: Quantitativo | K154: un
B155: ='RESUMO MODULO TOTAL'!$D$26 -> 4011268 | C155: =VLOOKUP(B155,'SINTÉTICO SICRO'!$A$4:$D$1048576,2,0) -> Base estabilizada granulometricamente com mistura solo brita (70% - 30%) em usina com material de jazida e brita comercial | I155: =(SUMIF('RESUMO MODULO TOTAL'!D:D,B155,'RESUMO MODULO TOTAL'!J:J)) -> 14700
B156: D - ATIVIDADES AUXILIARES | D156: Quantidade | E156: Unidade
B157: 6416030 | C157: Usinagem de solo brita (70% - 30%) com material de jazida e brita comercial em usina de 300 t/h | D157: 1 | E157: m³
B159: F - MOMENTO DE TRANSPORTE | D159: Quantidade | E159: Unidade | F159: CÓDIGO TRANSPORTE
F160: LN | G160: RP | H160: P | I160: TIPO (P, RP ou LN) | J160: DMT ESTIMADA (km) | K160: QUANTITATIVO TOTAL DE TRANSPORTE (tkm)
A161: 5914374 | B161: 6416030 | C161: Usinagem de solo brita (70% - 30%) com material de jazida e brita comercial em usina de 300 t/h - Caminhão basculante 10 m³ | D161: 2.063 | E161: tkm | F161: 5914359 | G161: 5914374 | H161: 5914389 | I161: =$B$133 -> RP | J161: =$C$133 -> 9 | K161: =IF(ISBLANK(J161),"",J161*D161)*I155 -> 272934.9
B163: Obs.
B164: SISTEMA DE CUSTOS REFERENCIAIS DE OBRAS - SICRO
B165: Custo Unitário de Referência | I165: Quantitativo | K165: m³
B166: 4011235 | C166: =VLOOKUP(B166,'SINTÉTICO SICRO'!A:D,2,0) -> Sub-base estabilizada granulometricamente com mistura solo brita (70% - 30%) em usina com material de jazida e brita comercial | I166: =SUMIF('RESUMO MODULO TOTAL'!D:D,B166,'RESUMO MODULO TOTAL'!J:J) -> 14700
B167: D - ATIVIDADES AUXILIARES | D167: Quantidade | E167: Unidade
B168: 6416030 | C168: =VLOOKUP(B168,'SINTÉTICO SICRO'!A:D,2,0) -> Usinagem de solo brita (70% - 30%) com material de jazida e brita comercial em usina de 300 t/h | D168: 1 | E168: m³
B170: F - MOMENTO DE TRANSPORTE | D170: Quantidade | E170: Unidade | F170: CÓDIGO TRANSPORTE
F171: LN | G171: RP | H171: P | I171: TIPO (P, RP ou LN) | J171: DMT ESTIMADA (km) | K171: QUANTITATIVO TOTAL DE TRANSPORTE (tkm)
A172: =IF(I172="P",H172,IF(I172="RP",G172,IF(I172="LN",F172,""))) -> 5914374 | B172: 6416030 | C172: =VLOOKUP(B172,'SINTÉTICO SICRO'!A:D,2,0) -> Usinagem de solo brita (70% - 30%) com material de jazida e brita comercial em usina de 300 t/h | D172: 2.063 | E172: tkm | F172: 5914359 | G172: 5914374 | H172: 5914389 | I172: =$B$133 -> RP | J172: =$C$133 -> 9 | K172: =IF(ISBLANK(J172),"",J172*D172)*I166 -> 272934.9
B174: Obs.
B175: SISTEMA DE CUSTOS REFERENCIAIS DE OBRAS - SICRO
B176: Custo Unitário de Referência | I176: Quantitativo | K176: m
B177: 2003943 | C177: =VLOOKUP(B177,'SINTÉTICO SICRO'!A:D,2,0) -> Meio-fio de concreto - MFC 03 moldado no local com extrusora e concreto usinado - areia e brita comerciais | I177: =SUMIF('RESUMO MODULO TOTAL'!D:D,B177,'RESUMO MODULO TOTAL'!J:J) -> 28000
B178: D - ATIVIDADES AUXILIARES | D178: Quantidade | E178: Unidade
B179: 1107928 | C179: =VLOOKUP(B179,'SINTÉTICO SICRO'!A:D,2,0) -> Concreto fck = 20 MPa - confecção em central dosadora de 30 m³/h - areia e brita comerciais | D179: 0.042 | E179: m³
B180: 2003842 | C180: =VLOOKUP(B180,'SINTÉTICO SICRO'!A:D,2,0) -> Enchimento de junta de concreto com argamassa asfáltica de densidade 1.700 kg/m³ - espessura de 1 cm | D180: 0.0595 | E180: kg
B181: 4805750 | C181: =VLOOKUP(B181,'SINTÉTICO SICRO'!A:D,2,0) -> Escavação manual em material de 1ª categoria na profundidade de até 1 m | D181: 0.03 | E181: m³
B183: F - MOMENTO DE TRANSPORTE | D183: Quantidade | E183: Unidade | F183: CÓDIGO TRANSPORTE
F184: LN | G184: RP | H184: P | I184: TIPO (P, RP ou LN) | J184: DMT ESTIMADA (km) | K184: QUANTITATIVO TOTAL DE TRANSPORTE (tkm)
A185: =IF(I185="P",H185,IF(I185="RP",G185,IF(I185="LN",F185,""))) -> 5914554 | B185: 1107928 | C185: =VLOOKUP(B185,'SINTÉTICO SICRO'!A:D,2,0) -> Concreto fck = 20 MPa - confecção em central dosadora de 30 m³/h - areia e brita comerciais | D185: 0.1008 | E185: tkm | F185: 5914539 | G185: 5914554 | H185: 5914569 | I185: =$B$133 -> RP | J185: =C133 -> 9 | K185: =IF(ISBLANK(J185),"",J185*D185)*I177 -> 25401.6
B186: Obs.

Sheet MOMENTO DE TRANSPORTE - AUX
B5: ='RESUMO MODULO TOTAL'!B1 -> EXECUÇÃO DE SERVIÇOS DE PAVIMENTAÇÃO COM TRATAMENTO SUPERFICIAL DUPLO EM VIAS DE MUNICÍPIOS DIVERSOS INSERIDOS NA ÁREA DE ATUAÇÃO DA CODEVASF, NO ESTADO DO RIO GRANDE DO NORTE (REGIÃO 1)
B6: DATA BASE: | C6: ='RESUMO MODULO TOTAL'!$N$2 -> Rio Grande do Norte - Abril/2024
C8: RESUMO DO TRANSPORTE AUXILIAR
B9: CODIGO | C9: DESCRIÇÃO | D9: TKM
B10: 5914359 | C10: =VLOOKUP(B10,'SINTÉTICO SICRO'!$A:$D,2,0) -> Transporte com caminhão basculante de 10 m³ - rodovia em leito natural | D10: =ROUND(SUMIF($A:$A,B10,$K:$K),2) -> 0
B11: 5914374 | C11: =VLOOKUP(B11,'SINTÉTICO SICRO'!$A:$D,2,0) -> Transporte com caminhão basculante de 10 m³ - rodovia em revestimento primário | D11: 254741
B12: 5914389 | C12: =VLOOKUP(B12,'SINTÉTICO SICRO'!$A:$D,2,0) -> Transporte com caminhão basculante de 10 m³ - rodovia pavimentada | D12: 2292669.04
B13: 5914449 | C13: =VLOOKUP(B13,'SINTÉTICO SICRO'!$A:$D,2,0) -> Transporte com caminhão carroceria de 15 t - rodovia em leito natural | D13: 0
B14: 5914464 | C14: =VLOOKUP(B14,'SINTÉTICO SICRO'!$A:$D,2,0) -> Transporte com caminhão carroceria de 15 t - rodovia em revestimento primário | D14: 0
B15: 5914479 | C15: =VLOOKUP(B15,'SINTÉTICO SICRO'!$A:$D,2,0) -> Transporte com caminhão carroceria de 15 t - rodovia pavimentada | D15: 0
B16: 5914364 | C16: =VLOOKUP(B16,'SINTÉTICO SICRO'!$A:$D,2,0) -> Transporte de cimento ou cal hidratada a granel com caminhão silo de 30 m³ - rodovia em leito natural | D16: 0
B17: 5914365 | C17: =VLOOKUP(B17,'SINTÉTICO SICRO'!$A:$D,2,0) -> Transporte de cimento ou cal hidratada a granel com caminhão silo de 30 m³ - rodovia em revestimento primário | D17: 0
B18: 5914366 | C18: =VLOOKUP(B18,'SINTÉTICO SICRO'!$A:$D,2,0) -> Transporte de cimento ou cal hidratada a granel com caminhão silo de 30 m³ - rodovia pavimentada | D18: 0
B20: TIPO (P, RP ou LN) | C20: DMT ATÉ 50 KM NÃO DEVE SER PAGA | D20: SOMENTE DEVE SER ADICIONADO A DISTÂNCIA EXCEDENTE A 50 KM
B21: P | D21: 0
A23: =IF(I23="P",H23,IF(I23="RP",G23,IF(I23="LN",F23,""))) ->  | B23: SISTEMA DE CUSTOS REFERENCIAIS DE OBRAS - SICRO | I23: Quantitivo
B24: Custo Unitário de Referência | E24: =$C$6 -> Rio Grande do Norte - Abril/2024 | I24: (Coeficiente na composição principal) x (quantidade da principal no orçamento) | K24: m³
B25: 6416030 | C25: Usinagem de solo brita (70% - 30%) com material de jazida e brita comercial em usina de 300 t/h | I25: =('MOMENTO DE TRANSPORTE - PRINC'!D46*VLOOKUP(C31,'RESUMO MODULO TOTAL'!D:Q,7,FALSE)) -> 14700
B26: F - MOMENTO DE TRANSPORTE | D26: Quantidade | E26: Unidade | F26: DMT
F27: LN | G27: RP | H27: P | I27: TIPO (P, RP ou LN) | J27: DMT ESTIMADA (km) | K27: QUANTITATIVO TOTAL DE TRANSPORTE DE MATERIAL (tkm)
A28: 5914389 | B28: 4016096 | C28: Escavação e carga de material de jazida com escavadeira hidráulica de 1,56 m³ - Caminhão basculante 10 m³ | D28: 1.44411 | E28: tkm | F28: 5914359 | G28: 5914374 | H28: 5914389 | I28: =$B$21 -> P | J28: =(110-50)*0.9 -> 54 | K28: =IF(ISBLANK(J28),"",J28*(D28*$I$25)) -> 1146334.518
A29: 5914389 | B29: M0191 | C29: Brita 1 - Caminhão basculante 10 m³ | D29: 0.6189 | E29: tkm | F29: 5914359 | G29: 5914374 | H29: 5914389 | I29: P | J29: =$D$21 -> 0 | K29: =IF(ISBLANK(J29),"",J29*(D29*$I$25)) -> 0
B31: PRINCIPAL: | C31: 4011268
A32: =IF(I32="P",H32,IF(I32="RP",G32,IF(I32="LN",F32,""))) ->  | B32: SISTEMA DE CUSTOS REFERENCIAIS DE OBRAS - SICRO | I32: Quantitivo
B33: Custo Unitário de Referência | E33: =$C$6 -> Rio Grande do Norte - Abril/2024 | I33: (Coeficiente na composição principal) x (quantidade da principal no orçamento) | K33: m³
B34: 6416030 | C34: Usinagem de solo brita (70% - 30%) com material de jazida e brita comercial em usina de 300 t/h | I34: =('MOMENTO DE TRANSPORTE - PRINC'!D57*VLOOKUP(C40,'RESUMO MODULO TOTAL'!D:Q,7,FALSE)) -> 14700
B35: F - MOMENTO DE TRANSPORTE | D35: Quantidade | E35: Unidade | F35: DMT
F36: LN | G36: RP | H36: P | I36: TIPO (P, RP ou LN) | J36: DMT ESTIMADA (km) | K36: QUANTITATIVO TOTAL DE TRANSPORTE DE MATERIAL (tkm)
A37: 5914389 | B37: 4016096 | C37: Escavação e carga de material de jazida com escavadeira hidráulica de 1,56 m³ - Caminhão basculante 10 m³ | D37: 1.44411 | E37: tkm | F37: 5914359 | G37: 5914374 | H37: 5914389 | I37: =$B$21 -> P | J37: =J28 -> 54 | K37: =IF(ISBLANK(J37),"",J37*(D37*$I$34)) -> 1146334.518
A38: 5914389 | B38: M0191 | C38: Brita 1 - Caminhão basculante 10 m³ | D38: 0.6189 | E38: tkm | F38: 5914359 | G38: 5914374 | H38: 5914389 | I38: P | J38: =$D$21 -> 0 | K38: =IF(ISBLANK(J38),"",J38*(D38*$I$34)) -> 0
B40: PRINCIPAL: | C40: 4011235
B41: SISTEMA DE CUSTOS REFERENCIAIS DE OBRAS - SICRO | I41: Quantitivo
B42: Custo Unitário de Referência | E42: =$C$6 -> Rio Grande do Norte - Abril/2024 | I42: (Coeficiente na composição principal) x (quantidade da principal no orçamento) | K42: m³
B43: 1107892 | C43: Concreto fck = 20 MPa - confecção em betoneira e lançamento manual - areia e brita comerciais | I43: =('MOMENTO DE TRANSPORTE - PRINC'!D69*VLOOKUP(C52,'RESUMO MODULO TOTAL'!D:Q,7,FALSE)) -> 1176
B44: F - MOMENTO DE TRANSPORTE | D44: Quantidade | E44: Unidade | F44: DMT
F45: LN | G45: RP | H45: P | I45: TIPO (P, RP ou LN) | J45: DMT ESTIMADA (km) | K45: QUANTITATIVO TOTAL DE TRANSPORTE DE MATERIAL (tkm)
A46: =IF(I46="P",H46,IF(I46="RP",G46,IF(I46="LN",F46,""))) -> 5914479 | B46: M0030 | C46: Aditivo plastificante e retardador de pega para concreto e argamassa - Caminhão carroceria 15 t | D46: 0.00082 | E46: tkm | F46: 5914449 | G46: 5914464 | H46: 5914479 | I46: =$B$21 -> P | J46: =$D$21 -> 0 | K46: =IF(ISBLANK(J46),"",J46*(D46*$I$43)) -> 0
A47: 5914389 | B47: M0082 | C47: Areia média lavada - Caminhão basculante 10 m³ | D47: 0.95639 | E47: tkm | F47: 5914359 | G47: 5914374 | H47: 5914389 | I47: =$B$21 -> P | J47: =$D$21 -> 0 | K47: =IF(ISBLANK(J47),"",J47*(D47*$I$43)) -> 0
A48: 5914389 | B48: M0191 | C48: Brita 1 - Caminhão basculante 10 m³ | D48: 0.55131 | E48: tkm | F48: 5914359 | G48: 5914374 | H48: 5914389 | I48: P | J48: 0 | K48: =IF(ISBLANK(J48),"",J48*(D48*$I$43)) -> 0
A49: 5914389 | B49: M0192 | C49: Brita 2 - Caminhão basculante 10 m³ | D49: 0.55131 | E49: tkm | F49: 5914359 | G49: 5914374 | H49: 5914389 | I49: P | J49: 0 | K49: =IF(ISBLANK(J49),"",J49*(D49*$I$43)) -> 0
A50: 5914479 | B50: M0424 | C50: Cimento Portland CP II - 32 - saco - Caminhão carroceria 15 t | D50: 0.27464 | E50: tkm | F50: 5914449 | G50: 5914464 | H50: 5914479 | I50: P | J50: 0 | K50: =IF(ISBLANK(J50),"",J50*(D50*$I$43)) -> 0
B52: PRINCIPAL: | C52: 2003943
B53: SISTEMA DE CUSTOS REFERENCIAIS DE OBRAS - SICRO | I53: Quantitivo
B54: Custo Unitário de Referência | E54: =$C$6 -> Rio Grande do Norte - Abril/2024 | I54: (Coeficiente na composição principal) x (quantidade da principal no orçamento) | K54: kg
B55: 2003842 | C55: Enchimento de junta de concreto com argamassa asfáltica de densidade 1.700 kg/m³ - espessura de 1 cm | I55: =('MOMENTO DE TRANSPORTE - PRINC'!D70*VLOOKUP(C60,'RESUMO MODULO TOTAL'!D:Q,7,FALSE)) -> 1666
B56: F - MOMENTO DE TRANSPORTE | D56: Quantidade | E56: Unidade | F56: DMT
F57: LN | G57: RP | H57: P | I57: TIPO (P, RP ou LN) | J57: DMT ESTIMADA (km) | K57: QUANTITATIVO TOTAL DE TRANSPORTE DE MATERIAL (tkm)
A58: 5914479 | B58: M2158 | C58: Argamassa asfáltica - Caminhão carroceria com capacidade de 15 t - 188 Kw | D58: 0.001 | E58: tkm | F58: 5914449 | G58: 5914464 | H58: 5914479 | I58: =$B$21 -> P | J58: =$D$21 -> 0 | K58: =IF(ISBLANK(J58),"",J58*(D58*$I$55)) -> 0
B60: PRINCIPAL: | C60: 2003943
B62: TIPO (P, RP ou LN) | C62: DMT ATÉ 50 KM NÃO DEVE SER PAGA | D62: SOMENTE DEVE SER ADICIONADO A DISTÂNCIA EXCEDENTE A 50 KM
B63: LN | D63: =D21 -> 0
A65: =IF(I65="P",H65,IF(I65="RP",G65,IF(I65="LN",F65,""))) ->  | B65: SISTEMA DE CUSTOS REFERENCIAIS DE OBRAS - SICRO | I65: Quantitivo
B66: Custo Unitário de Referência | E66: =$C$6 -> Rio Grande do Norte - Abril/2024 | I66: (Coeficiente na composição principal) x (quantidade da principal no orçamento) | K66: m³
B67: 6416030 | C67: Usinagem de solo brita (70% - 30%) com material de jazida e brita comercial em usina de 300 t/h | I67: 0
B68: F - MOMENTO DE TRANSPORTE | D68: Quantidade | E68: Unidade | F68: DMT
F69: LN | G69: RP | H69: P | I69: TIPO (P, RP ou LN) | J69: DMT ESTIMADA (km) | K69: QUANTITATIVO TOTAL DE TRANSPORTE DE MATERIAL (tkm)
A70: 5914359 | B70: 4016096 | C70: Escavação e carga de material de jazida com escavadeira hidráulica de 1,56 m³ - Caminhão basculante 10 m³ | D70: 1.44411 | E70: tkm | F70: 5914359 | G70: 5914374 | H70: 5914389 | I70: =$B$63 -> LN | J70: 0 | K70: =IF(ISBLANK(J70),"",J70*(D70*$I$67)) -> 0
A71: 5914359 | B71: M0191 | C71: Brita 1 - Caminhão basculante 10 m³ | D71: 0.6189 | E71: tkm | F71: 5914359 | G71: 5914374 | H71: 5914389 | I71: =$B$63 -> LN | J71: =$D$63 -> 0 | K71: =IF(ISBLANK(J71),"",J71*(D71*$I$67)) -> 0
B73: PRINCIPAL: | C73: 4011268
A74: =IF(I74="P",H74,IF(I74="RP",G74,IF(I74="LN",F74,""))) ->  | B74: SISTEMA DE CUSTOS REFERENCIAIS DE OBRAS - SICRO | I74: Quantitivo
B75: Custo Unitário de Referência | E75: =$C$6 -> Rio Grande do Norte - Abril/2024 | I75: (Coeficiente na composição principal) x (quantidade da principal no orçamento) | K75: m³
B76: 6416030 | C76: Usinagem de solo brita (70% - 30%) com material de jazida e brita comercial em usina de 300 t/h | I76: 0
B77: F - MOMENTO DE TRANSPORTE | D77: Quantidade | E77: Unidade | F77: DMT
F78: LN | G78: RP | H78: P | I78: TIPO (P, RP ou LN) | J78: DMT ESTIMADA (km) | K78: QUANTITATIVO TOTAL DE TRANSPORTE DE MATERIAL (tkm)
A79: 5914359 | B79: 4016096 | C79: Escavação e carga de material de jazida com escavadeira hidráulica de 1,56 m³ - Caminhão basculante 10 m³ | D79: 1.44411 | E79: tkm | F79: 5914359 | G79: 5914374 | H79: 5914389 | I79: =$B$63 -> LN | J79: 0 | K79: =IF(ISBLANK(J79),"",J79*(D79*$I$76)) -> 0
A80: 5914359 | B80: M0191 | C80: Brita 1 - Caminhão basculante 10 m³ | D80: 0.6189 | E80: tkm | F80: 5914359 | G80: 5914374 | H80: 5914389 | I80: =$B$63 -> LN | J80: =$D$63 -> 0 | K80: =IF(ISBLANK(J80),"",J80*(D80*$I$76)) -> 0
B82: PRINCIPAL: | C82: 4011235
B83: SISTEMA DE CUSTOS REFERENCIAIS DE OBRAS - SICRO | I83: Quantitivo
B84: Custo Unitário de Referência | E84: =$C$6 -> Rio Grande do Norte - Abril/2024 | I84: (Coeficiente na composição principal) x (quantidade da principal no orçamento) | K84: m³
B85: 1107892 | C85: Concreto fck = 20 MPa - confecção em betoneira e lançamento manual - areia e brita comerciais | I85: 0
B86: F - MOMENTO DE TRANSPORTE | D86: Quantidade | E86: Unidade | F86: DMT
F87: LN | G87: RP | H87: P | I87: TIPO (P, RP ou LN) | J87: DMT ESTIMADA (km) | K87: QUANTITATIVO TOTAL DE TRANSPORTE DE MATERIAL (tkm)
A88: =IF(I88="P",H88,IF(I88="RP",G88,IF(I88="LN",F88,""))) -> 5914449 | B88: M0030 | C88: Aditivo plastificante e retardador de pega para concreto e argamassa - Caminhão carroceria 15 t | D88: 0.00082 | E88: tkm | F88: 5914449 | G88: 5914464 | H88: 5914479 | I88: =$B$63 -> LN | J88: =$D$63 -> 0 | K88: =IF(ISBLANK(J88),"",J88*(D88*$I$85)) -> 0
A89: 5914359 | B89: M0082 | C89: Areia média lavada - Caminhão basculante 10 m³ | D89: 0.95639 | E89: tkm | F89: 5914359 | G89: 5914374 | H89: 5914389 | I89: =$B$63 -> LN | J89: =$D$63 -> 0 | K89: =IF(ISBLANK(J89),"",J89*(D89*$I$85)) -> 0
A90: 5914359 | B90: M0191 | C90: Brita 1 - Caminhão basculante 10 m³ | D90: 0.55131 | E90: tkm | F90: 5914359 | G90: 5914374 | H90: 5914389 | I90: LN | J90: 0 | K90: 0
A91: 5914359 | B91: M0192 | C91: Brita 2 - Caminhão basculante 10 m³ | D91: 0.55131 | E91: tkm | F91: 5914359 | G91: 5914374 | H91: 5914389 | I91: LN | J91: 0 | K91: 0
A92: 5914449 | B92: M0424 | C92: Cimento Portland CP II - 32 - saco - Caminhão carroceria 15 t | D92: 0.27464 | E92: tkm | F92: 5914449 | G92: 5914464 | H92: 5914479 | I92: LN | J92: 0 | K92: 0
B94: PRINCIPAL: | C94: 2003943
B95: SISTEMA DE CUSTOS REFERENCIAIS DE OBRAS - SICRO | I95: Quantitivo
B96: Custo Unitário de Referência | E96: =$C$6 -> Rio Grande do Norte - Abril/2024 | I96: (Coeficiente na composição principal) x (quantidade da principal no orçamento) | K96: kg
B97: 2003842 | C97: Enchimento de junta de concreto com argamassa asfáltica de densidade 1.700 kg/m³ - espessura de 1 cm | I97: 0
B98: F - MOMENTO DE TRANSPORTE | D98: Quantidade | E98: Unidade | F98: DMT
F99: LN | G99: RP | H99: P | I99: TIPO (P, RP ou LN) | J99: DMT ESTIMADA (km) | K99: QUANTITATIVO TOTAL DE TRANSPORTE DE MATERIAL (tkm)
A100: 5914449 | B100: M2158 | C100: Argamassa asfáltica - Caminhão carroceria com capacidade de 15 t - 188 Kw | D100: 0.001 | E100: tkm | F100: 5914449 | G100: 5914464 | H100: 5914479 | I100: =$B$63 -> LN | J100: =$D$63 -> 0 | K100: =IF(ISBLANK(J100),"",J100*(D100*$I$97)) -> 0
B102: PRINCIPAL: | C102: 2003943
B103: TIPO (P, RP ou LN) | C103: DMT ATÉ 50 KM NÃO DEVE SER PAGA | D103: SOMENTE DEVE SER ADICIONADO A DISTÂNCIA EXCEDENTE A 50 KM
B104: RP | D104: =D21 -> 0
A106: =IF(I106="P",H106,IF(I106="RP",G106,IF(I106="LN",F106,""))) ->  | B106: SISTEMA DE CUSTOS REFERENCIAIS DE OBRAS - SICRO | I106: Quantitivo
B107: Custo Unitário de Referência | E107: =$C$6 -> Rio Grande do Norte - Abril/2024 | I107: (Coeficiente na composição principal) x (quantidade da principal no orçamento) | K107: m³
B108: 6416030 | C108: Usinagem de solo brita (70% - 30%) com material de jazida e brita comercial em usina de 300 t/h | I108: =('MOMENTO DE TRANSPORTE - PRINC'!D157*VLOOKUP(C114,'RESUMO MODULO TOTAL'!D:Q,7,FALSE)) -> 14700
B109: F - MOMENTO DE TRANSPORTE | D109: Quantidade | E109: Unidade | F109: DMT
F110: LN | G110: RP | H110: P | I110: TIPO (P, RP ou LN) | J110: DMT ESTIMADA (km) | K110: QUANTITATIVO TOTAL DE TRANSPORTE DE MATERIAL (tkm)
A111: 5914374 | B111: 4016096 | C111: Escavação e carga de material de jazida com escavadeira hidráulica de 1,56 m³ - Caminhão basculante 10 m³ | D111: 1.44411 | E111: tkm | F111: 5914359 | G111: 5914374 | H111: 5914389 | I111: =$B$104 -> RP | J111: =(110-50)*0.1 -> 6 | K111: =IF(ISBLANK(J111),"",J111*(D111*$I$108)) -> 127370.502
A112: 5914374 | B112: M0191 | C112: Brita 1 - Caminhão basculante 10 m³ | D112: 0.6189 | E112: tkm | F112: 5914359 | G112: 5914374 | H112: 5914389 | I112: =$B$104 -> RP | J112: =$D$104 -> 0 | K112: =IF(ISBLANK(J112),"",J112*(D112*$I$108)) -> 0
B114: PRINCIPAL: | C114: 4011268
A115: =IF(I115="P",H115,IF(I115="RP",G115,IF(I115="LN",F115,""))) ->  | B115: SISTEMA DE CUSTOS REFERENCIAIS DE OBRAS - SICRO | I115: Quantitivo
B116: Custo Unitário de Referência | E116: =$C$6 -> Rio Grande do Norte - Abril/2024 | I116: (Coeficiente na composição principal) x (quantidade da principal no orçamento) | K116: m³
B117: 6416030 | C117: Usinagem de solo brita (70% - 30%) com material de jazida e brita comercial em usina de 300 t/h | I117: =('MOMENTO DE TRANSPORTE - PRINC'!D168*VLOOKUP(C123,'RESUMO MODULO TOTAL'!D:Q,7,FALSE)) -> 14700
B118: F - MOMENTO DE TRANSPORTE | D118: Quantidade | E118: Unidade | F118: DMT
F119: LN | G119: RP | H119: P | I119: TIPO (P, RP ou LN) | J119: DMT ESTIMADA (km) | K119: QUANTITATIVO TOTAL DE TRANSPORTE DE MATERIAL (tkm)
A120: 5914374 | B120: 4016096 | C120: Escavação e carga de material de jazida com escavadeira hidráulica de 1,56 m³ - Caminhão basculante 10 m³ | D120: 1.44411 | E120: tkm | F120: 5914359 | G120: 5914374 | H120: 5914389 | I120: =$B$104 -> RP | J120: =J111 -> 6 | K120: =IF(ISBLANK(J120),"",J120*(D120*$I$117)) -> 127370.502
A121: 5914374 | B121: M0191 | C121: Brita 1 - Caminhão basculante 10 m³ | D121: 0.6189 | E121: tkm | F121: 5914359 | G121: 5914374 | H121: 5914389 | I121: =$B$104 -> RP | J121: =$D$104 -> 0 | K121: =IF(ISBLANK(J121),"",J121*(D121*$I$117)) -> 0
B123: PRINCIPAL: | C123: 4011235
B124: SISTEMA DE CUSTOS REFERENCIAIS DE OBRAS - SICRO | I124: Quantitivo
B125: Custo Unitário de Referência | E125: =$C$6 -> Rio Grande do Norte - Abril/2024 | I125: (Coeficiente na composição principal) x (quantidade da principal no orçamento) | K125: m³
B126: 1107892 | C126: Concreto fck = 20 MPa - confecção em betoneira e lançamento manual - areia e brita comerciais | I126: =('MOMENTO DE TRANSPORTE - PRINC'!D179*VLOOKUP(C135,'RESUMO MODULO TOTAL'!D:Q,7,FALSE)) -> 1176
B127: F - MOMENTO DE TRANSPORTE | D127: Quantidade | E127: Unidade | F127: DMT
F128: LN | G128: RP | H128: P | I128: TIPO (P, RP ou LN) | J128: DMT ESTIMADA (km) | K128: QUANTITATIVO TOTAL DE TRANSPORTE DE MATERIAL (tkm)
A129: =IF(I129="P",H129,IF(I129="RP",G129,IF(I129="LN",F129,""))) -> 5914464 | B129: M0030 | C129: Aditivo plastificante e retardador de pega para concreto e argamassa - Caminhão carroceria 15 t | D129: 0.00082 | E129: tkm | F129: 5914449 | G129: 5914464 | H129: 5914479 | I129: =$B$104 -> RP | J129: =$D$104 -> 0 | K129: =IF(ISBLANK(J129),"",J129*(D129*$I$126)) -> 0
A130: 5914374 | B130: M0082 | C130: Areia média lavada - Caminhão basculante 10 m³ | D130: 0.95639 | E130: tkm | F130: 5914359 | G130: 5914374 | H130: 5914389 | I130: =$B$104 -> RP | J130: =$D$104 -> 0 | K130: =IF(ISBLANK(J130),"",J130*(D130*$I$126)) -> 0
A131: 5914374 | B131: M0191 | C131: Brita 1 - Caminhão basculante 10 m³ | D131: 0.55131 | E131: tkm | F131: 5914359 | G131: 5914374 | H131: 5914389 | I131: RP | J131: 0 | K131: 0
A132: 5914374 | B132: M0192 | C132: Brita 2 - Caminhão basculante 10 m³ | D132: 0.55131 | E132: tkm | F132: 5914359 | G132: 5914374 | H132: 5914389 | I132: RP | J132: 0 | K132: 0
A133: 5914464 | B133: M0424 | C133: Cimento Portland CP II - 32 - saco - Caminhão carroceria 15 t | D133: 0.27464 | E133: tkm | F133: 5914449 | G133: 5914464 | H133: 5914479 | I133: RP | J133: 0 | K133: 0
B135: PRINCIPAL: | C135: 2003943
B136: SISTEMA DE CUSTOS REFERENCIAIS DE OBRAS - SICRO | I136: Quantitivo
B137: Custo Unitário de Referência | E137: =$C$6 -> Rio Grande do Norte - Abril/2024 | I137: (Coeficiente na composição principal) x (quantidade da principal no orçamento) | K137: kg
B138: 2003842 | C138: Enchimento de junta de concreto com argamassa asfáltica de densidade 1.700 kg/m³ - espessura de 1 cm | I138: =('MOMENTO DE TRANSPORTE - PRINC'!D180*VLOOKUP(C143,'RESUMO MODULO TOTAL'!D:Q,7,FALSE)) -> 1666
B139: F - MOMENTO DE TRANSPORTE | D139: Quantidade | E139: Unidade | F139: DMT
F140: LN | G140: RP | H140: P | I140: TIPO (P, RP ou LN) | J140: DMT ESTIMADA (km) | K140: QUANTITATIVO TOTAL DE TRANSPORTE DE MATERIAL (tkm)
A141: 5914464 | B141: M2158 | C141: Argamassa asfáltica - Caminhão carroceria com capacidade de 15 t - 188 Kw | D141: 0.001 | E141: tkm | F141: 5914449 | G141: 5914464 | H141: 5914479 | I141: =$B$104 -> RP | J141: =$D$104 -> 0 | K141: =IF(ISBLANK(J141),"",J141*(D141*$I$138)) -> 0
B143: PRINCIPAL: | C143: 2003943

Sheet Memória de Cálculo
A1: Extensão | B1: = | C1: 2000 | D1: m | F1: QUANTIDADE DE MODULOS | G1: 7
A2: Largura | B2: = | C2: 7 | D2: m
A4: Extensão | B4: = | C4: 2 | D4: km
B6: MOBUILIZAÇÃO
A7: 1 | B7: Implantação da obra
B9: Módulos(un) | D9: Módulos(un)
B10: =G1 -> 7 | C10: = | D10: =B10 -> 7
A12: 2 | B12: Administração da obra
B14: Módulos(un) | D14: Módulos(un)
B15: =G1 -> 7 | C15: = | D15: =B15 -> 7
A17: 3 | B17: Canteiro de Obras e Almoxarifado
B19: Módulos(un) | D19: Módulos(un)
B20: =G1 -> 7 | C20: = | D20: =B20 -> 7
A22: 4 | B22: Placa de Obra em Chapa de Aço Galvanizado
B24: Módulos(un) | C24: Comprimento(m) | D24: Largura (m) | H24: Total de Area de placa (m²)
B25: =G1 -> 7 | C25: 2 | D25: 4 | H25: =C25*D25*B25*2 -> 112
B27: TERRAPLENAGEM
A29: 5 | B29: serviços topográficos para pavimentação, inclusive notas de serviços, acompanhamento e greide
B31: Extensão (m) | D31: Largura (m) | H31: area (m2)
B32: =C1*$G$1 -> 14000 | C32: x | D32: =$C$2 -> 7 | G32: = | H32: =B32*D32 -> 98000
A34: 6 | B34: Escavação, carga e transporte de material de 1ª categoria - DMT de 1.000 a 1.200 m - caminho de serviço em leito natural - com escavadeira e caminhão basculante de 14 m³
B36: Extensão (m) | D36: Largura (m) | F36: Espessura (m) | H36: Volume (m3)
B37: =C1*$G$1 -> 14000 | C37: x | D37: =$C$2 -> 7 | E37: x | F37: 0.325 | G37: = | H37: =B37*D37*F37 -> 31850
A41: 7 | B41: Espalhamento de material em bota-fora
B43: Extensão (m) | D43: Largura (m) | F43: Espessura (m) | H43: Volume (m3)
B44: =C1*$G$1 -> 14000 | C44: x | D44: =$C$2 -> 7 | E44: x | F44: 0.325 | G44: = | H44: =B44*D44*F44 -> 31850
B46: PAVIMENTAÇÃO
A48: 8 | B48: Capa Selante
B50: Extensão (m) | C50: Largura (m) | H50: area (m2)
B51: =$C$1*G1 -> 14000 | C51: =$C$2 -> 7 | G51: = | H51: =B51*C51 -> 98000
A54: 9 | B54: Tratamento Superficial Duplo com Emulsão - Brita Comercial
B56: Extensão (m) | D56: Largura (m) | H56: area (m2)
B57: =$C$1*G1 -> 14000 | C57: x | D57: =$C$2 -> 7 | G57: = | H57: =B57*D57 -> 98000
A60: 10 | B60: Imprimação com asfalto diluído
B62: Extensão (m) | D62: Largura (m) | H62: area (m2)
B63: =$C$1*G1 -> 14000 | C63: x | D63: =$C$2 -> 7 | G63: = | H63: =B63*D63 -> 98000
A65: 11 | B65: Base estabilizada granulometricamente com mistura solo brita (70% - 30%) em usina com material de jazida e brita comercial
B67: Extensão (m) | D67: Largura (m) | F67: Espessura (m) | H67: Volume (m3)
B68: =C1*$G$1 -> 14000 | C68: x | D68: =$C$2 -> 7 | E68: x | F68: 0.15 | G68: = | H68: =B68*D68*F68 -> 14700
A71: 12 | B71: Sub-base estabilizada granulometricamente com mistura solo brita (70% - 30%) em usina com material de jazida e brita comercial
B73: Extensão (m) | D73: Largura (m) | F73: Espessura (m) | H73: Volume (m3)
B74: =C1*$G$1 -> 14000 | C74: x | D74: =$C$2 -> 7 | E74: x | F74: 0.15 | G74: = | H74: =B74*D74*F74 -> 14700
A77: 13 | B77: Regularização do subleito
B79: Extensão (m) | D79: Largura (m) | H79: area (m2)
B80: =C1*$G$1 -> 14000 | C80: x | D80: =$C$2 -> 7 | G80: = | H80: =B80*D80 -> 98000
B82: SINALIZAÇÃO
A84: 20 | B84: Fornecimento e implantação de placa de regulamentação em aço D = 0,60 m - película retrorrefletiva tipo I + SI
B86: Extensão (km) | D86: Quant. (un) | H86: Quant. (un)
B87: =$C$4*$G$1 -> 14 | C87: x | D87: 3 | G87: = | H87: =B87*D87 -> 42
A89: 20 | B89: Fornecimento e implantação de placa de advertencia
B91: Extensão (km) | D91: Quant. (un) | H91: Quant. (un)
B92: =$C$4*$G$1 -> 14 | C92: x | D92: 3 | G92: = | H92: =B92*D92 -> 42
A95: 21 | B95: Fornecimento e implantação de suporte metálico galvanizado para placa de regulamentação - D = 0,60 m
B97: Extensão (km) | D97: Quant. (un) | H97: Quant. (un)
B98: =$C$4*$G$1 -> 14 | C98: x | D98: 0.5 | G98: = | H98: =H87+H92 -> 84
A100: 22 | B100: Pintura de faixa com tinta acrílica - espessura de 0,4 mm (bordos)
B102: Extensão (m) | D102: Espessura (m) | H102: Quant. (m²)
B103: =C1*G1 -> 14000 | C103: x | D103: 0.1 | G103: = | H103: =B103*D103*2 -> 2800
B105: Pintura de faixa com tinta acrílica - espessura de 0,4 mm (faixa central)
H107: Quant. (m²)
H108: =B103*D103*0.4 -> 560
B110: SINALIZAÇÃO DE OBRAS
A112: 20 | B112: Placa para sinalização de obras montada em cavalete metálico - 1,00 x 1,00 m - utilização de 600 ciclos - fornecimento, 01 implantação e 01 retirada diária
B114: Extensão (m) | C114: Extensão (Km) | D114: Placa | E114: Dias | H114: Quant. (Un.DIA)
B115: =C1*G1 -> 14000 | C115: =B115/1000 -> 14 | D115: 1 | E115: 360 | G115: = | H115: =D115*C115*E115 -> 5040
A118: 21 | B118: Placa de advertência para sinalização de obras montada em suporte metálico móvel, lado 1,00 m - utilização de 600 ciclos - fornecimento, 01 implantação e 01 retirada diária
B120: Extensão (m) | C120: Extensão (Km) | D120: Placa | E120: Dias | H120: Quant. (Un.DIA)
B121: =C1*G1 -> 14000 | C121: =B121/1000 -> 14 | D121: 1 | E121: 360 | G121: = | H121: =D121*C121*E121 -> 5040
A123: 22 | B123: Cone plástico para canalização de trânsito - utilização de 150 ciclos - fornecimento, 01 implantação e 01 retirada diária
B124: 4 cones a cada 2km x 360 dias
B125: Extensão (m) | C125: Extensão (Km) | D125: Cone | E125: Dias | H125: Quant. (Un.DIA)
B126: =C1*D10 -> 14000 | C126: =B126/1000 -> 14 | D126: 4 | E126: 360 | G126: = | H126: =((C126*D126)/2)*E126 -> 10080
B128: DRENAGEM
A129: 23 | B129: Meio-fio de concreto - MFC 03 - areia e brita comerciais - fôrma de madeira
B131: Extensão (m) | D131: Quant. (un) | H131: Extensão(m)
B132: =$C$1*$G$1 -> 14000 | C132: x | D132: 2 | G132: = | H132: =B132*D132 -> 28000
A134: 19 | B134: Caiação mecanizada com fixador de cal
B136: Extensão (m) | D136: Perimetro (m) | H136: Area (m²)
B137: =$C$1*$G$1 -> 14000 | C137: x | D137: =0.24 -> 0.24 | G137: = | H137: =B137*D137 -> 3360
B140: SERVIÇOS COMPLEMENTARES
A141: 24
B143: Extensão (m) | D143: Largura (m) | G143: 0.1 | H143: extensão (m)
B144: =$C$1*G1 -> 14000 | C144: x | D144: 1 | E144: x | G144: = | H144: =G143*B144 -> 1400
B147: PROJETO EXECUTIVO
A148: 25 | B148: Projeto Executivo
B150: Extensão (m) | D150: Largura (m) | F150: Quant. (un) | H150: Área (m²)
B151: =$C$1*G1 -> 14000 | C151: x | D151: =C2 -> 7 | E151: x | F151: 1 | G151: = | H151: =B151*D151 -> 98000
B153: CONTROLE TECNOLOGICO - OBRA
A154: 26 | B154: Projeto Executivo
B156: Extensão (m) | D156: Largura (m) | F156: Quant. (un) | H156: meses
G157: = | H157: =0.5*G1 -> 3.5
F160: Perímetro caiação = 0,09 + 0,15

Sheet ANP ESTADO
A1: Agência Nacional do Petróleo, Gás Natural e Biocombustíveis
A2: Superintendência de Defesa da Concorrência
A5: PREÇO MÉDIO MENSAL PONDERADO PRATICADO PELOS DISTRIBUIDORES DE PRODUTOS ASFÁLTICOS (R$/KG)
A7: Importante: | B7: Quando não houver declaração de venda do produto selecionado, ou quando a declaração de venda do produto ocorrer por menos de 03 (três) distribuidoras, a tabela indicará campo vazio.
A8: Mês | B8: Produto | C8: Estado | D8: Preço
A9: 2013-01-01 | B9: ASFALTOS DILUÍDOS CM-30 | C9: Acre | D9: -
A10: 2013-01-01 | B10: ASFALTOS DILUÍDOS CM-30 | C10: Alagoas | D10: -
A11: 2013-01-01 | B11: ASFALTOS DILUÍDOS CM-30 | C11: Amapá | D11: -
A12: 2013-01-01 | B12: ASFALTOS DILUÍDOS CM-30 | C12: Amazonas | D12: 1.453527021
A13: 2013-01-01 | B13: ASFALTOS DILUÍDOS CM-30 | C13: Bahia | D13: 1.464044142
A14: 2013-01-01 | B14: ASFALTOS DILUÍDOS CM-30 | C14: Ceará | D14: 1.447997934
A15: 2013-01-01 | B15: ASFALTOS DILUÍDOS CM-30 | C15: Distrito Federal | D15: -
A16: 2013-01-01 | B16: ASFALTOS DILUÍDOS CM-30 | C16: Espírito Santo | D16: -
A17: 2013-01-01 | B17: ASFALTOS DILUÍDOS CM-30 | C17: Goiás | D17: 1.686383065
A18: 2013-01-01 | B18: ASFALTOS DILUÍDOS CM-30 | C18: Maranhão | D18: -
A19: 2013-01-01 | B19: ASFALTOS DILUÍDOS CM-30 | C19: Mato Grosso | D19: -
A20: 2013-01-01 | B20: ASFALTOS DILUÍDOS CM-30 | C20: Mato Grosso do Sul | D20: -
A21: 2013-01-01 | B21: ASFALTOS DILUÍDOS CM-30 | C21: Minas Gerais | D21: 1.451106114
A22: 2013-01-01 | B22: ASFALTOS DILUÍDOS CM-30 | C22: Pará | D22: -
A23: 2013-01-01 | B23: ASFALTOS DILUÍDOS CM-30 | C23: Paraíba | D23: -
A24: 2013-01-01 | B24: ASFALTOS DILUÍDOS CM-30 | C24: Paraná | D24: 1.520125031
A25: 2013-01-01 | B25: ASFALTOS DILUÍDOS CM-30 | C25: Pernambuco | D25: -
A26: 2013-01-01 | B26: ASFALTOS DILUÍDOS CM-30 | C26: Piauí | D26: -
A27: 2013-01-01 | B27: ASFALTOS DILUÍDOS CM-30 | C27: Rio de Janeiro | D27: 1.330475106
A28: 2013-01-01 | B28: ASFALTOS DILUÍDOS CM-30 | C28: Rio Grande do Norte | D28: -
A29: 2013-01-01 | B29: ASFALTOS DILUÍDOS CM-30 | C29: Rio Grande do Sul | D29: 1.598611074
A30: 2013-01-01 | B30: ASFALTOS DILUÍDOS CM-30 | C30: Rondônia | D30: -
A31: 2013-01-01 | B31: ASFALTOS DILUÍDOS CM-30 | C31: Roraima | D31: -
A32: 2013-01-01 | B32: ASFALTOS DILUÍDOS CM-30 | C32: Santa Catarina | D32: -
A33: 2013-01-01 | B33: ASFALTOS DILUÍDOS CM-30 | C33: São Paulo | D33: 1.471008423
A34: 2013-01-01 | B34: ASFALTOS DILUÍDOS CM-30 | C34: Sergipe | D34: -
A35: 2013-01-01 | B35: ASFALTOS DILUÍDOS CM-30 | C35: Tocantins | D35: -
A36: 2013-02-01 | B36: ASFALTOS DILUÍDOS CM-30 | C36: Acre | D36: -
A37: 2013-02-01 | B37: ASFALTOS DILUÍDOS CM-30 | C37: Alagoas | D37: -
A38: 2013-02-01 | B38: ASFALTOS DILUÍDOS CM-30 | C38: Amapá | D38: -
A39: 2013-02-01 | B39: ASFALTOS DILUÍDOS CM-30 | C39: Amazonas | D39: 1.485578179
A40: 2013-02-01 | B40: ASFALTOS DILUÍDOS CM-30 | C40: Bahia | D40: 1.457014101
A41: 2013-02-01 | B41: ASFALTOS DILUÍDOS CM-30 | C41: Ceará | D41: 1.413192336
A42: 2013-02-01 | B42: ASFALTOS DILUÍDOS CM-30 | C42: Distrito Federal | D42: -
A43: 2013-02-01 | B43: ASFALTOS DILUÍDOS CM-30 | C43: Espírito Santo | D43: -
A44: 2013-02-01 | B44: ASFALTOS DILUÍDOS CM-30 | C44: Goiás | D44: 1.667459711
A45: 2013-02-01 | B45: ASFALTOS DILUÍDOS CM-30 | C45: Maranhão | D45: -
A46: 2013-02-01 | B46: ASFALTOS DILUÍDOS CM-30 | C46: Mato Grosso | D46: -
A47: 2013-02-01 | B47: ASFALTOS DILUÍDOS CM-30 | C47: Mato Grosso do Sul | D47: -
A48: 2013-02-01 | B48: ASFALTOS DILUÍDOS CM-30 | C48: Minas Gerais | D48: 1.452121117
A49: 2013-02-01 | B49: ASFALTOS DILUÍDOS CM-30 | C49: Pará | D49: -
A50: 2013-02-01 | B50: ASFALTOS DILUÍDOS CM-30 | C50: Paraíba | D50: -
A51: 2013-02-01 | B51: ASFALTOS DILUÍDOS CM-30 | C51: Paraná | D51: 1.493783173
A52: 2013-02-01 | B52: ASFALTOS DILUÍDOS CM-30 | C52: Pernambuco | D52: -
A53: 2013-02-01 | B53: ASFALTOS DILUÍDOS CM-30 | C53: Piauí | D53: -
A54: 2013-02-01 | B54: ASFALTOS DILUÍDOS CM-30 | C54: Rio de Janeiro | D54: 1.418234901
A55: 2013-02-01 | B55: ASFALTOS DILUÍDOS CM-30 | C55: Rio Grande do Norte | D55: -
A56: 2013-02-01 | B56: ASFALTOS DILUÍDOS CM-30 | C56: Rio Grande do Sul | D56: 1.435861782
A57: 2013-02-01 | B57: ASFALTOS DILUÍDOS CM-30 | C57: Rondônia | D57: -
A58: 2013-02-01 | B58: ASFALTOS DILUÍDOS CM-30 | C58: Roraima | D58: -
A59: 2013-02-01 | B59: ASFALTOS DILUÍDOS CM-30 | C59: Santa Catarina | D59: -
A60: 2013-02-01 | B60: ASFALTOS DILUÍDOS CM-30 | C60: São Paulo | D60: 1.434190204
A61: 2013-02-01 | B61: ASFALTOS DILUÍDOS CM-30 | C61: Sergipe | D61: -
A62: 2013-02-01 | B62: ASFALTOS DILUÍDOS CM-30 | C62: Tocantins | D62: -
A63: 2013-03-01 | B63: ASFALTOS DILUÍDOS CM-30 | C63: Acre | D63: -
A64: 2013-03-01 | B64: ASFALTOS DILUÍDOS CM-30 | C64: Alagoas | D64: -
A65: 2013-03-01 | B65: ASFALTOS DILUÍDOS CM-30 | C65: Amapá | D65: -
A66: 2013-03-01 | B66: ASFALTOS DILUÍDOS CM-30 | C66: Amazonas | D66: 1.507923921
A67: 2013-03-01 | B67: ASFALTOS DILUÍDOS CM-30 | C67: Bahia | D67: 1.449440325
A68: 2013-03-01 | B68: ASFALTOS DILUÍDOS CM-30 | C68: Ceará | D68: 1.401607485
A69: 2013-03-01 | B69: ASFALTOS DILUÍDOS CM-30 | C69: Distrito Federal | D69: -
A70: 2013-03-01 | B70: ASFALTOS DILUÍDOS CM-30 | C70: Espírito Santo | D70: -
A71: 2013-03-01 | B71: ASFALTOS DILUÍDOS CM-30 | C71: Goiás | D71: 1.661758701
A72: 2013-03-01 | B72: ASFALTOS DILUÍDOS CM-30 | C72: Maranhão | D72: -
A73: 2013-03-01 | B73: ASFALTOS DILUÍDOS CM-30 | C73: Mato Grosso | D73: -
A74: 2013-03-01 | B74: ASFALTOS DILUÍDOS CM-30 | C74: Mato Grosso do Sul | D74: -
A75: 2013-03-01 | B75: ASFALTOS DILUÍDOS CM-30 | C75: Minas Gerais | D75: 1.44324333
A76: 2013-03-01 | B76: ASFALTOS DILUÍDOS CM-30 | C76: Pará | D76: -
A77: 2013-03-01 | B77: ASFALTOS DILUÍDOS CM-30 | C77: Paraíba | D77: -
A78: 2013-03-01 | B78: ASFALTOS DILUÍDOS CM-30 | C78: Paraná | D78: 1.468995996
A79: 2013-03-01 | B79: ASFALTOS DILUÍDOS CM-30 | C79: Pernambuco | D79: -
A80: 2013-03-01 | B80: ASFALTOS DILUÍDOS CM-30 | C80: Piauí | D80: -
A81: 2013-03-01 | B81: ASFALTOS DILUÍDOS CM-30 | C81: Rio de Janeiro | D81: 1.438055574
A82: 2013-03-01 | B82: ASFALTOS DILUÍDOS CM-30 | C82: Rio Grande do Norte | D82: -
A83: 2013-03-01 | B83: ASFALTOS DILUÍDOS CM-30 | C83: Rio Grande do Sul | D83: 1.581425878
A84: 2013-03-01 | B84: ASFALTOS DILUÍDOS CM-30 | C84: Rondônia | D84: -
A85: 2013-03-01 | B85: ASFALTOS DILUÍDOS CM-30 | C85: Roraima | D85: -
A86: 2013-03-01 | B86: ASFALTOS DILUÍDOS CM-30 | C86: Santa Catarina | D86: -
A87: 2013-03-01 | B87: ASFALTOS DILUÍDOS CM-30 | C87: São Paulo | D87: 1.466061702
A88: 2013-03-01 | B88: ASFALTOS DILUÍDOS CM-30 | C88: Sergipe | D88: -
A89: 2013-03-01 | B89: ASFALTOS DILUÍDOS CM-30 | C89: Tocantins | D89: -
A90: 2013-04-01 | B90: ASFALTOS DILUÍDOS CM-30 | C90: Acre | D90: -
A91: 2013-04-01 | B91: ASFALTOS DILUÍDOS CM-30 | C91: Alagoas | D91: -
A92: 2013-04-01 | B92: ASFALTOS DILUÍDOS CM-30 | C92: Amapá | D92: -
A93: 2013-04-01 | B93: ASFALTOS DILUÍDOS CM-30 | C93: Amazonas | D93: 1.484796656
A94: 2013-04-01 | B94: ASFALTOS DILUÍDOS CM-30 | C94: Bahia | D94: 1.454836546
A95: 2013-04-01 | B95: ASFALTOS DILUÍDOS CM-30 | C95: Ceará | D95: 1.387073962
A96: 2013-04-01 | B96: ASFALTOS DILUÍDOS CM-30 | C96: Distrito Federal | D96: -
A97: 2013-04-01 | B97: ASFALTOS DILUÍDOS CM-30 | C97: Espírito Santo | D97: -
A98: 2013-04-01 | B98: ASFALTOS DILUÍDOS CM-30 | C98: Goiás | D98: 1.673481836
A99: 2013-04-01 | B99: ASFALTOS DILUÍDOS CM-30 | C99: Maranhão | D99: -
A100: 2013-04-01 | B100: ASFALTOS DILUÍDOS CM-30 | C100: Mato Grosso | D100: 1.921938422
A101: 2013-04-01 | B101: ASFALTOS DILUÍDOS CM-30 | C101: Mato Grosso do Sul | D101: -
A102: 2013-04-01 | B102: ASFALTOS DILUÍDOS CM-30 | C102: Minas Gerais | D102: 1.456556683
A103: 2013-04-01 | B103: ASFALTOS DILUÍDOS CM-30 | C103: Pará | D103: -
A104: 2013-04-01 | B104: ASFALTOS DILUÍDOS CM-30 | C104: Paraíba | D104: -
A105: 2013-04-01 | B105: ASFALTOS DILUÍDOS CM-30 | C105: Paraná | D105: 1.534419498
A106: 2013-04-01 | B106: ASFALTOS DILUÍDOS CM-30 | C106: Pernambuco | D106: -
A107: 2013-04-01 | B107: ASFALTOS DILUÍDOS CM-30 | C107: Piauí | D107: -
A108: 2013-04-01 | B108: ASFALTOS DILUÍDOS CM-30 | C108: Rio de Janeiro | D108: 1.418419516
A109: 2013-04-01 | B109: ASFALTOS DILUÍDOS CM-30 | C109: Rio Grande do Norte | D109: -
A110: 2013-04-01 | B110: ASFALTOS DILUÍDOS CM-30 | C110: Rio Grande do Sul | D110: 1.572582456
A111: 2013-04-01 | B111: ASFALTOS DILUÍDOS CM-30 | C111: Rondônia | D111: -
A112: 2013-04-01 | B112: ASFALTOS DILUÍDOS CM-30 | C112: Roraima | D112: -
A113: 2013-04-01 | B113: ASFALTOS DILUÍDOS CM-30 | C113: Santa Catarina | D113: -
A114: 2013-04-01 | B114: ASFALTOS DILUÍDOS CM-30 | C114: São Paulo | D114: 1.475764348
A115: 2013-04-01 | B115: ASFALTOS DILUÍDOS CM-30 | C115: Sergipe | D115: -
A116: 2013-04-01 | B116: ASFALTOS DILUÍDOS CM-30 | C116: Tocantins | D116: -
A117: 2013-05-01 | B117: ASFALTOS DILUÍDOS CM-30 | C117: Acre | D117: -
A118: 2013-05-01 | B118: ASFALTOS DILUÍDOS CM-30 | C118: Alagoas | D118: -
A119: 2013-05-01 | B119: ASFALTOS DILUÍDOS CM-30 | C119: Amapá | D119: -
A120: 2013-05-01 | B120: ASFALTOS DILUÍDOS CM-30 | C120: Amazonas | D120: -
A121: 2013-05-01 | B121: ASFALTOS DILUÍDOS CM-30 | C121: Bahia | D121: 1.492587424
A122: 2013-05-01 | B122: ASFALTOS DILUÍDOS CM-30 | C122: Ceará | D122: 1.376263021
A123: 2013-05-01 | B123: ASFALTOS DILUÍDOS CM-30 | C123: Distrito Federal | D123: -
A124: 2013-05-01 | B124: ASFALTOS DILUÍDOS CM-30 | C124: Espírito Santo | D124: -
A125: 2013-05-01 | B125: ASFALTOS DILUÍDOS CM-30 | C125: Goiás | D125: 1.668214819
A126: 2013-05-01 | B126: ASFALTOS DILUÍDOS CM-30 | C126: Maranhão | D126: -
A127: 2013-05-01 | B127: ASFALTOS DILUÍDOS CM-30 | C127: Mato Grosso | D127: 1.903098159
A128: 2013-05-01 | B128: ASFALTOS DILUÍDOS CM-30 | C128: Mato Grosso do Sul | D128: -
A129: 2013-05-01 | B129: ASFALTOS DILUÍDOS CM-30 | C129: Minas Gerais | D129: 1.464709716
A130: 2013-05-01 | B130: ASFALTOS DILUÍDOS CM-30 | C130: Pará | D130: -
A131: 2013-05-01 | B131: ASFALTOS DILUÍDOS CM-30 | C131: Paraíba | D131: -
A132: 2013-05-01 | B132: ASFALTOS DILUÍDOS CM-30 | C132: Paraná | D132: 1.489027849
A133: 2013-05-01 | B133: ASFALTOS DILUÍDOS CM-30 | C133: Pernambuco | D133: -
A134: 2013-05-01 | B134: ASFALTOS DILUÍDOS CM-30 | C134: Piauí | D134: -
A135: 2013-05-01 | B135: ASFALTOS DILUÍDOS CM-30 | C135: Rio de Janeiro | D135: 1.399256048
A136: 2013-05-01 | B136: ASFALTOS DILUÍDOS CM-30 | C136: Rio Grande do Norte | D136: -
A137: 2013-05-01 | B137: ASFALTOS DILUÍDOS CM-30 | C137: Rio Grande do Sul | D137: 1.539636961
A138: 2013-05-01 | B138: ASFALTOS DILUÍDOS CM-30 | C138: Rondônia | D138: -
A139: 2013-05-01 | B139: ASFALTOS DILUÍDOS CM-30 | C139: Roraima | D139: -
A140: 2013-05-01 | B140: ASFALTOS DILUÍDOS CM-30 | C140: Santa Catarina | D140: -
A141: 2013-05-01 | B141: ASFALTOS DILUÍDOS CM-30 | C141: São Paulo | D141: 1.451215936
A142: 2013-05-01 | B142: ASFALTOS DILUÍDOS CM-30 | C142: Sergipe | D142: -
A143: 2013-05-01 | B143: ASFALTOS DILUÍDOS CM-30 | C143: Tocantins | D143: -
A144: 2013-06-01 | B144: ASFALTOS DILUÍDOS CM-30 | C144: Acre | D144: -
A145: 2013-06-01 | B145: ASFALTOS DILUÍDOS CM-30 | C145: Alagoas | D145: -
A146: 2013-06-01 | B146: ASFALTOS DILUÍDOS CM-30 | C146: Amapá | D146: -
A147: 2013-06-01 | B147: ASFALTOS DILUÍDOS CM-30 | C147: Amazonas | D147: 1.586325818
A148: 2013-06-01 | B148: ASFALTOS DILUÍDOS CM-30 | C148: Bahia | D148: 1.44812907
A149: 2013-06-01 | B149: ASFALTOS DILUÍDOS CM-30 | C149: Ceará | D149: 1.382700989
A150: 2013-06-01 | B150: ASFALTOS DILUÍDOS CM-30 | C150: Distrito Federal | D150: -
A151: 2013-06-01 | B151: ASFALTOS DILUÍDOS CM-30 | C151: Espírito Santo | D151: -
A152: 2013-06-01 | B152: ASFALTOS DILUÍDOS CM-30 | C152: Goiás | D152: 1.699613867
A153: 2013-06-01 | B153: ASFALTOS DILUÍDOS CM-30 | C153: Maranhão | D153: -
A154: 2013-06-01 | B154: ASFALTOS DILUÍDOS CM-30 | C154: Mato Grosso | D154: 1.915975658
A155: 2013-06-01 | B155: ASFALTOS DILUÍDOS CM-30 | C155: Mato Grosso do Sul | D155: -
A156: 2013-06-01 | B156: ASFALTOS DILUÍDOS CM-30 | C156: Minas Gerais | D156: 1.475366896
A157: 2013-06-01 | B157: ASFALTOS DILUÍDOS CM-30 | C157: Pará | D157: -
A158: 2013-06-01 | B158: ASFALTOS DILUÍDOS CM-30 | C158: Paraíba | D158: -
A159: 2013-06-01 | B159: ASFALTOS DILUÍDOS CM-30 | C159: Paraná | D159: 1.432166974
A160: 2013-06-01 | B160: ASFALTOS DILUÍDOS CM-30 | C160: Pernambuco | D160: -
A161: 2013-06-01 | B161: ASFALTOS DILUÍDOS CM-30 | C161: Piauí | D161: -
A162: 2013-06-01 | B162: ASFALTOS DILUÍDOS CM-30 | C162: Rio de Janeiro | D162: 1.527420226
A163: 2013-06-01 | B163: ASFALTOS DILUÍDOS CM-30 | C163: Rio Grande do Norte | D163: -
A164: 2013-06-01 | B164: ASFALTOS DILUÍDOS CM-30 | C164: Rio Grande do Sul | D164: 1.59868349
A165: 2013-06-01 | B165: ASFALTOS DILUÍDOS CM-30 | C165: Rondônia | D165: -
A166: 2013-06-01 | B166: ASFALTOS DILUÍDOS CM-30 | C166: Roraima | D166: -
A167: 2013-06-01 | B167: ASFALTOS DILUÍDOS CM-30 | C167: Santa Catarina | D167: -
A168: 2013-06-01 | B168: ASFALTOS DILUÍDOS CM-30 | C168: São Paulo | D168: 1.432748187
A169: 2013-06-01 | B169: ASFALTOS DILUÍDOS CM-30 | C169: Sergipe | D169: -
A170: 2013-06-01 | B170: ASFALTOS DILUÍDOS CM-30 | C170: Tocantins | D170: -
A171: 2013-07-01 | B171: ASFALTOS DILUÍDOS CM-30 | C171: Acre | D171: -
A172: 2013-07-01 | B172: ASFALTOS DILUÍDOS CM-30 | C172: Alagoas | D172: -
A173: 2013-07-01 | B173: ASFALTOS DILUÍDOS CM-30 | C173: Amapá | D173: -
A174: 2013-07-01 | B174: ASFALTOS DILUÍDOS CM-30 | C174: Amazonas | D174: 1.509890931
A175: 2013-07-01 | B175: ASFALTOS DILUÍDOS CM-30 | C175: Bahia | D175: 1.436150016
A176: 2013-07-01 | B176: ASFALTOS DILUÍDOS CM-30 | C176: Ceará | D176: 1.424835845
A177: 2013-07-01 | B177: ASFALTOS DILUÍDOS CM-30 | C177: Distrito Federal | D177: -
A178: 2013-07-01 | B178: ASFALTOS DILUÍDOS CM-30 | C178: Espírito Santo | D178: -
A179: 2013-07-01 | B179: ASFALTOS DILUÍDOS CM-30 | C179: Goiás | D179: 1.663778454
A180: 2013-07-01 | B180: ASFALTOS DILUÍDOS CM-30 | C180: Maranhão | D180: -
A181: 2013-07-01 | B181: ASFALTOS DILUÍDOS CM-30 | C181: Mato Grosso | D181: 1.930589551
A182: 2013-07-01 | B182: ASFALTOS DILUÍDOS CM-30 | C182: Mato Grosso do Sul | D182: -
A183: 2013-07-01 | B183: ASFALTOS DILUÍDOS CM-30 | C183: Minas Gerais | D183: 1.476572352
A184: 2013-07-01 | B184: ASFALTOS DILUÍDOS CM-30 | C184: Pará | D184: -
A185: 2013-07-01 | B185: ASFALTOS DILUÍDOS CM-30 | C185: Paraíba | D185: -
A186: 2013-07-01 | B186: ASFALTOS DILUÍDOS CM-30 | C186: Paraná | D186: 1.477167274
A187: 2013-07-01 | B187: ASFALTOS DILUÍDOS CM-30 | C187: Pernambuco | D187: -
A188: 2013-07-01 | B188: ASFALTOS DILUÍDOS CM-30 | C188: Piauí | D188: -
A189: 2013-07-01 | B189: ASFALTOS DILUÍDOS CM-30 | C189: Rio de Janeiro | D189: 1.584464713
A190: 2013-07-01 | B190: ASFALTOS DILUÍDOS CM-30 | C190: Rio Grande do Norte | D190: -
A191: 2013-07-01 | B191: ASFALTOS DILUÍDOS CM-30 | C191: Rio Grande do Sul | D191: 1.612487925
A192: 2013-07-01 | B192: ASFALTOS DILUÍDOS CM-30 | C192: Rondônia | D192: -
A193: 2013-07-01 | B193: ASFALTOS DILUÍDOS CM-30 | C193: Roraima | D193: -
A194: 2013-07-01 | B194: ASFALTOS DILUÍDOS CM-30 | C194: Santa Catarina | D194: -
A195: 2013-07-01 | B195: ASFALTOS DILUÍDOS CM-30 | C195: São Paulo | D195: 1.507844909
A196: 2013-07-01 | B196: ASFALTOS DILUÍDOS CM-30 | C196: Sergipe | D196: -
A197: 2013-07-01 | B197: ASFALTOS DILUÍDOS CM-30 | C197: Tocantins | D197: -
A198: 2013-08-01 | B198: ASFALTOS DILUÍDOS CM-30 | C198: Acre | D198: -
A199: 2013-08-01 | B199: ASFALTOS DILUÍDOS CM-30 | C199: Alagoas | D199: -
A200: 2013-08-01 | B200: ASFALTOS DILUÍDOS CM-30 | C200: Amapá | D200: -
A201: 2013-08-01 | B201: ASFALTOS DILUÍDOS CM-30 | C201: Amazonas | D201: 1.509275641
A202: 2013-08-01 | B202: ASFALTOS DILUÍDOS CM-30 | C202: Bahia | D202: 1.416699323
A203: 2013-08-01 | B203: ASFALTOS DILUÍDOS CM-30 | C203: Ceará | D203: 1.447403364
... 4297 more rows

Sheet ANP REGIÃO
A1: Agência Nacional do Petróleo, Gás Natural e Biocombustíveis
A2: Superintendência de Defesa da Concorrência
A6: PREÇO MÉDIO MENSAL PONDERADO PRATICADO PELOS DISTRIBUIDORES DE PRODUTOS ASFÁLTICOS (R$/KG)
A8: Produto | B8: Mês | C8: Norte | D8: Nordeste | E8: Centro-Oeste | F8: Sudeste | G8: Sul | H8: Brasil
A9: ASFALTOS DILUÍDOS CM-30 | B9: 2008-11-01 | C9: 1.775468292 | D9: 1.55087853 | E9: 2.022143291 | F9: 1.55449367 | G9: 1.584532899 | H9: 1.64286837
A10: ASFALTOS DILUÍDOS CM-30 | B10: 2008-12-01 | C10: 1.806837667 | D10: 1.509118192 | E10: 2.013020124 | F10: 1.610902223 | G10: 1.607187591 | H10: 1.637581471
A11: ASFALTOS DILUÍDOS CM-30 | B11: 2009-01-01 | C11: 1.497052858 | D11: 1.504296346 | E11: 1.963097671 | F11: 1.524672247 | G11: 1.585137209 | H11: 1.564945876
A12: ASFALTOS DILUÍDOS CM-30 | B12: 2009-02-01 | C12: 1.42787112 | D12: 1.497693283 | E12: 1.981065098 | F12: 1.583490231 | G12: 1.595924062 | H12: 1.565451036
A13: ASFALTOS DILUÍDOS CM-30 | B13: 2009-03-01 | C13: 1.404941405 | D13: 1.497647987 | E13: 1.893430263 | F13: 1.52754782 | G13: 1.588720029 | H13: 1.532713147
A14: ASFALTOS DILUÍDOS CM-30 | B14: 2009-04-01 | C14: 1.410510748 | D14: 1.484826261 | E14: 1.909226429 | F14: 1.464149371 | G14: 1.553831928 | H14: 1.516717648
A15: ASFALTOS DILUÍDOS CM-30 | B15: 2009-05-01 | C15: 1.480355678 | D15: 1.466898928 | E15: 1.891590435 | F15: 1.435443718 | G15: 1.54161118 | H15: 1.537574371
A16: ASFALTOS DILUÍDOS CM-30 | B16: 2009-06-01 | C16: 1.580751039 | D16: 1.444888837 | E16: 1.842074119 | F16: 1.424264315 | G16: 1.501526696 | H16: 1.541315575
A17: ASFALTOS DILUÍDOS CM-30 | B17: 2009-07-01 | C17: 1.905432476 | D17: 1.482618211 | E17: 1.949046345 | F17: 1.584435299 | G17: 1.610310436 | H17: 1.651032523
A18: ASFALTOS DILUÍDOS CM-30 | B18: 2009-08-01 | C18: 1.716995184 | D18: 1.423854915 | E18: 1.712385478 | F18: 1.418000805 | G18: 1.520643497 | H18: 1.504911469
A19: ASFALTOS DILUÍDOS CM-30 | B19: 2009-09-01 | C19: 1.64329494 | D19: 1.445317761 | E19: 1.731518803 | F19: 1.419374251 | G19: 1.500735895 | H19: 1.50552312
A20: ASFALTOS DILUÍDOS CM-30 | B20: 2009-10-01 | C20: 1.588031924 | D20: 1.458932649 | E20: 1.762015056 | F20: 1.429024419 | G20: 1.513753831 | H20: 1.511681904
A21: ASFALTOS DILUÍDOS CM-30 | B21: 2009-11-01 | C21: 1.639348604 | D21: 1.449059777 | E21: 1.772650817 | F21: 1.434122677 | G21: 1.526043188 | H21: 1.499657392
A22: ASFALTOS DILUÍDOS CM-30 | B22: 2009-12-01 | C22: 1.664266853 | D22: 1.441966636 | E22: 1.890574802 | F22: 1.429077727 | G22: 1.520539334 | H22: 1.508864598
A23: ASFALTOS DILUÍDOS CM-30 | B23: 2010-01-01 | C23: 1.842506144 | D23: 1.454977129 | E23: 1.865022447 | F23: 1.414817608 | G23: 1.474450765 | H23: 1.497735227
A24: ASFALTOS DILUÍDOS CM-30 | B24: 2010-02-01 | C24: 1.709886915 | D24: 1.442956487 | E24: 1.919844741 | F24: 1.433146251 | G24: 1.500882448 | H24: 1.496542251
A25: ASFALTOS DILUÍDOS CM-30 | B25: 2010-03-01 | C25: 1.535743416 | D25: 1.448880499 | E25: 1.935062728 | F25: 1.435026116 | G25: 1.480618635 | H25: 1.486789802
A26: ASFALTOS DILUÍDOS CM-30 | B26: 2010-04-01 | C26: 1.710046479 | D26: 1.440300254 | E26: 1.911935961 | F26: 1.421102153 | G26: 1.481270937 | H26: 1.511086431
A27: ASFALTOS DILUÍDOS CM-30 | B27: 2010-05-01 | C27: 1.755610465 | D27: 1.435277221 | E27: 1.873293889 | F27: 1.406944432 | G27: 1.48177605 | H27: 1.537170565
A28: ASFALTOS DILUÍDOS CM-30 | B28: 2010-06-01 | C28: 1.602224314 | D28: 1.396004336 | E28: 1.731734721 | F28: 1.399996227 | G28: 1.49193962 | H28: 1.498073418
A29: ASFALTOS DILUÍDOS CM-30 | B29: 2010-07-01 | C29: 1.559901627 | D29: 1.381016708 | E29: 1.732688214 | F29: 1.402904856 | G29: 1.473854427 | H29: 1.490075269
A30: ASFALTOS DILUÍDOS CM-30 | B30: 2010-08-01 | C30: 1.526639389 | D30: 1.38817836 | E30: 1.738946087 | F30: 1.398751236 | G30: 1.455749849 | H30: 1.495828516
A31: ASFALTOS DILUÍDOS CM-30 | B31: 2010-09-01 | C31: 1.565378829 | D31: 1.408204664 | E31: 1.757027378 | F31: 1.411642875 | G31: 1.487257745 | H31: 1.512257128
A32: ASFALTOS DILUÍDOS CM-30 | B32: 2010-10-01 | C32: 1.481711294 | D32: 1.404357715 | E32: 1.751159947 | F32: 1.403489437 | G32: 1.469340847 | H32: 1.49988826
A33: ASFALTOS DILUÍDOS CM-30 | B33: 2010-11-01 | C33: 1.519267672 | D33: 1.410130904 | E33: 1.779405625 | F33: 1.421283822 | G33: 1.458559112 | H33: 1.481658635
A34: ASFALTOS DILUÍDOS CM-30 | B34: 2010-12-01 | C34: 1.559287556 | D34: 1.40982051 | E34: 1.825185618 | F34: 1.417673572 | G34: 1.473243884 | H34: 1.469113031
A35: ASFALTOS DILUÍDOS CM-30 | B35: 2011-01-01 | C35: 1.525923305 | D35: 1.445794092 | E35: 1.774600924 | F35: 1.403274235 | G35: 1.466002814 | H35: 1.457256066
A36: ASFALTOS DILUÍDOS CM-30 | B36: 2011-02-01 | C36: 1.552825112 | D36: 1.392094259 | E36: 1.763836123 | F36: 1.385194937 | G36: 1.44955884 | H36: 1.426250478
A37: ASFALTOS DILUÍDOS CM-30 | B37: 2011-03-01 | C37: 1.469219693 | D37: 1.369442916 | E37: 1.696017922 | F37: 1.353812804 | G37: 1.435170694 | H37: 1.400130249
A38: ASFALTOS DILUÍDOS CM-30 | B38: 2011-04-01 | C38: 1.470570262 | D38: 1.373220492 | E38: 1.650829394 | F38: 1.345928103 | G38: 1.42199894 | H38: 1.400493522
A39: ASFALTOS DILUÍDOS CM-30 | B39: 2011-05-01 | C39: 1.428528955 | D39: 1.322646267 | E39: 1.700380913 | F39: 1.345068163 | G39: 1.439361431 | H39: 1.428058019
A40: ASFALTOS DILUÍDOS CM-30 | B40: 2011-06-01 | C40: 1.407622163 | D40: 1.305708657 | E40: 1.741843669 | F40: 1.354620495 | G40: 1.399501693 | H40: 1.44029982
A41: ASFALTOS DILUÍDOS CM-30 | B41: 2011-07-01 | C41: 1.259234065 | D41: 1.312033305 | E41: 1.737489696 | F41: 1.33656388 | G41: 1.422474887 | H41: 1.420839252
A42: ASFALTOS DILUÍDOS CM-30 | B42: 2011-08-01 | C42: 1.470680061 | D42: 1.299778765 | E42: 1.727443485 | F42: 1.341477821 | G42: 1.353018352 | H42: 1.425675534
A43: ASFALTOS DILUÍDOS CM-30 | B43: 2011-09-01 | C43: 1.56132872 | D43: 1.321196084 | E43: 1.729821548 | F43: 1.357451483 | G43: 1.395684798 | H43: 1.455202413
A44: ASFALTOS DILUÍDOS CM-30 | B44: 2011-10-01 | C44: 1.520569722 | D44: 1.326218736 | E44: 1.71738046 | F44: 1.332691392 | G44: 1.3577774 | H44: 1.442295871
A45: ASFALTOS DILUÍDOS CM-30 | B45: 2011-11-01 | C45: 1.465886334 | D45: 1.337041154 | E45: 1.741004886 | F45: 1.345486103 | G45: 1.447580565 | H45: 1.445354137
A46: ASFALTOS DILUÍDOS CM-30 | B46: 2011-12-01 | C46: 1.470883899 | D46: 1.335587636 | E46: 1.778724141 | F46: 1.408293068 | G46: 1.428112306 | H46: 1.422418604
A47: ASFALTOS DILUÍDOS CM-30 | B47: 2012-01-01 | C47: 1.384955015 | D47: 1.350130156 | E47: 1.780783883 | F47: 1.421354107 | G47: 1.430352474 | H47: 1.394658167
A48: ASFALTOS DILUÍDOS CM-30 | B48: 2012-02-01 | C48: 1.332181678 | D48: 1.368143891 | E48: 1.741020394 | F48: 1.400200985 | G48: 1.425400986 | H48: 1.410605707
A49: ASFALTOS DILUÍDOS CM-30 | B49: 2012-03-01 | C49: 1.411621867 | D49: 1.349122214 | E49: 1.620096006 | F49: 1.393295764 | G49: 1.406130569 | H49: 1.409768786
A50: ASFALTOS DILUÍDOS CM-30 | B50: 2012-04-01 | C50: 1.549007912 | D50: 1.383976456 | E50: 1.640712752 | F50: 1.404716397 | G50: 1.440617793 | H50: 1.45608482
A51: ASFALTOS DILUÍDOS CM-30 | B51: 2012-05-01 | C51: 1.596178941 | D51: 1.386362272 | E51: 1.712061183 | F51: 1.39923955 | G51: 1.448350887 | H51: 1.498461969
A52: ASFALTOS DILUÍDOS CM-30 | B52: 2012-06-01 | C52: 1.701432576 | D52: 1.388053518 | E52: 1.740352007 | F52: 1.422118749 | G52: 1.449196072 | H52: 1.527722717
A53: ASFALTOS DILUÍDOS CM-30 | B53: 2012-07-01 | C53: 1.652026742 | D53: 1.39436857 | E53: 1.718644846 | F53: 1.439670261 | G53: 1.46187567 | H53: 1.523069159
A54: ASFALTOS DILUÍDOS CM-30 | B54: 2012-08-01 | C54: 1.689998835 | D54: 1.40333785 | E54: 1.741895041 | F54: 1.421723369 | G54: 1.445685799 | H54: 1.536533078
A55: ASFALTOS DILUÍDOS CM-30 | B55: 2012-09-01 | C55: 1.690177972 | D55: 1.421500003 | E55: 1.780920724 | F55: 1.445180432 | G55: 1.483645866 | H55: 1.549410653
A56: ASFALTOS DILUÍDOS CM-30 | B56: 2012-10-01 | C56: 1.574840342 | D56: 1.417066109 | E56: 1.794832036 | F56: 1.451304526 | G56: 1.482037109 | H56: 1.550631802
A57: ASFALTOS DILUÍDOS CM-30 | B57: 2012-11-01 | C57: 1.655163526 | D57: 1.455878748 | E57: 1.840129766 | F57: 1.461204615 | G57: 1.483499722 | H57: 1.552500776
A58: ASFALTOS DILUÍDOS CM-30 | B58: 2012-12-01 | C58: 1.714876125 | D58: 1.435854741 | E58: 1.804066573 | F58: 1.45222765 | G58: 1.509417648 | H58: 1.523411999
A59: ASFALTOS DILUÍDOS CM-30 | B59: 2013-01-01 | C59: 1.495776335 | D59: 1.449494588 | E59: 1.854050525 | F59: 1.44638752 | G59: 1.563753675 | H59: 1.502137259
A60: ASFALTOS DILUÍDOS CM-30 | B60: 2013-02-01 | C60: 1.635067666 | D60: 1.420609638 | E60: 1.731071498 | F60: 1.442746356 | G60: 1.461828405 | H60: 1.4739561
A61: ASFALTOS DILUÍDOS CM-30 | B61: 2013-03-01 | C61: 1.646229098 | D61: 1.413299983 | E61: 1.83828087 | F61: 1.450015152 | G61: 1.525760413 | H61: 1.506542904
A62: ASFALTOS DILUÍDOS CM-30 | B62: 2013-04-01 | C62: 1.581864474 | D62: 1.399189564 | E62: 1.793825113 | F62: 1.458704755 | G62: 1.551913702 | H62: 1.523623636
A63: ASFALTOS DILUÍDOS CM-30 | B63: 2013-05-01 | C63: 1.815646773 | D63: 1.390143517 | E63: 1.812783313 | F63: 1.44951052 | G63: 1.504233457 | H63: 1.549918592
A64: ASFALTOS DILUÍDOS CM-30 | B64: 2013-06-01 | C64: 1.631101583 | D64: 1.383186536 | E64: 1.816642105 | F64: 1.474232641 | G64: 1.503043689 | H64: 1.581049429
A65: ASFALTOS DILUÍDOS CM-30 | B65: 2013-07-01 | C65: 1.86596563 | D65: 1.422051117 | E65: 1.793072753 | F65: 1.498018808 | G65: 1.533391901 | H65: 1.59880513
A66: ASFALTOS DILUÍDOS CM-30 | B66: 2013-08-01 | C66: 1.700325546 | D66: 1.435094415 | E66: 1.821452614 | F66: 1.511722868 | G66: 1.530793596 | H66: 1.606176585
A67: ASFALTOS DILUÍDOS CM-30 | B67: 2013-09-01 | C67: 1.562873733 | D67: 1.472197748 | E67: 1.879842712 | F67: 1.542652867 | G67: 1.490667543 | H67: 1.627945893
A68: ASFALTOS DILUÍDOS CM-30 | B68: 2013-10-01 | C68: 1.648504013 | D68: 1.472152345 | E68: 1.825494997 | F68: 1.501177682 | G68: 1.48378912 | H68: 1.597538775
A69: ASFALTOS DILUÍDOS CM-30 | B69: 2013-11-01 | C69: 1.619179062 | D69: 1.486413317 | E69: 1.844012679 | F69: 1.496326809 | G69: 1.506096878 | H69: 1.581665844
A70: ASFALTOS DILUÍDOS CM-30 | B70: 2013-12-01 | C70: 1.633358293 | D70: 1.494818097 | E70: 1.897197176 | F70: 1.502864538 | G70: 1.517074296 | H70: 1.572475244
A71: ASFALTOS DILUÍDOS CM-30 | B71: 2014-01-01 | C71: 1.688311265 | D71: 1.494181305 | E71: 1.798355903 | F71: 1.484202293 | G71: 1.533353813 | H71: 1.542909737
A72: ASFALTOS DILUÍDOS CM-30 | B72: 2014-02-01 | C72: 1.598304434 | D72: 1.479706587 | E72: 1.814390215 | F72: 1.514829392 | G72: 1.522800588 | H72: 1.528970287
A73: ASFALTOS DILUÍDOS CM-30 | B73: 2014-03-01 | C73: 1.648287687 | D73: 1.472852501 | E73: 1.76657319 | F73: 1.513020673 | G73: 1.506185248 | H73: 1.530181178
A74: ASFALTOS DILUÍDOS CM-30 | B74: 2014-04-01 | C74: 1.534459987 | D74: 1.493898767 | E74: 1.757271278 | F74: 1.533021309 | G74: 1.524275274 | H74: 1.550566305
A75: ASFALTOS DILUÍDOS CM-30 | B75: 2014-05-01 | C75: 1.58658327 | D75: 1.490834685 | E75: 1.804339251 | F75: 1.501138131 | G75: 1.567043824 | H75: 1.586452272
A76: ASFALTOS DILUÍDOS CM-30 | B76: 2014-06-01 | C76: 1.658277164 | D76: 1.505801121 | E76: 1.839593445 | F76: 1.5068632 | G76: 1.523776953 | H76: 1.636070702
A77: ASFALTOS DILUÍDOS CM-30 | B77: 2014-07-01 | C77: 1.890299542 | D77: 1.500730514 | E77: 1.708277865 | F77: 1.487293964 | G77: 1.505956069 | H77: 1.587065158
A78: ASFALTOS DILUÍDOS CM-30 | B78: 2014-08-01 | C78: 1.632741832 | D78: 1.501945324 | E78: 1.671203189 | F78: 1.482359341 | G78: 1.506327366 | H78: 1.557910377
A79: ASFALTOS DILUÍDOS CM-30 | B79: 2014-09-01 | C79: 1.66956717 | D79: 1.546830427 | E79: 1.864797016 | F79: 1.496764585 | G79: 1.570533242 | H79: 1.639281057
A80: ASFALTOS DILUÍDOS CM-30 | B80: 2014-10-01 | C80: 1.742876916 | D80: 1.508978569 | E80: 1.746650466 | F80: 1.470773645 | G80: 1.454273462 | H80: 1.57912022
A81: ASFALTOS DILUÍDOS CM-30 | B81: 2014-11-01 | C81: 1.864723419 | D81: 1.57943059 | E81: 1.749156218 | F81: 1.465084479 | G81: 1.529147988 | H81: 1.601359821
A82: ASFALTOS DILUÍDOS CM-30 | B82: 2014-12-01 | C82: 1.812671914 | D82: 1.704844348 | E82: 1.963310066 | F82: 1.623676702 | G82: 1.649644659 | H82: 1.718826981
A83: ASFALTOS DILUÍDOS CM-30 | B83: 2015-01-01 | C83: 2.154807062 | D83: 2.023760447 | E83: 2.318863736 | F83: 1.866588967 | G83: 1.898380434 | H83: 2.007792032
A84: ASFALTOS DILUÍDOS CM-30 | B84: 2015-02-01 | C84: 2.260238625 | D84: 2.005673765 | E84: 2.393875762 | F84: 1.854519766 | G84: 1.927395107 | H84: 2.007653781
A85: ASFALTOS DILUÍDOS CM-30 | B85: 2015-03-01 | C85: 2.124176462 | D85: 1.968822849 | E85: 2.279643254 | F85: 1.887760911 | G85: 1.930217145 | H85: 1.984816916
A86: ASFALTOS DILUÍDOS CM-30 | B86: 2015-04-01 | C86: 2.030049505 | D86: 2.001506448 | E86: 2.379118903 | F86: 1.85245167 | G86: 1.949025254 | H86: 1.98064321
A87: ASFALTOS DILUÍDOS CM-30 | B87: 2015-05-01 | C87: 2.507271651 | D87: 1.946869908 | E87: 2.254758192 | F87: 1.807470001 | G87: 2.016929536 | H87: 2.005474234
A88: ASFALTOS DILUÍDOS CM-30 | B88: 2015-06-01 | C88: 2.248320042 | D88: 1.944259736 | E88: 2.314331796 | F88: 1.846998595 | G88: 1.968565125 | H88: 2.042581344
A89: ASFALTOS DILUÍDOS CM-30 | B89: 2015-07-01 | C89: 1.992222758 | D89: 1.992791635 | E89: 2.046769953 | F89: 1.782648603 | G89: 1.931671385 | H89: 1.942627362
A90: ASFALTOS DILUÍDOS CM-30 | B90: 2015-08-01 | C90: 2.307605931 | D90: 2.038089127 | E90: 2.252748105 | F90: 1.828097705 | G90: 1.939824481 | H90: 2.08193616
A91: ASFALTOS DILUÍDOS CM-30 | B91: 2015-09-01 | C91: 2.314289704 | D91: 2.095307531 | E91: 2.344561987 | F91: 1.942551091 | G91: 2.005352614 | H91: 2.168175541
A92: ASFALTOS DILUÍDOS CM-30 | B92: 2015-10-01 | C92: 2.329456663 | D92: 2.170570012 | E92: 2.43273012 | F92: 2.035624751 | G92: 2.110261148 | H92: 2.237533782
A93: ASFALTOS DILUÍDOS CM-30 | B93: 2015-11-01 | C93: 2.606056566 | D93: 2.437098304 | E93: 2.711612141 | F93: 2.280113896 | G93: 2.326446297 | H93: 2.474998781
A94: ASFALTOS DILUÍDOS CM-30 | B94: 2015-12-01 | C94: 2.635374006 | D94: 2.395920309 | E94: 2.693528386 | F94: 2.272528129 | G94: 2.330740659 | H94: 2.452848156
A95: ASFALTOS DILUÍDOS CM-30 | B95: 2016-01-01 | C95: 2.715863993 | D95: 2.373861647 | E95: 2.844670602 | F95: 2.263650658 | G95: 2.232631691 | H95: 2.400563394
A96: ASFALTOS DILUÍDOS CM-30 | B96: 2016-02-01 | C96: 2.80468316 | D96: 2.466846816 | E96: 2.791787007 | F96: 2.295637115 | G96: 2.346556173 | H96: 2.464348548
A97: ASFALTOS DILUÍDOS CM-30 | B97: 2016-03-01 | C97: 2.5805021 | D97: 2.470678753 | E97: 2.707688025 | F97: 2.235301999 | G97: 2.383115972 | H97: 2.423563924
A98: ASFALTOS DILUÍDOS CM-30 | B98: 2016-04-01 | C98: 2.942006312 | D98: 2.740742032 | E98: 2.759071855 | F98: 2.544439178 | G98: 2.710751632 | H98: 2.680274833
A99: ASFALTOS DILUÍDOS CM-30 | B99: 2016-05-01 | C99: 3.010579472 | D99: 2.650277047 | E99: 2.857121361 | F99: 2.575583152 | G99: 2.770413362 | H99: 2.70973327
A100: ASFALTOS DILUÍDOS CM-30 | B100: 2016-06-01 | C100: 2.909179844 | D100: 2.621385041 | E100: 2.943487281 | F100: 2.659109515 | G100: 2.684759555 | H100: 2.743619517
A101: ASFALTOS DILUÍDOS CM-30 | B101: 2016-07-01 | C101: 2.985740381 | D101: 2.591644045 | E101: 2.98927803 | F101: 2.604396599 | G101: 2.660884423 | H101: 2.745135539
A102: ASFALTOS DILUÍDOS CM-30 | B102: 2016-08-01 | C102: 2.935243919 | D102: 2.623917329 | E102: 2.970490854 | F102: 2.679486504 | G102: 2.727025649 | H102: 2.781385962
A103: ASFALTOS DILUÍDOS CM-30 | B103: 2016-09-01 | C103: 2.649136821 | D103: 2.521054851 | E103: 2.781583925 | F103: 2.51393313 | G103: 2.371271501 | H103: 2.595617128
A104: ASFALTOS DILUÍDOS CM-30 | B104: 2016-10-01 | C104: 2.626109257 | D104: 2.444469093 | E104: 2.781617873 | F104: 2.507383127 | G104: 2.38325399 | H104: 2.566999037
A105: ASFALTOS DILUÍDOS CM-30 | B105: 2016-11-01 | C105: 2.535087408 | D105: 2.374145527 | E105: 2.952768674 | F105: 2.481263765 | G105: 2.382206771 | H105: 2.542842366
A106: ASFALTOS DILUÍDOS CM-30 | B106: 2016-12-01 | C106: 2.50039107 | D106: 2.253413483 | E106: 3.038519458 | F106: 2.589438892 | G106: 2.395593424 | H106: 2.476439295
A107: ASFALTOS DILUÍDOS CM-30 | B107: 2017-01-01 | C107: 2.392875504 | D107: 2.232695674 | E107: 3.089080971 | F107: 2.535744039 | G107: 2.378694833 | H107: 2.374216192
A108: ASFALTOS DILUÍDOS CM-30 | B108: 2017-02-01 | C108: 2.68039414 | D108: 2.271897225 | E108: 2.764408032 | F108: 2.573933685 | G108: 2.384644398 | H108: 2.470721466
A109: ASFALTOS DILUÍDOS CM-30 | B109: 2017-03-01 | C109: 2.23884121 | D109: 2.386958079 | E109: 2.667220252 | F109: 2.372165947 | G109: 2.30121887 | H109: 2.378796986
A110: ASFALTOS DILUÍDOS CM-30 | B110: 2017-04-01 | C110: 2.420191398 | D110: 2.307969596 | E110: 2.794093014 | F110: 2.258409912 | G110: 2.256434297 | H110: 2.380268484
A111: ASFALTOS DILUÍDOS CM-30 | B111: 2017-05-01 | C111: 2.432106692 | D111: 2.167919128 | E111: 2.699836936 | F111: 2.255387192 | G111: 2.204026958 | H111: 2.361515909
A112: ASFALTOS DILUÍDOS CM-30 | B112: 2017-06-01 | C112: 2.428301776 | D112: 2.181938689 | E112: 2.756672055 | F112: 2.234549022 | G112: 2.305778546 | H112: 2.44553453
A113: ASFALTOS DILUÍDOS CM-30 | B113: 2017-07-01 | C113: 2.453752061 | D113: 2.218075334 | E113: 2.694625022 | F113: 2.414329247 | G113: 2.269601102 | H113: 2.473436106
A114: ASFALTOS DILUÍDOS CM-30 | B114: 2017-08-01 | C114: 2.447930976 | D114: 2.153112031 | E114: 2.595349952 | F114: 2.302919065 | G114: 2.170148667 | H114: 2.380876423
A115: ASFALTOS DILUÍDOS CM-30 | B115: 2017-09-01 | C115: 2.494551504 | D115: 2.14243989 | E115: 2.623166503 | F115: 2.371308095 | G115: 2.303698507 | H115: 2.393542204
A116: ASFALTOS DILUÍDOS CM-30 | B116: 2017-10-01 | C116: 2.349953944 | D116: 2.18056004 | E116: 2.614160957 | F116: 2.415254962 | G116: 2.20079573 | H116: 2.367947121
A117: ASFALTOS DILUÍDOS CM-30 | B117: 2017-11-01 | C117: 2.670126991 | D117: 2.433169195 | E117: 2.908627464 | F117: 2.58469482 | G117: 2.415192709 | H117: 2.602101348
A118: ASFALTOS DILUÍDOS CM-30 | B118: 2017-12-01 | C118: 2.587352645 | D118: 2.425358882 | E118: 2.906633765 | F118: 2.602890298 | G118: 2.42288976 | H118: 2.531764464
A119: ASFALTOS DILUÍDOS CM-30 | B119: 2018-01-01 | C119: 2.950360755 | D119: 2.662862923 | E119: 2.875953993 | F119: 2.620738484 | G119: 2.646955252 | H119: 2.735956369
A120: ASFALTOS DILUÍDOS CM-30 | B120: 2018-02-01 | C120: 2.677899567 | D120: 2.672498164 | E120: 2.942595474 | F120: 2.62043113 | G120: 2.567885662 | H120: 2.668369933
A121: ASFALTOS DILUÍDOS CM-30 | B121: 2018-03-01 | C121: 2.733363025 | D121: 2.589050022 | E121: 2.809172556 | F121: 2.561928393 | G121: 2.575946067 | H121: 2.634876584
A122: ASFALTOS DILUÍDOS CM-30 | B122: 2018-04-01 | C122: 2.75780112 | D122: 2.669553602 | E122: 2.773908242 | F122: 2.59547006 | G122: 2.556042394 | H122: 2.6643302
A123: ASFALTOS DILUÍDOS CM-30 | B123: 2018-05-01 | C123: 2.841213362 | D123: 2.672025877 | E123: 2.884501482 | F123: 2.686718021 | G123: 2.736485103 | H123: 2.77737896
A124: ASFALTOS DILUÍDOS CM-30 | B124: 2018-06-01 | C124: 3.008444789 | D124: 2.919605178 | E124: 3.158454886 | F124: 2.84673108 | G124: 2.953523993 | H124: 2.982291635
A125: ASFALTOS DILUÍDOS CM-30 | B125: 2018-07-01 | C125: 3.268237549 | D125: 3.036524094 | E125: 3.399360399 | F125: 3.026467598 | G125: 3.19779631 | H125: 3.164126546
A126: ASFALTOS DILUÍDOS CM-30 | B126: 2018-08-01 | C126: 3.56441315 | D126: 3.415193769 | E126: 3.707706206 | F126: 3.425079349 | G126: 3.356722461 | H126: 3.515558112
A127: ASFALTOS DILUÍDOS CM-30 | B127: 2018-09-01 | C127: 3.173913778 | D127: 3.445064118 | E127: 3.73526324 | F127: 3.385816186 | G127: 3.607309454 | H127: 3.483238429
A128: ASFALTOS DILUÍDOS CM-30 | B128: 2018-10-01 | C128: 3.487778119 | D128: 3.460508804 | E128: 3.721444057 | F128: 3.432525565 | G128: 3.60602088 | H128: 3.545390344
A129: ASFALTOS DILUÍDOS CM-30 | B129: 2018-11-01 | C129: 4.047272484 | D129: 3.814893312 | E129: 4.280131586 | F129: 4.178126777 | G129: 3.967681367 | H129: 3.990147183
A130: ASFALTOS DILUÍDOS CM-30 | B130: 2018-12-01 | C130: 3.951491146 | D130: 3.967113195 | E130: 4.341144202 | F130: 3.916766066 | G130: 3.911993357 | H130: 3.999742654
A131: ASFALTOS DILUÍDOS CM-30 | B131: 2019-01-01 | C131: 3.796855325 | D131: 3.870018889 | E131: 4.201901762 | F131: 3.954196997 | G131: 3.976786028 | H131: 3.933951911
A132: ASFALTOS DILUÍDOS CM-30 | B132: 2019-02-01 | C132: 3.516584073 | D132: 4.090361178 | E132: 4.498422953 | F132: 4.469942475 | G132: 4.254590254 | H132: 4.188544679
A133: ASFALTOS DILUÍDOS CM-30 | B133: 2019-03-01 | C133: 4.216758117 | D133: 4.361910728 | E133: 4.907194889 | F133: 4.398717729 | G133: 4.290823922 | H133: 4.360295279
A134: ASFALTOS DILUÍDOS CM-30 | B134: 2019-04-01 | C134: 4.281648205 | D134: 4.234661428 | E134: 4.531627215 | F134: 4.43722653 | G134: 4.466881471 | H134: 4.38082044
A135: ASFALTOS DILUÍDOS CM-30 | B135: 2019-05-01 | C135: 4.287644659 | D135: 4.190699738 | E135: 4.857910872 | F135: 4.267461963 | G135: 4.633806379 | H135: 4.366402151
A136: ASFALTOS DILUÍDOS CM-30 | B136: 2019-06-01 | C136: 4.475609892 | D136: 3.965052934 | E136: 4.66272934 | F136: 4.350600604 | G136: 4.211229921 | H136: 4.319323669
A137: ASFALTOS DILUÍDOS CM-30 | B137: 2019-07-01 | C137: 4.394498989 | D137: 4.058039305 | E137: 4.834221945 | F137: 4.094659414 | G137: 4.233003281 | H137: 4.346977757
A138: ASFALTOS DILUÍDOS CM-30 | B138: 2019-08-01 | C138: 4.48173504 | D138: 3.910662496 | E138: 4.576329081 | F138: 4.11161654 | G138: 4.255419985 | H138: 4.258345083
A139: ASFALTOS DILUÍDOS CM-30 | B139: 2019-09-01 | C139: 4.439578796 | D139: 3.859904896 | E139: 4.495256968 | F139: 4.111321475 | G139: 4.117359152 | H139: 4.251607085
A140: ASFALTOS DILUÍDOS CM-30 | B140: 2019-10-01 | C140: 4.335888631 | D140: 3.772324962 | E140: 4.459242357 | F140: 4.056084115 | G140: 3.942458011 | H140: 4.07740702
A141: ASFALTOS DILUÍDOS CM-30 | B141: 2019-11-01 | C141: 4.316238692 | D141: 3.910245509 | E141: 4.581841077 | F141: 4.07902404 | G141: 4.106621274 | H141: 4.094561212
A142: ASFALTOS DILUÍDOS CM-30 | B142: 2019-12-01 | C142: 4.199435972 | D142: 3.980119663 | E142: 4.673774805 | F142: 4.434268142 | G142: 3.986410312 | H142: 4.164691616
A143: ASFALTOS DILUÍDOS CM-30 | B143: 2020-01-01 | C143: 3.59298003 | D143: 3.895320617 | E143: 4.685420623 | F143: 4.387074674 | G143: 4.124467668 | H143: 4.053338937
A144: ASFALTOS DILUÍDOS CM-30 | B144: 2020-02-01 | C144: 3.642667016 | D144: 3.877395187 | E144: 4.438194543 | F144: 3.699944607 | G144: 3.778164011 | H144: 3.839010438
A145: ASFALTOS DILUÍDOS CM-30 | B145: 2020-03-01 | C145: 4.676668339 | D145: 3.791138977 | E145: 4.289222343 | F145: 3.718402734 | G145: 3.60908619 | H145: 3.93117068
A146: ASFALTOS DILUÍDOS CM-30 | B146: 2020-04-01 | C146: 4.313362837 | D146: 3.6957655 | E146: 4.255395321 | F146: 3.865895531 | G146: 3.732253382 | H146: 3.964125211
A147: ASFALTOS DILUÍDOS CM-30 | B147: 2020-05-01 | C147: 3.249134658 | D147: 3.637769912 | E147: 4.113544882 | F147: 3.760550026 | G147: 3.710618099 | H147: 3.65617504
A148: ASFALTOS DILUÍDOS CM-30 | B148: 2020-06-01 | C148: 4.017903076 | D148: 3.567031492 | E148: 4.277369171 | F148: 3.937886485 | G148: 3.625830069 | H148: 3.924524506
A149: ASFALTOS DILUÍDOS CM-30 | B149: 2020-07-01 | C149: 3.840497509 | D149: 3.51327048 | E149: 4.21549069 | F149: 3.954223886 | G149: 3.688841275 | H149: 3.843774448
A150: ASFALTOS DILUÍDOS CM-30 | B150: 2020-08-01 | C150: 4.174467203 | D150: 3.465394219 | E150: 4.277710211 | F150: 4.06746494 | G150: 3.62858863 | H150: 3.947166917
A151: ASFALTOS DILUÍDOS CM-30 | B151: 2020-09-01 | C151: 4.167371331 | D151: 3.746360816 | E151: 4.167424356 | F151: 3.795621791 | G151: 3.627729935 | H151: 3.973129945
A152: ASFALTOS DILUÍDOS CM-30 | B152: 2020-10-01 | C152: 4.408099527 | D152: 3.718989878 | E152: 4.278979192 | F152: 4.008746906 | G152: 3.591048183 | H152: 4.03964377
A153: ASFALTOS DILUÍDOS CM-30 | B153: 2020-11-01 | C153: 4.056306006 | D153: 3.969209281 | E153: 4.547900893 | F153: 4.27945542 | G153: 3.973347244 | H153: 4.175826149
A154: ASFALTOS DILUÍDOS CM-30 | B154: 2020-12-01 | C154: 4.132064138 | D154: 3.851632751 | E154: 4.426704386 | F154: 3.906236422 | G154: 3.8709398 | H154: 4.035347374
A155: ASFALTOS DILUÍDOS CM-30 | B155: 2021-01-01 | C155: 3.489836333 | D155: 3.951525937 | E155: 4.628269702 | F155: 4.011577011 | G155: 3.935136638 | H155: 3.917092391
A156: ASFALTOS DILUÍDOS CM-30 | B156: 2021-02-01 | C156: 4.099318116 | D156: 4.267109523 | E156: 4.832061615 | F156: 4.414202706 | G156: 4.149048932 | H156: 4.26819704
A157: ASFALTOS DILUÍDOS CM-30 | B157: 2021-03-01 | C157: 4.528355792 | D157: 4.239831731 | E157: 4.926314562 | F157: 4.269697839 | G157: 4.130655409 | H157: 4.377833785
A158: ASFALTOS DILUÍDOS CM-30 | B158: 2021-04-01 | C158: 4.349271867 | D158: 4.086995154 | E158: 4.477597522 | F158: 4.156113398 | G158: 4.044189822 | H158: 4.253361798
A159: ASFALTOS DILUÍDOS CM-30 | B159: 2021-05-01 | C159: 4.488889413 | D159: 4.707945815 | E159: 5.101489686 | F159: 4.784034896 | G159: 4.523986615 | H159: 4.790548085
A160: ASFALTOS DILUÍDOS CM-30 | B160: 2021-06-01 | C160: 4.010467711 | D160: 4.479592126 | E160: 5.113041212 | F160: 4.779739905 | G160: 4.721214307 | H160: 4.764890884
A161: ASFALTOS DILUÍDOS CM-30 | B161: 2021-07-01 | C161: 4.752234128 | D161: 4.559350506 | E161: 5.004758283 | F161: 4.80272972 | G161: 4.748550678 | H161: 4.817586047
A162: ASFALTOS DILUÍDOS CM-30 | B162: 2021-08-01 | C162: 5.085284532 | D162: 4.772501255 | E162: 5.198537142 | F162: 5.244735259 | G162: 4.76131175 | H162: 5.0981692
A163: ASFALTOS DILUÍDOS CM-30 | B163: 2021-09-01 | C163: 5.110300267 | D163: 4.538072365 | E163: 5.241721185 | F163: 5.017144197 | G163: 4.862861245 | H163: 5.016958886
A164: ASFALTOS DILUÍDOS CM-30 | B164: 2021-10-01 | C164: 5.080697261 | D164: 4.66826742 | E164: 5.119544199 | F164: 5.384779065 | G164: 4.658516432 | H164: 5.021294312
A165: ASFALTOS DILUÍDOS CM-30 | B165: 2021-11-01 | C165: 5.436518753 | D165: 5.08776781 | E165: 5.150063985 | F165: 5.634257884 | G165: 5.174530131 | H165: 5.228141289
A166: ASFALTOS DILUÍDOS CM-30 | B166: 2021-12-01 | C166: 5.184291386 | D166: 4.975486975 | E166: 5.572122251 | F166: 6.135655205 | G166: 5.01180992 | H166: 5.339565801
A167: ASFALTOS DILUÍDOS CM-30 | B167: 2022-01-01 | C167: 4.928191974 | D167: 5.023555623 | E167: 6.018407512 | F167: 5.214773026 | G167: 5.481979244 | H167: 5.250789679
A168: ASFALTOS DILUÍDOS CM-30 | B168: 2022-02-01 | C168: 5.545684189 | D168: 5.708628413 | E168: 6.011065894 | F168: 4.8651 | G168: 5.763367147 | H168: 5.736057428
A169: ASFALTOS DILUÍDOS CM-30 | B169: 2022-03-01 | C169: 6.326844735 | D169: 5.644687904 | E169: 5.930807225 | F169: 6.181141143 | G169: 5.498041682 | H169: 5.922781038
A170: ASFALTOS DILUÍDOS CM-30 | B170: 2022-04-01 | C170: 5.974220681 | D170: 5.832747324 | E170: 6.206692615 | F170: 5.720329997 | G170: 6.17800291 | H170: 6.012354229
A171: ASFALTOS DILUÍDOS CM-30 | B171: 2022-05-01 | C171: 5.354015586 | D171: 5.464335309 | E171: 6.007611639 | F171: 5.995095583 | G171: 5.49095009 | H171: 5.670722744
A172: ASFALTOS DILUÍDOS CM-30 | B172: 2022-06-01 | C172: 5.802443798 | D172: 5.316964203 | E172: 5.25267889 | F172: 5.813931518 | G172: 5.644996328 | H172: 5.469498687
A173: ASFALTOS DILUÍDOS CM-30 | B173: 2022-07-01 | C173: 5.965614765 | D173: 5.829314879 | E173: 5.919099711 | F173: 5.742484775 | G173: 5.674430543 | H173: 5.862020702
A174: ASFALTOS DILUÍDOS CM-30 | B174: 2022-08-01 | C174: 6.424230463 | D174: 5.758256878 | E174: 5.752352843 | F174: 5.791905352 | G174: 5.31271724 | H174: 5.823186051
A175: ASFALTOS DILUÍDOS CM-30 | B175: 2022-09-01 | C175: 5.540097074 | D175: 5.609921619 | E175: 5.963592489 | F175: 5.302181194 | G175: 4.977929161 | H175: 5.699429921
A176: ASFALTOS DILUÍDOS CM-30 | B176: 2022-10-01 | C176: 4.785670999 | D176: 4.727521094 | E176: 5.339105147 | F176: 4.851160007 | G176: 4.532580513 | H176: 5.041661715
A177: ASFALTOS DILUÍDOS CM-30 | B177: 2022-11-01 | C177: 7.765855923 | D177: 4.775654982 | E177: 5.237626127 | F177: 4.636383138 | G177: 4.460593179 | H177: 5.074993862
A178: ASFALTOS DILUÍDOS CM-30 | B178: 2022-12-01 | C178: 4.65725 | D178: 4.966905362 | E178: 5.655161554 | F178: 4.840935672 | G178: 4.661007861 | H178: 5.11324949
A179: ASFALTOS DILUÍDOS CM-30 | B179: 2023-01-01 | C179: 4.948950319 | D179: 5.056264922 | E179: 5.359597966 | F179: 4.426497959 | G179: 4.103267888 | H179: 4.715605129
A180: ASFALTOS DILUÍDOS CM-30 | B180: 2023-02-01 | C180: 5.407494667 | D180: 4.335771195 | E180: 4.746646601 | F180: 4.674884727 | G180: 4.014547173 | H180: 4.417800736
A181: ASFALTOS DILUÍDOS CM-30 | B181: 2023-03-01 | C181: 4.99131 | D181: 4.01354912 | E181: 4.74625028 | F181: 4.08071937 | G181: 4.082484954 | H181: 4.270345723
A182: ASFALTOS DILUÍDOS CM-30 | B182: 2023-04-01 | C182: 4.438479015 | D182: 4.094201354 | E182: 5.135816186 | F182: 4.368265095 | G182: 3.859308149 | H182: 4.153818797
A183: ASFALTOS DILUÍDOS CM-30 | B183: 2023-05-01 | C183: 5.018589297 | D183: 4.506282643 | E183: 5.616638293 | F183: 4.034756925 | G183: 4.063701717 | H183: 4.686492725
A184: ASFALTOS DILUÍDOS CM-30 | B184: 2023-06-01 | C184: 4.439644526 | D184: 4.495805354 | E184: 5.228174524 | F184: 3.772028745 | G184: 4.009042073 | H184: 4.588045148
A185: ASFALTOS DILUÍDOS CM-30 | B185: 2023-07-01 | C185: 4.360399352 | D185: 4.250187634 | E185: 6.188049155 | F185: 3.699216781 | G185: 4.315773768 | H185: 4.790717553
A186: ASFALTOS DILUÍDOS CM-30 | B186: 2023-08-01 | C186: 4.043215999 | D186: 4.100901709 | E186: 5.414198228 | F186: 3.964297949 | G186: 4.055989778 | H186: 4.607810697
A187: ASFALTOS DILUÍDOS CM-30 | B187: 2023-09-01 | C187: 5.69501625 | D187: 4.358586276 | E187: 5.187252517 | F187: 4.112508656 | G187: 4.211646236 | H187: 4.748640211
A188: ASFALTOS DILUÍDOS CM-30 | B188: 2023-10-01 | C188: 5.685185 | D188: 4.294075647 | E188: 4.912919476 | F188: 4.365095101 | G188: 4.257370162 | H188: 4.609445905
A189: ASFALTOS DILUÍDOS CM-30 | B189: 2023-11-01 | C189: 4.815085397 | D189: 4.345599447 | E189: 5.404502747 | F189: 4.045271104 | G189: 4.164697405 | H189: 4.781498943
A190: ASFALTOS DILUÍDOS CM-30 | B190: 2023-12-01 | C190: 5.411492308 | D190: 4.700043896 | E190: 5.306415734 | F190: 4.313216862 | G190: 4.188732062 | H190: 4.664845353
A191: ASFALTOS DILUÍDOS CM-30 | B191: 2024-01-01 | C191: 3.716178391 | D191: 4.395163811 | E191: 4.888126947 | F191: 3.977196797 | G191: 4.057095331 | H191: 4.290228903
A192: ASFALTOS DILUÍDOS CM-30 | B192: 2024-02-01 | C192: 5.349588571 | D192: 4.281881871 | E192: 5.36118056 | F192: 4.287786155 | G192: 4.151112946 | H192: 4.366194996
A193: ASFALTOS DILUÍDOS CM-30 | B193: 2024-03-01 | C193: 6.437624165 | D193: 4.512948358 | E193: 4.994035932 | F193: 4.680610304 | G193: 4.197388123 | H193: 4.725137967
A194: ASFALTOS DILUÍDOS CM-30 | B194: 2024-04-01 | C194: 6.524010018 | D194: 5.333668875 | E194: 5.011370357 | F194: 3.991999626 | G194: 4.15116124 | H194: 4.439406986
A195: ASFALTOS DILUÍDOS CM-30 | B195: 2024-05-01 | C195: 6.61993633 | D195: *** | E195: 5.21538288 | F195: 4.24855796 | G195: 4.478170767 | H195: 4.960078568
A196: ASFALTOS DILUÍDOS CM-30 | B196: 2024-06-01 | C196: 6.461820806 | D196: 4.288169263 | E196: 4.921606124 | F196: 4.517339741 | G196: 4.897585787 | H196: 4.922850803
A197: ASFALTOS DILUÍDOS CM-70 | B197: 2008-11-01 | C197: *** | D197: *** | E197: *** | F197: *** | G197: *** | H197: ***
A198: ASFALTOS DILUÍDOS CM-70 | B198: 2008-12-01 | C198: *** | D198: *** | E198: *** | F198: *** | G198: *** | H198: ***
A199: ASFALTOS DILUÍDOS CM-70 | B199: 2009-01-01 | C199: *** | D199: *** | E199: *** | F199: *** | G199: *** | H199: ***
A200: ASFALTOS DILUÍDOS CM-70 | B200: 2009-02-01 | C200: *** | D200: *** | E200: *** | F200: *** | G200: *** | H200: ***
A201: ASFALTOS DILUÍDOS CM-70 | B201: 2009-03-01 | C201: *** | D201: *** | E201: *** | F201: *** | G201: *** | H201: ***
A202: ASFALTOS DILUÍDOS CM-70 | B202: 2009-04-01 | C202: *** | D202: *** | E202: *** | F202: *** | G202: *** | H202: ***
A203: ASFALTOS DILUÍDOS CM-70 | B203: 2009-05-01 | C203: *** | D203: *** | E203: *** | F203: *** | G203: *** | H203: ***
A204: ASFALTOS DILUÍDOS CM-70 | B204: 2009-06-01 | C204: *** | D204: *** | E204: *** | F204: *** | G204: *** | H204: ***
... 4573 more rows

Sheet Material Sicro
A1: CGCIT | B1: SISTEMA DE CUSTOS REFERENCIAIS DE OBRAS - SICRO | D1: DNIT
B2: Rio Grande do Norte - Abril/2024
A3: Código | B3: Descrição | C3: Unidade | D3: Preço Unitário (R$)
A4: M0003 | B4: Aço CA 25 | C4: kg | D4: 6.818
A5: M0004 | B5: Aço CA 50 | C5: kg | D5: 6.5744
A6: M0005 | B6: Brita 0 | C6: m³ | D6: 147.2312
A7: M0006 | B7: Fibra de poliamida para concreto | C7: kg | D7: 27.882
A8: M0007 | B8: Fibra de aço para concreto | C8: kg | D8: 13.6193
A9: M0008 | B9: Detergente líquido neutro | C9: l | D9: 4.6122
A10: M0009 | B10: Aço CP 175 RB | C10: kg | D10: 9.0024
A11: M0010 | B11: Aditivo superplastificante para concreto e argamassa | C11: kg | D11: 16.2705
A12: M0011 | B12: Aditivo modificador de viscosidade para concreto e argamassa | C12: kg | D12: 11.1545
A13: M0012 | B13: Silicato de alumínio | C13: kg | D13: 2.1324
A14: M0013 | B14: Grampo de ancoragem em aço CA 50 - D = 12,5 mm | C14: kg | D14: 6.5744
A15: M0014 | B15: Aço CA 60 | C15: kg | D15: 8.2681
A16: M0015 | B16: Espoleta elétrica Nº 8 - D = 6,0 mm | C16: un | D16: 21.7439
A17: M0016 | B17: Grampo sargento em ferro fundido tipo C com abertura útil de 105 mm (4") | C17: un | D17: 52.5499
A18: M0017 | B18: Saco de aniagem ou de ráfia de 50 kg - C = 95 cm e L = 65 cm | C18: un | D18: 2.9309
A19: M0018 | B19: Grampo pesado em aço-carbono para cabo de aço - D = 13 mm (1/2") | C19: un | D19: 18.7552
A20: M0019 | B20: Esticador em aço tipo olhal x olhal para cabo de aço - D = 13 mm | C20: un | D20: 144.2421
A21: M0020 | B21: Grampo de ancoragem em aço CA 50 - D = 6,3 mm | C21: kg | D21: 8.5
A22: M0021 | B22: Herbicida glifosato para áreas contínuas | C22: l | D22: 26.779
A23: M0025 | B23: Adesivo plástico para tubos de PVC | C23: kg | D23: 53.0964
A24: M0026 | B24: Aditivo aglutinante para argamassa | C24: l | D24: 8.1595
A25: M0028 | B25: Areia média | C25: m³ | D25: 125.8443
A26: M0029 | B26: Sílica ativa para concreto e argamassa (microssílica) | C26: kg | D26: 1.9372
A27: M0030 | B27: Aditivo plastificante e retardador de pega para concreto e argamassa | C27: kg | D27: 7.3074
A28: M0032 | B28: Adesivo de contato para laminado elastoplástico | C28: kg | D28: 46.847
A29: M0035 | B29: Diluente tipo aguarrás para tintas e vernizes | C29: l | D29: 15.168
A30: M0039 | B30: Gasolina comum | C30: l | D30: 5.1261
A31: M0041 | B31: Contêiner com 2 banheiros - L = 2,44 m e C = 6,09 m (1 TEU) | C31: un | D31: 89481.2475
A32: M0042 | B32: Contêiner com janela - L = 2,44 m e C = 6,09 m (1 TEU) | C32: un | D32: 63133.1949
A33: M0043 | B33: Óleo diesel | C33: l | D33: 5.4189
A34: M0044 | B34: Abrasivo de vidro com granulometria de 210 a 420 micra | C34: kg | D34: 9.46
A35: M0045 | B35: Barreira plástica monobloco para canalização de trânsito - C = 100 cm, L = 50 cm e H = 55 cm | C35: un | D35: 505.0821
A36: M0046 | B36: Barreira plástica para canalização de trânsito - C = 60 cm, L = 45 cm e H = 60 cm | C36: un | D36: 319.5651
A37: M0047 | B37: Cone de sinalização em polietileno - H = 75 cm e base quadrada de 40 x 40 cm | C37: un | D37: 102.95
A38: M0048 | B38: Balizador cônico refletivo em polietileno semiflexível - H = 114 cm e base octogonal de D = 40 cm | C38: un | D38: 147.9354
A39: M0049 | B39: Delimitador de tráfego flexível com chumbador e duas faixas refletivas - H = 77 cm e D = 21 cm | C39: un | D39: 181.8899
A40: M0050 | B40: Aditivo natural tipo goma xantana para hidrossemeadura | C40: kg | D40: 103.4805
A41: M0051 | B41: Cilindro canalizador de tráfego em polietileno - H = 117 cm e base quadrada de 60 x 60 cm | C41: un | D41: 208.1951
A42: M0052 | B42: Fita adesiva de PVC - L = 50 mm e C = 50 m | C42: m | D42: 0.1043
A43: M0053 | B43: Tela plástica em polipropileno na cor laranja para tapume - L = 1,2 m | C43: m | D43: 1.9406
A44: M0054 | B44: Fita zebrada de cor laranja e branca - L = 7 a 8 cm | C44: m | D44: 0.0742
A45: M0055 | B45: Barreira plástica articulável modular - C = 240 cm e H = 100 cm | C45: un | D45: 1279.349
A46: M0056 | B46: Ferramenta de corte para removedora de faixa de sinalização (Smith Cutter) | C46: un | D46: 7244.8924
A47: M0057 | B47: Contêiner com janela - L = 4,88 m e C = 6,09 m (1 TEU duplo) | C47: un | D47: 120731.2084
A48: M0058 | B48: Contêiner com janela e 2 banheiros - L = 4,88 m e C = 6,09 m (1 TEU duplo) | C48: un | D48: 125120.8606
A49: M0059 | B49: Contêiner com revestimento térmico, janela e banheiro - L = 2,44 m e C = 6,09 m (1 TEU) | C49: un | D49: 86806.2606
A50: M0060 | B50: Contêiner com janela - L = 2,44 m e C = 4,58 m (3/4 TEU) | C50: un | D50: 59771.2986
A51: M0065 | B51: Contêiner com janela e banheiro - L = 2,44 m e 4,58 m (3/4 TEU) | C51: un | D51: 72598.1015
A52: M0066 | B52: Contêiner com revestimento térmico, janela e banheiro - L = 2,44 m e C = 12,90 m (2 TEU) | C52: un | D52: 119091.4351
A53: M0067 | B53: Tubo PEAD PE 100 PN 10 com flanges - D = 160 mm | C53: m | D53: 178.4556
A54: M0068 | B54: Caibro de pinho - L = 7,5 cm e E = 10,0 cm | C54: m | D54: 23.1042
A55: M0069 | B55: Arame farpado em aço galvanizado - D = 1,60 mm | C55: m | D55: 0.7666
A56: M0071 | B56: Contêiner com 3 janelas para guarita - L = 2,44 m e C = 3,05 m (1/2 TEU) | C56: un | D56: 42100.8858
A57: M0072 | B57: Arame liso em aço galvanizado - D = 2,10 mm (14 BWG) | C57: kg | D57: 18.5
A58: M0073 | B58: Muda de árvore com altura de 0,30 a 0,80 m | C58: un | D58: 14.6944
A59: M0074 | B59: Muda de arbusto com altura até 0,50 m | C59: un | D59: 21.567
A60: M0075 | B60: Arame liso recozido em aço-carbono - D = 1,24 mm (18 BWG) | C60: kg | D60: 11.4083
A61: M0076 | B61: Disco de corte abrasivo para policorte - D = 300 mm | C61: un | D61: 15.3805
A62: M0080 | B62: Areia fina | C62: m³ | D62: 131.5539
A63: M0081 | B63: Areia grossa | C63: m³ | D63: 122.0491
A64: M0082 | B64: Areia média lavada | C64: m³ | D64: 135.1479
A65: M0083 | B65: Argamassa pré-dosada para grauteamento | C65: kg | D65: 1.64
A66: M0084 | B66: Argamassa pré-dosada autoadensável para grauteamento | C66: kg | D66: 1.6396
A67: M0085 | B67: Ancoragem ativa para 4 cordoalhas - D = 12,7 mm | C67: un | D67: 382.2457
A68: M0086 | B68: Ancoragem ativa para 6 cordoalhas - D = 12,7 mm | C68: un | D68: 494.0471
A69: M0087 | B69: Ancoragem ativa para 7 cordoalhas - D = 12,7 mm | C69: un | D69: 570.7866
A70: M0088 | B70: Ancoragem ativa para 8 cordoalhas - D = 12,7 mm | C70: un | D70: 667.0345
A71: M0089 | B71: Ancoragem ativa para 9 cordoalhas - D = 12,7 mm | C71: un | D71: 753.4931
A72: M0091 | B72: Ancoragem ativa para 10 cordoalhas - D = 12,7 mm | C72: un | D72: 836.5955
A73: M0092 | B73: Ancoragem ativa para 12 cordoalhas - D = 12,7 mm | C73: un | D73: 1057.7169
A74: M0093 | B74: Ancoragem ativa para 15 cordoalhas - D = 12,7 mm | C74: un | D74: 1467.4408
A75: M0094 | B75: Ancoragem ativa para 19 cordoalhas - D = 12,7 mm | C75: un | D75: 1865.6634
A76: M0098 | B76: Bambu com diâmetro médio de 10 cm | C76: m | D76: 21.3573
A77: M0099 | B77: Equipamentos para a fábrica de dormentes de concreto protendido | C77: ISF | D77: 567.856
A78: M0100 | B78: Ancoragem ativa para 22 cordoalhas - D = 12,7 mm | C78: un | D78: 2415.5598
A79: M0101 | B79: Ancoragem ativa para 27 cordoalhas - D = 12,7 mm | C79: un | D79: 2951.4542
A80: M0102 | B80: Ancoragem ativa para 31 cordoalhas - D = 12,7 mm | C80: un | D80: 3184.1939
A81: M0103 | B81: Aditivo acelerador de pega para concreto e argamassa projetados | C81: kg | D81: 7.4826
A82: M0104 | B82: Asfalto diluído de petróleo - CM-30 | C82: t | D82: -
A83: M0105 | B83: Ancoragem ativa para 4 cordoalhas - D = 15,2 mm | C83: un | D83: 473.8117
A84: M0106 | B84: Ancoragem ativa para 6 cordoalhas - D = 15,2 mm | C84: un | D84: 630.1384
A85: M0107 | B85: Geocomposto para drenagem | C85: m² | D85: 40.891
A86: M0108 | B86: Ancoragem ativa para 7 cordoalhas - D = 15,2 mm | C86: un | D86: 741.672
A87: M0109 | B87: Geodreno vertical - L = 10 cm e E = 5 mm | C87: m | D87: 5.18
A88: M0110 | B88: Ancoragem ativa para 10 cordoalhas - D = 15,2 mm | C88: un | D88: 1145.0766
A89: M0111 | B89: Ancoragem ativa para 9 cordoalhas - D = 15,2 mm | C89: un | D89: 1020.5241
A90: M0112 | B90: Disco diamantado segmentado para corte de pavimento - D = 1.000 mm | C90: un | D90: 5880.9681
A91: M0113 | B91: Ancoragem ativa para 12 cordoalhas - D = 15,2 mm | C91: un | D91: 1399.3471
A92: M0114 | B92: Disco diamantado segmentado para corte de pavimento - D = 1.500 mm | C92: un | D92: 26165.3954
A93: M0115 | B93: Biomanta vegetal de fibras de coco entrelaçadas com fios de polipropileno biodegradáveis - densidade 0,4 kg/m² | C93: m² | D93: 6.51
A94: M0116 | B94: Mangote flangeado de borracha reforçada com lonas sintéticas - C = 1,80 m e D = 0,30 m | C94: un | D94: 16656.7554
A95: M0117 | B95: Mangote flangeado de borracha reforçada com lonas sintéticas - C = 1,80 m e D = 0,40 m | C95: un | D95: 22803.3773
A96: M0118 | B96: Mangote flangeado de borracha reforçada com lonas sintéticas - C = 1,80 m e D = 0,45 m | C96: un | D96: 25487.481
A97: M0119 | B97: Mangote flangeado de borracha reforçada com lonas sintéticas - C = 1,80 m e D = 0,50 m | C97: un | D97: 28690.7609
A98: M0120 | B98: Tubo PEAD PE 100 PN 8 com flanges - D = 250 mm | C98: m | D98: 316.1183
A99: M0121 | B99: Tubo PEAD PE 100 PN 8 com flanges - D = 400 mm | C99: m | D99: 2027.7699
A100: M0122 | B100: Tubo PEAD PE 100 PN 8 com flanges - D = 450 mm | C100: m | D100: 2547.1535
A101: M0123 | B101: Tubo PEAD PE 100 PN 8 com flanges - D = 500 mm | C101: m | D101: 2852.3427
A102: M0124 | B102: Flutuador bipartido em polietileno com núcleo de espuma em poliuretano para tubos - D = 0,30 m | C102: un | D102: 4350.7076
A103: M0125 | B103: Flutuador bipartido em polietileno com núcleo de espuma em poliuretano para tubos - D = 0,40 m | C103: un | D103: 5988.5953
A104: M0126 | B104: Flutuador bipartido em polietileno com núcleo de espuma em poliuretano para tubos - D = 0,45 m | C104: un | D104: 6866.0452
A105: M0127 | B105: Flutuador bipartido em polietileno com núcleo de espuma em poliuretano para tubos - D = 0,50 m | C105: un | D105: 7420.8238
A106: M0128 | B106: Biomanta vegetal de fibras de palha entrelaçadas com fios de polipropileno biodegradáveis - densidade 0,6 kg/m² | C106: m² | D106: 5.71
A107: M0129 | B107: Retentor de sedimento em fibras vegetais - D = 20 cm | C107: m | D107: 59.7201
A108: M0130 | B108: Ancoragem ativa para 15 cordoalhas - D = 15,2 mm | C108: un | D108: 1842.1347
A109: M0131 | B109: Tubo PEAD corrugado com paredes estruturadas para drenagem - D = 400 mm | C109: m | D109: 236.2745
A110: M0132 | B110: Tubo PEAD corrugado com paredes estruturadas para drenagem - D = 450 mm | C110: m | D110: 288.7629
A111: M0133 | B111: Tubo PEAD corrugado com paredes estruturadas para drenagem - D = 500 mm | C111: m | D111: 389.1202
A112: M0134 | B112: Tubo PEAD corrugado com paredes estruturadas para drenagem - D = 600 mm | C112: m | D112: 567.099
A113: M0135 | B113: Tubo PEAD corrugado com paredes estruturadas para drenagem - D = 750 mm | C113: m | D113: 768.523
A114: M0136 | B114: Tubo PEAD corrugado com paredes estruturadas para drenagem - D = 800 mm | C114: m | D114: 846.5476
A115: M0137 | B115: Tubo PEAD corrugado com paredes estruturadas para drenagem - D = 900 mm | C115: m | D115: 1125.1892
A116: M0138 | B116: Ancoragem ativa para 19 cordoalhas - D = 15,2 mm | C116: un | D116: 2396.6883
A117: M0139 | B117: Tubo PEAD corrugado com paredes estruturadas para drenagem - D = 1.000 mm | C117: m | D117: 1485.5589
A118: M0140 | B118: Bentonita | C118: kg | D118: 2.7496
A119: M0141 | B119: Tubo PEAD corrugado com paredes estruturadas para drenagem - D = 1.050 mm | C119: m | D119: 1471.2403
A120: M0142 | B120: Tubo PEAD corrugado com paredes estruturadas para drenagem - D = 1.200 mm | C120: m | D120: 2088.7243
A121: M0143 | B121: Tubo PEAD corrugado com paredes estruturadas para drenagem - D = 1.500 mm | C121: m | D121: 2411.0231
A122: M0145 | B122: Ancoragem ativa para 22 cordoalhas - D = 15,2 mm | C122: un | D122: 3106.4278
A123: M0146 | B123: Ancoragem ativa para 27 cordoalhas - D = 15,2 mm | C123: un | D123: 4067.7708
A124: M0148 | B124: Ancoragem ativa para lajes para 1 cordoalha - D = 12,7 mm | C124: un | D124: 89.908
A125: M0151 | B125: Ancoragem ativa para lajes para 2 cordoalhas - D = 12,7 mm | C125: un | D125: 167.1687
A126: M0152 | B126: Ancoragem ativa para lajes para 3 cordoalhas - D = 12,7 mm | C126: un | D126: 232.7745
A127: M0153 | B127: Ancoragem ativa para lajes para 4 cordoalhas - D = 12,7 mm | C127: un | D127: 310.9876
A128: M0156 | B128: Bloco de concreto - L = 19 cm, A = 19 cm e C = 39 cm | C128: un | D128: 4.437
A129: M0158 | B129: Tela metálica galvanizada dobrada em L - C = 2,0 m, L = 0,4 m e H = 0,4 m | C129: un | D129: 432.6216
A130: M0160 | B130: Extintor de incêndio tipo espuma mecânica - V = 10 l | C130: un | D130: 614.1207
A131: M0161 | B131: Barra de fibra de vidro (vergalhão) - D = 25,0 mm | C131: m | D131: 61.2754
A132: M0162 | B132: Corrente de elo soldado em aço galvanizado com acabamento polido - D = 3,18 mm (1/8") | C132: m | D132: 7.1839
A133: M0163 | B133: Gonzo com aba em aço galvanizado - D = 12,7 mm (1/2") | C133: un | D133: 2.8833
A134: M0164 | B134: Tubo em aço galvanizado - E = 1,50 mm e seção de 20 x 20 mm | C134: m | D134: 12.7369
A135: M0166 | B135: Tubo em aço galvanizado - E = 2,25 mm e D = 20 mm (3/4") | C135: m | D135: 31.4562
A136: M0167 | B136: Tela de poliamida industrial - E = 0,40 mm e malha de 1,6 mm | C136: m² | D136: 15.7567
A137: M0168 | B137: Abraçadeira de poliamida - E = 3,6 mm e C = 200 mm | C137: un | D137: 0.2221
A138: M0169 | B138: Roda em aço e pneu com câmara de ar 83/203 mm (3,25"/8") para carrinho de mão | C138: un | D138: 64.39
A139: M0173 | B139: Ancoragem ativa para lajes para 1 cordoalha - D = 15,2 mm | C139: un | D139: 101.0715
A140: M0178 | B140: Ancoragem ativa para lajes para 2 cordoalhas - D = 15,2 mm | C140: un | D140: 218.5355
A141: M0181 | B141: Ancoragem ativa para lajes para 3 cordoalhas - D = 15,2 mm | C141: un | D141: 284.8194
A142: M0184 | B142: Ancoragem ativa para lajes para 4 cordoalhas - D = 15,2 mm | C142: un | D142: 376.0814
A143: M0191 | B143: Brita 1 | C143: m³ | D143: 135.5546
A144: M0192 | B144: Brita 2 | C144: m³ | D144: 134.0237
A145: M0193 | B145: Brita 3 | C145: m³ | D145: 132.9061
A146: M0194 | B146: Escória de aciaria | C146: m³ | D146: 13.8851
A147: M0198 | B147: Parafuso de cabeça chata em aço - D = 4,5 mm e bucha plástica - D = 8 mm (S8) | C147: un | D147: 0.3322
A148: M0199 | B148: Coroa de botões cruzados linha R32 - D = 43 mm (1 11/16’’) | C148: un | D148: 321.1998
A149: M0201 | B149: Coroa de botões esféricos linha T38 - D = 89 mm (3 1/2") | C149: un | D149: 872.4226
A150: M0202 | B150: Coroa de botões esféricos linha T45 - D = 76 mm (3") | C150: un | D150: 674.376
A151: M0204 | B151: Instalações físicas para a central de pré-moldagem de dormentes de concreto protendido | C151: CMCC | D151: 1750.55
A152: M0217 | B152: Enxofre | C152: kg | D152: 4.7081
A153: M0220 | B153: Adubo à base de nitrogênio, fósforo e potássio (NPK) | C153: kg | D153: 3.4129
A154: M0222 | B154: Filer calcário | C154: kg | D154: 0.1911
A155: M0223 | B155: Sementes para hidrossemeadura | C155: kg | D155: 30.7268
A156: M0224 | B156: Guia-chapéu pré-moldada - C = 120 cm | C156: un | D156: 65.0621
A157: M0225 | B157: Adubo orgânico composto | C157: kg | D157: 0.2567
A158: M0229 | B158: Gabião tipo colchão em liga de zinco e alumínio revestido com polímero de malha hexagonal - E = 0,17 m | C158: m² | D158: 214.9289
A159: M0230 | B159: Gabião tipo caixa em liga de zinco e alumínio de malha hexagonal - C = 2,00 m, L = 1,00 m e H = 0,50 m | C159: un | D159: 643.2526
A160: M0231 | B160: Gabião tipo caixa em liga de zinco e alumínio de malha hexagonal - C = 2,00 m, L = 1,00 m e H = 1,00 m | C160: un | D160: 982.5769
A161: M0232 | B161: Gabião tipo caixa em liga de zinco e alumínio revestido com polímero de malha hexagonal - C = 2,00 m, L = 1,00 m e H = 0,50 m | C161: un | D161: 796.7913
A162: M0233 | B162: Gabião tipo caixa em liga de zinco e alumínio revestido com polímero de malha hexagonal - C = 2,00 m, L = 1,00 m e H = 1,00 m | C162: un | D162: 1116.052
A163: M0234 | B163: Gabião tipo saco em liga de zinco e alumínio revestido com polímero de malha hexagonal - D = 0,65 m | C163: m³ | D163: 594.0622
A164: M0235 | B164: Gabião tipo colchão em liga de zinco e alumínio revestido com polímero de malha hexagonal - E = 0,23 m | C164: m² | D164: 224.9353
A165: M0236 | B165: Gabião tipo colchão em liga de zinco e alumínio revestido com polímero de malha hexagonal - E = 0,30 m | C165: m² | D165: 247.4379
A166: M0237 | B166: Energia elétrica | C166: kWh | D166: 0.8921
A167: M0253 | B167: Cabo de cobre flexível antichama isolado em PVC - tensão de 450/750 V e seção de 16 mm² | C167: m | D167: 13.512
A168: M0254 | B168: Mistura gasosa de argônio e dióxido de carbono para solda MIG/MAG | C168: m³ | D168: 49.1738
A169: M0256 | B169: Tinta à base de etil silicato de zinco bicomponente para fundo preparador de pintura | C169: l | D169: 87.7584
A170: M0257 | B170: Diluente para tinta à base de etil silicato de zinco | C170: l | D170: 33.1262
A171: M0260 | B171: Cabo de cobre PP flexível isolado em PVC - tensão de 300/500 V e seção de 3 x 1,5 mm² | C171: m | D171: 4.6918
A172: M0264 | B172: Bomba de combustível industrial eletrônica simples | C172: un | D172: 26702.7127
A173: M0265 | B173: Tanque de combustível aéreo horizontal com escada para visita - capacidade de 5.000 l | C173: un | D173: 20660.1359
A174: M0266 | B174: Cabo de cobre flexível antichama isolado em PVC - tensão de 0,6/1,0 kV e seção de 240 mm² | C174: m | D174: 166.6155
A175: M0267 | B175: Módulo de torre de elevador de cremalheira | C175: un | D175: 3888.2219
A176: M0268 | B176: Módulo de ancoragem de torre de elevador de cremalheira | C176: un | D176: 2943.5593
A177: M0269 | B177: Cabo de cobre flexível antichama isolado em PVC - tensão de 0,6/1,0 kV e seção de 50 mm² | C177: m | D177: 35.8401
A178: M0284 | B178: Caibro de pinho - L = 7,5 cm e E = 7,5 cm | C178: m | D178: 16.9469
A179: M0285 | B179: Pontalete para escoramento - D = 15 cm | C179: m | D179: 9.1791
A180: M0286 | B180: Tábua - E = 2,5 cm e L = 30 cm | C180: m | D180: 17.4619
A181: M0289 | B181: Tábua - E = 2,5 cm e L = 15 cm | C181: m | D181: 8.527
A182: M0290 | B182: Tábua - E = 2,5 cm e L = 10 cm | C182: m | D182: 5.6854
A183: M0291 | B183: Estrutura modular com 2 banheiros - L = 2,44 m e C = 6,06 m (1 TEU) | C183: un | D183: 72966.5297
A184: M0292 | B184: Estrutura modular com janela - L = 2,44 m e C = 6,06 m (1 TEU) | C184: un | D184: 58642.3377
A185: M0293 | B185: Estrutura modular com janela - L = 4,88 m e C = 6,06 m (1 TEU duplo) | C185: un | D185: 103309.7098
A186: M0294 | B186: Estrutura modular com janela e 2 banheiros - L = 4,88 m e C = 6,06 m (1 TEU duplo) | C186: un | D186: 114835.52
A187: M0295 | B187: Estrutura modular com revestimento térmico, janela e banheiro - L = 2,44 m e C = 6,06 m (1 TEU) | C187: un | D187: 65997.4
A188: M0296 | B188: Estrutura modular com revestimento térmico, janela e banheiro - L = 2,44 m e C = 12,19 m (2 TEU) | C188: un | D188: 122521.1627
A189: M0297 | B189: Estrutura modular com 3 janelas para guarita - L = 2,44 m e C = 3,05 m (1/2 TEU) | C189: un | D189: 41239.2001
A190: M0301 | B190: Pontalete para escoramento - D = 10 cm | C190: m | D190: 4.0816
A191: M0310 | B191: Peça de madeira - L = 7,5 cm e E = 2,5 cm | C191: m | D191: 5.5917
A192: M0311 | B192: Filtro de aspiração de ar externo com capacidade 3,58 l/s para compressor de ar respirável | C192: un | D192: 200.0031
A193: M0312 | B193: Filtro de purificação de ar comprimido com capacidade de 35 MPa para compressor de ar respirável | C193: un | D193: 222.0691
A194: M0344 | B194: Cal hidratada - a granel | C194: kg | D194: 0.5111
A195: M0345 | B195: Cal hidratada - saco | C195: kg | D195: 0.8393
A196: M0346 | B196: Disco de aço para bomba de projeção via seca | C196: un | D196: 330
A197: M0347 | B197: Disco de aço para bomba de projeção via úmida | C197: un | D197: 1262.5862
A198: M0348 | B198: Disco de borracha para bomba de projeção via seca | C198: un | D198: 265
A199: M0349 | B199: Disco de borracha para bomba de projeção via úmida | C199: un | D199: 600.6
A200: M0350 | B200: Bico para bomba de projeção | C200: un | D200: 298.3352
... 1476 more rows

Sheet Pessoal Sicro
A1: CGCIT | B1: SISTEMA DE CUSTOS REFERENCIAIS DE OBRAS - SICRO | G1: DNIT
A3: Rio Grande do Norte - Abril/2024
A4: Sem desoneração
A5: Código | B5: Descrição | C5: Unidade | D5: Salário (R$) | E5: Encargos Totais | F5: Custo (R$) | G5: Periculosidade/ Insalubridade
A6: P9801 | B6: Ajudante | C6: h | D6: 6.839 | E6: 2.183034 | F6: 21.7687 | G6: 0
A7: P9802 | B7: Ajudante especializado | C7: h | D7: 8.2142 | E7: 2.095562 | F7: 25.4275 | G7: 0
A8: P9803 | B8: Almoxarife | C8: mês | D8: 2699.4 | E8: 1.253068 | F8: 6081.9317 | G8: 0
A9: P9804 | B9: Apontador | C9: mês | D9: 1877.6405 | E9: 1.508869 | F9: 4710.754 | G9: 0
A10: P9805 | B10: Armador | C10: h | D10: 10.8106 | E10: 1.788111 | F10: 30.1411 | G10: 0
A11: P9806 | B11: Auxiliar administrativo | C11: mês | D11: 1742.8649 | E11: 1.521917 | F11: 4395.3606 | G11: 0
A12: P9807 | B12: Bombeiro hidráulico | C12: h | D12: 11.0195 | E12: 1.846529 | F12: 31.3673 | G12: 0
A13: P9808 | B13: Carpinteiro | C13: h | D13: 8.7175 | E13: 1.95519 | F13: 25.7618 | G13: 0
A14: P9809 | B14: Encarregado administrativo | C14: mês | D14: 3743.2324 | E14: 1.089457 | F14: 7821.3231 | G14: 0
A15: P9810 | B15: Eletricista | C15: h | D15: 10.7762 | E15: 1.836559 | F15: 30.5673 | G15: 0
A16: P9811 | B16: Encarregado especializado | C16: mês | D16: 3681.9645 | E16: 1.125633 | F16: 7826.5052 | G16: 0
A17: P9812 | B17: Engenheiro | C17: mês | D17: 13036.5772 | E17: 0.858799 | F17: 24232.3766 | G17: 0
A18: P9814 | B18: Operacional | C18: mês | D18: 1570.3441 | E18: 1.489277 | F18: 3909.0214 | G18: 0
A19: P9815 | B19: Jardineiro | C19: h | D19: 9.63 | E19: 1.868637 | F19: 27.6249 | G19: 0
A20: P9819 | B20: Engenheiro supervisor | C20: mês | D20: 13036.5772 | E20: 0.858799 | F20: 24232.3766 | G20: 0
A21: P9821 | B21: Pedreiro | C21: h | D21: 8.7175 | E21: 1.953346 | F21: 25.7457 | G21: 0
A22: P9822 | B22: Pintor | C22: h | D22: 10.8106 | E22: 1.79484 | F22: 30.2138 | G22: 0
A23: P9823 | B23: Serralheiro | C23: h | D23: 9.8194 | E23: 1.857349 | F23: 28.0574 | G23: 0
A24: P9824 | B24: Servente | C24: h | D24: 6.839 | E24: 2.180774 | F24: 21.7533 | G24: 0
A25: P9825 | B25: Soldador | C25: h | D25: 12.6749 | E25: 1.692373 | F25: 34.1255 | G25: 0
A26: P9826 | B26: Chefe setor de finanças | C26: mês | D26: 12413.5749 | E26: 0.864841 | F26: 23149.3434 | G26: 0
A27: P9827 | B27: Vigia | C27: mês | D27: 1657.3 | E27: 1.797705 | F27: 5133.8264 | G27: 0.3
A28: P9830 | B28: Montador | C28: h | D28: 10.835 | E28: 1.862797 | F28: 31.0184 | G28: 0
A29: P9833 | B29: Auxiliar de laboratório | C29: mês | D29: 2378.3386 | E29: 1.324625 | F29: 5528.7453 | G29: 0
A30: P9837 | B30: Oceanógrafo | C30: mês | D30: 5313.4666 | E30: 0.967307 | F30: 10453.22 | G30: 0
A31: P9840 | B31: Encarregado geral | C31: mês | D31: 5757.5564 | E31: 0.995229 | F31: 11487.6434 | G31: 0
A32: P9842 | B32: Faxineiro | C32: mês | D32: 1454.2 | E32: 1.678756 | F32: 3895.4469 | G32: 0
A33: P9843 | B33: Operador de equipamento leve | C33: h | D33: 9.4316 | E33: 1.873014 | F33: 27.0971 | G33: 0
A34: P9845 | B34: Operador de equipamento pesado | C34: h | D34: 12.921 | E34: 1.66263 | F34: 34.4038 | G34: 0
A35: P9846 | B35: Operador de equipamento especial | C35: h | D35: 17.1555 | E35: 1.512899 | F35: 43.11 | G35: 0
A36: P9847 | B36: Perfurador de tubulão | C36: h | D36: 6.8213 | E36: 2.180151 | F36: 21.6927 | G36: 0
A37: P9848 | B37: Desenhista | C37: mês | D37: 3282.7894 | E37: 1.144458 | F37: 7039.8039 | G37: 0
A38: P9849 | B38: Condutor maquinista fluvial | C38: mês | D38: 2497.4354 | E38: 1.203174 | F38: 5502.2847 | G38: 0
A39: P9850 | B39: Copeiro | C39: mês | D39: 1579.6 | E39: 1.582049 | F39: 4078.6046 | G39: 0
A40: P9851 | B40: Médico do trabalho | C40: mês | D40: 9683.7414 | E40: 0.895161 | F40: 18352.249 | G40: 0
A41: P9852 | B41: Blaster | C41: h | D41: 11.0884 | E41: 2.113667 | F41: 37.8521 | G41: 0.3
A42: P9853 | B42: Pré-marcador | C42: h | D42: 6.8206 | E42: 2.156626 | F42: 21.53 | G42: 0
A43: P9854 | B43: Recepcionista | C43: mês | D43: 1633.1119 | E43: 1.527705 | F43: 4128.0251 | G43: 0
A44: P9855 | B44: Marinheiro de máquinas | C44: mês | D44: 2228.695 | E44: 1.253325 | F44: 5021.9741 | G44: 0
A45: P9856 | B45: Marinheiro de convés | C45: h | D45: 9.888 | E45: 1.708729 | F45: 26.7839 | G45: 0
A46: P9857 | B46: Marinheiro de convés - mensalista | C46: mês | D46: 2175.3666 | E46: 1.264919 | F46: 4927.0291 | G46: 0
A47: P9858 | B47: Laboratorista | C47: mês | D47: 3319.8 | E47: 1.168625 | F47: 7199.4012 | G47: 0
A48: P9859 | B48: Trabalhador de via | C48: h | D48: 6.4182 | E48: 2.263141 | F48: 20.9434 | G48: 0
A49: P9861 | B49: Selecionador de material pétreo | C49: h | D49: 6.8206 | E49: 2.167294 | F49: 21.6028 | G49: 0
A50: P9864 | B50: Engenheiro de segurança do trabalho | C50: mês | D50: 12257.0437 | E50: 0.87102 | F50: 22933.1739 | G50: 0
A51: P9866 | B51: Motorista de caminhão | C51: h | D51: 11.9926 | E51: 1.692391 | F51: 32.2887 | G51: 0
A52: P9867 | B52: Técnico especializado - mensalista | C52: mês | D52: 3179.1677 | E52: 1.182521 | F52: 6938.6002 | G52: 0
A53: P9869 | B53: Encarregado de obras de artes especiais | C53: mês | D53: 3681.9645 | E53: 1.125633 | F53: 7826.5052 | G53: 0
A54: P9870 | B54: Motorista de veículo leve | C54: h | D54: 10.8106 | E54: 1.751824 | F54: 29.7488 | G54: 0
A55: P9871 | B55: Motorista de veículo especial | C55: h | D55: 12.4607 | E55: 1.669972 | F55: 33.2697 | G55: 0
A56: P9875 | B56: Encarregado de turma | C56: mês | D56: 2208.2661 | E56: 1.367038 | F56: 5227.0497 | G56: 0
A57: P9876 | B57: Técnico de segurança do trabalho | C57: mês | D57: 3262.6 | E57: 1.17047 | F57: 7081.3754 | G57: 0
A58: P9878 | B58: Secretária | C58: mês | D58: 2855.4435 | E58: 1.196979 | F58: 6273.3494 | G58: 0
A59: P9880 | B59: Piloto fluvial | C59: mês | D59: 3456.53 | E59: 1.073971 | F59: 7168.7429 | G59: 0
A60: P9882 | B60: Técnico especializado | C60: h | D60: 14.4508 | E60: 1.598256 | F60: 37.5468 | G60: 0
A61: P9883 | B61: Chefe do setor administrativo | C61: mês | D61: 3743.5944 | E61: 1.089425 | F61: 7821.9597 | G61: 0
A62: P9884 | B62: Encarregado de terraplenagem | C62: mês | D62: 3681.9645 | E62: 1.125633 | F62: 7826.5052 | G62: 0
A63: P9885 | B63: Frentista de túnel | C63: h | D63: 6.8206 | E63: 2.239498 | F63: 22.0953 | G63: 0
A64: P9889 | B64: Técnico da qualidade | C64: mês | D64: 3566.9485 | E64: 1.135718 | F64: 7617.9961 | G64: 0
A65: P9892 | B65: Auxiliar de blaster | C65: h | D65: 9.7647 | E65: 2.206804 | F65: 34.2428 | G65: 0.3
A66: P9893 | B66: Encarregado de pavimentação | C66: mês | D66: 3681.9645 | E66: 1.125633 | F66: 7826.5052 | G66: 0
A67: P9896 | B67: Porteiro | C67: mês | D67: 1454.2 | E67: 1.678735 | F67: 3895.4164 | G67: 0
A68: P9897 | B68: Técnico de meio ambiente | C68: mês | D68: 3587.8754 | E68: 1.145337 | F68: 7697.2018 | G68: 0
A69: P9900 | B69: Comprador | C69: mês | D69: 3365.3083 | E69: 1.152221 | F69: 7242.8871 | G69: 0
A70: P9901 | B70: Encarregado de superestrutura ferroviária | C70: mês | D70: 3681.9645 | E70: 1.125633 | F70: 7826.5052 | G70: 0
A71: P9903 | B71: Auxiliar técnico | C71: mês | D71: 1786.8663 | E71: 1.49526 | F71: 4458.696 | G71: 0
A72: P9907 | B72: Comandante de longo curso | C72: mês | D72: 11259.3057 | E72: 0.85216 | F72: 20854.0356 | G72: 0
A73: P9908 | B73: Imediato | C73: mês | D73: 8904.606 | E73: 0.878143 | F73: 16724.1234 | G73: 0
A74: P9909 | B74: Oficial de náutica | C74: mês | D74: 2834.3491 | E74: 1.14877 | F74: 6090.3643 | G74: 0
A75: P9910 | B75: Oficial de máquinas | C75: mês | D75: 2921.1265 | E75: 1.133052 | F75: 6230.9147 | G75: 0
A76: P9913 | B76: Draguista | C76: mês | D76: 3595.3388 | E76: 1.061613 | F76: 7412.1972 | G76: 0
A77: P9915 | B77: Maquinista | C77: h | D77: 12.7694 | E77: 1.659625 | F77: 33.9618 | G77: 0
A78: P9916 | B78: Encarregado de conservação rodoviária | C78: mês | D78: 3681.9645 | E78: 1.125633 | F78: 7826.5052 | G78: 0
A79: P9920 | B79: Mestre fluvial | C79: mês | D79: 4677.0464 | E79: 0.990445 | F79: 9309.4036 | G79: 0
A80: P9921 | B80: Mergulhador raso autônomo de emergência | C80: h | D80: 9.9237 | E80: 2.46323 | F80: 36.9353 | G80: 0.2587
A81: P9922 | B81: Mergulhador raso dependente de emergência | C81: h | D81: 9.9208 | E81: 2.539431 | F81: 38.0902 | G81: 0.3
A82: P9924 | B82: Mergulhador raso dependente | C82: h | D82: 9.9208 | E82: 3.855917 | F82: 51.1508 | G82: 0.3
A83: P9925 | B83: Mergulhador raso autônomo | C83: h | D83: 9.9237 | E83: 3.48923 | F83: 47.117 | G83: 0.2587
A84: P9926 | B84: Mergulhador raso auxiliar de superfície | C84: h | D84: 9.9237 | E84: 2.237032 | F84: 34.6905 | G84: 0.2587
A85: P9927 | B85: Frentista de túnel com periculosidade | C85: h | D85: 6.8206 | E85: 2.567011 | F85: 26.3753 | G85: 0.3
A86: P9930 | B86: Eletricista com periculosidade | C86: h | D86: 10.7762 | E86: 2.164403 | F86: 37.333 | G86: 0.3
A87: P9931 | B87: Operador de equipamento de mergulho | C87: h | D87: 18.0118 | E87: 1.800995 | F87: 53.0176 | G87: 0.1425
A88: P9932 | B88: Operador de equipamento pesado com periculosidade | C88: h | D88: 12.921 | E88: 1.99137 | F88: 42.5277 | G88: 0.3
A89: P9933 | B89: Supervisor de mergulho raso | C89: mês | D89: 3962.5981 | E89: 1.326142 | F89: 9782.236 | G89: 0.1425
A90: P9934 | B90: Motorista de veículo especial com periculosidade | C90: h | D90: 12.4607 | E90: 1.998651 | F90: 41.1035 | G90: 0.3
A91: P9938 | B91: Operador de equipamento leve com periculosidade | C91: h | D91: 9.4316 | E91: 2.201756 | F91: 33.0271 | G91: 0.3
A92: P9939 | B92: Operador de equipamento leve com insalubridade | C92: h | D92: 9.4316 | E92: 2.308563 | F92: 33.7723 | G92: 0.2722
A93: P9942 | B93: Marinheiro de convés com periculosidade | C93: h | D93: 9.888 | E93: 2.037139 | F93: 32.9976 | G93: 0.3
A94: P9944 | B94: Operador de equipamento especial com periculosidade | C94: h | D94: 17.1555 | E94: 1.841636 | F94: 53.8963 | G94: 0.3
A95: P9946 | B95: Engenheiro auxiliar | C95: mês | D95: 12002 | E95: 0.867255 | F95: 22410.7945 | G95: 0
A96: P9947 | B96: Técnico florestal | C96: mês | D96: 3587.8754 | E96: 1.145337 | F96: 7697.2018 | G96: 0
A97: P9948 | B97: Motorista de veículo leve - mensalista | C97: mês | D97: 2378.3386 | E97: 1.310635 | F97: 5495.4724 | G97: 0
A98: P9949 | B98: Topógrafo | C98: mês | D98: 4037 | E98: 1.107522 | F98: 8508.0663 | G98: 0
A99: P9950 | B99: Auxiliar de topografia | C99: mês | D99: 2378.3386 | E99: 1.338378 | F99: 5561.4546 | G99: 0
A100: P9951 | B100: Médico de câmara hiperbárica | C100: mês | D100: 9683.7414 | E100: 1.038097 | F100: 20300.9664 | G100: 0.0583
A101: P9952 | B101: Pedreiro - mensalista | C101: mês | D101: 1917.86 | E101: 1.486495 | F101: 4768.7493 | G101: 0
A102: P9953 | B102: Eletricista - mensalista | C102: mês | D102: 2370.7666 | E102: 1.383993 | F102: 5651.8909 | G102: 0
A103: P9954 | B103: Servente - mensalista | C103: mês | D103: 1504.58 | E103: 1.6785 | F103: 4030.0175 | G103: 0
A104: P9955 | B104: Engenheiro chefe | C104: mês | D104: 16585.7794 | E104: 0.837807 | F104: 30481.4614 | G104: 0
A105: P9956 | B105: Motorista de caminhão com periculosidade | C105: h | D105: 11.9926 | E105: 2.021073 | F105: 39.8283 | G105: 0.3
A106: P9972 | B106: Técnico de batimetria | C106: mês | D106: 3322.76 | E106: 1.108568 | F106: 7006.2654 | G106: 0

Sheet Equipamentos
A1: CGCIT | B1: SISTEMA DE CUSTOS REFERENCIAIS DE OBRAS - SICRO | K1: DNIT
B2: Rio Grande do Norte - Abril/2024
A3: Código | B3: Descrição | C3: Valor de Aquisição (R$) | D3: Depreciação (R$/h) | E3: Oportunidade de Capital (R$/h) | F3: Seguros e Impostos (R$/h) | G3: Manutenção (R$/h) | H3: Operação (R$/h) | I3: Mão de Obra de Operação (R$/h) | J3: Custo Produtivo (R$/h) | K3: Custo Improdutivo (R$/h)
A4: E9001 | B4: Conjunto vibratório para tubos de concreto com encaixe PB e 3 jogos de fôrmas - D = 0,60 m - 2,20 kW | C4: 67349.8015 | D4: 8.98 | E4: 2.0777 | F4: 0 | G4: 6.735 | H4: 0 | I4: 0 | J4: 17.7927 | K4: 11.0577
A5: E9002 | B5: Conjunto vibratório para tubos de concreto com encaixe PB e 3 jogos de fôrmas - D = 0,80 m - 2,20 kW | C5: 83920.8108 | D5: 11.1894 | E5: 2.589 | F5: 0 | G5: 8.3921 | H5: 0 | I5: 0 | J5: 22.1705 | K5: 13.7784
A6: E9003 | B6: Conjunto vibratório para tubos de concreto com encaixe PB e 3 jogos de fôrmas - D = 1,00 m - 2,20 kW | C6: 103484.0978 | D6: 13.7979 | E6: 3.1925 | F6: 0 | G6: 10.3484 | H6: 0 | I6: 0 | J6: 27.3388 | K6: 16.9904
A7: E9004 | B7: Conjunto vibratório para tubos de concreto com encaixe PB e 3 jogos de fôrmas - D = 1,20 m - 2,20 kW | C7: 109692.7382 | D7: 14.6257 | E7: 3.384 | F7: 0 | G7: 10.9693 | H7: 0 | I7: 0 | J7: 28.979 | K7: 18.0097
A8: E9005 | B8: Conjunto vibratório para tubos de concreto com encaixe PB e 3 jogos de fôrmas - D = 1,50 m - 2,20 kW | C8: 114386.7113 | D8: 15.2516 | E8: 3.5288 | F8: 0 | G8: 11.4387 | H8: 0 | I8: 0 | J8: 30.2191 | K8: 18.7804
A9: E9006 | B9: Equipamento para sondagem manual | C9: 3007.8151 | D9: 0.5113 | E9: 0.1113 | F9: 0 | G9: 0.3008 | H9: 0 | I9: 0 | J9: 0.9234 | K9: 0.6226
A10: E9007 | B10: Bomba de pistão triplex com capacidade de 7,80 m³/h (130 l/min) - 8,20 kW | C10: 158221.3484 | D10: 12.6577 | E10: 2.9287 | F10: 0 | G10: 11.0755 | H10: 8.4426 | I10: 0 | J10: 35.1045 | K10: 15.5864
A11: E9008 | B11: Transportador manual de tubos de concreto com capacidade de 1 t | C11: 1892.3743 | D11: 1.7031 | E11: 0.1168 | F11: 0 | G11: 0.9462 | H11: 0 | I11: 0 | J11: 2.7661 | K11: 1.8199
A12: E9009 | B12: Embarcação rebocadora - 268 kW | C12: 633202.4844 | D12: 8.2448 | E12: 3.674 | F12: 0 | G12: 18.3218 | H12: 275.9304 | I12: 135.4673 | J12: 441.6383 | K12: 147.3861
A13: E9010 | B13: Balança plataforma digital à bateria, com mesa de 75 x 75 cm e capacidade de 500 kg | C13: 5142.97 | D13: 0.7714 | E13: 0.1058 | F13: 0 | G13: 0.4286 | H13: 0 | I13: 0 | J13: 1.3058 | K13: 0.8772
A14: E9011 | B14: Carro manual modelo plataforma de 200 x 80 cm com capacidade de 800 kg | C14: 1916.3475 | D14: 0.3449 | E14: 0.0709 | F14: 0 | G14: 0.1916 | H14: 0 | I14: 0 | J14: 0.6074 | K14: 0.4158
A15: E9014 | B15: Deflectômetro de impacto (FWD) instalado em picape com reboque e faixa de carga de 7 a 120 kN - 147 kW | C15: 2141825.942 | D15: 171.3461 | E15: 39.6452 | F15: 0 | G15: 107.0913 | H15: 0 | I15: 33.2697 | J15: 351.3523 | K15: 244.261
A16: E9015 | B16: Elevador de obra com capacidade de 1.000 kg - 9 kW | C16: 65864.4441 | D16: 5.2692 | E16: 1.2192 | F16: 0 | G16: 4.6105 | H16: 0 | I16: 27.0971 | J16: 38.196 | K16: 33.5855
A17: E9016 | B17: Usina misturadora móvel de reciclagem a frio com sistema de espuma de asfalto - 129,40 kW | C17: 10042312.37 | D17: 585.8016 | E17: 180.7198 | F17: 0 | G17: 753.1734 | H17: 98.1688 | I17: 43.11 | J17: 1660.9736 | K17: 809.6314
A18: E9017 | B18: Escavadeira hidráulica sobre esteira com capacidade de 0,4 m³ - 64 kW | C18: 718620.0809 | D18: 50.3034 | E18: 13.3017 | F18: 0 | G18: 50.3034 | H18: 45.0852 | I18: 34.4038 | J18: 193.3975 | K18: 98.0089
A19: E9020 | B19: Recicladora a frio - 455 kW | C19: 5015386.372 | D19: 292.5642 | E19: 90.2561 | F19: 0 | G19: 417.9489 | H19: 493.1199 | I19: 43.11 | J19: 1336.9991 | K19: 425.9303
A20: E9021 | B20: Grupo gerador - 456 kVA | C20: 355099.1297 | D20: 17.755 | E20: 6.2599 | F20: 0 | G20: 12.6821 | H20: 375.8007 | I20: 0 | J20: 412.4977 | K20: 24.0149
A21: E9022 | B21: Pórtico metálico rolante com capacidade de 25 t - 30 kW | C21: 959466.9709 | D21: 43.176 | E21: 16.2798 | F21: 0 | G21: 33.5813 | H21: 0 | I21: 27.0971 | J21: 120.1342 | K21: 86.5529
A22: E9023 | B22: Guindaste móvel sobre esteiras com dragline com capacidade de 1,9 a 2,3 m³ - 270 kW | C22: 3558706.534 | D22: 124.5547 | E22: 60.3824 | F22: 0 | G22: 177.9353 | H22: 73.1552 | I22: 43.11 | J22: 479.1376 | K22: 228.0471
A23: E9024 | B23: Misturador de nata cimento - 1,50 kW | C23: 8223.2034 | D23: 0.6579 | E23: 0.1522 | F23: 0 | G23: 0.5756 | H23: 0 | I23: 27.0971 | J23: 28.4828 | K23: 27.9072
A24: E9025 | B24: Conjunto bomba e macaco hidráulico para protensão com capacidade de 7.000 kN - 15 kW | C24: 100919.312 | D24: 5.7668 | E24: 1.7791 | F24: 0 | G24: 5.7668 | H24: 0 | I24: 43.11 | J24: 56.4227 | K24: 50.6559
A25: E9026 | B25: Bomba para injeção de nata de cimento com capacidade de 2 MPa - 2,20 kW | C25: 31863.4853 | D25: 2.5491 | E25: 0.5898 | F25: 0 | G25: 2.2304 | H25: 0 | I25: 0 | J25: 5.3693 | K25: 3.1389
A26: E9028 | B26: Bomba de alta pressão para hidrojateamento com capacidade de 18 MPa - 5,20 kW | C26: 4788.1169 | D26: 0.383 | E26: 0.0886 | F26: 0 | G26: 0.4309 | H26: 9.3295 | I26: 27.0971 | J26: 37.3291 | K26: 27.5687
A27: E9029 | B27: Conjunto bomba e macaco hidráulico para protensão com capacidade de 8.000 kN - 20 kW | C27: 128291.8413 | D27: 7.331 | E27: 2.2616 | F27: 0 | G27: 7.331 | H27: 0 | I27: 43.11 | J27: 60.0336 | K27: 52.7026
A28: E9030 | B28: Bomba de protensão com leitura digital para tensionamento de estais - 3 kW | C28: 13860.0726 | D28: 0.792 | E28: 0.2443 | F28: 0 | G28: 0.792 | H28: 0 | I28: 0 | J28: 1.8283 | K28: 1.0363
A29: E9031 | B29: Elevador de cremalheira com cabine simples, com capacidade de 1.500 kg e altura de até 100 m - 15 kW | C29: 339424.4824 | D29: 27.154 | E29: 6.2827 | F29: 0 | G29: 23.7597 | H29: 0 | I29: 27.0971 | J29: 84.2935 | K29: 60.5338
A30: E9032 | B30: Equipamento para regulagem final de estais com até 37 cordoalhas - D = 15,7 mm - 20 kW | C30: 75208.594 | D30: 4.2976 | E30: 1.3258 | F30: 0 | G30: 4.2976 | H30: 0 | I30: 43.11 | J30: 53.031 | K30: 48.7334
A31: E9033 | B31: Equipamento para regulagem final de estais de 38 a 55 cordoalhas - D = 15,7 mm - 30 kW | C31: 107440.8485 | D31: 6.1395 | E31: 1.894 | F31: 0 | G31: 6.1395 | H31: 0 | I31: 43.11 | J31: 57.283 | K31: 51.1435
A32: E9034 | B32: Equipamento para regulagem final de estais de 56 a 73 cordoalhas - D = 15,7 mm - 40 kW | C32: 161161.2728 | D32: 9.2092 | E32: 2.841 | F32: 0 | G32: 9.2092 | H32: 0 | I32: 43.11 | J32: 64.3694 | K32: 55.1602
A33: E9035 | B33: Equipamento para regulagem final de estais de 74 a 91 cordoalhas - D = 15,7 mm - 50 kW | C33: 214881.6971 | D33: 12.279 | E33: 3.7881 | F33: 0 | G33: 12.279 | H33: 0 | I33: 43.11 | J33: 71.4561 | K33: 59.1771
A34: E9036 | B34: Grua fixa para alturas de 60 a 102 m, com alcance de 60 m com capacidade de 1.500 kg na ponta da lança - 37 kW | C34: 3214869.372 | D34: 160.7435 | E34: 56.6736 | F34: 0 | G34: 183.7068 | H34: 0 | I34: 43.11 | J34: 444.2339 | K34: 260.5271
A35: E9038 | B35: Macaco hidráulico monocordoalha para tensionamento de estais - 3 kW | C35: 17408.8961 | D35: 0.9948 | E35: 0.3069 | F35: 0 | G35: 0.9948 | H35: 0 | I35: 43.11 | J35: 45.4065 | K35: 44.4117
A36: E9039 | B36: Máquina de solda por termofusão para tubos PEAD com gerador de 4 kW | C36: 117741.6173 | D36: 6.7281 | E36: 2.0756 | F36: 0 | G36: 6.7281 | H36: 4.1184 | I36: 43.11 | J36: 62.7602 | K36: 51.9137
A37: E9040 | B37: Serra mármore - 1,45 kW | C37: 465.011 | D37: 0.0419 | E37: 0.0086 | F37: 0 | G37: 0.0233 | H37: 0 | I37: 0 | J37: 0.0738 | K37: 0.0505
A38: E9042 | B38: Trator sobre esteiras com lâmina - 97 kW | C38: 1335965.247 | D38: 51.9542 | E38: 22.897 | F38: 0 | G38: 74.2203 | H38: 73.5887 | I38: 34.4038 | J38: 257.064 | K38: 109.255
A39: E9043 | B39: Embarcação de alumínio com comprimento de 6 m e motor de popa - 18,60 kW | C39: 25153.8887 | D39: 0.393 | E39: 0.1482 | F39: 0 | G39: 0.4367 | H39: 38.1382 | I39: 39.2829 | J39: 78.399 | K39: 39.8241
A40: E9044 | B40: Central de concreto com capacidade de 150 m³/h - dosadora e misturadora | C40: 2342362.396 | D40: 133.8493 | E40: 41.2925 | F40: 0 | G40: 117.1181 | H40: 0 | I40: 43.11 | J40: 335.3699 | K40: 218.2518
A41: E9045 | B41: Conjunto bomba e macaco hidráulico para elevação com capacidade de 496 kN | C41: 60122.9991 | D41: 4.8098 | E41: 1.1129 | F41: 0 | G41: 4.8098 | H41: 5.9053 | I41: 43.11 | J41: 59.7478 | K41: 49.0327
A42: E9046 | B42: Conjunto bomba e macaco hidráulico para elevação com capacidade de 929 kN | C42: 73007.2301 | D42: 5.8406 | E42: 1.3514 | F42: 0 | G42: 5.8406 | H42: 5.9053 | I42: 43.11 | J42: 62.0479 | K42: 50.302
A43: E9047 | B43: Conjunto bomba e macaco hidráulico para elevação com capacidade de 1.390 kN | C43: 103681.655 | D43: 8.2945 | E43: 1.9191 | F43: 0 | G43: 8.2945 | H43: 5.9053 | I43: 43.11 | J43: 67.5234 | K43: 53.3236
A44: E9048 | B44: Conjunto bomba e macaco hidráulico para elevação com capacidade de 1.859 kN | C44: 120362.524 | D44: 9.629 | E44: 2.2279 | F44: 0 | G44: 9.629 | H44: 5.9053 | I44: 43.11 | J44: 70.5012 | K44: 54.9669
A45: E9049 | B45: Bomba de alta pressão para hidrojateamento com capacidade de 250 MPa - 72 kW | C45: 703621.8506 | D45: 56.2897 | E45: 13.024 | F45: 0 | G45: 63.326 | H45: 58.5241 | I45: 27.0971 | J45: 218.2609 | K45: 96.4108
A46: E9050 | B46: Guindaste móvel sobre pneus com 2 eixos com capacidade de 18 t - 97 kW | C46: 2839728.222 | D46: 141.9864 | E46: 50.0604 | F46: 0 | G46: 182.554 | H46: 26.2817 | I46: 33.2697 | J46: 434.1522 | K46: 225.3165
A47: E9051 | B47: Máquina levantadora e posicionadora de via - 7,40 kW | C47: 783572.9998 | D47: 62.6858 | E47: 14.5039 | F47: 0 | G47: 54.8501 | H47: 10.6213 | I47: 27.0971 | J47: 169.7582 | K47: 104.2868
A48: E9052 | B48: Empilhadeira a diesel com capacidade de 10 t - 82 kW | C48: 752188.4608 | D48: 60.1751 | E48: 13.923 | F48: 0 | G48: 52.6532 | H48: 66.6525 | I48: 27.0971 | J48: 220.5009 | K48: 101.1952
A49: E9053 | B49: Perfuratriz hidráulica montada em flutuante - 32 kW | C49: 352717.8547 | D49: 11.0224 | E49: 2.2669 | F49: 0 | G49: 9.7977 | H49: 17.3405 | I49: 33.0271 | J49: 73.4546 | K49: 46.3164
A50: E9054 | B50: Equipamento sobre forma-trilho para execução e acabamento de pavimento de concreto - 13,40 kW | C50: 1379986.283 | D50: 110.3989 | E50: 25.5435 | F50: 0 | G50: 68.9993 | H50: 19.2331 | I50: 27.0971 | J50: 251.2719 | K50: 163.0395
A51: E9055 | B51: Guincho pneumático com capacidade de 2,5 t | C51: 526425.3171 | D51: 47.3783 | E51: 9.7441 | F51: 0 | G51: 26.3213 | H51: 0 | I51: 0 | J51: 83.4437 | K51: 57.1224
A52: E9056 | B52: Plataforma autoelevatória de 12 x 24 m com capacidade de 150 t | C52: 858859.7476 | D52: 6.7098 | E52: 4.83 | F52: 0 | G52: 14.9108 | H52: 0 | I52: 103.8473 | J52: 130.2979 | K52: 115.3871
A53: E9057 | B53: Batelão sem propulsão com capacidade de 66 m³ | C53: 229672.1037 | D53: 1.7943 | E53: 1.2916 | F53: 0 | G53: 2.9905 | H53: 0 | I53: 26.7839 | J53: 32.8603 | K53: 29.8698
A54: E9058 | B54: Plataforma flutuante de 12 x 24 x 1,8 m com capacidade de 150 t | C54: 686910.1879 | D54: 5.3665 | E54: 3.863 | F54: 0 | G54: 8.9441 | H54: 0 | I54: 26.7839 | J54: 44.9575 | K54: 36.0134
A55: E9059 | B55: Plataforma autoelevatória de 12 x 24 m montada na obra com capacidade de 150 t | C55: 858859.7476 | D55: 6.7098 | E55: 4.83 | F55: 0 | G55: 14.9108 | H55: 0 | I55: 103.8473 | J55: 130.2979 | K55: 115.3871
A56: E9060 | B56: Perfuratriz pneumática rotopercussiva montada em flutuante com pressão de 0,70 MPa e capacidade de 2.500 gpm | C56: 32255.9661 | D56: 1.008 | E56: 0.2073 | F56: 0 | G56: 0.896 | H56: 0 | I56: 66.0542 | J56: 68.1655 | K56: 67.2695
A57: E9061 | B57: Lixadeira elétrica manual angular - 2 kW | C57: 1388.1427 | D57: 0.1111 | E57: 0.0257 | F57: 0 | G57: 0.0694 | H57: 0 | I57: 0 | J57: 0.2062 | K57: 0.1368
A58: E9062 | B58: Soprador de ar quente manual - 1,60 kW | C58: 4563.5123 | D58: 0.6085 | E58: 0.0939 | F58: 0 | G58: 0.3803 | H58: 0 | I58: 0 | J58: 1.0827 | K58: 0.7024
A59: E9063 | B59: Equipamento de estabilização dinâmica da via - 300 kW | C59: 24285889.48 | D59: 971.4356 | E59: 412.0708 | F59: 0 | G59: 971.4356 | H59: 195.0804 | I59: 43.11 | J59: 2593.1324 | K59: 1426.6164
A60: E9064 | B60: Transportador manual gerica com capacidade de 180 l | C60: 1006.1579 | D60: 1.0062 | E60: 0.0621 | F60: 0 | G60: 0.5031 | H60: 0 | I60: 0 | J60: 1.5714 | K60: 1.0683
A61: E9065 | B61: Carro controle ferroviário - 186 kW | C61: 29564083.54 | D61: 1182.5633 | E61: 501.6286 | F61: 0 | G61: 1034.7429 | H61: 120.9498 | I61: 43.11 | J61: 2882.9946 | K61: 1727.3019
A62: E9066 | B62: Grupo gerador - 14 kVA | C62: 68381.2961 | D62: 3.4191 | E62: 1.2055 | F62: 0 | G62: 2.4422 | H62: 11.3255 | I62: 0 | J62: 18.3923 | K62: 4.6246
A63: E9067 | B63: Veículo ferroviário para capina química com capacidade de 12.000 l - 115 kW | C63: 1699604.71 | D63: 67.9842 | E63: 28.838 | F63: 0 | G63: 42.4901 | H63: 74.7808 | I63: 27.0971 | J63: 241.1902 | K63: 123.9193
A64: E9068 | B64: Perfuratriz hidráulica rotopercussiva para CCPH - 123 kW | C64: 3516526.112 | D64: 234.4351 | E64: 63.2828 | F64: 0 | G64: 234.4351 | H64: 99.9787 | I64: 34.4038 | J64: 666.5355 | K64: 332.1217
A65: E9069 | B65: Vibrador de imersão para concreto - 4,10 kW | C65: 3889.0348 | D65: 0.6222 | E65: 0.144 | F65: 0 | G65: 0.3889 | H65: 7.356 | I65: 0 | J65: 8.5111 | K65: 0.7662
A66: E9070 | B66: Ponte rolante com capacidade de 5 t e vão de até 15 m - 10 kW | C66: 333434.3297 | D66: 13.3374 | E66: 5.6575 | F66: 0 | G66: 8.3359 | H66: 0 | I66: 27.0971 | J66: 54.4279 | K66: 46.092
A67: E9071 | B67: Transportador manual carrinho de mão com capacidade de 80 l | C67: 469.9617 | D67: 0.47 | E67: 0.029 | F67: 0 | G67: 0.235 | H67: 0 | I67: 0 | J67: 0.734 | K67: 0.499
A68: E9072 | B68: Martelo hidráulico vibratório com unidade hidráulica - 486 kW | C68: 2863876.1 | D68: 190.9251 | E68: 51.5378 | F68: 0 | G68: 167.0594 | H68: 395.0378 | I68: 43.11 | J68: 847.6701 | K68: 285.5729
A69: E9073 | B69: Bomba de concreto rebocável com capacidade de 30 m³/h - 74 kW | C69: 485087.9297 | D69: 38.807 | E69: 8.979 | F69: 0 | G69: 38.807 | H69: 76.1897 | I69: 27.0971 | J69: 189.8798 | K69: 74.8831
A70: E9074 | B70: Tanque de estocagem de asfalto com agitadores de 60.000 l | C70: 816000 | D70: 34 | E70: 11.8001 | F70: 0 | G70: 21.25 | H70: 0 | I70: 0 | J70: 67.0501 | K70: 45.8001
A71: E9075 | B71: Trado cavadeira de 12" | C71: 144.3371 | D71: 0.0722 | E71: 0.0067 | F71: 0 | G71: 0.0361 | H71: 0 | I71: 0 | J71: 0.115 | K71: 0.0789
A72: E9076 | B72: Equipamento para pintura eletrostática com cabine dupla de 7,00 kW e estufa de 80.000 kCal | C72: 164047.3783 | D72: 10.5459 | E72: 2.8919 | F72: 0 | G72: 5.8588 | H72: 0 | I72: 27.0971 | J72: 46.3937 | K72: 40.5349
A73: E9077 | B73: Perfuratriz de circulação reversa tipo Wirth ou similar com unidade hidráulica (Power Pack) - 273 kW | C73: 4246027.484 | D73: 283.0685 | E73: 76.4108 | F73: 0 | G73: 283.0685 | H73: 147.936 | I73: 34.4038 | J73: 824.8876 | K73: 393.8831
A74: E9078 | B74: Treliça lançadeira com capacidade de carga de 100 a 120 t e vão máximo de 45 m - 110 kW | C74: 3545582.822 | D74: 94.5489 | E74: 58.3367 | F74: 0 | G74: 59.093 | H74: 0 | I74: 43.11 | J74: 255.0886 | K74: 195.9956
A75: E9079 | B75: Bomba submersível com capacidade de 360 m³/h - 23 kW | C75: 179871.1364 | D75: 14.3897 | E75: 3.3294 | F75: 0 | G75: 12.591 | H75: 0 | I75: 0 | J75: 30.3101 | K75: 17.7191
A76: E9080 | B76: Carrelone com capacidade máxima de 70 t | C76: 1766402.012 | D76: 79.4881 | E76: 29.9714 | F76: 0 | G76: 44.1601 | H76: 0 | I76: 27.0971 | J76: 180.7167 | K76: 136.5566
A77: E9081 | B77: Fischietti simples com capacidade de 70 t | C77: 106979.2739 | D77: 4.8141 | E77: 1.8152 | F77: 0 | G77: 2.6745 | H77: 0 | I77: 27.0971 | J77: 36.4009 | K77: 33.7264
A78: E9083 | B78: Vagão fechado FLT com capacidade de 99 t | C78: 800000 | D78: 12.6667 | E78: 12.7513 | F78: 0 | G78: 6.6667 | H78: 0 | I78: 0 | J78: 32.0847 | K78: 25.418
A79: E9084 | B79: Vagão tanque convencional TCT com capacidade de 97 t e 103.000 l | C79: 1195000 | D79: 18.9208 | E79: 19.0473 | F79: 0 | G79: 9.9583 | H79: 0 | I79: 0 | J79: 47.9264 | K79: 37.9681
A80: E9085 | B80: Vagão gôndola GDE com capacidade de 93,5 t / 29 m³ | C80: 620000 | D80: 9.8167 | E80: 9.8823 | F80: 0 | G80: 5.1667 | H80: 0 | I80: 0 | J80: 24.8657 | K80: 19.699
A81: E9086 | B81: Bomba de concreto rebocável com capacidade de 41 m³/h - 74 kW | C81: 535237.9297 | D81: 42.819 | E81: 9.9073 | F81: 0 | G81: 42.819 | H81: 76.1897 | I81: 27.0971 | J81: 198.8321 | K81: 79.8234
A82: E9089 | B82: Roçadeira costal - 1,40 kW | C82: 2862.4304 | D82: 0.4294 | E82: 0.0589 | F82: 0 | G82: 0.334 | H82: 7.8942 | I82: 0 | J82: 8.7165 | K82: 0.4883
A83: E9093 | B83: Veículo leve - 53 kW (sem motorista) | C83: 71552.6012 | D83: 4.2932 | E83: 1.3244 | F83: 0.5366 | G83: 4.2932 | H83: 24.4515 | I83: 0 | J83: 34.8989 | K83: 6.1542
